Workbook

Sheet Visor
A1: Programas de Apoyo a la Generación de Nuevo Empleo y al Empleo Joven
A2: Reporte por sector económico - consolidado nóminas de julio 2021 a agosto 2023
A4: Seleccione el sector económico | D4: Actividad de los hogares en calidad de empleadores; actividades no diferenciadas de los hogares individuales como productores de bienes y servicios para uso propio | N4: =IFERROR(VLOOKUP(D4,Hoja4!$C$2:$D$23,2,FALSE),"") -> T
B7: Sección | D7: Jovenes | F7: Mujeres > 28 años | H7: Hombres > 28 años | J7: Total Empleados o Recursos | M7: % | Q7: Empleadores beneficiados
A9: Nuevos empleos | B9: General | D9: =SUMIFS(insumos2!$T$2:$T$400000,insumos2!$J$2:$J$400000,"Aprobado con subsidio") -> 624691 | F9: =SUMIFS(insumos2!$U$2:$U$400000,insumos2!$J$2:$J$400000,"Aprobado con subsidio") -> 121728 | H9: =SUMIFS(insumos2!$V$2:$V$400000,insumos2!$J$2:$J$400000,"Aprobado con subsidio") -> 105552 | J9: =Hoja4!K24 -> 851971 | M9: =J9/$J$9 -> 1 | Q9: =B9 -> General | S9: =Hoja4!I24 -> 25480
B10: ="Sección "&N4 -> Sección T | D10: =SUMIFS(insumos2!$BC$2:$BC$400000,insumos2!$AS$2:$AS$400000,"Aprobado con subsidio") -> 42 | F10: =SUMIFS(insumos2!$BD$2:$BD$400000,insumos2!$AS$2:$AS$400000,"Aprobado con subsidio") -> 70 | H10: =SUMIFS(insumos2!$BE$2:$BE$400000,insumos2!$AS$2:$AS$400000,"Aprobado con subsidio") -> 0 | J10: =VLOOKUP(N4,Hoja4!$H$1:$M$24,4,FALSE) -> 112 | M10: =J10/$J$9 -> 0.0001314598736 | Q10: =B10 -> Sección T | S10: =VLOOKUP(N4,Hoja4!$H$1:$M$24,2,FALSE) -> 9
A11: Millones en subsidios | B11: =B9 -> General | D11: =SUM(insumos1!$L$2:$L$150000)/1000000 -> 604974.7238 | F11: =SUM(insumos1!$N$2:$N$300000)/1000000 -> 76041.27211 | H11: =SUM(insumos1!$M$2:$M$300000)/1000000 -> 40568.02675 | J11: =Hoja4!M24/1000000 -> 721584.0227 | M11: =J11/$J$11 -> 1
B12: =B10 -> Sección T | D12: =SUMIFS(insumos1!$L$2:$L$300000,insumos1!$H$2:$H$300000,Visor!$N$4)/1000000 -> 29.339751 | F12: =SUMIFS(insumos1!$N$2:$N$300000,insumos1!$H$2:$H$300000,Visor!$N$4)/1000000 -> 32.939892 | H12: =SUMIFS(insumos1!$M$2:$M$300000,insumos1!$H$2:$H$300000,Visor!$N$4)/1000000 -> 0 | J12: =VLOOKUP(N4,Hoja4!$H$1:$M$24,6,FALSE)/1000000 -> 62.279643 | M12: =J12/$J$11 -> 8.630962029e-05 | P12: Tipo de documento del empleado
R13: Nacional | T13: Extranjero
P14: =B9 -> General | R14: =SUMIFS(insumos2!$W$2:$W$500000,insumos2!$J$2:$J$500000,"Aprobado con subsidio") -> 834821 | T14: =SUMIFS(insumos2!$X$2:$X$500000,insumos2!$J$2:$J$500000,"Aprobado con subsidio") -> 17150
P16: =B12 -> Sección T | R16: =SUMIFS(insumos2!$W$2:$W$500000,insumos2!$J$2:$J$500000,"Aprobado con subsidio",insumos2!$N$2:$N$500000,Visor!$N$4) -> 110 | T16: =SUMIFS(insumos2!$X$2:$X$500000,insumos2!$J$2:$J$500000,"Aprobado con subsidio",insumos2!$N$2:$N$500000,Visor!$N$4) -> 2
P18: * Los tipos de indentificación tomados par los extranjeros corresponden a CE, PE y PT
B30: Empleadores | E30: Natural | H30: Jurídica | L30: Recurso en millones | O30: Natural | R30: Jurídica
B31: ="Total sección "&N4 -> Total sección T | E31: =COUNTIFS(insumos2!$AS$1:$AS$399999,"Aprobado con subsidio",insumos2!$AP$1:$AP$399999,"Natural") -> 2 | H31: =COUNTIFS(insumos2!$AS$1:$AS$399999,"Aprobado con subsidio",insumos2!$AP$1:$AP$399999,"Jurídica") -> 7 | L31: ="Total sección "&N4 -> Total sección T | O31: =SUMIFS(insumos1!$K$2:$K$372158,insumos1!$H$2:$H$372158,Visor!N4,insumos1!$I$2:$I$372158,"Natural")/1000000 -> 3.158524 | R31: =SUMIFS(insumos1!$K$2:$K$372158,insumos1!$H$2:$H$372158,Visor!N4,insumos1!$I$2:$I$372158,"Jurídica")/1000000 -> 59.121119
B32: ="% sección "&N4 -> % sección T | E32: =E31/(E31+H31) -> 0.2222222222 | H32: =H31/(E31+H31) -> 0.7777777778 | L32: ="% sección "&N4 -> % sección T | O32: =O31/(O31+R31) -> 0.05071519116 | R32: =R31/(O31+R31) -> 0.9492848088
B33: ="% general" -> % general | E33: 0.1646 | H33: 0.8354 | L33: ="% general" -> % general | O33: 0.0563 | R33: 0.9437
C36: Tamaño | E36: Empleadores | H36: % | J36: Empleados | N36: % | P36: Recursos en millones
C37: Micro | E37: =COUNTIFS(insumos2!$AS$2:$AS$399999,"Aprobado con subsidio",insumos2!$AT$2:$AT$399999,"MICRO") -> 6 | H37: =E37/$E$42 -> 0.6666666667 | J37: =SUMIFS(insumos2!$AN$2:$AN$399999,insumos2!$AS$2:$AS$399999,"Aprobado con subsidio",insumos2!$AT$2:$AT$399999,"MICRO") -> 58 | N37: =J37/$J$42 -> 0.5178571429 | P37: =SUMIFS(insumos1!$K$2:$K$372158,insumos1!$H$2:$H$372158,Visor!N4,insumos1!$J$2:$J$372158,"MICRO")/1000000 -> 34.845553
C38: Pequeña | E38: =COUNTIFS(insumos2!$AS$2:$AS$399999,"Aprobado con subsidio",insumos2!$AT$2:$AT$399999,"PEQUEÑA") -> 3 | H38: 0.3333333333 | J38: =SUMIFS(insumos2!$AN$2:$AN$399999,insumos2!$AS$2:$AS$399999,"Aprobado con subsidio",insumos2!$AT$2:$AT$399999,"PEQUEÑA") -> 54 | N38: 0.4821428571 | P38: =SUMIFS(insumos1!$K$2:$K$372158,insumos1!$H$2:$H$372158,Visor!N4,insumos1!$J$2:$J$372158,"PEQUEÑA")/1000000 -> 27.43409
C39: Mediana | E39: =COUNTIFS(insumos2!$AS$2:$AS$399999,"Aprobado con subsidio",insumos2!$AT$2:$AT$399999,"MEDIANA") -> 0 | H39: 0 | J39: =SUMIFS(insumos2!$AN$2:$AN$399999,insumos2!$AS$2:$AS$399999,"Aprobado con subsidio",insumos2!$AT$2:$AT$399999,"MEDIANA") -> 0 | N39: 0 | P39: =SUMIFS(insumos1!$K$2:$K$372158,insumos1!$H$2:$H$372158,Visor!N4,insumos1!$J$2:$J$372158,"MEDIANA")/1000000 -> 0
C40: Grande | E40: =COUNTIFS(insumos2!$AS$2:$AS$399999,"Aprobado con subsidio",insumos2!$AT$2:$AT$399999,"GRANDE") -> 0 | H40: 0 | J40: =SUMIFS(insumos2!$AN$2:$AN$399999,insumos2!$AS$2:$AS$399999,"Aprobado con subsidio",insumos2!$AT$2:$AT$399999,"GRANDE") -> 0 | N40: 0 | P40: =SUMIFS(insumos1!$K$2:$K$372158,insumos1!$H$2:$H$372158,Visor!N4,insumos1!$J$2:$J$372158,"GRANDE")/1000000 -> 0
C41: Muy grande | E41: =COUNTIFS(insumos2!$AS$2:$AS$399999,"Aprobado con subsidio",insumos2!$AT$2:$AT$399999,"MUY GRANDE") -> 0 | H41: 0 | J41: =SUMIFS(insumos2!$AN$2:$AN$399999,insumos2!$AS$2:$AS$399999,"Aprobado con subsidio",insumos2!$AT$2:$AT$399999,"MUY GRANDE") -> 0 | N41: 0 | P41: =SUMIFS(insumos1!$K$2:$K$372158,insumos1!$H$2:$H$372158,Visor!N4,insumos1!$J$2:$J$372158,"MUY GRANDE")/1000000 -> 0
C42: Total | E42: =COUNTIFS(insumos2!$AS$2:$AS$399999,"Aprobado con subsidio") -> 9 | H42: 1 | J42: =SUMIFS(insumos2!$AN$2:$AN$399999,insumos2!$AS$2:$AS$399999,"Aprobado con subsidio") -> 112 | N42: 1 | P42: =P41+P40+P39+P37+P38 -> 62.279643
B44: Tamaño | C44: ="Sección "&N4 -> Sección T | D44: general | E44: ="Sección "&N4 -> Sección T | F44: general
B45: Micro | C45: =H37 -> 0.6666666667 | D45: 0.6376801371 | E45: =N37 -> 0.5178571429 | F45: 0.104427293
B46: Pequeña | C46: =H38 -> 0.3333333333 | D46: 0.2743797922 | E46: =N38 -> 0.4821428571 | F46: 0.1894298344
B47: Mediana | C47: =H39 -> 0 | D47: 0.06616490439 | E47: =N39 -> 0 | F47: 0.1934365931
B48: Grande | C48: =H40 -> 0 | D48: 0.01371264116 | E48: =N40 -> 0 | F48: 0.1301781558
B49: Muy Grande | C49: =H41 -> 0 | D49: 0.008062525129 | E49: =N41 -> 0 | F49: 0.3835281237
G60: Actividad económica | J60: =D4 -> Actividad de los hogares en calidad de empleadores; actividades no diferenciadas de los hogares individuales como productores de bienes y servicios para uso propio | U60: =N4 -> T
A65: Distribución Departamental | K65: Distribución en los principales municipios del País
A66: Departamento | D66: Empleadores | F66: % | G66: Empleados | I66: % | K66: Departamento | M66: Municipio | P66: Empleadores | R66: % | S66: Empleados | U66: %
A67: =IFERROR(insumos2!BP2,"") -> Antioquia | D67: =insumos2!BQ2 -> 3 | F67: =IFERROR(D67/$D$95,"") -> 0.3333333333 | G67: =insumos2!BR2 -> 8 | I67: =G67/$G$95 -> 0.07142857143 | K67: =IFERROR(insumos2!BY2,"") -> Antioquia | M67: =IFERROR(insumos2!BZ2,"") -> Medellín | P67: =IF(K67<>"",insumos2!CA2,"") -> 2 | R67: =IFERROR(P67/$P$95,"") -> 0.2222222222 | S67: =IF(K67<>"",insumos2!CB2,"") -> 7 | U67: =IFERROR(S67/$S$95,"") -> 0.0625
A68: =IFERROR(insumos2!BP3,"") -> Cundinamarca | D68: =insumos2!BQ3 -> 3 | F68: =IFERROR(D68/$D$95,"") -> 0.3333333333 | G68: =insumos2!BR3 -> 51 | I68: 0.4553571429 | K68: =IFERROR(insumos2!BY3,"") -> Cundinamarca | M68: =IFERROR(insumos2!BZ3,"") -> Cajicá | P68: =IF(K68<>"",insumos2!CA3,"") -> 1 | R68: =IFERROR(P68/$P$95,"") -> 0.1111111111 | S68: =IF(K68<>"",insumos2!CB3,"") -> 5 | U68: =IFERROR(S68/$S$95,"") -> 0.04464285714
A69: =IFERROR(insumos2!BP4,"") -> Santander | D69: =insumos2!BQ4 -> 1 | F69: 0.1111111111 | G69: =insumos2!BR4 -> 23 | I69: 0.2053571429 | K69: =IFERROR(insumos2!BY4,"") -> Antioquia | M69: =IFERROR(insumos2!BZ4,"") -> Rionegro | P69: =IF(K69<>"",insumos2!CA4,"") -> 1 | R69: 0.1111111111 | S69: =IF(K69<>"",insumos2!CB4,"") -> 1 | U69: 0.008928571429
A70: =IFERROR(insumos2!BP5,"") -> Bogotá | D70: =insumos2!BQ5 -> 1 | F70: 0.1111111111 | G70: =insumos2!BR5 -> 29 | I70: 0.2589285714 | K70: =IFERROR(insumos2!BY5,"") -> Bogotá | M70: =IFERROR(insumos2!BZ5,"") -> Bogotá, d.c. | P70: =IF(K70<>"",insumos2!CA5,"") -> 1 | R70: 0.1111111111 | S70: =IF(K70<>"",insumos2!CB5,"") -> 29 | U70: 0.2589285714
A71: =IFERROR(insumos2!BP6,"") -> Meta | D71: =insumos2!BQ6 -> 1 | F71: 0.1111111111 | G71: =insumos2!BR6 -> 1 | I71: 0.008928571429 | K71: =IFERROR(insumos2!BY6,"") -> Santander | M71: =IFERROR(insumos2!BZ6,"") -> Bucaramanga | P71: =IF(K71<>"",insumos2!CA6,"") -> 1 | R71: 0.1111111111 | S71: =IF(K71<>"",insumos2!CB6,"") -> 23 | U71: 0.2053571429
A72: =IFERROR(insumos2!BP7,"") -> Bolívar | D72: =insumos2!BQ7 -> 0 | F72: 0 | G72: =insumos2!BR7 -> 0 | I72: 0 | K72: =IFERROR(insumos2!BY7,"") -> Cundinamarca | M72: =IFERROR(insumos2!BZ7,"") -> Zipaquirá | P72: =IF(K72<>"",insumos2!CA7,"") -> 1 | R72: 0.1111111111 | S72: =IF(K72<>"",insumos2!CB7,"") -> 23 | U72: 0.2053571429
A73: =IFERROR(insumos2!BP8,"") -> Boyacá | D73: =insumos2!BQ8 -> 0 | F73: 0 | G73: =insumos2!BR8 -> 0 | I73: 0 | K73: =IFERROR(insumos2!BY8,"") -> Cundinamarca | M73: =IFERROR(insumos2!BZ8,"") -> Soacha | P73: =IF(K73<>"",insumos2!CA8,"") -> 1 | R73: 0.1111111111 | S73: =IF(K73<>"",insumos2!CB8,"") -> 23 | U73: 0.2053571429
A74: =IFERROR(insumos2!BP9,"") -> Valle del cauca | D74: =insumos2!BQ9 -> 0 | F74: 0 | G74: =insumos2!BR9 -> 0 | I74: 0 | K74: =IFERROR(insumos2!BY9,"") -> Meta | M74: =IFERROR(insumos2!BZ9,"") -> Villavicencio | P74: =IF(K74<>"",insumos2!CA9,"") -> 1 | R74: 0.1111111111 | S74: =IF(K74<>"",insumos2!CB9,"") -> 1 | U74: 0.008928571429
A75: =IFERROR(insumos2!BP10,"") -> Norte de stder | D75: =insumos2!BQ10 -> 0 | F75: 0 | G75: =insumos2!BR10 -> 0 | I75: 0 | K75: =IFERROR(insumos2!BY10,"") -> Risaralda | M75: =IFERROR(insumos2!BZ10,"") -> Pereira | P75: =IF(K75<>"",insumos2!CA10,"") -> 0 | R75: 0 | S75: =IF(K75<>"",insumos2!CB10,"") -> 0 | U75: 0
A76: =IFERROR(insumos2!BP11,"") -> Risaralda | D76: =insumos2!BQ11 -> 0 | F76: 0 | G76: =insumos2!BR11 -> 0 | I76: 0 | K76: =IFERROR(insumos2!BY11,"") ->  | M76: =IFERROR(insumos2!BZ11,"") ->  | P76: =IF(K76<>"",insumos2!CA11,"") ->  | S76: =IF(K76<>"",insumos2!CB11,"") -> 
A77: =IFERROR(insumos2!BP12,"") -> Nariño | D77: =insumos2!BQ12 -> 0 | F77: 0 | G77: =insumos2!BR12 -> 0 | I77: 0 | K77: =IFERROR(insumos2!BY12,"") ->  | M77: =IFERROR(insumos2!BZ12,"") ->  | P77: =IF(K77<>"",insumos2!CA12,"") ->  | S77: =IF(K77<>"",insumos2!CB12,"") -> 
A78: =IFERROR(insumos2!BP13,"") -> Cauca | D78: =insumos2!BQ13 -> 0 | F78: 0 | G78: =insumos2!BR13 -> 0 | I78: 0 | K78: =IFERROR(insumos2!BY13,"") ->  | M78: =IFERROR(insumos2!BZ13,"") ->  | P78: =IF(K78<>"",insumos2!CA13,"") ->  | S78: =IF(K78<>"",insumos2!CB13,"") -> 
A79: =IFERROR(insumos2!BP14,"") -> Magdalena | D79: =insumos2!BQ14 -> 0 | F79: 0 | G79: =insumos2!BR14 -> 0 | I79: 0 | K79: =IFERROR(insumos2!BY14,"") ->  | M79: =IFERROR(insumos2!BZ14,"") ->  | P79: =IF(K79<>"",insumos2!CA14,"") ->  | S79: =IF(K79<>"",insumos2!CB14,"") -> 
A80: =IFERROR(insumos2!BP15,"") -> Quindío | D80: =insumos2!BQ15 -> 0 | F80: 0 | G80: =insumos2!BR15 -> 0 | I80: 0 | K80: =IFERROR(insumos2!BY15,"") ->  | M80: =IFERROR(insumos2!BZ15,"") ->  | P80: =IF(K80<>"",insumos2!CA15,"") ->  | S80: =IF(K80<>"",insumos2!CB15,"") -> 
A81: =IFERROR(insumos2!BP16,"") -> Sucre | D81: =insumos2!BQ16 -> 0 | F81: 0 | G81: =insumos2!BR16 -> 0 | I81: 0 | K81: =IFERROR(insumos2!BY16,"") ->  | M81: =IFERROR(insumos2!BZ16,"") ->  | P81: =IF(K81<>"",insumos2!CA16,"") ->  | S81: =IF(K81<>"",insumos2!CB16,"") -> 
A82: =IFERROR(insumos2!BP17,"") -> Huila | D82: =insumos2!BQ17 -> 0 | F82: 0 | G82: =insumos2!BR17 -> 0 | I82: 0 | K82: =IFERROR(insumos2!BY17,"") ->  | M82: =IFERROR(insumos2!BZ17,"") ->  | P82: =IF(K82<>"",insumos2!CA17,"") ->  | S82: =IF(K82<>"",insumos2!CB17,"") -> 
A83: =IFERROR(insumos2!BP18,"") -> Atlántico | D83: =insumos2!BQ18 -> 0 | F83: 0 | G83: =insumos2!BR18 -> 0 | I83: 0 | K83: =IFERROR(insumos2!BY18,"") ->  | M83: =IFERROR(insumos2!BZ18,"") ->  | P83: =IF(K83<>"",insumos2!CA18,"") ->  | S83: =IF(K83<>"",insumos2!CB18,"") -> 
A84: =IFERROR(insumos2!BP19,"") -> Casanare | D84: =insumos2!BQ19 -> 0 | F84: 0 | G84: =insumos2!BR19 -> 0 | I84: 0 | K84: =IFERROR(insumos2!BY19,"") ->  | M84: =IFERROR(insumos2!BZ19,"") ->  | P84: =IF(K84<>"",insumos2!CA19,"") ->  | S84: =IF(K84<>"",insumos2!CB19,"") -> 
A85: =IFERROR(insumos2!BP20,"") -> Tolima | D85: =insumos2!BQ20 -> 0 | F85: 0 | G85: =insumos2!BR20 -> 0 | I85: 0 | K85: =IFERROR(insumos2!BY20,"") ->  | M85: =IFERROR(insumos2!BZ20,"") ->  | P85: =IF(K85<>"",insumos2!CA20,"") ->  | S85: =IF(K85<>"",insumos2!CB20,"") -> 
A86: =IFERROR(insumos2!BP21,"") -> Cesar | D86: =insumos2!BQ21 -> 0 | F86: 0 | G86: =insumos2!BR21 -> 0 | I86: 0 | K86: =IFERROR(insumos2!BY21,"") ->  | M86: =IFERROR(insumos2!BZ21,"") ->  | P86: =IF(K86<>"",insumos2!CA21,"") ->  | S86: =IF(K86<>"",insumos2!CB21,"") -> 
A87: =IFERROR(insumos2!BP22,"") -> Vaupés | D87: =insumos2!BQ22 -> 0 | F87: 0 | G87: =insumos2!BR22 -> 0 | I87: 0 | K87: =IFERROR(insumos2!BY22,"") ->  | M87: =IFERROR(insumos2!BZ22,"") ->  | P87: =IF(K87<>"",insumos2!CA22,"") ->  | S87: =IF(K87<>"",insumos2!CB22,"") -> 
A88: =IFERROR(insumos2!BP23,"") -> Arauca | D88: =insumos2!BQ23 -> 0 | F88: 0 | G88: =insumos2!BR23 -> 0 | I88: 0 | K88: =IFERROR(insumos2!BY23,"") ->  | M88: =IFERROR(insumos2!BZ23,"") ->  | P88: =IF(K88<>"",insumos2!CA23,"") ->  | S88: =IF(K88<>"",insumos2!CB23,"") -> 
A89: =IFERROR(insumos2!BP24,"") -> La guajira | D89: =insumos2!BQ24 -> 0 | F89: 0 | G89: =insumos2!BR24 -> 0 | I89: 0 | K89: =IFERROR(insumos2!BY24,"") ->  | M89: =IFERROR(insumos2!BZ24,"") ->  | P89: =IF(K89<>"",insumos2!CA24,"") ->  | S89: =IF(K89<>"",insumos2!CB24,"") -> 
A90: =IFERROR(insumos2!BP25,"") -> Caldas | D90: =insumos2!BQ25 -> 0 | F90: 0 | G90: =insumos2!BR25 -> 0 | I90: 0 | K90: =IFERROR(insumos2!BY25,"") ->  | M90: =IFERROR(insumos2!BZ25,"") ->  | P90: =IF(K90<>"",insumos2!CA25,"") ->  | S90: =IF(K90<>"",insumos2!CB25,"") -> 
A91: =IFERROR(insumos2!BP26,"") -> Caquetá | D91: =insumos2!BQ26 -> 0 | F91: =D91/$D$95 -> 0 | G91: =insumos2!BR26 -> 0 | I91: 0 | K91: =IFERROR(insumos2!BY26,"") ->  | M91: =IFERROR(insumos2!BZ26,"") ->  | P91: =IF(K91<>"",insumos2!CA26,"") ->  | S91: =IF(K91<>"",insumos2!CB26,"") -> 
A92: =IFERROR(insumos2!BP27,"") -> Córdoba | D92: =insumos2!BQ27 -> 0 | F92: 0 | G92: =insumos2!BR27 -> 0 | I92: 0 | K92: =IFERROR(insumos2!BY27,"") ->  | M92: =IFERROR(insumos2!BZ27,"") ->  | P92: =IF(K92<>"",insumos2!CA27,"") ->  | S92: =IF(K92<>"",insumos2!CB27,"") -> 
A93: =IFERROR(insumos2!BP28,"") -> San Andrés | D93: =insumos2!BQ28 -> 0 | F93: 0 | G93: =insumos2!BR28 -> 0 | I93: 0 | K93: =IFERROR(insumos2!BY28,"") ->  | M93: =IFERROR(insumos2!BZ28,"") ->  | P93: =IF(K93<>"",insumos2!CA28,"") ->  | S93: =IF(K93<>"",insumos2!CB28,"") -> 
A94: =IFERROR(insumos2!BP29,"") -> Otros | D94: =insumos2!BQ29 -> 0 | F94: 0 | G94: =insumos2!BR29 -> 0 | I94: 0 | K94: =IF(K93="","",IFERROR(insumos2!BY29,"")) ->  | M94: =IF(M93="","",IFERROR(insumos2!BZ29,"")) ->  | P94: =IF(K94<>"",insumos2!CA29,"") ->  | S94: =IF(K94<>"",insumos2!CB29,"") -> 
A95: =insumos2!BP30 -> Total | D95: =insumos2!BQ30 -> 9 | F95: =D95/$D$95 -> 1 | G95: =insumos2!BR30 -> 112 | I95: 1 | K95: =insumos2!BY30 -> Total | P95: =insumos2!CA30 -> 9 | R95: =P95/$P$95 -> 1 | S95: =insumos2!CB30 -> 112 | U95: =S95/$S$95 -> 1
G126: Actividad económica | J126: =J60 -> Actividad de los hogares en calidad de empleadores; actividades no diferenciadas de los hogares individuales como productores de bienes y servicios para uso propio | U126: =U60 -> T
B130: Sexo | D130: ="Total empleadores sección "&N4 -> Total empleadores sección T | G130: %
B132: Hombres | D132: =VLOOKUP(N4,Hoja4!$H$2:$P$23,7,FALSE) -> 8 | G132: =D132/$D$135 -> 0.07142857143
B133: Mujeres | D133: =VLOOKUP(N4,Hoja4!$H$2:$P$23,8,FALSE) -> 103 | G133: =D133/$D$135 -> 0.9196428571
B134: No disponible | D134: =VLOOKUP(N4,Hoja4!$H$2:$P$23,9,FALSE) -> 1 | G134: =D134/$D$135 -> 0.008928571429
B135: Total | D135: =D134+D133+D132 -> 112 | G135: =D135/$D$135 -> 1
B138: =IFERROR("Para la Sección "&U126&" hay "&ROUND(VLOOKUP(U126,Hoja4!$H$2:$R$23,11,FALSE),0)&" mujeres por cada 100 hombres beneficiados del Programa.","") -> Para la Sección T hay 1288 mujeres por cada 100 hombres beneficiados del Programa.
G203: Actividad económica | J203: =J126 -> Actividad de los hogares en calidad de empleadores; actividades no diferenciadas de los hogares individuales como productores de bienes y servicios para uso propio | U203: =U126 -> T
B213: ="Grupo o División de la sección "&U126 -> Grupo o División de la sección T | I213: Empleadores | M213: % | O213: Empleados | S213: %
B214: =IF(insumos2!CG2=0,"",insumos2!CG2) -> Actividades de los hogares individuales como empleadores de personal doméstico | I214: =IF(insumos2!CG2=0,"",insumos2!CH2) -> 8 | M214: =IFERROR(I214/insumos2!$CE$28,"") -> 0.8888888889 | O214: =IF(insumos2!CI2=0,"",insumos2!CI2) -> 107 | S214: =IFERROR(O214/insumos2!$CF$28,"") -> 0.9553571429
B215: =IF(insumos2!CG3=0,"",insumos2!CG3) -> Actividades no diferenciadas de los hogares individuales como productores de servicios para uso propio | I215: =IF(insumos2!CG3=0,"",insumos2!CH3) -> 1 | M215: =IFERROR(I215/insumos2!$CE$28,"") -> 0.1111111111 | O215: =IF(insumos2!CI3=0,"",insumos2!CI3) -> 5 | S215: =IFERROR(O215/insumos2!$CF$28,"") -> 0.04464285714
B216: =IF(insumos2!CG4=0,"",insumos2!CG4) ->  | I216: =IF(insumos2!CG4=0,"",insumos2!CH4) ->  | M216: =IFERROR(I216/insumos2!$CE$28,"") ->  | O216: =IF(insumos2!CI4=0,"",insumos2!CI4) ->  | S216: =IFERROR(O216/insumos2!$CF$28,"") -> 
B217: =IF(insumos2!CG5=0,"",insumos2!CG5) ->  | I217: =IF(insumos2!CG5=0,"",insumos2!CH5) ->  | M217: =IFERROR(I217/insumos2!$CE$28,"") ->  | O217: =IF(insumos2!CI5=0,"",insumos2!CI5) ->  | S217: =IFERROR(O217/insumos2!$CF$28,"") -> 
B218: =IF(insumos2!CG6=0,"",insumos2!CG6) ->  | I218: =IF(insumos2!CG6=0,"",insumos2!CH6) ->  | M218: =IFERROR(I218/insumos2!$CE$28,"") ->  | O218: =IF(insumos2!CI6=0,"",insumos2!CI6) ->  | S218: =IFERROR(O218/insumos2!$CF$28,"") -> 
B219: =IF(insumos2!CG7=0,"",insumos2!CG7) ->  | I219: =IF(insumos2!CG7=0,"",insumos2!CH7) ->  | M219: =IFERROR(I219/insumos2!$CE$28,"") ->  | O219: =IF(insumos2!CI7=0,"",insumos2!CI7) ->  | S219: =IFERROR(O219/insumos2!$CF$28,"") -> 
B220: =IF(insumos2!CG8=0,"",insumos2!CG8) ->  | I220: =IF(insumos2!CG8=0,"",insumos2!CH8) ->  | M220: =IFERROR(I220/insumos2!$CE$28,"") ->  | O220: =IF(insumos2!CI8=0,"",insumos2!CI8) ->  | S220: =IFERROR(O220/insumos2!$CF$28,"") -> 
B221: =IF(insumos2!CG9=0,"",insumos2!CG9) ->  | I221: =IF(insumos2!CG9=0,"",insumos2!CH9) ->  | M221: =IFERROR(I221/insumos2!$CE$28,"") ->  | O221: =IF(insumos2!CI9=0,"",insumos2!CI9) ->  | S221: =IFERROR(O221/insumos2!$CF$28,"") -> 
B222: =IF(insumos2!CG10=0,"",insumos2!CG10) ->  | I222: =IF(insumos2!CG10=0,"",insumos2!CH10) ->  | M222: =IFERROR(I222/insumos2!$CE$28,"") ->  | O222: =IF(insumos2!CI10=0,"",insumos2!CI10) ->  | S222: =IFERROR(O222/insumos2!$CF$28,"") -> 
B223: =IF(insumos2!CG11=0,"",insumos2!CG11) ->  | I223: =IF(insumos2!CG11=0,"",insumos2!CH11) ->  | M223: =IFERROR(I223/insumos2!$CE$28,"") ->  | O223: =IF(insumos2!CI11=0,"",insumos2!CI11) ->  | S223: =IFERROR(O223/insumos2!$CF$28,"") -> 
B224: =IF(insumos2!CG12=0,"",insumos2!CG12) ->  | I224: =IF(insumos2!CG12=0,"",insumos2!CH12) ->  | M224: =IFERROR(I224/insumos2!$CE$28,"") ->  | O224: =IF(insumos2!CI12=0,"",insumos2!CI12) ->  | S224: =IFERROR(O224/insumos2!$CF$28,"") -> 
B225: =IF(insumos2!CG13=0,"",insumos2!CG13) ->  | I225: =IF(insumos2!CG13=0,"",insumos2!CH13) ->  | M225: =IFERROR(I225/insumos2!$CE$28,"") ->  | O225: =IF(insumos2!CI13=0,"",insumos2!CI13) ->  | S225: =IFERROR(O225/insumos2!$CF$28,"") -> 
B226: =IF(insumos2!CG14=0,"",insumos2!CG14) ->  | I226: =IF(insumos2!CG14=0,"",insumos2!CH14) ->  | M226: =IFERROR(I226/insumos2!$CE$28,"") ->  | O226: =IF(insumos2!CI14=0,"",insumos2!CI14) ->  | S226: =IFERROR(O226/insumos2!$CF$28,"") -> 
B227: =IF(insumos2!CG15=0,"",insumos2!CG15) ->  | I227: =IF(insumos2!CG15=0,"",insumos2!CH15) ->  | M227: =IFERROR(I227/insumos2!$CE$28,"") ->  | O227: =IF(insumos2!CI15=0,"",insumos2!CI15) ->  | S227: =IFERROR(O227/insumos2!$CF$28,"") -> 
B228: =IF(insumos2!CG16=0,"",insumos2!CG16) ->  | I228: =IF(insumos2!CG16=0,"",insumos2!CH16) ->  | M228: =IFERROR(I228/insumos2!$CE$28,"") ->  | O228: =IF(insumos2!CI16=0,"",insumos2!CI16) ->  | S228: =IFERROR(O228/insumos2!$CF$28,"") -> 
B229: =IF(insumos2!CG17=0,"",insumos2!CG17) ->  | I229: =IF(insumos2!CG17=0,"",insumos2!CH17) ->  | M229: =IFERROR(I229/insumos2!$CE$28,"") ->  | O229: =IF(insumos2!CI17=0,"",insumos2!CI17) ->  | S229: =IFERROR(O229/insumos2!$CF$28,"") -> 
B230: =IF(insumos2!CG18=0,"",insumos2!CG18) ->  | I230: =IF(insumos2!CG18=0,"",insumos2!CH18) ->  | M230: =IFERROR(I230/insumos2!$CE$28,"") ->  | O230: =IF(insumos2!CI18=0,"",insumos2!CI18) ->  | S230: =IFERROR(O230/insumos2!$CF$28,"") -> 
B231: =IF(insumos2!CG19=0,"",insumos2!CG19) ->  | I231: =IF(insumos2!CG19=0,"",insumos2!CH19) ->  | M231: =IFERROR(I231/insumos2!$CE$28,"") ->  | O231: =IF(insumos2!CI19=0,"",insumos2!CI19) ->  | S231: =IFERROR(O231/insumos2!$CF$28,"") -> 
B232: =IF(insumos2!CG20=0,"",insumos2!CG20) ->  | I232: =IF(insumos2!CG20=0,"",insumos2!CH20) ->  | M232: =IFERROR(I232/insumos2!$CE$28,"") ->  | O232: =IF(insumos2!CI20=0,"",insumos2!CI20) ->  | S232: =IFERROR(O232/insumos2!$CF$28,"") -> 
B233: =IF(insumos2!CG21=0,"",insumos2!CG21) ->  | I233: =IF(insumos2!CG21=0,"",insumos2!CH21) ->  | M233: =IFERROR(I233/insumos2!$CE$28,"") ->  | O233: =IF(insumos2!CI21=0,"",insumos2!CI21) ->  | S233: =IFERROR(O233/insumos2!$CF$28,"") -> 
B234: =IF(insumos2!CG22=0,"",insumos2!CG22) ->  | I234: =IF(insumos2!CG22=0,"",insumos2!CH22) ->  | M234: =IFERROR(I234/insumos2!$CE$28,"") ->  | O234: =IF(insumos2!CI22=0,"",insumos2!CI22) ->  | S234: =IFERROR(O234/insumos2!$CF$28,"") -> 
B235: =IF(insumos2!CG23=0,"",insumos2!CG23) ->  | I235: =IF(insumos2!CG23=0,"",insumos2!CH23) ->  | M235: =IFERROR(I235/insumos2!$CE$28,"") ->  | O235: =IF(insumos2!CI23=0,"",insumos2!CI23) ->  | S235: =IFERROR(O235/insumos2!$CF$28,"") -> 
B236: =IF(insumos2!CG24=0,"",insumos2!CG24) ->  | I236: =IF(insumos2!CG24=0,"",insumos2!CH24) ->  | M236: =IFERROR(I236/insumos2!$CE$28,"") ->  | O236: =IF(insumos2!CI24=0,"",insumos2!CI24) ->  | S236: =IFERROR(O236/insumos2!$CF$28,"") -> 
B237: =IF(insumos2!CG25=0,"",insumos2!CG25) ->  | I237: =IF(insumos2!CG25=0,"",insumos2!CH25) ->  | M237: =IFERROR(I237/insumos2!$CE$28,"") ->  | O237: =IF(insumos2!CI25=0,"",insumos2!CI25) ->  | S237: =IFERROR(O237/insumos2!$CF$28,"") -> 
B238: =IF(insumos2!CG26=0,"",insumos2!CG26) ->  | I238: =IF(insumos2!CG26=0,"",insumos2!CH26) ->  | M238: =IFERROR(I238/insumos2!$CE$28,"") ->  | O238: =IF(insumos2!CI26=0,"",insumos2!CI26) ->  | S238: =IFERROR(O238/insumos2!$CF$28,"") -> 
G241: Postulaciones recibidas en la sección | K241: Cantidad | N241: %
G242: Total solicitudes | K242: =COUNT(insumos2!$AN$2:$AN$399999) -> 15 | N242: =K242/$K$242 -> 1
G243: Empleadores con beneficiados | K243: =COUNTIFS(insumos2!$AS$2:$AS$399999,"Aprobado con subsidio") -> 9 | N243: =K243/$K$242 -> 0.6
G244: Empleadores sin beneficio | K244: =K242-K243 -> 6 | N244: =K244/$K$242 -> 0.4

Sheet insumos1 (hidden)
A1: Ciclo | B1: DIVIPOLA1 | C1: MpioNOM | D1: Depto | E1: DeptoNOM | F1: NOM_AECONOMICA1 | G1: SECTOR_ECONOMICO1 | H1: actividad | I1: TIPO_PERSONA1 | J1: SIZE1 | K1: Suma de RECURSOS1 | L1: Recursos_Jovenes | M1: Recursos_Masculino | N1: Recursos_Femenino | Q1: Suma de Suma de RECURSOS1 | R1: Etiquetas de columna
B2: 63001 | C2: =+VLOOKUP(B2,'[1]DIVIPOLA MPIO'!$E$1:$G$65536,3,0) -> ARMENIA | D2: 63 | E2: =+VLOOKUP(D2,'[1]DIVIPOLA MPIO'!$B$1:$C$65536,2,0) -> QUINDÍO | F2: =+IFERROR(VLOOKUP(G2,'[2]3.1 vs 4 (2020)'!$J:$O,6,0),"OTRAS") -> ALOJAMIENTO Y SERVICIOS DE COMIDA | G2: 5611 | H2: =+IFERROR(VLOOKUP(G2,'[2]3.1 vs 4 (2020)'!$J:$O,3,0),"Otras") -> I | I2: Natural | J2: MICRO | K2: 227131 | L2: 227131 | M2: 0 | N2: 0 | Q2: Etiquetas de fila | R2: (en blanco) | S2: Total general
B3: 5001 | C3: =+VLOOKUP(B3,'[1]DIVIPOLA MPIO'!$E$1:$G$65536,3,0) -> MEDELLÍN | D3: 5 | E3: =+VLOOKUP(D3,'[1]DIVIPOLA MPIO'!$B$1:$C$65536,2,0) -> ANTIOQUIA | F3: =+IFERROR(VLOOKUP(G3,'[2]3.1 vs 4 (2020)'!$J:$O,6,0),"OTRAS") -> AGRICULTURA, GANADERÍA, CAZA, SILVICULTURA Y PESCA | G3: 141 | H3: =+IFERROR(VLOOKUP(G3,'[2]3.1 vs 4 (2020)'!$J:$O,3,0),"Otras") -> A | I3: Natural | J3: MICRO | K3: 454262 | L3: 454262 | M3: 0 | N3: 0 | Q3: ACTIVIDADES ARTÍSTICAS, DE ENTRETENIMIENTO Y RECREACIÓN | R3: 9660348805 | S3: 9660348805
B4: 25307 | C4: =+VLOOKUP(B4,'[1]DIVIPOLA MPIO'!$E$1:$G$65536,3,0) -> GIRARDOT | D4: 25 | E4: =+VLOOKUP(D4,'[1]DIVIPOLA MPIO'!$B$1:$C$65536,2,0) -> CUNDINAMARCA | F4: =+IFERROR(VLOOKUP(G4,'[2]3.1 vs 4 (2020)'!$J:$O,6,0),"OTRAS") -> COMERCIO AL POR MAYOR Y AL POR MENOR; REPARACIÓN DE VEHÍCULOS AUTOMOTORES Y MOTOCICLETAS | G4: 4530 | H4: =+IFERROR(VLOOKUP(G4,'[2]3.1 vs 4 (2020)'!$J:$O,3,0),"Otras") -> G | I4: Natural | J4: MICRO | K4: 250000 | L4: 250000 | M4: 0 | N4: 0 | Q4: ACTIVIDADES DE ATENCIÓN DE LA SALUD HUMANA Y DE ASISTENCIA SOCIAL | R4: 36315900122 | S4: 36315900122
B5: 5001 | C5: =+VLOOKUP(B5,'[1]DIVIPOLA MPIO'!$E$1:$G$65536,3,0) -> MEDELLÍN | D5: 5 | E5: =+VLOOKUP(D5,'[1]DIVIPOLA MPIO'!$B$1:$C$65536,2,0) -> ANTIOQUIA | F5: =+IFERROR(VLOOKUP(G5,'[2]3.1 vs 4 (2020)'!$J:$O,6,0),"OTRAS") -> ALOJAMIENTO Y SERVICIOS DE COMIDA | G5: 5611 | H5: =+IFERROR(VLOOKUP(G5,'[2]3.1 vs 4 (2020)'!$J:$O,3,0),"Otras") -> I | I5: Natural | J5: MICRO | K5: 4400000 | L5: 4200000 | M5: 200000 | N5: 0 | Q5: ACTIVIDADES DE LOS HOGARES INDIVIDUALES EN CALIDAD DE EMPLEADORES; ACTIVIDADES NO DIFERENCIADAS DE LOS HOGARES INDIVIDUALES COMO PRODUCTORES DE BIENES Y SERVICIOS PARA USO PROPIO | R5: 44931643 | S5: 44931643
B6: 11001 | C6: =+VLOOKUP(B6,'[1]DIVIPOLA MPIO'!$E$1:$G$65536,3,0) -> BOGOTÁ, D.C. | D6: 11 | E6: =+VLOOKUP(D6,'[1]DIVIPOLA MPIO'!$B$1:$C$65536,2,0) -> BOGOTÁ, D.C. | F6: =+IFERROR(VLOOKUP(G6,'[2]3.1 vs 4 (2020)'!$J:$O,6,0),"OTRAS") -> COMERCIO AL POR MAYOR Y AL POR MENOR; REPARACIÓN DE VEHÍCULOS AUTOMOTORES Y MOTOCICLETAS | G6: 4663 | H6: =+IFERROR(VLOOKUP(G6,'[2]3.1 vs 4 (2020)'!$J:$O,3,0),"Otras") -> G | I6: Natural | J6: MICRO | K6: 3977131 | L6: 3977131 | M6: 0 | N6: 0 | Q6: ACTIVIDADES DE SERVICIOS ADMINISTRATIVOS Y DE APOYO | R6: 235781641707 | S6: 235781641707
B7: 15176 | C7: =+VLOOKUP(B7,'[1]DIVIPOLA MPIO'!$E$1:$G$65536,3,0) -> CHIQUINQUIRÁ | D7: 15 | E7: =+VLOOKUP(D7,'[1]DIVIPOLA MPIO'!$B$1:$C$65536,2,0) -> BOYACÁ | F7: =+IFERROR(VLOOKUP(G7,'[2]3.1 vs 4 (2020)'!$J:$O,6,0),"OTRAS") -> COMERCIO AL POR MAYOR Y AL POR MENOR; REPARACIÓN DE VEHÍCULOS AUTOMOTORES Y MOTOCICLETAS | G7: 4752 | H7: =+IFERROR(VLOOKUP(G7,'[2]3.1 vs 4 (2020)'!$J:$O,3,0),"Otras") -> G | I7: Natural | J7: MICRO | K7: 2858524 | L7: 2408524 | M7: 300000 | N7: 150000 | Q7: ACTIVIDADES FINANCIERAS Y DE SEGUROS | R7: 7394134445 | S7: 7394134445
B8: 76001 | C8: =+VLOOKUP(B8,'[1]DIVIPOLA MPIO'!$E$1:$G$65536,3,0) -> CALI | D8: 76 | E8: =+VLOOKUP(D8,'[1]DIVIPOLA MPIO'!$B$1:$C$65536,2,0) -> VALLE DEL CAUCA | F8: =+IFERROR(VLOOKUP(G8,'[2]3.1 vs 4 (2020)'!$J:$O,6,0),"OTRAS") -> COMERCIO AL POR MAYOR Y AL POR MENOR; REPARACIÓN DE VEHÍCULOS AUTOMOTORES Y MOTOCICLETAS | G8: 4774 | H8: =+IFERROR(VLOOKUP(G8,'[2]3.1 vs 4 (2020)'!$J:$O,3,0),"Otras") -> G | I8: Natural | J8: MICRO | K8: 454262 | L8: 454262 | M8: 0 | N8: 0 | Q8: ACTIVIDADES INMOBILIARIAS | R8: 2439303472 | S8: 2439303472
B9: 76001 | C9: =+VLOOKUP(B9,'[1]DIVIPOLA MPIO'!$E$1:$G$65536,3,0) -> CALI | D9: 76 | E9: =+VLOOKUP(D9,'[1]DIVIPOLA MPIO'!$B$1:$C$65536,2,0) -> VALLE DEL CAUCA | F9: =+IFERROR(VLOOKUP(G9,'[2]3.1 vs 4 (2020)'!$J:$O,6,0),"OTRAS") -> ALOJAMIENTO Y SERVICIOS DE COMIDA | G9: 5511 | H9: =+IFERROR(VLOOKUP(G9,'[2]3.1 vs 4 (2020)'!$J:$O,3,0),"Otras") -> I | I9: Natural | J9: MICRO | K9: 454262 | L9: 454262 | M9: 0 | N9: 0 | Q9: ACTIVIDADES PROFESIONALES, CIENTÍFICAS Y TÉCNICAS | R9: 31530326672 | S9: 31530326672
B10: 41001 | C10: =+VLOOKUP(B10,'[1]DIVIPOLA MPIO'!$E$1:$G$65536,3,0) -> NEIVA | D10: 41 | E10: =+VLOOKUP(D10,'[1]DIVIPOLA MPIO'!$B$1:$C$65536,2,0) -> HUILA | F10: =+IFERROR(VLOOKUP(G10,'[2]3.1 vs 4 (2020)'!$J:$O,6,0),"OTRAS") -> COMERCIO AL POR MAYOR Y AL POR MENOR; REPARACIÓN DE VEHÍCULOS AUTOMOTORES Y MOTOCICLETAS | G10: 4729 | H10: =+IFERROR(VLOOKUP(G10,'[2]3.1 vs 4 (2020)'!$J:$O,3,0),"Otras") -> G | I10: Natural | J10: MICRO | K10: 1550000 | L10: 500000 | M10: 0 | N10: 1050000 | Q10: ADMINISTRACIÓN PÚBLICA Y DEFENSA; PLANES DE SEGURIDAD SOCIAL DE AFILIACIÓN OBLIGATORIA | R10: 5629046041 | S10: 5629046041
B11: 52356 | C11: =+VLOOKUP(B11,'[1]DIVIPOLA MPIO'!$E$1:$G$65536,3,0) -> IPIALES | D11: 52 | E11: =+VLOOKUP(D11,'[1]DIVIPOLA MPIO'!$B$1:$C$65536,2,0) -> NARIÑO | F11: =+IFERROR(VLOOKUP(G11,'[2]3.1 vs 4 (2020)'!$J:$O,6,0),"OTRAS") -> TRANSPORTE Y ALMACENAMIENTO | G11: 4923 | H11: =+IFERROR(VLOOKUP(G11,'[2]3.1 vs 4 (2020)'!$J:$O,3,0),"Otras") -> H | I11: Natural | J11: MICRO | K11: 400000 | L11: 0 | M11: 400000 | N11: 0 | Q11: AGRICULTURA, GANADERÍA, CAZA, SILVICULTURA Y PESCA | R11: 18919575653 | S11: 18919575653
B12: 54001 | C12: =+VLOOKUP(B12,'[1]DIVIPOLA MPIO'!$E$1:$G$65536,3,0) -> CÚCUTA | D12: 54 | E12: =+VLOOKUP(D12,'[1]DIVIPOLA MPIO'!$B$1:$C$65536,2,0) -> NORTE DE SANTANDER | F12: =+IFERROR(VLOOKUP(G12,'[2]3.1 vs 4 (2020)'!$J:$O,6,0),"OTRAS") -> OTRAS | G12: 90 | H12: =+IFERROR(VLOOKUP(G12,'[2]3.1 vs 4 (2020)'!$J:$O,3,0),"Otras") -> Otras | I12: Natural | J12: PEQUEÑA | K12: 2700000 | L12: 500000 | M12: 1600000 | N12: 600000 | Q12: ALOJAMIENTO Y SERVICIOS DE COMIDA | R12: 42092279812 | S12: 42092279812
B13: 54405 | C13: =+VLOOKUP(B13,'[1]DIVIPOLA MPIO'!$E$1:$G$65536,3,0) -> LOS PATIOS | D13: 54 | E13: =+VLOOKUP(D13,'[1]DIVIPOLA MPIO'!$B$1:$C$65536,2,0) -> NORTE DE SANTANDER | F13: =+IFERROR(VLOOKUP(G13,'[2]3.1 vs 4 (2020)'!$J:$O,6,0),"OTRAS") -> TRANSPORTE Y ALMACENAMIENTO | G13: 4923 | H13: =+IFERROR(VLOOKUP(G13,'[2]3.1 vs 4 (2020)'!$J:$O,3,0),"Otras") -> H | I13: Natural | J13: MICRO | K13: 317983 | L13: 227131 | M13: 90852 | N13: 0 | Q13: COMERCIO AL POR MAYOR Y AL POR MENOR; REPARACIÓN DE VEHÍCULOS AUTOMOTORES Y MOTOCICLETAS | R13: 72103194424 | S13: 72103194424
B14: 68276 | C14: =+VLOOKUP(B14,'[1]DIVIPOLA MPIO'!$E$1:$G$65536,3,0) -> FLORIDABLANCA | D14: 68 | E14: =+VLOOKUP(D14,'[1]DIVIPOLA MPIO'!$B$1:$C$65536,2,0) -> SANTANDER | F14: =+IFERROR(VLOOKUP(G14,'[2]3.1 vs 4 (2020)'!$J:$O,6,0),"OTRAS") -> AGRICULTURA, GANADERÍA, CAZA, SILVICULTURA Y PESCA | G14: 126 | H14: =+IFERROR(VLOOKUP(G14,'[2]3.1 vs 4 (2020)'!$J:$O,3,0),"Otras") -> A | I14: Natural | J14: MICRO | K14: 227131 | L14: 227131 | M14: 0 | N14: 0 | Q14: CONSTRUCCIÓN | R14: 52588306653 | S14: 52588306653
B15: 76828 | C15: =+VLOOKUP(B15,'[1]DIVIPOLA MPIO'!$E$1:$G$65536,3,0) -> TRUJILLO | D15: 76 | E15: =+VLOOKUP(D15,'[1]DIVIPOLA MPIO'!$B$1:$C$65536,2,0) -> VALLE DEL CAUCA | F15: =+IFERROR(VLOOKUP(G15,'[2]3.1 vs 4 (2020)'!$J:$O,6,0),"OTRAS") -> COMERCIO AL POR MAYOR Y AL POR MENOR; REPARACIÓN DE VEHÍCULOS AUTOMOTORES Y MOTOCICLETAS | G15: 4752 | H15: =+IFERROR(VLOOKUP(G15,'[2]3.1 vs 4 (2020)'!$J:$O,3,0),"Otras") -> G | I15: Natural | J15: MICRO | K15: 3631080 | L15: 2658524 | M15: 972556 | N15: 0 | Q15: DISTRIBUCIÓN DE AGUA; EVACUACIÓN Y TRATAMIENTO DE AGUAS RESIDUALES, GESTIÓN DE DESECHOS Y ACTIVIDADES DE SANEAMIENTO AMBIENTAL | R15: 1982166899 | S15: 1982166899
B16: 76001 | C16: =+VLOOKUP(B16,'[1]DIVIPOLA MPIO'!$E$1:$G$65536,3,0) -> CALI | D16: 76 | E16: =+VLOOKUP(D16,'[1]DIVIPOLA MPIO'!$B$1:$C$65536,2,0) -> VALLE DEL CAUCA | F16: =+IFERROR(VLOOKUP(G16,'[2]3.1 vs 4 (2020)'!$J:$O,6,0),"OTRAS") -> AGRICULTURA, GANADERÍA, CAZA, SILVICULTURA Y PESCA | G16: 121 | H16: =+IFERROR(VLOOKUP(G16,'[2]3.1 vs 4 (2020)'!$J:$O,3,0),"Otras") -> A | I16: Natural | J16: MICRO | K16: 227131 | L16: 227131 | M16: 0 | N16: 0 | Q16: EDUCACIÓN | R16: 9458662708 | S16: 9458662708
B17: 11001 | C17: =+VLOOKUP(B17,'[1]DIVIPOLA MPIO'!$E$1:$G$65536,3,0) -> BOGOTÁ, D.C. | D17: 11 | E17: =+VLOOKUP(D17,'[1]DIVIPOLA MPIO'!$B$1:$C$65536,2,0) -> BOGOTÁ, D.C. | F17: =+IFERROR(VLOOKUP(G17,'[2]3.1 vs 4 (2020)'!$J:$O,6,0),"OTRAS") -> INDUSTRIAS MANUFACTURERAS | G17: 1313 | H17: =+IFERROR(VLOOKUP(G17,'[2]3.1 vs 4 (2020)'!$J:$O,3,0),"Otras") -> C | I17: Natural | J17: MICRO | K17: 726818 | L17: 454262 | M17: 0 | N17: 272556 | Q17: EXPLOTACIÓN DE MINAS Y CANTERAS | R17: 3113109793 | S17: 3113109793
B18: 11001 | C18: =+VLOOKUP(B18,'[1]DIVIPOLA MPIO'!$E$1:$G$65536,3,0) -> BOGOTÁ, D.C. | D18: 11 | E18: =+VLOOKUP(D18,'[1]DIVIPOLA MPIO'!$B$1:$C$65536,2,0) -> BOGOTÁ, D.C. | F18: =+IFERROR(VLOOKUP(G18,'[2]3.1 vs 4 (2020)'!$J:$O,6,0),"OTRAS") -> COMERCIO AL POR MAYOR Y AL POR MENOR; REPARACIÓN DE VEHÍCULOS AUTOMOTORES Y MOTOCICLETAS | G18: 4754 | H18: =+IFERROR(VLOOKUP(G18,'[2]3.1 vs 4 (2020)'!$J:$O,3,0),"Otras") -> G | I18: Natural | J18: MICRO | K18: 1000000 | L18: 1000000 | M18: 0 | N18: 0 | Q18: INDUSTRIAS MANUFACTURERAS | R18: 65419482919 | S18: 65419482919
B19: 11001 | C19: =+VLOOKUP(B19,'[1]DIVIPOLA MPIO'!$E$1:$G$65536,3,0) -> BOGOTÁ, D.C. | D19: 11 | E19: =+VLOOKUP(D19,'[1]DIVIPOLA MPIO'!$B$1:$C$65536,2,0) -> BOGOTÁ, D.C. | F19: =+IFERROR(VLOOKUP(G19,'[2]3.1 vs 4 (2020)'!$J:$O,6,0),"OTRAS") -> EDUCACIÓN | G19: 8512 | H19: =+IFERROR(VLOOKUP(G19,'[2]3.1 vs 4 (2020)'!$J:$O,3,0),"Otras") -> P | I19: Natural | J19: MICRO | K19: 750000 | L19: 0 | M19: 0 | N19: 750000 | Q19: INFORMACIÓN Y COMUNICACIONES | R19: 44885341400 | S19: 44885341400
B20: 25181 | C20: =+VLOOKUP(B20,'[1]DIVIPOLA MPIO'!$E$1:$G$65536,3,0) -> CHOACHÍ | D20: 25 | E20: =+VLOOKUP(D20,'[1]DIVIPOLA MPIO'!$B$1:$C$65536,2,0) -> CUNDINAMARCA | F20: =+IFERROR(VLOOKUP(G20,'[2]3.1 vs 4 (2020)'!$J:$O,6,0),"OTRAS") -> AGRICULTURA, GANADERÍA, CAZA, SILVICULTURA Y PESCA | G20: 145 | H20: =+IFERROR(VLOOKUP(G20,'[2]3.1 vs 4 (2020)'!$J:$O,3,0),"Otras") -> A | I20: Natural | J20: MICRO | K20: 1048000 | L20: 0 | M20: 1048000 | N20: 0 | Q20: OTRAS | R20: 13171620 | S20: 13171620
B21: 25181 | C21: =+VLOOKUP(B21,'[1]DIVIPOLA MPIO'!$E$1:$G$65536,3,0) -> CHOACHÍ | D21: 25 | E21: =+VLOOKUP(D21,'[1]DIVIPOLA MPIO'!$B$1:$C$65536,2,0) -> CUNDINAMARCA | F21: =+IFERROR(VLOOKUP(G21,'[2]3.1 vs 4 (2020)'!$J:$O,6,0),"OTRAS") -> COMERCIO AL POR MAYOR Y AL POR MENOR; REPARACIÓN DE VEHÍCULOS AUTOMOTORES Y MOTOCICLETAS | G21: 4663 | H21: =+IFERROR(VLOOKUP(G21,'[2]3.1 vs 4 (2020)'!$J:$O,3,0),"Otras") -> G | I21: Natural | J21: PEQUEÑA | K21: 181704 | L21: 0 | M21: 181704 | N21: 0 | Q21: OTRAS ACTIVIDADES DE SERVICIOS | R21: 6642625657 | S21: 6642625657
B22: 25279 | C22: =+VLOOKUP(B22,'[1]DIVIPOLA MPIO'!$E$1:$G$65536,3,0) -> FOMEQUE | D22: 25 | E22: =+VLOOKUP(D22,'[1]DIVIPOLA MPIO'!$B$1:$C$65536,2,0) -> CUNDINAMARCA | F22: =+IFERROR(VLOOKUP(G22,'[2]3.1 vs 4 (2020)'!$J:$O,6,0),"OTRAS") -> AGRICULTURA, GANADERÍA, CAZA, SILVICULTURA Y PESCA | G22: 145 | H22: =+IFERROR(VLOOKUP(G22,'[2]3.1 vs 4 (2020)'!$J:$O,3,0),"Otras") -> A | I22: Natural | J22: PEQUEÑA | K22: 250000 | L22: 250000 | M22: 0 | N22: 0 | Q22: SUMINISTRO DE ELECTRICIDAD, GAS, VAPOR Y AIRE ACONDICIONADO | R22: 485854426 | S22: 485854426
B23: 5001 | C23: =+VLOOKUP(B23,'[1]DIVIPOLA MPIO'!$E$1:$G$65536,3,0) -> MEDELLÍN | D23: 5 | E23: =+VLOOKUP(D23,'[1]DIVIPOLA MPIO'!$B$1:$C$65536,2,0) -> ANTIOQUIA | F23: =+IFERROR(VLOOKUP(G23,'[2]3.1 vs 4 (2020)'!$J:$O,6,0),"OTRAS") -> COMERCIO AL POR MAYOR Y AL POR MENOR; REPARACIÓN DE VEHÍCULOS AUTOMOTORES Y MOTOCICLETAS | G23: 4520 | H23: =+IFERROR(VLOOKUP(G23,'[2]3.1 vs 4 (2020)'!$J:$O,3,0),"Otras") -> G | I23: Natural | J23: PEQUEÑA | K23: 227131 | L23: 227131 | M23: 0 | N23: 0 | Q23: TRANSPORTE Y ALMACENAMIENTO | R23: 29841389792 | S23: 29841389792
B24: 25214 | C24: =+VLOOKUP(B24,'[1]DIVIPOLA MPIO'!$E$1:$G$65536,3,0) -> COTA | D24: 25 | E24: =+VLOOKUP(D24,'[1]DIVIPOLA MPIO'!$B$1:$C$65536,2,0) -> CUNDINAMARCA | F24: =+IFERROR(VLOOKUP(G24,'[2]3.1 vs 4 (2020)'!$J:$O,6,0),"OTRAS") -> CONSTRUCCIÓN | G24: 4290 | H24: =+IFERROR(VLOOKUP(G24,'[2]3.1 vs 4 (2020)'!$J:$O,3,0),"Otras") -> F | I24: Natural | J24: MICRO | K24: 90852 | L24: 0 | M24: 90852 | N24: 0 | Q24: (en blanco)
B25: 25758 | C25: =+VLOOKUP(B25,'[1]DIVIPOLA MPIO'!$E$1:$G$65536,3,0) -> SOPÓ | D25: 25 | E25: =+VLOOKUP(D25,'[1]DIVIPOLA MPIO'!$B$1:$C$65536,2,0) -> CUNDINAMARCA | F25: =+IFERROR(VLOOKUP(G25,'[2]3.1 vs 4 (2020)'!$J:$O,6,0),"OTRAS") -> AGRICULTURA, GANADERÍA, CAZA, SILVICULTURA Y PESCA | G25: 141 | H25: =+IFERROR(VLOOKUP(G25,'[2]3.1 vs 4 (2020)'!$J:$O,3,0),"Otras") -> A | I25: Natural | J25: MICRO | K25: 2046000 | L25: 750000 | M25: 0 | N25: 1296000 | Q25: Total general | R25: 676340794663 | S25: 676340794663
B26: 25297 | C26: =+VLOOKUP(B26,'[1]DIVIPOLA MPIO'!$E$1:$G$65536,3,0) -> GACHETÁ | D26: 25 | E26: =+VLOOKUP(D26,'[1]DIVIPOLA MPIO'!$B$1:$C$65536,2,0) -> CUNDINAMARCA | F26: =+IFERROR(VLOOKUP(G26,'[2]3.1 vs 4 (2020)'!$J:$O,6,0),"OTRAS") -> COMERCIO AL POR MAYOR Y AL POR MENOR; REPARACIÓN DE VEHÍCULOS AUTOMOTORES Y MOTOCICLETAS | G26: 4663 | H26: =+IFERROR(VLOOKUP(G26,'[2]3.1 vs 4 (2020)'!$J:$O,3,0),"Otras") -> G | I26: Natural | J26: MICRO | K26: 750000 | L26: 750000 | M26: 0 | N26: 0
B27: 11001 | C27: =+VLOOKUP(B27,'[1]DIVIPOLA MPIO'!$E$1:$G$65536,3,0) -> BOGOTÁ, D.C. | D27: 11 | E27: =+VLOOKUP(D27,'[1]DIVIPOLA MPIO'!$B$1:$C$65536,2,0) -> BOGOTÁ, D.C. | F27: =+IFERROR(VLOOKUP(G27,'[2]3.1 vs 4 (2020)'!$J:$O,6,0),"OTRAS") -> EDUCACIÓN | G27: 8521 | H27: =+IFERROR(VLOOKUP(G27,'[2]3.1 vs 4 (2020)'!$J:$O,3,0),"Otras") -> P | I27: Natural | J27: PEQUEÑA | K27: 227131 | L27: 227131 | M27: 0 | N27: 0
B28: 11001 | C28: =+VLOOKUP(B28,'[1]DIVIPOLA MPIO'!$E$1:$G$65536,3,0) -> BOGOTÁ, D.C. | D28: 11 | E28: =+VLOOKUP(D28,'[1]DIVIPOLA MPIO'!$B$1:$C$65536,2,0) -> BOGOTÁ, D.C. | F28: =+IFERROR(VLOOKUP(G28,'[2]3.1 vs 4 (2020)'!$J:$O,6,0),"OTRAS") -> ACTIVIDADES PROFESIONALES, CIENTÍFICAS Y TÉCNICAS | G28: 7310 | H28: =+IFERROR(VLOOKUP(G28,'[2]3.1 vs 4 (2020)'!$J:$O,3,0),"Otras") -> M | I28: Natural | J28: MICRO | K28: 227131 | L28: 227131 | M28: 0 | N28: 0
B29: 25430 | C29: =+VLOOKUP(B29,'[1]DIVIPOLA MPIO'!$E$1:$G$65536,3,0) -> MADRID | D29: 25 | E29: =+VLOOKUP(D29,'[1]DIVIPOLA MPIO'!$B$1:$C$65536,2,0) -> CUNDINAMARCA | F29: =+IFERROR(VLOOKUP(G29,'[2]3.1 vs 4 (2020)'!$J:$O,6,0),"OTRAS") -> AGRICULTURA, GANADERÍA, CAZA, SILVICULTURA Y PESCA | G29: 145 | H29: =+IFERROR(VLOOKUP(G29,'[2]3.1 vs 4 (2020)'!$J:$O,3,0),"Otras") -> A | I29: Natural | J29: MICRO | K29: 250000 | L29: 250000 | M29: 0 | N29: 0
B30: 25754 | C30: =+VLOOKUP(B30,'[1]DIVIPOLA MPIO'!$E$1:$G$65536,3,0) -> SOACHA | D30: 25 | E30: =+VLOOKUP(D30,'[1]DIVIPOLA MPIO'!$B$1:$C$65536,2,0) -> CUNDINAMARCA | F30: =+IFERROR(VLOOKUP(G30,'[2]3.1 vs 4 (2020)'!$J:$O,6,0),"OTRAS") -> ACTIVIDADES DE SERVICIOS ADMINISTRATIVOS Y DE APOYO | G30: 8219 | H30: =+IFERROR(VLOOKUP(G30,'[2]3.1 vs 4 (2020)'!$J:$O,3,0),"Otras") -> N | I30: Natural | J30: MICRO | K30: 4030000 | L30: 3280000 | M30: 0 | N30: 750000
B31: 11001 | C31: =+VLOOKUP(B31,'[1]DIVIPOLA MPIO'!$E$1:$G$65536,3,0) -> BOGOTÁ, D.C. | D31: 11 | E31: =+VLOOKUP(D31,'[1]DIVIPOLA MPIO'!$B$1:$C$65536,2,0) -> BOGOTÁ, D.C. | F31: =+IFERROR(VLOOKUP(G31,'[2]3.1 vs 4 (2020)'!$J:$O,6,0),"OTRAS") -> ACTIVIDADES PROFESIONALES, CIENTÍFICAS Y TÉCNICAS | G31: 6910 | H31: =+IFERROR(VLOOKUP(G31,'[2]3.1 vs 4 (2020)'!$J:$O,3,0),"Otras") -> M | I31: Natural | J31: PEQUEÑA | K31: 10448026 | L31: 10448026 | M31: 0 | N31: 0
B32: 11001 | C32: =+VLOOKUP(B32,'[1]DIVIPOLA MPIO'!$E$1:$G$65536,3,0) -> BOGOTÁ, D.C. | D32: 11 | E32: =+VLOOKUP(D32,'[1]DIVIPOLA MPIO'!$B$1:$C$65536,2,0) -> BOGOTÁ, D.C. | F32: =+IFERROR(VLOOKUP(G32,'[2]3.1 vs 4 (2020)'!$J:$O,6,0),"OTRAS") -> COMERCIO AL POR MAYOR Y AL POR MENOR; REPARACIÓN DE VEHÍCULOS AUTOMOTORES Y MOTOCICLETAS | G32: 4751 | H32: =+IFERROR(VLOOKUP(G32,'[2]3.1 vs 4 (2020)'!$J:$O,3,0),"Otras") -> G | I32: Natural | J32: MICRO | K32: 681393 | L32: 681393 | M32: 0 | N32: 0
B33: 25785 | C33: =+VLOOKUP(B33,'[1]DIVIPOLA MPIO'!$E$1:$G$65536,3,0) -> TABIO | D33: 25 | E33: =+VLOOKUP(D33,'[1]DIVIPOLA MPIO'!$B$1:$C$65536,2,0) -> CUNDINAMARCA | F33: =+IFERROR(VLOOKUP(G33,'[2]3.1 vs 4 (2020)'!$J:$O,6,0),"OTRAS") -> ACTIVIDADES ARTÍSTICAS, DE ENTRETENIMIENTO Y RECREACIÓN | G33: 9004 | H33: =+IFERROR(VLOOKUP(G33,'[2]3.1 vs 4 (2020)'!$J:$O,3,0),"Otras") -> R | I33: Natural | J33: MICRO | K33: 250000 | L33: 250000 | M33: 0 | N33: 0
B34: 50001 | C34: =+VLOOKUP(B34,'[1]DIVIPOLA MPIO'!$E$1:$G$65536,3,0) -> VILLAVICENCIO | D34: 50 | E34: =+VLOOKUP(D34,'[1]DIVIPOLA MPIO'!$B$1:$C$65536,2,0) -> META | F34: =+IFERROR(VLOOKUP(G34,'[2]3.1 vs 4 (2020)'!$J:$O,6,0),"OTRAS") -> COMERCIO AL POR MAYOR Y AL POR MENOR; REPARACIÓN DE VEHÍCULOS AUTOMOTORES Y MOTOCICLETAS | G34: 4729 | H34: =+IFERROR(VLOOKUP(G34,'[2]3.1 vs 4 (2020)'!$J:$O,3,0),"Otras") -> G | I34: Natural | J34: MICRO | K34: 6024262 | L34: 6024262 | M34: 0 | N34: 0
B35: 25875 | C35: =+VLOOKUP(B35,'[1]DIVIPOLA MPIO'!$E$1:$G$65536,3,0) -> VILLETA | D35: 25 | E35: =+VLOOKUP(D35,'[1]DIVIPOLA MPIO'!$B$1:$C$65536,2,0) -> CUNDINAMARCA | F35: =+IFERROR(VLOOKUP(G35,'[2]3.1 vs 4 (2020)'!$J:$O,6,0),"OTRAS") -> INDUSTRIAS MANUFACTURERAS | G35: 1081 | H35: =+IFERROR(VLOOKUP(G35,'[2]3.1 vs 4 (2020)'!$J:$O,3,0),"Otras") -> C | I35: Natural | J35: PEQUEÑA | K35: 454262 | L35: 454262 | M35: 0 | N35: 0
B36: 25269 | C36: =+VLOOKUP(B36,'[1]DIVIPOLA MPIO'!$E$1:$G$65536,3,0) -> FACATATIVÁ | D36: 25 | E36: =+VLOOKUP(D36,'[1]DIVIPOLA MPIO'!$B$1:$C$65536,2,0) -> CUNDINAMARCA | F36: =+IFERROR(VLOOKUP(G36,'[2]3.1 vs 4 (2020)'!$J:$O,6,0),"OTRAS") -> EDUCACIÓN | G36: 8560 | H36: =+IFERROR(VLOOKUP(G36,'[2]3.1 vs 4 (2020)'!$J:$O,3,0),"Otras") -> P | I36: Natural | J36: MICRO | K36: 2100000 | L36: 1000000 | M36: 800000 | N36: 300000
B37: 85001 | C37: =+VLOOKUP(B37,'[1]DIVIPOLA MPIO'!$E$1:$G$65536,3,0) -> YOPAL | D37: 85 | E37: =+VLOOKUP(D37,'[1]DIVIPOLA MPIO'!$B$1:$C$65536,2,0) -> CASANARE | F37: =+IFERROR(VLOOKUP(G37,'[2]3.1 vs 4 (2020)'!$J:$O,6,0),"OTRAS") -> COMERCIO AL POR MAYOR Y AL POR MENOR; REPARACIÓN DE VEHÍCULOS AUTOMOTORES Y MOTOCICLETAS | G37: 4769 | H37: =+IFERROR(VLOOKUP(G37,'[2]3.1 vs 4 (2020)'!$J:$O,3,0),"Otras") -> G | I37: Natural | J37: MICRO | K37: 2450000 | L37: 2000000 | M37: 0 | N37: 450000
B38: 5001 | C38: =+VLOOKUP(B38,'[1]DIVIPOLA MPIO'!$E$1:$G$65536,3,0) -> MEDELLÍN | D38: 5 | E38: =+VLOOKUP(D38,'[1]DIVIPOLA MPIO'!$B$1:$C$65536,2,0) -> ANTIOQUIA | F38: =+IFERROR(VLOOKUP(G38,'[2]3.1 vs 4 (2020)'!$J:$O,6,0),"OTRAS") -> OTRAS | G38: 90 | H38: =+IFERROR(VLOOKUP(G38,'[2]3.1 vs 4 (2020)'!$J:$O,3,0),"Otras") -> Otras | I38: Natural | J38: MICRO | K38: 400000 | L38: 0 | M38: 400000 | N38: 0
B39: 15759 | C39: =+VLOOKUP(B39,'[1]DIVIPOLA MPIO'!$E$1:$G$65536,3,0) -> SOGAMOSO | D39: 15 | E39: =+VLOOKUP(D39,'[1]DIVIPOLA MPIO'!$B$1:$C$65536,2,0) -> BOYACÁ | F39: =+IFERROR(VLOOKUP(G39,'[2]3.1 vs 4 (2020)'!$J:$O,6,0),"OTRAS") -> COMERCIO AL POR MAYOR Y AL POR MENOR; REPARACIÓN DE VEHÍCULOS AUTOMOTORES Y MOTOCICLETAS | G39: 4799 | H39: =+IFERROR(VLOOKUP(G39,'[2]3.1 vs 4 (2020)'!$J:$O,3,0),"Otras") -> G | I39: Natural | J39: MICRO | K39: 600000 | L39: 500000 | M39: 100000 | N39: 0
B40: 5001 | C40: =+VLOOKUP(B40,'[1]DIVIPOLA MPIO'!$E$1:$G$65536,3,0) -> MEDELLÍN | D40: 5 | E40: =+VLOOKUP(D40,'[1]DIVIPOLA MPIO'!$B$1:$C$65536,2,0) -> ANTIOQUIA | F40: =+IFERROR(VLOOKUP(G40,'[2]3.1 vs 4 (2020)'!$J:$O,6,0),"OTRAS") -> ALOJAMIENTO Y SERVICIOS DE COMIDA | G40: 5611 | H40: =+IFERROR(VLOOKUP(G40,'[2]3.1 vs 4 (2020)'!$J:$O,3,0),"Otras") -> I | I40: Natural | J40: MICRO | K40: 100000 | L40: 0 | M40: 100000 | N40: 0
B41: 5001 | C41: =+VLOOKUP(B41,'[1]DIVIPOLA MPIO'!$E$1:$G$65536,3,0) -> MEDELLÍN | D41: 5 | E41: =+VLOOKUP(D41,'[1]DIVIPOLA MPIO'!$B$1:$C$65536,2,0) -> ANTIOQUIA | F41: =+IFERROR(VLOOKUP(G41,'[2]3.1 vs 4 (2020)'!$J:$O,6,0),"OTRAS") -> COMERCIO AL POR MAYOR Y AL POR MENOR; REPARACIÓN DE VEHÍCULOS AUTOMOTORES Y MOTOCICLETAS | G41: 4722 | H41: =+IFERROR(VLOOKUP(G41,'[2]3.1 vs 4 (2020)'!$J:$O,3,0),"Otras") -> G | I41: Natural | J41: MICRO | K41: 3740000 | L41: 2160000 | M41: 632000 | N41: 948000
B42: 5001 | C42: =+VLOOKUP(B42,'[1]DIVIPOLA MPIO'!$E$1:$G$65536,3,0) -> MEDELLÍN | D42: 5 | E42: =+VLOOKUP(D42,'[1]DIVIPOLA MPIO'!$B$1:$C$65536,2,0) -> ANTIOQUIA | F42: =+IFERROR(VLOOKUP(G42,'[2]3.1 vs 4 (2020)'!$J:$O,6,0),"OTRAS") -> INDUSTRIAS MANUFACTURERAS | G42: 3240 | H42: =+IFERROR(VLOOKUP(G42,'[2]3.1 vs 4 (2020)'!$J:$O,3,0),"Otras") -> C | I42: Natural | J42: MICRO | K42: 2108524 | L42: 1908524 | M42: 200000 | N42: 0
B43: 5001 | C43: =+VLOOKUP(B43,'[1]DIVIPOLA MPIO'!$E$1:$G$65536,3,0) -> MEDELLÍN | D43: 5 | E43: =+VLOOKUP(D43,'[1]DIVIPOLA MPIO'!$B$1:$C$65536,2,0) -> ANTIOQUIA | F43: =+IFERROR(VLOOKUP(G43,'[2]3.1 vs 4 (2020)'!$J:$O,6,0),"OTRAS") -> COMERCIO AL POR MAYOR Y AL POR MENOR; REPARACIÓN DE VEHÍCULOS AUTOMOTORES Y MOTOCICLETAS | G43: 4771 | H43: =+IFERROR(VLOOKUP(G43,'[2]3.1 vs 4 (2020)'!$J:$O,3,0),"Otras") -> G | I43: Natural | J43: MICRO | K43: 1135655 | L43: 1135655 | M43: 0 | N43: 0
B44: 5001 | C44: =+VLOOKUP(B44,'[1]DIVIPOLA MPIO'!$E$1:$G$65536,3,0) -> MEDELLÍN | D44: 5 | E44: =+VLOOKUP(D44,'[1]DIVIPOLA MPIO'!$B$1:$C$65536,2,0) -> ANTIOQUIA | F44: =+IFERROR(VLOOKUP(G44,'[2]3.1 vs 4 (2020)'!$J:$O,6,0),"OTRAS") -> COMERCIO AL POR MAYOR Y AL POR MENOR; REPARACIÓN DE VEHÍCULOS AUTOMOTORES Y MOTOCICLETAS | G44: 4663 | H44: =+IFERROR(VLOOKUP(G44,'[2]3.1 vs 4 (2020)'!$J:$O,3,0),"Otras") -> G | I44: Natural | J44: MICRO | K44: 454262 | L44: 454262 | M44: 0 | N44: 0
B45: 11001 | C45: =+VLOOKUP(B45,'[1]DIVIPOLA MPIO'!$E$1:$G$65536,3,0) -> BOGOTÁ, D.C. | D45: 11 | E45: =+VLOOKUP(D45,'[1]DIVIPOLA MPIO'!$B$1:$C$65536,2,0) -> BOGOTÁ, D.C. | F45: =+IFERROR(VLOOKUP(G45,'[2]3.1 vs 4 (2020)'!$J:$O,6,0),"OTRAS") -> COMERCIO AL POR MAYOR Y AL POR MENOR; REPARACIÓN DE VEHÍCULOS AUTOMOTORES Y MOTOCICLETAS | G45: 4771 | H45: =+IFERROR(VLOOKUP(G45,'[2]3.1 vs 4 (2020)'!$J:$O,3,0),"Otras") -> G | I45: Natural | J45: PEQUEÑA | K45: 454262 | L45: 454262 | M45: 0 | N45: 0
B46: 5001 | C46: =+VLOOKUP(B46,'[1]DIVIPOLA MPIO'!$E$1:$G$65536,3,0) -> MEDELLÍN | D46: 5 | E46: =+VLOOKUP(D46,'[1]DIVIPOLA MPIO'!$B$1:$C$65536,2,0) -> ANTIOQUIA | F46: =+IFERROR(VLOOKUP(G46,'[2]3.1 vs 4 (2020)'!$J:$O,6,0),"OTRAS") -> INDUSTRIAS MANUFACTURERAS | G46: 3110 | H46: =+IFERROR(VLOOKUP(G46,'[2]3.1 vs 4 (2020)'!$J:$O,3,0),"Otras") -> C | I46: Natural | J46: MICRO | K46: 454262 | L46: 454262 | M46: 0 | N46: 0
B47: 5697 | C47: =+VLOOKUP(B47,'[1]DIVIPOLA MPIO'!$E$1:$G$65536,3,0) -> EL SANTUARIO | D47: 5 | E47: =+VLOOKUP(D47,'[1]DIVIPOLA MPIO'!$B$1:$C$65536,2,0) -> ANTIOQUIA | F47: =+IFERROR(VLOOKUP(G47,'[2]3.1 vs 4 (2020)'!$J:$O,6,0),"OTRAS") -> COMERCIO AL POR MAYOR Y AL POR MENOR; REPARACIÓN DE VEHÍCULOS AUTOMOTORES Y MOTOCICLETAS | G47: 4773 | H47: =+IFERROR(VLOOKUP(G47,'[2]3.1 vs 4 (2020)'!$J:$O,3,0),"Otras") -> G | I47: Natural | J47: MICRO | K47: 681393 | L47: 681393 | M47: 0 | N47: 0
B48: 11001 | C48: =+VLOOKUP(B48,'[1]DIVIPOLA MPIO'!$E$1:$G$65536,3,0) -> BOGOTÁ, D.C. | D48: 11 | E48: =+VLOOKUP(D48,'[1]DIVIPOLA MPIO'!$B$1:$C$65536,2,0) -> BOGOTÁ, D.C. | F48: =+IFERROR(VLOOKUP(G48,'[2]3.1 vs 4 (2020)'!$J:$O,6,0),"OTRAS") -> COMERCIO AL POR MAYOR Y AL POR MENOR; REPARACIÓN DE VEHÍCULOS AUTOMOTORES Y MOTOCICLETAS | G48: 4652 | H48: =+IFERROR(VLOOKUP(G48,'[2]3.1 vs 4 (2020)'!$J:$O,3,0),"Otras") -> G | I48: Natural | J48: MICRO | K48: 227131 | L48: 227131 | M48: 0 | N48: 0
B49: 54001 | C49: =+VLOOKUP(B49,'[1]DIVIPOLA MPIO'!$E$1:$G$65536,3,0) -> CÚCUTA | D49: 54 | E49: =+VLOOKUP(D49,'[1]DIVIPOLA MPIO'!$B$1:$C$65536,2,0) -> NORTE DE SANTANDER | F49: =+IFERROR(VLOOKUP(G49,'[2]3.1 vs 4 (2020)'!$J:$O,6,0),"OTRAS") -> COMERCIO AL POR MAYOR Y AL POR MENOR; REPARACIÓN DE VEHÍCULOS AUTOMOTORES Y MOTOCICLETAS | G49: 4631 | H49: =+IFERROR(VLOOKUP(G49,'[2]3.1 vs 4 (2020)'!$J:$O,3,0),"Otras") -> G | I49: Natural | J49: PEQUEÑA | K49: 454262 | L49: 454262 | M49: 0 | N49: 0
B50: 5001 | C50: =+VLOOKUP(B50,'[1]DIVIPOLA MPIO'!$E$1:$G$65536,3,0) -> MEDELLÍN | D50: 5 | E50: =+VLOOKUP(D50,'[1]DIVIPOLA MPIO'!$B$1:$C$65536,2,0) -> ANTIOQUIA | F50: =+IFERROR(VLOOKUP(G50,'[2]3.1 vs 4 (2020)'!$J:$O,6,0),"OTRAS") -> ACTIVIDADES INMOBILIARIAS | G50: 6810 | H50: =+IFERROR(VLOOKUP(G50,'[2]3.1 vs 4 (2020)'!$J:$O,3,0),"Otras") -> L | I50: Natural | J50: MICRO | K50: 90852 | L50: 0 | M50: 90852 | N50: 0
B51: 15759 | C51: =+VLOOKUP(B51,'[1]DIVIPOLA MPIO'!$E$1:$G$65536,3,0) -> SOGAMOSO | D51: 15 | E51: =+VLOOKUP(D51,'[1]DIVIPOLA MPIO'!$B$1:$C$65536,2,0) -> BOYACÁ | F51: =+IFERROR(VLOOKUP(G51,'[2]3.1 vs 4 (2020)'!$J:$O,6,0),"OTRAS") -> EDUCACIÓN | G51: 8512 | H51: =+IFERROR(VLOOKUP(G51,'[2]3.1 vs 4 (2020)'!$J:$O,3,0),"Otras") -> P | I51: Natural | J51: MICRO | K51: 2950000 | L51: 1000000 | M51: 0 | N51: 1950000
B52: 15176 | C52: =+VLOOKUP(B52,'[1]DIVIPOLA MPIO'!$E$1:$G$65536,3,0) -> CHIQUINQUIRÁ | D52: 15 | E52: =+VLOOKUP(D52,'[1]DIVIPOLA MPIO'!$B$1:$C$65536,2,0) -> BOYACÁ | F52: =+IFERROR(VLOOKUP(G52,'[2]3.1 vs 4 (2020)'!$J:$O,6,0),"OTRAS") -> INDUSTRIAS MANUFACTURERAS | G52: 1081 | H52: =+IFERROR(VLOOKUP(G52,'[2]3.1 vs 4 (2020)'!$J:$O,3,0),"Otras") -> C | I52: Natural | J52: MICRO | K52: 3700000 | L52: 3250000 | M52: 0 | N52: 450000
B53: 11001 | C53: =+VLOOKUP(B53,'[1]DIVIPOLA MPIO'!$E$1:$G$65536,3,0) -> BOGOTÁ, D.C. | D53: 11 | E53: =+VLOOKUP(D53,'[1]DIVIPOLA MPIO'!$B$1:$C$65536,2,0) -> BOGOTÁ, D.C. | F53: =+IFERROR(VLOOKUP(G53,'[2]3.1 vs 4 (2020)'!$J:$O,6,0),"OTRAS") -> INDUSTRIAS MANUFACTURERAS | G53: 2920 | H53: =+IFERROR(VLOOKUP(G53,'[2]3.1 vs 4 (2020)'!$J:$O,3,0),"Otras") -> C | I53: Natural | J53: MICRO | K53: 1800000 | L53: 0 | M53: 0 | N53: 1800000
B54: 15238 | C54: =+VLOOKUP(B54,'[1]DIVIPOLA MPIO'!$E$1:$G$65536,3,0) -> DUITAMA | D54: 15 | E54: =+VLOOKUP(D54,'[1]DIVIPOLA MPIO'!$B$1:$C$65536,2,0) -> BOYACÁ | F54: =+IFERROR(VLOOKUP(G54,'[2]3.1 vs 4 (2020)'!$J:$O,6,0),"OTRAS") -> TRANSPORTE Y ALMACENAMIENTO | G54: 4923 | H54: =+IFERROR(VLOOKUP(G54,'[2]3.1 vs 4 (2020)'!$J:$O,3,0),"Otras") -> H | I54: Natural | J54: MICRO | K54: 500000 | L54: 500000 | M54: 0 | N54: 0
B55: 85001 | C55: =+VLOOKUP(B55,'[1]DIVIPOLA MPIO'!$E$1:$G$65536,3,0) -> YOPAL | D55: 85 | E55: =+VLOOKUP(D55,'[1]DIVIPOLA MPIO'!$B$1:$C$65536,2,0) -> CASANARE | F55: =+IFERROR(VLOOKUP(G55,'[2]3.1 vs 4 (2020)'!$J:$O,6,0),"OTRAS") -> COMERCIO AL POR MAYOR Y AL POR MENOR; REPARACIÓN DE VEHÍCULOS AUTOMOTORES Y MOTOCICLETAS | G55: 4542 | H55: =+IFERROR(VLOOKUP(G55,'[2]3.1 vs 4 (2020)'!$J:$O,3,0),"Otras") -> G | I55: Natural | J55: MICRO | K55: 4408524 | L55: 4408524 | M55: 0 | N55: 0
B56: 15537 | C56: =+VLOOKUP(B56,'[1]DIVIPOLA MPIO'!$E$1:$G$65536,3,0) -> PAZ DE RÍO | D56: 15 | E56: =+VLOOKUP(D56,'[1]DIVIPOLA MPIO'!$B$1:$C$65536,2,0) -> BOYACÁ | F56: =+IFERROR(VLOOKUP(G56,'[2]3.1 vs 4 (2020)'!$J:$O,6,0),"OTRAS") -> TRANSPORTE Y ALMACENAMIENTO | G56: 4923 | H56: =+IFERROR(VLOOKUP(G56,'[2]3.1 vs 4 (2020)'!$J:$O,3,0),"Otras") -> H | I56: Natural | J56: PEQUEÑA | K56: 681393 | L56: 681393 | M56: 0 | N56: 0
B57: 15759 | C57: =+VLOOKUP(B57,'[1]DIVIPOLA MPIO'!$E$1:$G$65536,3,0) -> SOGAMOSO | D57: 15 | E57: =+VLOOKUP(D57,'[1]DIVIPOLA MPIO'!$B$1:$C$65536,2,0) -> BOYACÁ | F57: =+IFERROR(VLOOKUP(G57,'[2]3.1 vs 4 (2020)'!$J:$O,6,0),"OTRAS") -> INDUSTRIAS MANUFACTURERAS | G57: 2395 | H57: =+IFERROR(VLOOKUP(G57,'[2]3.1 vs 4 (2020)'!$J:$O,3,0),"Otras") -> C | I57: Natural | J57: PEQUEÑA | K57: 100000 | L57: 0 | M57: 100000 | N57: 0
B58: 11001 | C58: =+VLOOKUP(B58,'[1]DIVIPOLA MPIO'!$E$1:$G$65536,3,0) -> BOGOTÁ, D.C. | D58: 11 | E58: =+VLOOKUP(D58,'[1]DIVIPOLA MPIO'!$B$1:$C$65536,2,0) -> BOGOTÁ, D.C. | F58: =+IFERROR(VLOOKUP(G58,'[2]3.1 vs 4 (2020)'!$J:$O,6,0),"OTRAS") -> COMERCIO AL POR MAYOR Y AL POR MENOR; REPARACIÓN DE VEHÍCULOS AUTOMOTORES Y MOTOCICLETAS | G58: 4663 | H58: =+IFERROR(VLOOKUP(G58,'[2]3.1 vs 4 (2020)'!$J:$O,3,0),"Otras") -> G | I58: Natural | J58: MICRO | K58: 500000 | L58: 500000 | M58: 0 | N58: 0
B59: 15753 | C59: =+VLOOKUP(B59,'[1]DIVIPOLA MPIO'!$E$1:$G$65536,3,0) -> SOATÁ | D59: 15 | E59: =+VLOOKUP(D59,'[1]DIVIPOLA MPIO'!$B$1:$C$65536,2,0) -> BOYACÁ | F59: =+IFERROR(VLOOKUP(G59,'[2]3.1 vs 4 (2020)'!$J:$O,6,0),"OTRAS") -> COMERCIO AL POR MAYOR Y AL POR MENOR; REPARACIÓN DE VEHÍCULOS AUTOMOTORES Y MOTOCICLETAS | G59: 4631 | H59: =+IFERROR(VLOOKUP(G59,'[2]3.1 vs 4 (2020)'!$J:$O,3,0),"Otras") -> G | I59: Natural | J59: MICRO | K59: 381704 | L59: 0 | M59: 381704 | N59: 0
B60: 11001 | C60: =+VLOOKUP(B60,'[1]DIVIPOLA MPIO'!$E$1:$G$65536,3,0) -> BOGOTÁ, D.C. | D60: 11 | E60: =+VLOOKUP(D60,'[1]DIVIPOLA MPIO'!$B$1:$C$65536,2,0) -> BOGOTÁ, D.C. | F60: =+IFERROR(VLOOKUP(G60,'[2]3.1 vs 4 (2020)'!$J:$O,6,0),"OTRAS") -> INDUSTRIAS MANUFACTURERAS | G60: 1081 | H60: =+IFERROR(VLOOKUP(G60,'[2]3.1 vs 4 (2020)'!$J:$O,3,0),"Otras") -> C | I60: Natural | J60: MICRO | K60: 5658524 | L60: 5658524 | M60: 0 | N60: 0
B61: 15759 | C61: =+VLOOKUP(B61,'[1]DIVIPOLA MPIO'!$E$1:$G$65536,3,0) -> SOGAMOSO | D61: 15 | E61: =+VLOOKUP(D61,'[1]DIVIPOLA MPIO'!$B$1:$C$65536,2,0) -> BOYACÁ | F61: =+IFERROR(VLOOKUP(G61,'[2]3.1 vs 4 (2020)'!$J:$O,6,0),"OTRAS") -> TRANSPORTE Y ALMACENAMIENTO | G61: 4923 | H61: =+IFERROR(VLOOKUP(G61,'[2]3.1 vs 4 (2020)'!$J:$O,3,0),"Otras") -> H | I61: Natural | J61: MICRO | K61: 1450000 | L61: 1250000 | M61: 200000 | N61: 0
B62: 11001 | C62: =+VLOOKUP(B62,'[1]DIVIPOLA MPIO'!$E$1:$G$65536,3,0) -> BOGOTÁ, D.C. | D62: 11 | E62: =+VLOOKUP(D62,'[1]DIVIPOLA MPIO'!$B$1:$C$65536,2,0) -> BOGOTÁ, D.C. | F62: =+IFERROR(VLOOKUP(G62,'[2]3.1 vs 4 (2020)'!$J:$O,6,0),"OTRAS") -> TRANSPORTE Y ALMACENAMIENTO | G62: 4923 | H62: =+IFERROR(VLOOKUP(G62,'[2]3.1 vs 4 (2020)'!$J:$O,3,0),"Otras") -> H | I62: Natural | J62: MICRO | K62: 2526818 | L62: 1954262 | M62: 272556 | N62: 300000
B63: 11001 | C63: =+VLOOKUP(B63,'[1]DIVIPOLA MPIO'!$E$1:$G$65536,3,0) -> BOGOTÁ, D.C. | D63: 11 | E63: =+VLOOKUP(D63,'[1]DIVIPOLA MPIO'!$B$1:$C$65536,2,0) -> BOGOTÁ, D.C. | F63: =+IFERROR(VLOOKUP(G63,'[2]3.1 vs 4 (2020)'!$J:$O,6,0),"OTRAS") -> ALOJAMIENTO Y SERVICIOS DE COMIDA | G63: 5611 | H63: =+IFERROR(VLOOKUP(G63,'[2]3.1 vs 4 (2020)'!$J:$O,3,0),"Otras") -> I | I63: Natural | J63: MICRO | K63: 1800000 | L63: 0 | M63: 900000 | N63: 900000
B64: 5266 | C64: =+VLOOKUP(B64,'[1]DIVIPOLA MPIO'!$E$1:$G$65536,3,0) -> ENVIGADO | D64: 5 | E64: =+VLOOKUP(D64,'[1]DIVIPOLA MPIO'!$B$1:$C$65536,2,0) -> ANTIOQUIA | F64: =+IFERROR(VLOOKUP(G64,'[2]3.1 vs 4 (2020)'!$J:$O,6,0),"OTRAS") -> COMERCIO AL POR MAYOR Y AL POR MENOR; REPARACIÓN DE VEHÍCULOS AUTOMOTORES Y MOTOCICLETAS | G64: 4541 | H64: =+IFERROR(VLOOKUP(G64,'[2]3.1 vs 4 (2020)'!$J:$O,3,0),"Otras") -> G | I64: Natural | J64: MICRO | K64: 681393 | L64: 681393 | M64: 0 | N64: 0
B65: 17442 | C65: =+VLOOKUP(B65,'[1]DIVIPOLA MPIO'!$E$1:$G$65536,3,0) -> MARMATO | D65: 17 | E65: =+VLOOKUP(D65,'[1]DIVIPOLA MPIO'!$B$1:$C$65536,2,0) -> CALDAS | F65: =+IFERROR(VLOOKUP(G65,'[2]3.1 vs 4 (2020)'!$J:$O,6,0),"OTRAS") -> EXPLOTACIÓN DE MINAS Y CANTERAS | G65: 722 | H65: =+IFERROR(VLOOKUP(G65,'[2]3.1 vs 4 (2020)'!$J:$O,3,0),"Otras") -> B | I65: Natural | J65: PEQUEÑA | K65: 29442000 | L65: 18310000 | M65: 11132000 | N65: 0
B66: 17442 | C66: =+VLOOKUP(B66,'[1]DIVIPOLA MPIO'!$E$1:$G$65536,3,0) -> MARMATO | D66: 17 | E66: =+VLOOKUP(D66,'[1]DIVIPOLA MPIO'!$B$1:$C$65536,2,0) -> CALDAS | F66: =+IFERROR(VLOOKUP(G66,'[2]3.1 vs 4 (2020)'!$J:$O,6,0),"OTRAS") -> EXPLOTACIÓN DE MINAS Y CANTERAS | G66: 722 | H66: =+IFERROR(VLOOKUP(G66,'[2]3.1 vs 4 (2020)'!$J:$O,3,0),"Otras") -> B | I66: Natural | J66: PEQUEÑA | K66: 33376000 | L66: 23540000 | M66: 9836000 | N66: 0
B67: 50001 | C67: =+VLOOKUP(B67,'[1]DIVIPOLA MPIO'!$E$1:$G$65536,3,0) -> VILLAVICENCIO | D67: 50 | E67: =+VLOOKUP(D67,'[1]DIVIPOLA MPIO'!$B$1:$C$65536,2,0) -> META | F67: =+IFERROR(VLOOKUP(G67,'[2]3.1 vs 4 (2020)'!$J:$O,6,0),"OTRAS") -> CONSTRUCCIÓN | G67: 4321 | H67: =+IFERROR(VLOOKUP(G67,'[2]3.1 vs 4 (2020)'!$J:$O,3,0),"Otras") -> F | I67: Natural | J67: MICRO | K67: 1000000 | L67: 750000 | M67: 100000 | N67: 150000
B68: 66001 | C68: =+VLOOKUP(B68,'[1]DIVIPOLA MPIO'!$E$1:$G$65536,3,0) -> PEREIRA | D68: 66 | E68: =+VLOOKUP(D68,'[1]DIVIPOLA MPIO'!$B$1:$C$65536,2,0) -> RISARALDA | F68: =+IFERROR(VLOOKUP(G68,'[2]3.1 vs 4 (2020)'!$J:$O,6,0),"OTRAS") -> OTRAS ACTIVIDADES DE SERVICIOS | G68: 9609 | H68: =+IFERROR(VLOOKUP(G68,'[2]3.1 vs 4 (2020)'!$J:$O,3,0),"Otras") -> S | I68: Natural | J68: MICRO | K68: 2412784 | L68: 1408524 | M68: 581704 | N68: 422556
B69: 66001 | C69: =+VLOOKUP(B69,'[1]DIVIPOLA MPIO'!$E$1:$G$65536,3,0) -> PEREIRA | D69: 66 | E69: =+VLOOKUP(D69,'[1]DIVIPOLA MPIO'!$B$1:$C$65536,2,0) -> RISARALDA | F69: =+IFERROR(VLOOKUP(G69,'[2]3.1 vs 4 (2020)'!$J:$O,6,0),"OTRAS") -> COMERCIO AL POR MAYOR Y AL POR MENOR; REPARACIÓN DE VEHÍCULOS AUTOMOTORES Y MOTOCICLETAS | G69: 4773 | H69: =+IFERROR(VLOOKUP(G69,'[2]3.1 vs 4 (2020)'!$J:$O,3,0),"Otras") -> G | I69: Natural | J69: PEQUEÑA | K69: 227131 | L69: 227131 | M69: 0 | N69: 0
B70: 66594 | C70: =+VLOOKUP(B70,'[1]DIVIPOLA MPIO'!$E$1:$G$65536,3,0) -> QUINCHÍA | D70: 66 | E70: =+VLOOKUP(D70,'[1]DIVIPOLA MPIO'!$B$1:$C$65536,2,0) -> RISARALDA | F70: =+IFERROR(VLOOKUP(G70,'[2]3.1 vs 4 (2020)'!$J:$O,6,0),"OTRAS") -> COMERCIO AL POR MAYOR Y AL POR MENOR; REPARACIÓN DE VEHÍCULOS AUTOMOTORES Y MOTOCICLETAS | G70: 4711 | H70: =+IFERROR(VLOOKUP(G70,'[2]3.1 vs 4 (2020)'!$J:$O,3,0),"Otras") -> G | I70: Natural | J70: MICRO | K70: 7150000 | L70: 7150000 | M70: 0 | N70: 0
B71: 66170 | C71: =+VLOOKUP(B71,'[1]DIVIPOLA MPIO'!$E$1:$G$65536,3,0) -> DOSQUEBRADAS | D71: 66 | E71: =+VLOOKUP(D71,'[1]DIVIPOLA MPIO'!$B$1:$C$65536,2,0) -> RISARALDA | F71: =+IFERROR(VLOOKUP(G71,'[2]3.1 vs 4 (2020)'!$J:$O,6,0),"OTRAS") -> COMERCIO AL POR MAYOR Y AL POR MENOR; REPARACIÓN DE VEHÍCULOS AUTOMOTORES Y MOTOCICLETAS | G71: 4775 | H71: =+IFERROR(VLOOKUP(G71,'[2]3.1 vs 4 (2020)'!$J:$O,3,0),"Otras") -> G | I71: Natural | J71: MICRO | K71: 1000000 | L71: 1000000 | M71: 0 | N71: 0
B72: 66170 | C72: =+VLOOKUP(B72,'[1]DIVIPOLA MPIO'!$E$1:$G$65536,3,0) -> DOSQUEBRADAS | D72: 66 | E72: =+VLOOKUP(D72,'[1]DIVIPOLA MPIO'!$B$1:$C$65536,2,0) -> RISARALDA | F72: =+IFERROR(VLOOKUP(G72,'[2]3.1 vs 4 (2020)'!$J:$O,6,0),"OTRAS") -> ACTIVIDADES PROFESIONALES, CIENTÍFICAS Y TÉCNICAS | G72: 6910 | H72: =+IFERROR(VLOOKUP(G72,'[2]3.1 vs 4 (2020)'!$J:$O,3,0),"Otras") -> M | I72: Natural | J72: PEQUEÑA | K72: 6400000 | L72: 4750000 | M72: 0 | N72: 1650000
B73: 66001 | C73: =+VLOOKUP(B73,'[1]DIVIPOLA MPIO'!$E$1:$G$65536,3,0) -> PEREIRA | D73: 66 | E73: =+VLOOKUP(D73,'[1]DIVIPOLA MPIO'!$B$1:$C$65536,2,0) -> RISARALDA | F73: =+IFERROR(VLOOKUP(G73,'[2]3.1 vs 4 (2020)'!$J:$O,6,0),"OTRAS") -> COMERCIO AL POR MAYOR Y AL POR MENOR; REPARACIÓN DE VEHÍCULOS AUTOMOTORES Y MOTOCICLETAS | G73: 4754 | H73: =+IFERROR(VLOOKUP(G73,'[2]3.1 vs 4 (2020)'!$J:$O,3,0),"Otras") -> G | I73: Natural | J73: PEQUEÑA | K73: 11808000 | L73: 11460000 | M73: 0 | N73: 348000
B74: 18205 | C74: =+VLOOKUP(B74,'[1]DIVIPOLA MPIO'!$E$1:$G$65536,3,0) -> CURILLO | D74: 18 | E74: =+VLOOKUP(D74,'[1]DIVIPOLA MPIO'!$B$1:$C$65536,2,0) -> CAQUETÁ | F74: =+IFERROR(VLOOKUP(G74,'[2]3.1 vs 4 (2020)'!$J:$O,6,0),"OTRAS") -> INDUSTRIAS MANUFACTURERAS | G74: 1040 | H74: =+IFERROR(VLOOKUP(G74,'[2]3.1 vs 4 (2020)'!$J:$O,3,0),"Otras") -> C | I74: Natural | J74: PEQUEÑA | K74: 12232000 | L74: 7410000 | M74: 2728000 | N74: 2094000
B75: 19001 | C75: =+VLOOKUP(B75,'[1]DIVIPOLA MPIO'!$E$1:$G$65536,3,0) -> POPAYÁN | D75: 19 | E75: =+VLOOKUP(D75,'[1]DIVIPOLA MPIO'!$B$1:$C$65536,2,0) -> CAUCA | F75: =+IFERROR(VLOOKUP(G75,'[2]3.1 vs 4 (2020)'!$J:$O,6,0),"OTRAS") -> EDUCACIÓN | G75: 8559 | H75: =+IFERROR(VLOOKUP(G75,'[2]3.1 vs 4 (2020)'!$J:$O,3,0),"Otras") -> P | I75: Natural | J75: MICRO | K75: 317982 | L75: 0 | M75: 181704 | N75: 136278
B76: 76001 | C76: =+VLOOKUP(B76,'[1]DIVIPOLA MPIO'!$E$1:$G$65536,3,0) -> CALI | D76: 76 | E76: =+VLOOKUP(D76,'[1]DIVIPOLA MPIO'!$B$1:$C$65536,2,0) -> VALLE DEL CAUCA | F76: =+IFERROR(VLOOKUP(G76,'[2]3.1 vs 4 (2020)'!$J:$O,6,0),"OTRAS") -> COMERCIO AL POR MAYOR Y AL POR MENOR; REPARACIÓN DE VEHÍCULOS AUTOMOTORES Y MOTOCICLETAS | G76: 4752 | H76: =+IFERROR(VLOOKUP(G76,'[2]3.1 vs 4 (2020)'!$J:$O,3,0),"Otras") -> G | I76: Natural | J76: MICRO | K76: 7748441 | L76: 7748441 | M76: 0 | N76: 0
B77: 41001 | C77: =+VLOOKUP(B77,'[1]DIVIPOLA MPIO'!$E$1:$G$65536,3,0) -> NEIVA | D77: 41 | E77: =+VLOOKUP(D77,'[1]DIVIPOLA MPIO'!$B$1:$C$65536,2,0) -> HUILA | F77: =+IFERROR(VLOOKUP(G77,'[2]3.1 vs 4 (2020)'!$J:$O,6,0),"OTRAS") -> COMERCIO AL POR MAYOR Y AL POR MENOR; REPARACIÓN DE VEHÍCULOS AUTOMOTORES Y MOTOCICLETAS | G77: 4752 | H77: =+IFERROR(VLOOKUP(G77,'[2]3.1 vs 4 (2020)'!$J:$O,3,0),"Otras") -> G | I77: Natural | J77: PEQUEÑA | K77: 12050000 | L77: 7000000 | M77: 4600000 | N77: 450000
B78: 41001 | C78: =+VLOOKUP(B78,'[1]DIVIPOLA MPIO'!$E$1:$G$65536,3,0) -> NEIVA | D78: 41 | E78: =+VLOOKUP(D78,'[1]DIVIPOLA MPIO'!$B$1:$C$65536,2,0) -> HUILA | F78: =+IFERROR(VLOOKUP(G78,'[2]3.1 vs 4 (2020)'!$J:$O,6,0),"OTRAS") -> COMERCIO AL POR MAYOR Y AL POR MENOR; REPARACIÓN DE VEHÍCULOS AUTOMOTORES Y MOTOCICLETAS | G78: 4711 | H78: =+IFERROR(VLOOKUP(G78,'[2]3.1 vs 4 (2020)'!$J:$O,3,0),"Otras") -> G | I78: Natural | J78: PEQUEÑA | K78: 227131 | L78: 227131 | M78: 0 | N78: 0
B79: 41551 | C79: =+VLOOKUP(B79,'[1]DIVIPOLA MPIO'!$E$1:$G$65536,3,0) -> PITALITO | D79: 41 | E79: =+VLOOKUP(D79,'[1]DIVIPOLA MPIO'!$B$1:$C$65536,2,0) -> HUILA | F79: =+IFERROR(VLOOKUP(G79,'[2]3.1 vs 4 (2020)'!$J:$O,6,0),"OTRAS") -> COMERCIO AL POR MAYOR Y AL POR MENOR; REPARACIÓN DE VEHÍCULOS AUTOMOTORES Y MOTOCICLETAS | G79: 4754 | H79: =+IFERROR(VLOOKUP(G79,'[2]3.1 vs 4 (2020)'!$J:$O,3,0),"Otras") -> G | I79: Natural | J79: MICRO | K79: 363409 | L79: 227131 | M79: 0 | N79: 136278
B80: 41551 | C80: =+VLOOKUP(B80,'[1]DIVIPOLA MPIO'!$E$1:$G$65536,3,0) -> PITALITO | D80: 41 | E80: =+VLOOKUP(D80,'[1]DIVIPOLA MPIO'!$B$1:$C$65536,2,0) -> HUILA | F80: =+IFERROR(VLOOKUP(G80,'[2]3.1 vs 4 (2020)'!$J:$O,6,0),"OTRAS") -> COMERCIO AL POR MAYOR Y AL POR MENOR; REPARACIÓN DE VEHÍCULOS AUTOMOTORES Y MOTOCICLETAS | G80: 4620 | H80: =+IFERROR(VLOOKUP(G80,'[2]3.1 vs 4 (2020)'!$J:$O,3,0),"Otras") -> G | I80: Natural | J80: MICRO | K80: 1000000 | L80: 1000000 | M80: 0 | N80: 0
B81: 54498 | C81: =+VLOOKUP(B81,'[1]DIVIPOLA MPIO'!$E$1:$G$65536,3,0) -> OCAÑA | D81: 54 | E81: =+VLOOKUP(D81,'[1]DIVIPOLA MPIO'!$B$1:$C$65536,2,0) -> NORTE DE SANTANDER | F81: =+IFERROR(VLOOKUP(G81,'[2]3.1 vs 4 (2020)'!$J:$O,6,0),"OTRAS") -> COMERCIO AL POR MAYOR Y AL POR MENOR; REPARACIÓN DE VEHÍCULOS AUTOMOTORES Y MOTOCICLETAS | G81: 4541 | H81: =+IFERROR(VLOOKUP(G81,'[2]3.1 vs 4 (2020)'!$J:$O,3,0),"Otras") -> G | I81: Natural | J81: MICRO | K81: 1635655 | L81: 1635655 | M81: 0 | N81: 0
B82: 52001 | C82: =+VLOOKUP(B82,'[1]DIVIPOLA MPIO'!$E$1:$G$65536,3,0) -> PASTO | D82: 52 | E82: =+VLOOKUP(D82,'[1]DIVIPOLA MPIO'!$B$1:$C$65536,2,0) -> NARIÑO | F82: =+IFERROR(VLOOKUP(G82,'[2]3.1 vs 4 (2020)'!$J:$O,6,0),"OTRAS") -> COMERCIO AL POR MAYOR Y AL POR MENOR; REPARACIÓN DE VEHÍCULOS AUTOMOTORES Y MOTOCICLETAS | G82: 4731 | H82: =+IFERROR(VLOOKUP(G82,'[2]3.1 vs 4 (2020)'!$J:$O,3,0),"Otras") -> G | I82: Natural | J82: PEQUEÑA | K82: 227131 | L82: 227131 | M82: 0 | N82: 0
B83: 52317 | C83: =+VLOOKUP(B83,'[1]DIVIPOLA MPIO'!$E$1:$G$65536,3,0) -> GUACHUCAL | D83: 52 | E83: =+VLOOKUP(D83,'[1]DIVIPOLA MPIO'!$B$1:$C$65536,2,0) -> NARIÑO | F83: =+IFERROR(VLOOKUP(G83,'[2]3.1 vs 4 (2020)'!$J:$O,6,0),"OTRAS") -> COMERCIO AL POR MAYOR Y AL POR MENOR; REPARACIÓN DE VEHÍCULOS AUTOMOTORES Y MOTOCICLETAS | G83: 4731 | H83: =+IFERROR(VLOOKUP(G83,'[2]3.1 vs 4 (2020)'!$J:$O,3,0),"Otras") -> G | I83: Natural | J83: PEQUEÑA | K83: 1750000 | L83: 1750000 | M83: 0 | N83: 0
B84: 52560 | C84: =+VLOOKUP(B84,'[1]DIVIPOLA MPIO'!$E$1:$G$65536,3,0) -> POTOSÍ | D84: 52 | E84: =+VLOOKUP(D84,'[1]DIVIPOLA MPIO'!$B$1:$C$65536,2,0) -> NARIÑO | F84: =+IFERROR(VLOOKUP(G84,'[2]3.1 vs 4 (2020)'!$J:$O,6,0),"OTRAS") -> INDUSTRIAS MANUFACTURERAS | G84: 1040 | H84: =+IFERROR(VLOOKUP(G84,'[2]3.1 vs 4 (2020)'!$J:$O,3,0),"Otras") -> C | I84: Natural | J84: MICRO | K84: 1650000 | L84: 1500000 | M84: 0 | N84: 150000
B85: 52683 | C85: =+VLOOKUP(B85,'[1]DIVIPOLA MPIO'!$E$1:$G$65536,3,0) -> SANDONÁ | D85: 52 | E85: =+VLOOKUP(D85,'[1]DIVIPOLA MPIO'!$B$1:$C$65536,2,0) -> NARIÑO | F85: =+IFERROR(VLOOKUP(G85,'[2]3.1 vs 4 (2020)'!$J:$O,6,0),"OTRAS") -> COMERCIO AL POR MAYOR Y AL POR MENOR; REPARACIÓN DE VEHÍCULOS AUTOMOTORES Y MOTOCICLETAS | G85: 4711 | H85: =+IFERROR(VLOOKUP(G85,'[2]3.1 vs 4 (2020)'!$J:$O,3,0),"Otras") -> G | I85: Natural | J85: MICRO | K85: 250000 | L85: 0 | M85: 100000 | N85: 150000
B86: 54001 | C86: =+VLOOKUP(B86,'[1]DIVIPOLA MPIO'!$E$1:$G$65536,3,0) -> CÚCUTA | D86: 54 | E86: =+VLOOKUP(D86,'[1]DIVIPOLA MPIO'!$B$1:$C$65536,2,0) -> NORTE DE SANTANDER | F86: =+IFERROR(VLOOKUP(G86,'[2]3.1 vs 4 (2020)'!$J:$O,6,0),"OTRAS") -> INDUSTRIAS MANUFACTURERAS | G86: 2599 | H86: =+IFERROR(VLOOKUP(G86,'[2]3.1 vs 4 (2020)'!$J:$O,3,0),"Otras") -> C | I86: Natural | J86: MICRO | K86: 227131 | L86: 227131 | M86: 0 | N86: 0
B87: 54001 | C87: =+VLOOKUP(B87,'[1]DIVIPOLA MPIO'!$E$1:$G$65536,3,0) -> CÚCUTA | D87: 54 | E87: =+VLOOKUP(D87,'[1]DIVIPOLA MPIO'!$B$1:$C$65536,2,0) -> NORTE DE SANTANDER | F87: =+IFERROR(VLOOKUP(G87,'[2]3.1 vs 4 (2020)'!$J:$O,6,0),"OTRAS") -> TRANSPORTE Y ALMACENAMIENTO | G87: 4923 | H87: =+IFERROR(VLOOKUP(G87,'[2]3.1 vs 4 (2020)'!$J:$O,3,0),"Otras") -> H | I87: Natural | J87: MICRO | K87: 250000 | L87: 250000 | M87: 0 | N87: 0
B88: 54518 | C88: =+VLOOKUP(B88,'[1]DIVIPOLA MPIO'!$E$1:$G$65536,3,0) -> PAMPLONA | D88: 54 | E88: =+VLOOKUP(D88,'[1]DIVIPOLA MPIO'!$B$1:$C$65536,2,0) -> NORTE DE SANTANDER | F88: =+IFERROR(VLOOKUP(G88,'[2]3.1 vs 4 (2020)'!$J:$O,6,0),"OTRAS") -> ALOJAMIENTO Y SERVICIOS DE COMIDA | G88: 5611 | H88: =+IFERROR(VLOOKUP(G88,'[2]3.1 vs 4 (2020)'!$J:$O,3,0),"Otras") -> I | I88: Natural | J88: PEQUEÑA | K88: 23084262 | L88: 23084262 | M88: 0 | N88: 0
B89: 54001 | C89: =+VLOOKUP(B89,'[1]DIVIPOLA MPIO'!$E$1:$G$65536,3,0) -> CÚCUTA | D89: 54 | E89: =+VLOOKUP(D89,'[1]DIVIPOLA MPIO'!$B$1:$C$65536,2,0) -> NORTE DE SANTANDER | F89: =+IFERROR(VLOOKUP(G89,'[2]3.1 vs 4 (2020)'!$J:$O,6,0),"OTRAS") -> COMERCIO AL POR MAYOR Y AL POR MENOR; REPARACIÓN DE VEHÍCULOS AUTOMOTORES Y MOTOCICLETAS | G89: 4752 | H89: =+IFERROR(VLOOKUP(G89,'[2]3.1 vs 4 (2020)'!$J:$O,3,0),"Otras") -> G | I89: Natural | J89: MICRO | K89: 100000 | L89: 0 | M89: 100000 | N89: 0
B90: 68001 | C90: =+VLOOKUP(B90,'[1]DIVIPOLA MPIO'!$E$1:$G$65536,3,0) -> BUCARAMANGA | D90: 68 | E90: =+VLOOKUP(D90,'[1]DIVIPOLA MPIO'!$B$1:$C$65536,2,0) -> SANTANDER | F90: =+IFERROR(VLOOKUP(G90,'[2]3.1 vs 4 (2020)'!$J:$O,6,0),"OTRAS") -> INDUSTRIAS MANUFACTURERAS | G90: 1610 | H90: =+IFERROR(VLOOKUP(G90,'[2]3.1 vs 4 (2020)'!$J:$O,3,0),"Otras") -> C | I90: Natural | J90: PEQUEÑA | K90: 250000 | L90: 250000 | M90: 0 | N90: 0
B91: 68001 | C91: =+VLOOKUP(B91,'[1]DIVIPOLA MPIO'!$E$1:$G$65536,3,0) -> BUCARAMANGA | D91: 68 | E91: =+VLOOKUP(D91,'[1]DIVIPOLA MPIO'!$B$1:$C$65536,2,0) -> SANTANDER | F91: =+IFERROR(VLOOKUP(G91,'[2]3.1 vs 4 (2020)'!$J:$O,6,0),"OTRAS") -> COMERCIO AL POR MAYOR Y AL POR MENOR; REPARACIÓN DE VEHÍCULOS AUTOMOTORES Y MOTOCICLETAS | G91: 4774 | H91: =+IFERROR(VLOOKUP(G91,'[2]3.1 vs 4 (2020)'!$J:$O,3,0),"Otras") -> G | I91: Natural | J91: MICRO | K91: 6250000 | L91: 6250000 | M91: 0 | N91: 0
B92: 11001 | C92: =+VLOOKUP(B92,'[1]DIVIPOLA MPIO'!$E$1:$G$65536,3,0) -> BOGOTÁ, D.C. | D92: 11 | E92: =+VLOOKUP(D92,'[1]DIVIPOLA MPIO'!$B$1:$C$65536,2,0) -> BOGOTÁ, D.C. | F92: =+IFERROR(VLOOKUP(G92,'[2]3.1 vs 4 (2020)'!$J:$O,6,0),"OTRAS") -> COMERCIO AL POR MAYOR Y AL POR MENOR; REPARACIÓN DE VEHÍCULOS AUTOMOTORES Y MOTOCICLETAS | G92: 4732 | H92: =+IFERROR(VLOOKUP(G92,'[2]3.1 vs 4 (2020)'!$J:$O,3,0),"Otras") -> G | I92: Natural | J92: MICRO | K92: 11866421 | L92: 8544179 | M92: 963408 | N92: 2358834
B93: 54001 | C93: =+VLOOKUP(B93,'[1]DIVIPOLA MPIO'!$E$1:$G$65536,3,0) -> CÚCUTA | D93: 54 | E93: =+VLOOKUP(D93,'[1]DIVIPOLA MPIO'!$B$1:$C$65536,2,0) -> NORTE DE SANTANDER | F93: =+IFERROR(VLOOKUP(G93,'[2]3.1 vs 4 (2020)'!$J:$O,6,0),"OTRAS") -> INDUSTRIAS MANUFACTURERAS | G93: 1410 | H93: =+IFERROR(VLOOKUP(G93,'[2]3.1 vs 4 (2020)'!$J:$O,3,0),"Otras") -> C | I93: Natural | J93: MICRO | K93: 1158524 | L93: 1158524 | M93: 0 | N93: 0
B94: 68001 | C94: =+VLOOKUP(B94,'[1]DIVIPOLA MPIO'!$E$1:$G$65536,3,0) -> BUCARAMANGA | D94: 68 | E94: =+VLOOKUP(D94,'[1]DIVIPOLA MPIO'!$B$1:$C$65536,2,0) -> SANTANDER | F94: =+IFERROR(VLOOKUP(G94,'[2]3.1 vs 4 (2020)'!$J:$O,6,0),"OTRAS") -> ACTIVIDADES PROFESIONALES, CIENTÍFICAS Y TÉCNICAS | G94: 7420 | H94: =+IFERROR(VLOOKUP(G94,'[2]3.1 vs 4 (2020)'!$J:$O,3,0),"Otras") -> M | I94: Natural | J94: MICRO | K94: 2870000 | L94: 2570000 | M94: 300000 | N94: 0
B95: 68679 | C95: =+VLOOKUP(B95,'[1]DIVIPOLA MPIO'!$E$1:$G$65536,3,0) -> SAN GIL | D95: 68 | E95: =+VLOOKUP(D95,'[1]DIVIPOLA MPIO'!$B$1:$C$65536,2,0) -> SANTANDER | F95: =+IFERROR(VLOOKUP(G95,'[2]3.1 vs 4 (2020)'!$J:$O,6,0),"OTRAS") -> COMERCIO AL POR MAYOR Y AL POR MENOR; REPARACIÓN DE VEHÍCULOS AUTOMOTORES Y MOTOCICLETAS | G95: 4711 | H95: =+IFERROR(VLOOKUP(G95,'[2]3.1 vs 4 (2020)'!$J:$O,3,0),"Otras") -> G | I95: Natural | J95: PEQUEÑA | K95: 22200000 | L95: 21000000 | M95: 300000 | N95: 900000
B96: 68861 | C96: =+VLOOKUP(B96,'[1]DIVIPOLA MPIO'!$E$1:$G$65536,3,0) -> VÉLEZ | D96: 68 | E96: =+VLOOKUP(D96,'[1]DIVIPOLA MPIO'!$B$1:$C$65536,2,0) -> SANTANDER | F96: =+IFERROR(VLOOKUP(G96,'[2]3.1 vs 4 (2020)'!$J:$O,6,0),"OTRAS") -> INDUSTRIAS MANUFACTURERAS | G96: 1089 | H96: =+IFERROR(VLOOKUP(G96,'[2]3.1 vs 4 (2020)'!$J:$O,3,0),"Otras") -> C | I96: Natural | J96: MICRO | K96: 954262 | L96: 954262 | M96: 0 | N96: 0
B97: 68001 | C97: =+VLOOKUP(B97,'[1]DIVIPOLA MPIO'!$E$1:$G$65536,3,0) -> BUCARAMANGA | D97: 68 | E97: =+VLOOKUP(D97,'[1]DIVIPOLA MPIO'!$B$1:$C$65536,2,0) -> SANTANDER | F97: =+IFERROR(VLOOKUP(G97,'[2]3.1 vs 4 (2020)'!$J:$O,6,0),"OTRAS") -> ACTIVIDADES FINANCIERAS Y DE SEGUROS | G97: 6621 | H97: =+IFERROR(VLOOKUP(G97,'[2]3.1 vs 4 (2020)'!$J:$O,3,0),"Otras") -> K | I97: Natural | J97: MICRO | K97: 227131 | L97: 227131 | M97: 0 | N97: 0
B98: 68001 | C98: =+VLOOKUP(B98,'[1]DIVIPOLA MPIO'!$E$1:$G$65536,3,0) -> BUCARAMANGA | D98: 68 | E98: =+VLOOKUP(D98,'[1]DIVIPOLA MPIO'!$B$1:$C$65536,2,0) -> SANTANDER | F98: =+IFERROR(VLOOKUP(G98,'[2]3.1 vs 4 (2020)'!$J:$O,6,0),"OTRAS") -> COMERCIO AL POR MAYOR Y AL POR MENOR; REPARACIÓN DE VEHÍCULOS AUTOMOTORES Y MOTOCICLETAS | G98: 4711 | H98: =+IFERROR(VLOOKUP(G98,'[2]3.1 vs 4 (2020)'!$J:$O,3,0),"Otras") -> G | I98: Natural | J98: MEDIANA | K98: 1000000 | L98: 1000000 | M98: 0 | N98: 0
B99: 11001 | C99: =+VLOOKUP(B99,'[1]DIVIPOLA MPIO'!$E$1:$G$65536,3,0) -> BOGOTÁ, D.C. | D99: 11 | E99: =+VLOOKUP(D99,'[1]DIVIPOLA MPIO'!$B$1:$C$65536,2,0) -> BOGOTÁ, D.C. | F99: =+IFERROR(VLOOKUP(G99,'[2]3.1 vs 4 (2020)'!$J:$O,6,0),"OTRAS") -> ACTIVIDADES DE SERVICIOS ADMINISTRATIVOS Y DE APOYO | G99: 8121 | H99: =+IFERROR(VLOOKUP(G99,'[2]3.1 vs 4 (2020)'!$J:$O,3,0),"Otras") -> N | I99: Natural | J99: MICRO | K99: 400000 | L99: 0 | M99: 100000 | N99: 300000
B100: 41001 | C100: =+VLOOKUP(B100,'[1]DIVIPOLA MPIO'!$E$1:$G$65536,3,0) -> NEIVA | D100: 41 | E100: =+VLOOKUP(D100,'[1]DIVIPOLA MPIO'!$B$1:$C$65536,2,0) -> HUILA | F100: =+IFERROR(VLOOKUP(G100,'[2]3.1 vs 4 (2020)'!$J:$O,6,0),"OTRAS") -> ALOJAMIENTO Y SERVICIOS DE COMIDA | G100: 5511 | H100: =+IFERROR(VLOOKUP(G100,'[2]3.1 vs 4 (2020)'!$J:$O,3,0),"Otras") -> I | I100: Natural | J100: MICRO | K100: 750000 | L100: 750000 | M100: 0 | N100: 0
B101: 73001 | C101: =+VLOOKUP(B101,'[1]DIVIPOLA MPIO'!$E$1:$G$65536,3,0) -> IBAGUÉ | D101: 73 | E101: =+VLOOKUP(D101,'[1]DIVIPOLA MPIO'!$B$1:$C$65536,2,0) -> TOLIMA | F101: =+IFERROR(VLOOKUP(G101,'[2]3.1 vs 4 (2020)'!$J:$O,6,0),"OTRAS") -> COMERCIO AL POR MAYOR Y AL POR MENOR; REPARACIÓN DE VEHÍCULOS AUTOMOTORES Y MOTOCICLETAS | G101: 4773 | H101: =+IFERROR(VLOOKUP(G101,'[2]3.1 vs 4 (2020)'!$J:$O,3,0),"Otras") -> G | I101: Natural | J101: MICRO | K101: 550000 | L101: 0 | M101: 100000 | N101: 450000
B102: 76001 | C102: =+VLOOKUP(B102,'[1]DIVIPOLA MPIO'!$E$1:$G$65536,3,0) -> CALI | D102: 76 | E102: =+VLOOKUP(D102,'[1]DIVIPOLA MPIO'!$B$1:$C$65536,2,0) -> VALLE DEL CAUCA | F102: =+IFERROR(VLOOKUP(G102,'[2]3.1 vs 4 (2020)'!$J:$O,6,0),"OTRAS") -> INDUSTRIAS MANUFACTURERAS | G102: 1811 | H102: =+IFERROR(VLOOKUP(G102,'[2]3.1 vs 4 (2020)'!$J:$O,3,0),"Otras") -> C | I102: Natural | J102: MICRO | K102: 750000 | L102: 750000 | M102: 0 | N102: 0
B103: 73001 | C103: =+VLOOKUP(B103,'[1]DIVIPOLA MPIO'!$E$1:$G$65536,3,0) -> IBAGUÉ | D103: 73 | E103: =+VLOOKUP(D103,'[1]DIVIPOLA MPIO'!$B$1:$C$65536,2,0) -> TOLIMA | F103: =+IFERROR(VLOOKUP(G103,'[2]3.1 vs 4 (2020)'!$J:$O,6,0),"OTRAS") -> COMERCIO AL POR MAYOR Y AL POR MENOR; REPARACIÓN DE VEHÍCULOS AUTOMOTORES Y MOTOCICLETAS | G103: 4752 | H103: =+IFERROR(VLOOKUP(G103,'[2]3.1 vs 4 (2020)'!$J:$O,3,0),"Otras") -> G | I103: Natural | J103: MICRO | K103: 2635655 | L103: 2635655 | M103: 0 | N103: 0
B104: 50001 | C104: =+VLOOKUP(B104,'[1]DIVIPOLA MPIO'!$E$1:$G$65536,3,0) -> VILLAVICENCIO | D104: 50 | E104: =+VLOOKUP(D104,'[1]DIVIPOLA MPIO'!$B$1:$C$65536,2,0) -> META | F104: =+IFERROR(VLOOKUP(G104,'[2]3.1 vs 4 (2020)'!$J:$O,6,0),"OTRAS") -> ALOJAMIENTO Y SERVICIOS DE COMIDA | G104: 5511 | H104: =+IFERROR(VLOOKUP(G104,'[2]3.1 vs 4 (2020)'!$J:$O,3,0),"Otras") -> I | I104: Natural | J104: PEQUEÑA | K104: 4253949 | L104: 3681393 | M104: 0 | N104: 572556
B105: 76834 | C105: =+VLOOKUP(B105,'[1]DIVIPOLA MPIO'!$E$1:$G$65536,3,0) -> TULUÁ | D105: 76 | E105: =+VLOOKUP(D105,'[1]DIVIPOLA MPIO'!$B$1:$C$65536,2,0) -> VALLE DEL CAUCA | F105: =+IFERROR(VLOOKUP(G105,'[2]3.1 vs 4 (2020)'!$J:$O,6,0),"OTRAS") -> COMERCIO AL POR MAYOR Y AL POR MENOR; REPARACIÓN DE VEHÍCULOS AUTOMOTORES Y MOTOCICLETAS | G105: 4751 | H105: =+IFERROR(VLOOKUP(G105,'[2]3.1 vs 4 (2020)'!$J:$O,3,0),"Otras") -> G | I105: Natural | J105: PEQUEÑA | K105: 5590000 | L105: 4270000 | M105: 0 | N105: 1320000
B106: 76020 | C106: =+VLOOKUP(B106,'[1]DIVIPOLA MPIO'!$E$1:$G$65536,3,0) -> ALCALÁ | D106: 76 | E106: =+VLOOKUP(D106,'[1]DIVIPOLA MPIO'!$B$1:$C$65536,2,0) -> VALLE DEL CAUCA | F106: =+IFERROR(VLOOKUP(G106,'[2]3.1 vs 4 (2020)'!$J:$O,6,0),"OTRAS") -> COMERCIO AL POR MAYOR Y AL POR MENOR; REPARACIÓN DE VEHÍCULOS AUTOMOTORES Y MOTOCICLETAS | G106: 4752 | H106: =+IFERROR(VLOOKUP(G106,'[2]3.1 vs 4 (2020)'!$J:$O,3,0),"Otras") -> G | I106: Natural | J106: MICRO | K106: 2000000 | L106: 1000000 | M106: 400000 | N106: 600000
B107: 76001 | C107: =+VLOOKUP(B107,'[1]DIVIPOLA MPIO'!$E$1:$G$65536,3,0) -> CALI | D107: 76 | E107: =+VLOOKUP(D107,'[1]DIVIPOLA MPIO'!$B$1:$C$65536,2,0) -> VALLE DEL CAUCA | F107: =+IFERROR(VLOOKUP(G107,'[2]3.1 vs 4 (2020)'!$J:$O,6,0),"OTRAS") -> ALOJAMIENTO Y SERVICIOS DE COMIDA | G107: 5611 | H107: =+IFERROR(VLOOKUP(G107,'[2]3.1 vs 4 (2020)'!$J:$O,3,0),"Otras") -> I | I107: Natural | J107: MICRO | K107: 6370000 | L107: 3250000 | M107: 900000 | N107: 2220000
B108: 76122 | C108: =+VLOOKUP(B108,'[1]DIVIPOLA MPIO'!$E$1:$G$65536,3,0) -> CAICEDONIA | D108: 76 | E108: =+VLOOKUP(D108,'[1]DIVIPOLA MPIO'!$B$1:$C$65536,2,0) -> VALLE DEL CAUCA | F108: =+IFERROR(VLOOKUP(G108,'[2]3.1 vs 4 (2020)'!$J:$O,6,0),"OTRAS") -> ACTIVIDADES PROFESIONALES, CIENTÍFICAS Y TÉCNICAS | G108: 6920 | H108: =+IFERROR(VLOOKUP(G108,'[2]3.1 vs 4 (2020)'!$J:$O,3,0),"Otras") -> M | I108: Natural | J108: MICRO | K108: 250000 | L108: 250000 | M108: 0 | N108: 0
B109: 76400 | C109: =+VLOOKUP(B109,'[1]DIVIPOLA MPIO'!$E$1:$G$65536,3,0) -> LA UNIÓN | D109: 76 | E109: =+VLOOKUP(D109,'[1]DIVIPOLA MPIO'!$B$1:$C$65536,2,0) -> VALLE DEL CAUCA | F109: =+IFERROR(VLOOKUP(G109,'[2]3.1 vs 4 (2020)'!$J:$O,6,0),"OTRAS") -> AGRICULTURA, GANADERÍA, CAZA, SILVICULTURA Y PESCA | G109: 130 | H109: =+IFERROR(VLOOKUP(G109,'[2]3.1 vs 4 (2020)'!$J:$O,3,0),"Otras") -> A | I109: Natural | J109: PEQUEÑA | K109: 6879834 | L109: 6679834 | M109: 200000 | N109: 0
B110: 76001 | C110: =+VLOOKUP(B110,'[1]DIVIPOLA MPIO'!$E$1:$G$65536,3,0) -> CALI | D110: 76 | E110: =+VLOOKUP(D110,'[1]DIVIPOLA MPIO'!$B$1:$C$65536,2,0) -> VALLE DEL CAUCA | F110: =+IFERROR(VLOOKUP(G110,'[2]3.1 vs 4 (2020)'!$J:$O,6,0),"OTRAS") -> COMERCIO AL POR MAYOR Y AL POR MENOR; REPARACIÓN DE VEHÍCULOS AUTOMOTORES Y MOTOCICLETAS | G110: 4741 | H110: =+IFERROR(VLOOKUP(G110,'[2]3.1 vs 4 (2020)'!$J:$O,3,0),"Otras") -> G | I110: Natural | J110: MICRO | K110: 290852 | L110: 0 | M110: 290852 | N110: 0
B111: 76001 | C111: =+VLOOKUP(B111,'[1]DIVIPOLA MPIO'!$E$1:$G$65536,3,0) -> CALI | D111: 76 | E111: =+VLOOKUP(D111,'[1]DIVIPOLA MPIO'!$B$1:$C$65536,2,0) -> VALLE DEL CAUCA | F111: =+IFERROR(VLOOKUP(G111,'[2]3.1 vs 4 (2020)'!$J:$O,6,0),"OTRAS") -> INDUSTRIAS MANUFACTURERAS | G111: 1081 | H111: =+IFERROR(VLOOKUP(G111,'[2]3.1 vs 4 (2020)'!$J:$O,3,0),"Otras") -> C | I111: Natural | J111: MICRO | K111: 500000 | L111: 0 | M111: 200000 | N111: 300000
B112: 76122 | C112: =+VLOOKUP(B112,'[1]DIVIPOLA MPIO'!$E$1:$G$65536,3,0) -> CAICEDONIA | D112: 76 | E112: =+VLOOKUP(D112,'[1]DIVIPOLA MPIO'!$B$1:$C$65536,2,0) -> VALLE DEL CAUCA | F112: =+IFERROR(VLOOKUP(G112,'[2]3.1 vs 4 (2020)'!$J:$O,6,0),"OTRAS") -> COMERCIO AL POR MAYOR Y AL POR MENOR; REPARACIÓN DE VEHÍCULOS AUTOMOTORES Y MOTOCICLETAS | G112: 4669 | H112: =+IFERROR(VLOOKUP(G112,'[2]3.1 vs 4 (2020)'!$J:$O,3,0),"Otras") -> G | I112: Natural | J112: MEDIANA | K112: 227131 | L112: 227131 | M112: 0 | N112: 0
B113: 76001 | C113: =+VLOOKUP(B113,'[1]DIVIPOLA MPIO'!$E$1:$G$65536,3,0) -> CALI | D113: 76 | E113: =+VLOOKUP(D113,'[1]DIVIPOLA MPIO'!$B$1:$C$65536,2,0) -> VALLE DEL CAUCA | F113: =+IFERROR(VLOOKUP(G113,'[2]3.1 vs 4 (2020)'!$J:$O,6,0),"OTRAS") -> INDUSTRIAS MANUFACTURERAS | G113: 1410 | H113: =+IFERROR(VLOOKUP(G113,'[2]3.1 vs 4 (2020)'!$J:$O,3,0),"Otras") -> C | I113: Natural | J113: PEQUEÑA | K113: 227131 | L113: 227131 | M113: 0 | N113: 0
B114: 76834 | C114: =+VLOOKUP(B114,'[1]DIVIPOLA MPIO'!$E$1:$G$65536,3,0) -> TULUÁ | D114: 76 | E114: =+VLOOKUP(D114,'[1]DIVIPOLA MPIO'!$B$1:$C$65536,2,0) -> VALLE DEL CAUCA | F114: =+IFERROR(VLOOKUP(G114,'[2]3.1 vs 4 (2020)'!$J:$O,6,0),"OTRAS") -> COMERCIO AL POR MAYOR Y AL POR MENOR; REPARACIÓN DE VEHÍCULOS AUTOMOTORES Y MOTOCICLETAS | G114: 4774 | H114: =+IFERROR(VLOOKUP(G114,'[2]3.1 vs 4 (2020)'!$J:$O,3,0),"Otras") -> G | I114: Natural | J114: MICRO | K114: 14341368 | L114: 11451144 | M114: 0 | N114: 2890224
B115: 76111 | C115: =+VLOOKUP(B115,'[1]DIVIPOLA MPIO'!$E$1:$G$65536,3,0) -> GUADALAJARA DE BUGA | D115: 76 | E115: =+VLOOKUP(D115,'[1]DIVIPOLA MPIO'!$B$1:$C$65536,2,0) -> VALLE DEL CAUCA | F115: =+IFERROR(VLOOKUP(G115,'[2]3.1 vs 4 (2020)'!$J:$O,6,0),"OTRAS") -> TRANSPORTE Y ALMACENAMIENTO | G115: 4923 | H115: =+IFERROR(VLOOKUP(G115,'[2]3.1 vs 4 (2020)'!$J:$O,3,0),"Otras") -> H | I115: Natural | J115: MICRO | K115: 90852 | L115: 0 | M115: 90852 | N115: 0
B116: 5088 | C116: =+VLOOKUP(B116,'[1]DIVIPOLA MPIO'!$E$1:$G$65536,3,0) -> BELLO | D116: 5 | E116: =+VLOOKUP(D116,'[1]DIVIPOLA MPIO'!$B$1:$C$65536,2,0) -> ANTIOQUIA | F116: =+IFERROR(VLOOKUP(G116,'[2]3.1 vs 4 (2020)'!$J:$O,6,0),"OTRAS") -> COMERCIO AL POR MAYOR Y AL POR MENOR; REPARACIÓN DE VEHÍCULOS AUTOMOTORES Y MOTOCICLETAS | G116: 4752 | H116: =+IFERROR(VLOOKUP(G116,'[2]3.1 vs 4 (2020)'!$J:$O,3,0),"Otras") -> G | I116: Natural | J116: MICRO | K116: 750000 | L116: 750000 | M116: 0 | N116: 0
B117: 41551 | C117: =+VLOOKUP(B117,'[1]DIVIPOLA MPIO'!$E$1:$G$65536,3,0) -> PITALITO | D117: 41 | E117: =+VLOOKUP(D117,'[1]DIVIPOLA MPIO'!$B$1:$C$65536,2,0) -> HUILA | F117: =+IFERROR(VLOOKUP(G117,'[2]3.1 vs 4 (2020)'!$J:$O,6,0),"OTRAS") -> COMERCIO AL POR MAYOR Y AL POR MENOR; REPARACIÓN DE VEHÍCULOS AUTOMOTORES Y MOTOCICLETAS | G117: 4711 | H117: =+IFERROR(VLOOKUP(G117,'[2]3.1 vs 4 (2020)'!$J:$O,3,0),"Otras") -> G | I117: Natural | J117: MEDIANA | K117: 227131 | L117: 227131 | M117: 0 | N117: 0
B118: 11001 | C118: =+VLOOKUP(B118,'[1]DIVIPOLA MPIO'!$E$1:$G$65536,3,0) -> BOGOTÁ, D.C. | D118: 11 | E118: =+VLOOKUP(D118,'[1]DIVIPOLA MPIO'!$B$1:$C$65536,2,0) -> BOGOTÁ, D.C. | F118: =+IFERROR(VLOOKUP(G118,'[2]3.1 vs 4 (2020)'!$J:$O,6,0),"OTRAS") -> EDUCACIÓN | G118: 8521 | H118: =+IFERROR(VLOOKUP(G118,'[2]3.1 vs 4 (2020)'!$J:$O,3,0),"Otras") -> P | I118: Natural | J118: PEQUEÑA | K118: 908524 | L118: 908524 | M118: 0 | N118: 0
B119: 11001 | C119: =+VLOOKUP(B119,'[1]DIVIPOLA MPIO'!$E$1:$G$65536,3,0) -> BOGOTÁ, D.C. | D119: 11 | E119: =+VLOOKUP(D119,'[1]DIVIPOLA MPIO'!$B$1:$C$65536,2,0) -> BOGOTÁ, D.C. | F119: =+IFERROR(VLOOKUP(G119,'[2]3.1 vs 4 (2020)'!$J:$O,6,0),"OTRAS") -> ALOJAMIENTO Y SERVICIOS DE COMIDA | G119: 5611 | H119: =+IFERROR(VLOOKUP(G119,'[2]3.1 vs 4 (2020)'!$J:$O,3,0),"Otras") -> I | I119: Natural | J119: MICRO | K119: 5704262 | L119: 5704262 | M119: 0 | N119: 0
B120: 11001 | C120: =+VLOOKUP(B120,'[1]DIVIPOLA MPIO'!$E$1:$G$65536,3,0) -> BOGOTÁ, D.C. | D120: 11 | E120: =+VLOOKUP(D120,'[1]DIVIPOLA MPIO'!$B$1:$C$65536,2,0) -> BOGOTÁ, D.C. | F120: =+IFERROR(VLOOKUP(G120,'[2]3.1 vs 4 (2020)'!$J:$O,6,0),"OTRAS") -> CONSTRUCCIÓN | G120: 4210 | H120: =+IFERROR(VLOOKUP(G120,'[2]3.1 vs 4 (2020)'!$J:$O,3,0),"Otras") -> F | I120: Natural | J120: PEQUEÑA | K120: 12067048 | L120: 10067048 | M120: 500000 | N120: 1500000
B121: 5631 | C121: =+VLOOKUP(B121,'[1]DIVIPOLA MPIO'!$E$1:$G$65536,3,0) -> SABANETA | D121: 5 | E121: =+VLOOKUP(D121,'[1]DIVIPOLA MPIO'!$B$1:$C$65536,2,0) -> ANTIOQUIA | F121: =+IFERROR(VLOOKUP(G121,'[2]3.1 vs 4 (2020)'!$J:$O,6,0),"OTRAS") -> COMERCIO AL POR MAYOR Y AL POR MENOR; REPARACIÓN DE VEHÍCULOS AUTOMOTORES Y MOTOCICLETAS | G121: 4771 | H121: =+IFERROR(VLOOKUP(G121,'[2]3.1 vs 4 (2020)'!$J:$O,3,0),"Otras") -> G | I121: Natural | J121: MICRO | K121: 3448524 | L121: 3448524 | M121: 0 | N121: 0
B122: 18001 | C122: =+VLOOKUP(B122,'[1]DIVIPOLA MPIO'!$E$1:$G$65536,3,0) -> FLORENCIA | D122: 18 | E122: =+VLOOKUP(D122,'[1]DIVIPOLA MPIO'!$B$1:$C$65536,2,0) -> CAQUETÁ | F122: =+IFERROR(VLOOKUP(G122,'[2]3.1 vs 4 (2020)'!$J:$O,6,0),"OTRAS") -> COMERCIO AL POR MAYOR Y AL POR MENOR; REPARACIÓN DE VEHÍCULOS AUTOMOTORES Y MOTOCICLETAS | G122: 4643 | H122: =+IFERROR(VLOOKUP(G122,'[2]3.1 vs 4 (2020)'!$J:$O,3,0),"Otras") -> G | I122: Natural | J122: MICRO | K122: 1953949 | L122: 1681393 | M122: 0 | N122: 272556
B123: 18001 | C123: =+VLOOKUP(B123,'[1]DIVIPOLA MPIO'!$E$1:$G$65536,3,0) -> FLORENCIA | D123: 18 | E123: =+VLOOKUP(D123,'[1]DIVIPOLA MPIO'!$B$1:$C$65536,2,0) -> CAQUETÁ | F123: =+IFERROR(VLOOKUP(G123,'[2]3.1 vs 4 (2020)'!$J:$O,6,0),"OTRAS") -> ACTIVIDADES DE SERVICIOS ADMINISTRATIVOS Y DE APOYO | G123: 8020 | H123: =+IFERROR(VLOOKUP(G123,'[2]3.1 vs 4 (2020)'!$J:$O,3,0),"Otras") -> N | I123: Natural | J123: MICRO | K123: 454262 | L123: 454262 | M123: 0 | N123: 0
B124: 18001 | C124: =+VLOOKUP(B124,'[1]DIVIPOLA MPIO'!$E$1:$G$65536,3,0) -> FLORENCIA | D124: 18 | E124: =+VLOOKUP(D124,'[1]DIVIPOLA MPIO'!$B$1:$C$65536,2,0) -> CAQUETÁ | F124: =+IFERROR(VLOOKUP(G124,'[2]3.1 vs 4 (2020)'!$J:$O,6,0),"OTRAS") -> COMERCIO AL POR MAYOR Y AL POR MENOR; REPARACIÓN DE VEHÍCULOS AUTOMOTORES Y MOTOCICLETAS | G124: 4741 | H124: =+IFERROR(VLOOKUP(G124,'[2]3.1 vs 4 (2020)'!$J:$O,3,0),"Otras") -> G | I124: Natural | J124: MICRO | K124: 2750000 | L124: 2750000 | M124: 0 | N124: 0
B125: 70001 | C125: =+VLOOKUP(B125,'[1]DIVIPOLA MPIO'!$E$1:$G$65536,3,0) -> SINCELEJO | D125: 70 | E125: =+VLOOKUP(D125,'[1]DIVIPOLA MPIO'!$B$1:$C$65536,2,0) -> SUCRE | F125: =+IFERROR(VLOOKUP(G125,'[2]3.1 vs 4 (2020)'!$J:$O,6,0),"OTRAS") -> COMERCIO AL POR MAYOR Y AL POR MENOR; REPARACIÓN DE VEHÍCULOS AUTOMOTORES Y MOTOCICLETAS | G125: 4530 | H125: =+IFERROR(VLOOKUP(G125,'[2]3.1 vs 4 (2020)'!$J:$O,3,0),"Otras") -> G | I125: Natural | J125: MICRO | K125: 250000 | L125: 250000 | M125: 0 | N125: 0
B126: 23001 | C126: =+VLOOKUP(B126,'[1]DIVIPOLA MPIO'!$E$1:$G$65536,3,0) -> MONTERÍA | D126: 23 | E126: =+VLOOKUP(D126,'[1]DIVIPOLA MPIO'!$B$1:$C$65536,2,0) -> CÓRDOBA | F126: =+IFERROR(VLOOKUP(G126,'[2]3.1 vs 4 (2020)'!$J:$O,6,0),"OTRAS") -> COMERCIO AL POR MAYOR Y AL POR MENOR; REPARACIÓN DE VEHÍCULOS AUTOMOTORES Y MOTOCICLETAS | G126: 4541 | H126: =+IFERROR(VLOOKUP(G126,'[2]3.1 vs 4 (2020)'!$J:$O,3,0),"Otras") -> G | I126: Natural | J126: MICRO | K126: 5962786 | L126: 5362786 | M126: 0 | N126: 600000
B127: 23001 | C127: =+VLOOKUP(B127,'[1]DIVIPOLA MPIO'!$E$1:$G$65536,3,0) -> MONTERÍA | D127: 23 | E127: =+VLOOKUP(D127,'[1]DIVIPOLA MPIO'!$B$1:$C$65536,2,0) -> CÓRDOBA | F127: =+IFERROR(VLOOKUP(G127,'[2]3.1 vs 4 (2020)'!$J:$O,6,0),"OTRAS") -> COMERCIO AL POR MAYOR Y AL POR MENOR; REPARACIÓN DE VEHÍCULOS AUTOMOTORES Y MOTOCICLETAS | G127: 4752 | H127: =+IFERROR(VLOOKUP(G127,'[2]3.1 vs 4 (2020)'!$J:$O,3,0),"Otras") -> G | I127: Natural | J127: PEQUEÑA | K127: 3050000 | L127: 2750000 | M127: 0 | N127: 300000
B128: 91001 | C128: =+VLOOKUP(B128,'[1]DIVIPOLA MPIO'!$E$1:$G$65536,3,0) -> LETICIA | D128: 91 | E128: =+VLOOKUP(D128,'[1]DIVIPOLA MPIO'!$B$1:$C$65536,2,0) -> AMAZONAS | F128: =+IFERROR(VLOOKUP(G128,'[2]3.1 vs 4 (2020)'!$J:$O,6,0),"OTRAS") -> ALOJAMIENTO Y SERVICIOS DE COMIDA | G128: 5613 | H128: =+IFERROR(VLOOKUP(G128,'[2]3.1 vs 4 (2020)'!$J:$O,3,0),"Otras") -> I | I128: Natural | J128: MICRO | K128: 590540 | L128: 454262 | M128: 0 | N128: 136278
B129: 15776 | C129: =+VLOOKUP(B129,'[1]DIVIPOLA MPIO'!$E$1:$G$65536,3,0) -> SUTAMARCHÁN | D129: 15 | E129: =+VLOOKUP(D129,'[1]DIVIPOLA MPIO'!$B$1:$C$65536,2,0) -> BOYACÁ | F129: =+IFERROR(VLOOKUP(G129,'[2]3.1 vs 4 (2020)'!$J:$O,6,0),"OTRAS") -> ALOJAMIENTO Y SERVICIOS DE COMIDA | G129: 5611 | H129: =+IFERROR(VLOOKUP(G129,'[2]3.1 vs 4 (2020)'!$J:$O,3,0),"Otras") -> I | I129: Natural | J129: PEQUEÑA | K129: 2708211 | L129: 2135655 | M129: 0 | N129: 572556
B130: 15001 | C130: =+VLOOKUP(B130,'[1]DIVIPOLA MPIO'!$E$1:$G$65536,3,0) -> TUNJA | D130: 15 | E130: =+VLOOKUP(D130,'[1]DIVIPOLA MPIO'!$B$1:$C$65536,2,0) -> BOYACÁ | F130: =+IFERROR(VLOOKUP(G130,'[2]3.1 vs 4 (2020)'!$J:$O,6,0),"OTRAS") -> ACTIVIDADES PROFESIONALES, CIENTÍFICAS Y TÉCNICAS | G130: 7310 | H130: =+IFERROR(VLOOKUP(G130,'[2]3.1 vs 4 (2020)'!$J:$O,3,0),"Otras") -> M | I130: Natural | J130: MICRO | K130: 704262 | L130: 704262 | M130: 0 | N130: 0
B131: 15001 | C131: =+VLOOKUP(B131,'[1]DIVIPOLA MPIO'!$E$1:$G$65536,3,0) -> TUNJA | D131: 15 | E131: =+VLOOKUP(D131,'[1]DIVIPOLA MPIO'!$B$1:$C$65536,2,0) -> BOYACÁ | F131: =+IFERROR(VLOOKUP(G131,'[2]3.1 vs 4 (2020)'!$J:$O,6,0),"OTRAS") -> ACTIVIDADES ARTÍSTICAS, DE ENTRETENIMIENTO Y RECREACIÓN | G131: 9311 | H131: =+IFERROR(VLOOKUP(G131,'[2]3.1 vs 4 (2020)'!$J:$O,3,0),"Otras") -> R | I131: Natural | J131: MICRO | K131: 6484406 | L131: 4225572 | M131: 800000 | N131: 1458834
B132: 15001 | C132: =+VLOOKUP(B132,'[1]DIVIPOLA MPIO'!$E$1:$G$65536,3,0) -> TUNJA | D132: 15 | E132: =+VLOOKUP(D132,'[1]DIVIPOLA MPIO'!$B$1:$C$65536,2,0) -> BOYACÁ | F132: =+IFERROR(VLOOKUP(G132,'[2]3.1 vs 4 (2020)'!$J:$O,6,0),"OTRAS") -> ACTIVIDADES PROFESIONALES, CIENTÍFICAS Y TÉCNICAS | G132: 6920 | H132: =+IFERROR(VLOOKUP(G132,'[2]3.1 vs 4 (2020)'!$J:$O,3,0),"Otras") -> M | I132: Natural | J132: MICRO | K132: 227131 | L132: 227131 | M132: 0 | N132: 0
B133: 15238 | C133: =+VLOOKUP(B133,'[1]DIVIPOLA MPIO'!$E$1:$G$65536,3,0) -> DUITAMA | D133: 15 | E133: =+VLOOKUP(D133,'[1]DIVIPOLA MPIO'!$B$1:$C$65536,2,0) -> BOYACÁ | F133: =+IFERROR(VLOOKUP(G133,'[2]3.1 vs 4 (2020)'!$J:$O,6,0),"OTRAS") -> TRANSPORTE Y ALMACENAMIENTO | G133: 4923 | H133: =+IFERROR(VLOOKUP(G133,'[2]3.1 vs 4 (2020)'!$J:$O,3,0),"Otras") -> H | I133: Natural | J133: MICRO | K133: 400000 | L133: 0 | M133: 400000 | N133: 0
B134: 15238 | C134: =+VLOOKUP(B134,'[1]DIVIPOLA MPIO'!$E$1:$G$65536,3,0) -> DUITAMA | D134: 15 | E134: =+VLOOKUP(D134,'[1]DIVIPOLA MPIO'!$B$1:$C$65536,2,0) -> BOYACÁ | F134: =+IFERROR(VLOOKUP(G134,'[2]3.1 vs 4 (2020)'!$J:$O,6,0),"OTRAS") -> COMERCIO AL POR MAYOR Y AL POR MENOR; REPARACIÓN DE VEHÍCULOS AUTOMOTORES Y MOTOCICLETAS | G134: 4732 | H134: =+IFERROR(VLOOKUP(G134,'[2]3.1 vs 4 (2020)'!$J:$O,3,0),"Otras") -> G | I134: Natural | J134: MICRO | K134: 250000 | L134: 250000 | M134: 0 | N134: 0
B135: 85139 | C135: =+VLOOKUP(B135,'[1]DIVIPOLA MPIO'!$E$1:$G$65536,3,0) -> MANÍ | D135: 85 | E135: =+VLOOKUP(D135,'[1]DIVIPOLA MPIO'!$B$1:$C$65536,2,0) -> CASANARE | F135: =+IFERROR(VLOOKUP(G135,'[2]3.1 vs 4 (2020)'!$J:$O,6,0),"OTRAS") -> COMERCIO AL POR MAYOR Y AL POR MENOR; REPARACIÓN DE VEHÍCULOS AUTOMOTORES Y MOTOCICLETAS | G135: 4731 | H135: =+IFERROR(VLOOKUP(G135,'[2]3.1 vs 4 (2020)'!$J:$O,3,0),"Otras") -> G | I135: Natural | J135: PEQUEÑA | K135: 1000000 | L135: 1000000 | M135: 0 | N135: 0
B136: 15238 | C136: =+VLOOKUP(B136,'[1]DIVIPOLA MPIO'!$E$1:$G$65536,3,0) -> DUITAMA | D136: 15 | E136: =+VLOOKUP(D136,'[1]DIVIPOLA MPIO'!$B$1:$C$65536,2,0) -> BOYACÁ | F136: =+IFERROR(VLOOKUP(G136,'[2]3.1 vs 4 (2020)'!$J:$O,6,0),"OTRAS") -> COMERCIO AL POR MAYOR Y AL POR MENOR; REPARACIÓN DE VEHÍCULOS AUTOMOTORES Y MOTOCICLETAS | G136: 4761 | H136: =+IFERROR(VLOOKUP(G136,'[2]3.1 vs 4 (2020)'!$J:$O,3,0),"Otras") -> G | I136: Natural | J136: MICRO | K136: 2900000 | L136: 2500000 | M136: 100000 | N136: 300000
B137: 15238 | C137: =+VLOOKUP(B137,'[1]DIVIPOLA MPIO'!$E$1:$G$65536,3,0) -> DUITAMA | D137: 15 | E137: =+VLOOKUP(D137,'[1]DIVIPOLA MPIO'!$B$1:$C$65536,2,0) -> BOYACÁ | F137: =+IFERROR(VLOOKUP(G137,'[2]3.1 vs 4 (2020)'!$J:$O,6,0),"OTRAS") -> INDUSTRIAS MANUFACTURERAS | G137: 1392 | H137: =+IFERROR(VLOOKUP(G137,'[2]3.1 vs 4 (2020)'!$J:$O,3,0),"Otras") -> C | I137: Natural | J137: MICRO | K137: 2714000 | L137: 1250000 | M137: 1464000 | N137: 0
B138: 15238 | C138: =+VLOOKUP(B138,'[1]DIVIPOLA MPIO'!$E$1:$G$65536,3,0) -> DUITAMA | D138: 15 | E138: =+VLOOKUP(D138,'[1]DIVIPOLA MPIO'!$B$1:$C$65536,2,0) -> BOYACÁ | F138: =+IFERROR(VLOOKUP(G138,'[2]3.1 vs 4 (2020)'!$J:$O,6,0),"OTRAS") -> COMERCIO AL POR MAYOR Y AL POR MENOR; REPARACIÓN DE VEHÍCULOS AUTOMOTORES Y MOTOCICLETAS | G138: 4771 | H138: =+IFERROR(VLOOKUP(G138,'[2]3.1 vs 4 (2020)'!$J:$O,3,0),"Otras") -> G | I138: Natural | J138: PEQUEÑA | K138: 1500000 | L138: 1500000 | M138: 0 | N138: 0
B139: 15759 | C139: =+VLOOKUP(B139,'[1]DIVIPOLA MPIO'!$E$1:$G$65536,3,0) -> SOGAMOSO | D139: 15 | E139: =+VLOOKUP(D139,'[1]DIVIPOLA MPIO'!$B$1:$C$65536,2,0) -> BOYACÁ | F139: =+IFERROR(VLOOKUP(G139,'[2]3.1 vs 4 (2020)'!$J:$O,6,0),"OTRAS") -> ALOJAMIENTO Y SERVICIOS DE COMIDA | G139: 5619 | H139: =+IFERROR(VLOOKUP(G139,'[2]3.1 vs 4 (2020)'!$J:$O,3,0),"Otras") -> I | I139: Natural | J139: MICRO | K139: 1362786 | L139: 1362786 | M139: 0 | N139: 0
B140: 11001 | C140: =+VLOOKUP(B140,'[1]DIVIPOLA MPIO'!$E$1:$G$65536,3,0) -> BOGOTÁ, D.C. | D140: 11 | E140: =+VLOOKUP(D140,'[1]DIVIPOLA MPIO'!$B$1:$C$65536,2,0) -> BOGOTÁ, D.C. | F140: =+IFERROR(VLOOKUP(G140,'[2]3.1 vs 4 (2020)'!$J:$O,6,0),"OTRAS") -> INDUSTRIAS MANUFACTURERAS | G140: 1081 | H140: =+IFERROR(VLOOKUP(G140,'[2]3.1 vs 4 (2020)'!$J:$O,3,0),"Otras") -> C | I140: Natural | J140: MICRO | K140: 272556 | L140: 0 | M140: 0 | N140: 272556
B141: 15238 | C141: =+VLOOKUP(B141,'[1]DIVIPOLA MPIO'!$E$1:$G$65536,3,0) -> DUITAMA | D141: 15 | E141: =+VLOOKUP(D141,'[1]DIVIPOLA MPIO'!$B$1:$C$65536,2,0) -> BOYACÁ | F141: =+IFERROR(VLOOKUP(G141,'[2]3.1 vs 4 (2020)'!$J:$O,6,0),"OTRAS") -> COMERCIO AL POR MAYOR Y AL POR MENOR; REPARACIÓN DE VEHÍCULOS AUTOMOTORES Y MOTOCICLETAS | G141: 4722 | H141: =+IFERROR(VLOOKUP(G141,'[2]3.1 vs 4 (2020)'!$J:$O,3,0),"Otras") -> G | I141: Natural | J141: PEQUEÑA | K141: 136278 | L141: 0 | M141: 0 | N141: 136278
B142: 15238 | C142: =+VLOOKUP(B142,'[1]DIVIPOLA MPIO'!$E$1:$G$65536,3,0) -> DUITAMA | D142: 15 | E142: =+VLOOKUP(D142,'[1]DIVIPOLA MPIO'!$B$1:$C$65536,2,0) -> BOYACÁ | F142: =+IFERROR(VLOOKUP(G142,'[2]3.1 vs 4 (2020)'!$J:$O,6,0),"OTRAS") -> COMERCIO AL POR MAYOR Y AL POR MENOR; REPARACIÓN DE VEHÍCULOS AUTOMOTORES Y MOTOCICLETAS | G142: 4530 | H142: =+IFERROR(VLOOKUP(G142,'[2]3.1 vs 4 (2020)'!$J:$O,3,0),"Otras") -> G | I142: Natural | J142: MICRO | K142: 150000 | L142: 0 | M142: 0 | N142: 150000
B143: 11001 | C143: =+VLOOKUP(B143,'[1]DIVIPOLA MPIO'!$E$1:$G$65536,3,0) -> BOGOTÁ, D.C. | D143: 11 | E143: =+VLOOKUP(D143,'[1]DIVIPOLA MPIO'!$B$1:$C$65536,2,0) -> BOGOTÁ, D.C. | F143: =+IFERROR(VLOOKUP(G143,'[2]3.1 vs 4 (2020)'!$J:$O,6,0),"OTRAS") -> COMERCIO AL POR MAYOR Y AL POR MENOR; REPARACIÓN DE VEHÍCULOS AUTOMOTORES Y MOTOCICLETAS | G143: 4752 | H143: =+IFERROR(VLOOKUP(G143,'[2]3.1 vs 4 (2020)'!$J:$O,3,0),"Otras") -> G | I143: Natural | J143: MICRO | K143: 454262 | L143: 454262 | M143: 0 | N143: 0
B144: 15176 | C144: =+VLOOKUP(B144,'[1]DIVIPOLA MPIO'!$E$1:$G$65536,3,0) -> CHIQUINQUIRÁ | D144: 15 | E144: =+VLOOKUP(D144,'[1]DIVIPOLA MPIO'!$B$1:$C$65536,2,0) -> BOYACÁ | F144: =+IFERROR(VLOOKUP(G144,'[2]3.1 vs 4 (2020)'!$J:$O,6,0),"OTRAS") -> CONSTRUCCIÓN | G144: 4112 | H144: =+IFERROR(VLOOKUP(G144,'[2]3.1 vs 4 (2020)'!$J:$O,3,0),"Otras") -> F | I144: Natural | J144: MICRO | K144: 3839602 | L144: 2612786 | M144: 1226816 | N144: 0
B145: 8001 | C145: =+VLOOKUP(B145,'[1]DIVIPOLA MPIO'!$E$1:$G$65536,3,0) -> BARRANQUILLA | D145: 8 | E145: =+VLOOKUP(D145,'[1]DIVIPOLA MPIO'!$B$1:$C$65536,2,0) -> ATLÁNTICO | F145: =+IFERROR(VLOOKUP(G145,'[2]3.1 vs 4 (2020)'!$J:$O,6,0),"OTRAS") -> INDUSTRIAS MANUFACTURERAS | G145: 1081 | H145: =+IFERROR(VLOOKUP(G145,'[2]3.1 vs 4 (2020)'!$J:$O,3,0),"Otras") -> C | I145: Natural | J145: PEQUEÑA | K145: 227131 | L145: 227131 | M145: 0 | N145: 0
B146: 47001 | C146: =+VLOOKUP(B146,'[1]DIVIPOLA MPIO'!$E$1:$G$65536,3,0) -> SANTA MARTA | D146: 47 | E146: =+VLOOKUP(D146,'[1]DIVIPOLA MPIO'!$B$1:$C$65536,2,0) -> MAGDALENA | F146: =+IFERROR(VLOOKUP(G146,'[2]3.1 vs 4 (2020)'!$J:$O,6,0),"OTRAS") -> COMERCIO AL POR MAYOR Y AL POR MENOR; REPARACIÓN DE VEHÍCULOS AUTOMOTORES Y MOTOCICLETAS | G146: 4773 | H146: =+IFERROR(VLOOKUP(G146,'[2]3.1 vs 4 (2020)'!$J:$O,3,0),"Otras") -> G | I146: Natural | J146: MICRO | K146: 1750000 | L146: 1750000 | M146: 0 | N146: 0
B147: 63001 | C147: =+VLOOKUP(B147,'[1]DIVIPOLA MPIO'!$E$1:$G$65536,3,0) -> ARMENIA | D147: 63 | E147: =+VLOOKUP(D147,'[1]DIVIPOLA MPIO'!$B$1:$C$65536,2,0) -> QUINDÍO | F147: =+IFERROR(VLOOKUP(G147,'[2]3.1 vs 4 (2020)'!$J:$O,6,0),"OTRAS") -> CONSTRUCCIÓN | G147: 4330 | H147: =+IFERROR(VLOOKUP(G147,'[2]3.1 vs 4 (2020)'!$J:$O,3,0),"Otras") -> F | I147: Natural | J147: PEQUEÑA | K147: 1408209 | L147: 681393 | M147: 726816 | N147: 0
B148: 63001 | C148: =+VLOOKUP(B148,'[1]DIVIPOLA MPIO'!$E$1:$G$65536,3,0) -> ARMENIA | D148: 63 | E148: =+VLOOKUP(D148,'[1]DIVIPOLA MPIO'!$B$1:$C$65536,2,0) -> QUINDÍO | F148: =+IFERROR(VLOOKUP(G148,'[2]3.1 vs 4 (2020)'!$J:$O,6,0),"OTRAS") -> CONSTRUCCIÓN | G148: 4111 | H148: =+IFERROR(VLOOKUP(G148,'[2]3.1 vs 4 (2020)'!$J:$O,3,0),"Otras") -> F | I148: Natural | J148: MICRO | K148: 1044801 | L148: 681393 | M148: 363408 | N148: 0
B149: 76834 | C149: =+VLOOKUP(B149,'[1]DIVIPOLA MPIO'!$E$1:$G$65536,3,0) -> TULUÁ | D149: 76 | E149: =+VLOOKUP(D149,'[1]DIVIPOLA MPIO'!$B$1:$C$65536,2,0) -> VALLE DEL CAUCA | F149: =+IFERROR(VLOOKUP(G149,'[2]3.1 vs 4 (2020)'!$J:$O,6,0),"OTRAS") -> COMERCIO AL POR MAYOR Y AL POR MENOR; REPARACIÓN DE VEHÍCULOS AUTOMOTORES Y MOTOCICLETAS | G149: 4530 | H149: =+IFERROR(VLOOKUP(G149,'[2]3.1 vs 4 (2020)'!$J:$O,3,0),"Otras") -> G | I149: Natural | J149: MICRO | K149: 227131 | L149: 227131 | M149: 0 | N149: 0
B150: 19290 | C150: =+VLOOKUP(B150,'[1]DIVIPOLA MPIO'!$E$1:$G$65536,3,0) -> FLORENCIA | D150: 19 | E150: =+VLOOKUP(D150,'[1]DIVIPOLA MPIO'!$B$1:$C$65536,2,0) -> CAUCA | F150: =+IFERROR(VLOOKUP(G150,'[2]3.1 vs 4 (2020)'!$J:$O,6,0),"OTRAS") -> COMERCIO AL POR MAYOR Y AL POR MENOR; REPARACIÓN DE VEHÍCULOS AUTOMOTORES Y MOTOCICLETAS | G150: 4759 | H150: =+IFERROR(VLOOKUP(G150,'[2]3.1 vs 4 (2020)'!$J:$O,3,0),"Otras") -> G | I150: Natural | J150: MICRO | K150: 3548000 | L150: 1580000 | M150: 0 | N150: 1968000
B151: 5266 | C151: =+VLOOKUP(B151,'[1]DIVIPOLA MPIO'!$E$1:$G$65536,3,0) -> ENVIGADO | D151: 5 | E151: =+VLOOKUP(D151,'[1]DIVIPOLA MPIO'!$B$1:$C$65536,2,0) -> ANTIOQUIA | F151: =+IFERROR(VLOOKUP(G151,'[2]3.1 vs 4 (2020)'!$J:$O,6,0),"OTRAS") -> ACTIVIDADES PROFESIONALES, CIENTÍFICAS Y TÉCNICAS | G151: 7111 | H151: =+IFERROR(VLOOKUP(G151,'[2]3.1 vs 4 (2020)'!$J:$O,3,0),"Otras") -> M | I151: Natural | J151: MICRO | K151: 2776195 | L151: 2339917 | M151: 0 | N151: 436278
B152: 73001 | C152: =+VLOOKUP(B152,'[1]DIVIPOLA MPIO'!$E$1:$G$65536,3,0) -> IBAGUÉ | D152: 73 | E152: =+VLOOKUP(D152,'[1]DIVIPOLA MPIO'!$B$1:$C$65536,2,0) -> TOLIMA | F152: =+IFERROR(VLOOKUP(G152,'[2]3.1 vs 4 (2020)'!$J:$O,6,0),"OTRAS") -> COMERCIO AL POR MAYOR Y AL POR MENOR; REPARACIÓN DE VEHÍCULOS AUTOMOTORES Y MOTOCICLETAS | G152: 4752 | H152: =+IFERROR(VLOOKUP(G152,'[2]3.1 vs 4 (2020)'!$J:$O,3,0),"Otras") -> G | I152: Natural | J152: PEQUEÑA | K152: 29506000 | L152: 25880000 | M152: 464000 | N152: 3162000
B153: 63001 | C153: =+VLOOKUP(B153,'[1]DIVIPOLA MPIO'!$E$1:$G$65536,3,0) -> ARMENIA | D153: 63 | E153: =+VLOOKUP(D153,'[1]DIVIPOLA MPIO'!$B$1:$C$65536,2,0) -> QUINDÍO | F153: =+IFERROR(VLOOKUP(G153,'[2]3.1 vs 4 (2020)'!$J:$O,6,0),"OTRAS") -> CONSTRUCCIÓN | G153: 4210 | H153: =+IFERROR(VLOOKUP(G153,'[2]3.1 vs 4 (2020)'!$J:$O,3,0),"Otras") -> F | I153: Natural | J153: MICRO | K153: 900000 | L153: 750000 | M153: 0 | N153: 150000
B154: 25899 | C154: =+VLOOKUP(B154,'[1]DIVIPOLA MPIO'!$E$1:$G$65536,3,0) -> ZIPAQUIRÁ | D154: 25 | E154: =+VLOOKUP(D154,'[1]DIVIPOLA MPIO'!$B$1:$C$65536,2,0) -> CUNDINAMARCA | F154: =+IFERROR(VLOOKUP(G154,'[2]3.1 vs 4 (2020)'!$J:$O,6,0),"OTRAS") -> ALOJAMIENTO Y SERVICIOS DE COMIDA | G154: 5511 | H154: =+IFERROR(VLOOKUP(G154,'[2]3.1 vs 4 (2020)'!$J:$O,3,0),"Otras") -> I | I154: Natural | J154: MICRO | K154: 9516262 | L154: 8114262 | M154: 532000 | N154: 870000
B155: 63001 | C155: =+VLOOKUP(B155,'[1]DIVIPOLA MPIO'!$E$1:$G$65536,3,0) -> ARMENIA | D155: 63 | E155: =+VLOOKUP(D155,'[1]DIVIPOLA MPIO'!$B$1:$C$65536,2,0) -> QUINDÍO | F155: =+IFERROR(VLOOKUP(G155,'[2]3.1 vs 4 (2020)'!$J:$O,6,0),"OTRAS") -> COMERCIO AL POR MAYOR Y AL POR MENOR; REPARACIÓN DE VEHÍCULOS AUTOMOTORES Y MOTOCICLETAS | G155: 4661 | H155: =+IFERROR(VLOOKUP(G155,'[2]3.1 vs 4 (2020)'!$J:$O,3,0),"Otras") -> G | I155: Natural | J155: PEQUEÑA | K155: 454262 | L155: 454262 | M155: 0 | N155: 0
B156: 20001 | C156: =+VLOOKUP(B156,'[1]DIVIPOLA MPIO'!$E$1:$G$65536,3,0) -> VALLEDUPAR | D156: 20 | E156: =+VLOOKUP(D156,'[1]DIVIPOLA MPIO'!$B$1:$C$65536,2,0) -> CESAR | F156: =+IFERROR(VLOOKUP(G156,'[2]3.1 vs 4 (2020)'!$J:$O,6,0),"OTRAS") -> INDUSTRIAS MANUFACTURERAS | G156: 1410 | H156: =+IFERROR(VLOOKUP(G156,'[2]3.1 vs 4 (2020)'!$J:$O,3,0),"Otras") -> C | I156: Natural | J156: PEQUEÑA | K156: 3500000 | L156: 1500000 | M156: 800000 | N156: 1200000
B157: 44001 | C157: =+VLOOKUP(B157,'[1]DIVIPOLA MPIO'!$E$1:$G$65536,3,0) -> RIOHACHA | D157: 44 | E157: =+VLOOKUP(D157,'[1]DIVIPOLA MPIO'!$B$1:$C$65536,2,0) -> LA GUAJIRA | F157: =+IFERROR(VLOOKUP(G157,'[2]3.1 vs 4 (2020)'!$J:$O,6,0),"OTRAS") -> COMERCIO AL POR MAYOR Y AL POR MENOR; REPARACIÓN DE VEHÍCULOS AUTOMOTORES Y MOTOCICLETAS | G157: 4530 | H157: =+IFERROR(VLOOKUP(G157,'[2]3.1 vs 4 (2020)'!$J:$O,3,0),"Otras") -> G | I157: Natural | J157: MICRO | K157: 500000 | L157: 500000 | M157: 0 | N157: 0
B158: 5318 | C158: =+VLOOKUP(B158,'[1]DIVIPOLA MPIO'!$E$1:$G$65536,3,0) -> GUARNE | D158: 5 | E158: =+VLOOKUP(D158,'[1]DIVIPOLA MPIO'!$B$1:$C$65536,2,0) -> ANTIOQUIA | F158: =+IFERROR(VLOOKUP(G158,'[2]3.1 vs 4 (2020)'!$J:$O,6,0),"OTRAS") -> INDUSTRIAS MANUFACTURERAS | G158: 2221 | H158: =+IFERROR(VLOOKUP(G158,'[2]3.1 vs 4 (2020)'!$J:$O,3,0),"Otras") -> C | I158: Natural | J158: PEQUEÑA | K158: 1650000 | L158: 750000 | M158: 0 | N158: 900000
B159: 41001 | C159: =+VLOOKUP(B159,'[1]DIVIPOLA MPIO'!$E$1:$G$65536,3,0) -> NEIVA | D159: 41 | E159: =+VLOOKUP(D159,'[1]DIVIPOLA MPIO'!$B$1:$C$65536,2,0) -> HUILA | F159: =+IFERROR(VLOOKUP(G159,'[2]3.1 vs 4 (2020)'!$J:$O,6,0),"OTRAS") -> ACTIVIDADES PROFESIONALES, CIENTÍFICAS Y TÉCNICAS | G159: 7310 | H159: =+IFERROR(VLOOKUP(G159,'[2]3.1 vs 4 (2020)'!$J:$O,3,0),"Otras") -> M | I159: Natural | J159: MICRO | K159: 700000 | L159: 500000 | M159: 200000 | N159: 0
B160: 76001 | C160: =+VLOOKUP(B160,'[1]DIVIPOLA MPIO'!$E$1:$G$65536,3,0) -> CALI | D160: 76 | E160: =+VLOOKUP(D160,'[1]DIVIPOLA MPIO'!$B$1:$C$65536,2,0) -> VALLE DEL CAUCA | F160: =+IFERROR(VLOOKUP(G160,'[2]3.1 vs 4 (2020)'!$J:$O,6,0),"OTRAS") -> INDUSTRIAS MANUFACTURERAS | G160: 1313 | H160: =+IFERROR(VLOOKUP(G160,'[2]3.1 vs 4 (2020)'!$J:$O,3,0),"Otras") -> C | I160: Natural | J160: PEQUEÑA | K160: 227131 | L160: 227131 | M160: 0 | N160: 0
B161: 73001 | C161: =+VLOOKUP(B161,'[1]DIVIPOLA MPIO'!$E$1:$G$65536,3,0) -> IBAGUÉ | D161: 73 | E161: =+VLOOKUP(D161,'[1]DIVIPOLA MPIO'!$B$1:$C$65536,2,0) -> TOLIMA | F161: =+IFERROR(VLOOKUP(G161,'[2]3.1 vs 4 (2020)'!$J:$O,6,0),"OTRAS") -> COMERCIO AL POR MAYOR Y AL POR MENOR; REPARACIÓN DE VEHÍCULOS AUTOMOTORES Y MOTOCICLETAS | G161: 4729 | H161: =+IFERROR(VLOOKUP(G161,'[2]3.1 vs 4 (2020)'!$J:$O,3,0),"Otras") -> G | I161: Natural | J161: MICRO | K161: 9345943 | L161: 7928275 | M161: 0 | N161: 1417668
B162: 41001 | C162: =+VLOOKUP(B162,'[1]DIVIPOLA MPIO'!$E$1:$G$65536,3,0) -> NEIVA | D162: 41 | E162: =+VLOOKUP(D162,'[1]DIVIPOLA MPIO'!$B$1:$C$65536,2,0) -> HUILA | F162: =+IFERROR(VLOOKUP(G162,'[2]3.1 vs 4 (2020)'!$J:$O,6,0),"OTRAS") -> INDUSTRIAS MANUFACTURERAS | G162: 1081 | H162: =+IFERROR(VLOOKUP(G162,'[2]3.1 vs 4 (2020)'!$J:$O,3,0),"Otras") -> C | I162: Natural | J162: MICRO | K162: 1554262 | L162: 954262 | M162: 0 | N162: 600000
B163: 41001 | C163: =+VLOOKUP(B163,'[1]DIVIPOLA MPIO'!$E$1:$G$65536,3,0) -> NEIVA | D163: 41 | E163: =+VLOOKUP(D163,'[1]DIVIPOLA MPIO'!$B$1:$C$65536,2,0) -> HUILA | F163: =+IFERROR(VLOOKUP(G163,'[2]3.1 vs 4 (2020)'!$J:$O,6,0),"OTRAS") -> TRANSPORTE Y ALMACENAMIENTO | G163: 4923 | H163: =+IFERROR(VLOOKUP(G163,'[2]3.1 vs 4 (2020)'!$J:$O,3,0),"Otras") -> H | I163: Natural | J163: MICRO | K163: 500000 | L163: 500000 | M163: 0 | N163: 0
B164: 41001 | C164: =+VLOOKUP(B164,'[1]DIVIPOLA MPIO'!$E$1:$G$65536,3,0) -> NEIVA | D164: 41 | E164: =+VLOOKUP(D164,'[1]DIVIPOLA MPIO'!$B$1:$C$65536,2,0) -> HUILA | F164: =+IFERROR(VLOOKUP(G164,'[2]3.1 vs 4 (2020)'!$J:$O,6,0),"OTRAS") -> COMERCIO AL POR MAYOR Y AL POR MENOR; REPARACIÓN DE VEHÍCULOS AUTOMOTORES Y MOTOCICLETAS | G164: 4752 | H164: =+IFERROR(VLOOKUP(G164,'[2]3.1 vs 4 (2020)'!$J:$O,3,0),"Otras") -> G | I164: Natural | J164: MICRO | K164: 1850000 | L164: 1750000 | M164: 100000 | N164: 0
B165: 5001 | C165: =+VLOOKUP(B165,'[1]DIVIPOLA MPIO'!$E$1:$G$65536,3,0) -> MEDELLÍN | D165: 5 | E165: =+VLOOKUP(D165,'[1]DIVIPOLA MPIO'!$B$1:$C$65536,2,0) -> ANTIOQUIA | F165: =+IFERROR(VLOOKUP(G165,'[2]3.1 vs 4 (2020)'!$J:$O,6,0),"OTRAS") -> ACTIVIDADES DE SERVICIOS ADMINISTRATIVOS Y DE APOYO | G165: 8299 | H165: =+IFERROR(VLOOKUP(G165,'[2]3.1 vs 4 (2020)'!$J:$O,3,0),"Otras") -> N | I165: Natural | J165: MICRO | K165: 9844000 | L165: 5570000 | M165: 2528000 | N165: 1746000
B166: 41001 | C166: =+VLOOKUP(B166,'[1]DIVIPOLA MPIO'!$E$1:$G$65536,3,0) -> NEIVA | D166: 41 | E166: =+VLOOKUP(D166,'[1]DIVIPOLA MPIO'!$B$1:$C$65536,2,0) -> HUILA | F166: =+IFERROR(VLOOKUP(G166,'[2]3.1 vs 4 (2020)'!$J:$O,6,0),"OTRAS") -> COMERCIO AL POR MAYOR Y AL POR MENOR; REPARACIÓN DE VEHÍCULOS AUTOMOTORES Y MOTOCICLETAS | G166: 4653 | H166: =+IFERROR(VLOOKUP(G166,'[2]3.1 vs 4 (2020)'!$J:$O,3,0),"Otras") -> G | I166: Natural | J166: MICRO | K166: 250000 | L166: 250000 | M166: 0 | N166: 0
B167: 86219 | C167: =+VLOOKUP(B167,'[1]DIVIPOLA MPIO'!$E$1:$G$65536,3,0) -> COLÓN | D167: 86 | E167: =+VLOOKUP(D167,'[1]DIVIPOLA MPIO'!$B$1:$C$65536,2,0) -> PUTUMAYO | F167: =+IFERROR(VLOOKUP(G167,'[2]3.1 vs 4 (2020)'!$J:$O,6,0),"OTRAS") -> ACTIVIDADES PROFESIONALES, CIENTÍFICAS Y TÉCNICAS | G167: 7500 | H167: =+IFERROR(VLOOKUP(G167,'[2]3.1 vs 4 (2020)'!$J:$O,3,0),"Otras") -> M | I167: Natural | J167: MICRO | K167: 4230000 | L167: 3330000 | M167: 0 | N167: 900000
B168: 41298 | C168: =+VLOOKUP(B168,'[1]DIVIPOLA MPIO'!$E$1:$G$65536,3,0) -> GARZÓN | D168: 41 | E168: =+VLOOKUP(D168,'[1]DIVIPOLA MPIO'!$B$1:$C$65536,2,0) -> HUILA | F168: =+IFERROR(VLOOKUP(G168,'[2]3.1 vs 4 (2020)'!$J:$O,6,0),"OTRAS") -> EDUCACIÓN | G168: 8530 | H168: =+IFERROR(VLOOKUP(G168,'[2]3.1 vs 4 (2020)'!$J:$O,3,0),"Otras") -> P | I168: Natural | J168: MICRO | K168: 900000 | L168: 750000 | M168: 0 | N168: 150000
B169: 41551 | C169: =+VLOOKUP(B169,'[1]DIVIPOLA MPIO'!$E$1:$G$65536,3,0) -> PITALITO | D169: 41 | E169: =+VLOOKUP(D169,'[1]DIVIPOLA MPIO'!$B$1:$C$65536,2,0) -> HUILA | F169: =+IFERROR(VLOOKUP(G169,'[2]3.1 vs 4 (2020)'!$J:$O,6,0),"OTRAS") -> TRANSPORTE Y ALMACENAMIENTO | G169: 4923 | H169: =+IFERROR(VLOOKUP(G169,'[2]3.1 vs 4 (2020)'!$J:$O,3,0),"Otras") -> H | I169: Natural | J169: MICRO | K169: 750000 | L169: 750000 | M169: 0 | N169: 0
B170: 41001 | C170: =+VLOOKUP(B170,'[1]DIVIPOLA MPIO'!$E$1:$G$65536,3,0) -> NEIVA | D170: 41 | E170: =+VLOOKUP(D170,'[1]DIVIPOLA MPIO'!$B$1:$C$65536,2,0) -> HUILA | F170: =+IFERROR(VLOOKUP(G170,'[2]3.1 vs 4 (2020)'!$J:$O,6,0),"OTRAS") -> ACTIVIDADES DE SERVICIOS ADMINISTRATIVOS Y DE APOYO | G170: 8230 | H170: =+IFERROR(VLOOKUP(G170,'[2]3.1 vs 4 (2020)'!$J:$O,3,0),"Otras") -> N | I170: Natural | J170: MICRO | K170: 2581079 | L170: 1431393 | M170: 290852 | N170: 858834
B171: 18753 | C171: =+VLOOKUP(B171,'[1]DIVIPOLA MPIO'!$E$1:$G$65536,3,0) -> SAN VICENTE DEL CAGUÁN | D171: 18 | E171: =+VLOOKUP(D171,'[1]DIVIPOLA MPIO'!$B$1:$C$65536,2,0) -> CAQUETÁ | F171: =+IFERROR(VLOOKUP(G171,'[2]3.1 vs 4 (2020)'!$J:$O,6,0),"OTRAS") -> INDUSTRIAS MANUFACTURERAS | G171: 1040 | H171: =+IFERROR(VLOOKUP(G171,'[2]3.1 vs 4 (2020)'!$J:$O,3,0),"Otras") -> C | I171: Natural | J171: MICRO | K171: 1000000 | L171: 1000000 | M171: 0 | N171: 0
B172: 13001 | C172: =+VLOOKUP(B172,'[1]DIVIPOLA MPIO'!$E$1:$G$65536,3,0) -> CARTAGENA | D172: 13 | E172: =+VLOOKUP(D172,'[1]DIVIPOLA MPIO'!$B$1:$C$65536,2,0) -> BOLÍVAR | F172: =+IFERROR(VLOOKUP(G172,'[2]3.1 vs 4 (2020)'!$J:$O,6,0),"OTRAS") -> TRANSPORTE Y ALMACENAMIENTO | G172: 5310 | H172: =+IFERROR(VLOOKUP(G172,'[2]3.1 vs 4 (2020)'!$J:$O,3,0),"Otras") -> H | I172: Natural | J172: MICRO | K172: 300000 | L172: 0 | M172: 0 | N172: 300000
B173: 13688 | C173: =+VLOOKUP(B173,'[1]DIVIPOLA MPIO'!$E$1:$G$65536,3,0) -> SANTA ROSA DEL SUR | D173: 13 | E173: =+VLOOKUP(D173,'[1]DIVIPOLA MPIO'!$B$1:$C$65536,2,0) -> BOLÍVAR | F173: =+IFERROR(VLOOKUP(G173,'[2]3.1 vs 4 (2020)'!$J:$O,6,0),"OTRAS") -> COMERCIO AL POR MAYOR Y AL POR MENOR; REPARACIÓN DE VEHÍCULOS AUTOMOTORES Y MOTOCICLETAS | G173: 4663 | H173: =+IFERROR(VLOOKUP(G173,'[2]3.1 vs 4 (2020)'!$J:$O,3,0),"Otras") -> G | I173: Natural | J173: PEQUEÑA | K173: 750000 | L173: 750000 | M173: 0 | N173: 0
B174: 25001 | C174: =+VLOOKUP(B174,'[1]DIVIPOLA MPIO'!$E$1:$G$65536,3,0) -> AGUA DE DIOS | D174: 25 | E174: =+VLOOKUP(D174,'[1]DIVIPOLA MPIO'!$B$1:$C$65536,2,0) -> CUNDINAMARCA | F174: =+IFERROR(VLOOKUP(G174,'[2]3.1 vs 4 (2020)'!$J:$O,6,0),"OTRAS") -> COMERCIO AL POR MAYOR Y AL POR MENOR; REPARACIÓN DE VEHÍCULOS AUTOMOTORES Y MOTOCICLETAS | G174: 4723 | H174: =+IFERROR(VLOOKUP(G174,'[2]3.1 vs 4 (2020)'!$J:$O,3,0),"Otras") -> G | I174: Natural | J174: MICRO | K174: 454262 | L174: 454262 | M174: 0 | N174: 0
B175: 5001 | C175: =+VLOOKUP(B175,'[1]DIVIPOLA MPIO'!$E$1:$G$65536,3,0) -> MEDELLÍN | D175: 5 | E175: =+VLOOKUP(D175,'[1]DIVIPOLA MPIO'!$B$1:$C$65536,2,0) -> ANTIOQUIA | F175: =+IFERROR(VLOOKUP(G175,'[2]3.1 vs 4 (2020)'!$J:$O,6,0),"OTRAS") -> INDUSTRIAS MANUFACTURERAS | G175: 2511 | H175: =+IFERROR(VLOOKUP(G175,'[2]3.1 vs 4 (2020)'!$J:$O,3,0),"Otras") -> C | I175: Natural | J175: MICRO | K175: 1227131 | L175: 1227131 | M175: 0 | N175: 0
B176: 5631 | C176: =+VLOOKUP(B176,'[1]DIVIPOLA MPIO'!$E$1:$G$65536,3,0) -> SABANETA | D176: 5 | E176: =+VLOOKUP(D176,'[1]DIVIPOLA MPIO'!$B$1:$C$65536,2,0) -> ANTIOQUIA | F176: =+IFERROR(VLOOKUP(G176,'[2]3.1 vs 4 (2020)'!$J:$O,6,0),"OTRAS") -> ALOJAMIENTO Y SERVICIOS DE COMIDA | G176: 5630 | H176: =+IFERROR(VLOOKUP(G176,'[2]3.1 vs 4 (2020)'!$J:$O,3,0),"Otras") -> I | I176: Natural | J176: MICRO | K176: 3613096 | L176: 954262 | M176: 0 | N176: 2658834
B177: 5001 | C177: =+VLOOKUP(B177,'[1]DIVIPOLA MPIO'!$E$1:$G$65536,3,0) -> MEDELLÍN | D177: 5 | E177: =+VLOOKUP(D177,'[1]DIVIPOLA MPIO'!$B$1:$C$65536,2,0) -> ANTIOQUIA | F177: =+IFERROR(VLOOKUP(G177,'[2]3.1 vs 4 (2020)'!$J:$O,6,0),"OTRAS") -> INDUSTRIAS MANUFACTURERAS | G177: 1089 | H177: =+IFERROR(VLOOKUP(G177,'[2]3.1 vs 4 (2020)'!$J:$O,3,0),"Otras") -> C | I177: Natural | J177: MICRO | K177: 800000 | L177: 500000 | M177: 0 | N177: 300000
B178: 5001 | C178: =+VLOOKUP(B178,'[1]DIVIPOLA MPIO'!$E$1:$G$65536,3,0) -> MEDELLÍN | D178: 5 | E178: =+VLOOKUP(D178,'[1]DIVIPOLA MPIO'!$B$1:$C$65536,2,0) -> ANTIOQUIA | F178: =+IFERROR(VLOOKUP(G178,'[2]3.1 vs 4 (2020)'!$J:$O,6,0),"OTRAS") -> ACTIVIDADES PROFESIONALES, CIENTÍFICAS Y TÉCNICAS | G178: 7420 | H178: =+IFERROR(VLOOKUP(G178,'[2]3.1 vs 4 (2020)'!$J:$O,3,0),"Otras") -> M | I178: Natural | J178: MICRO | K178: 750000 | L178: 750000 | M178: 0 | N178: 0
B179: 5001 | C179: =+VLOOKUP(B179,'[1]DIVIPOLA MPIO'!$E$1:$G$65536,3,0) -> MEDELLÍN | D179: 5 | E179: =+VLOOKUP(D179,'[1]DIVIPOLA MPIO'!$B$1:$C$65536,2,0) -> ANTIOQUIA | F179: =+IFERROR(VLOOKUP(G179,'[2]3.1 vs 4 (2020)'!$J:$O,6,0),"OTRAS") -> COMERCIO AL POR MAYOR Y AL POR MENOR; REPARACIÓN DE VEHÍCULOS AUTOMOTORES Y MOTOCICLETAS | G179: 4711 | H179: =+IFERROR(VLOOKUP(G179,'[2]3.1 vs 4 (2020)'!$J:$O,3,0),"Otras") -> G | I179: Natural | J179: PEQUEÑA | K179: 681393 | L179: 681393 | M179: 0 | N179: 0
B180: 5154 | C180: =+VLOOKUP(B180,'[1]DIVIPOLA MPIO'!$E$1:$G$65536,3,0) -> CAUCASIA | D180: 5 | E180: =+VLOOKUP(D180,'[1]DIVIPOLA MPIO'!$B$1:$C$65536,2,0) -> ANTIOQUIA | F180: =+IFERROR(VLOOKUP(G180,'[2]3.1 vs 4 (2020)'!$J:$O,6,0),"OTRAS") -> COMERCIO AL POR MAYOR Y AL POR MENOR; REPARACIÓN DE VEHÍCULOS AUTOMOTORES Y MOTOCICLETAS | G180: 4541 | H180: =+IFERROR(VLOOKUP(G180,'[2]3.1 vs 4 (2020)'!$J:$O,3,0),"Otras") -> G | I180: Natural | J180: MICRO | K180: 681393 | L180: 681393 | M180: 0 | N180: 0
B181: 23466 | C181: =+VLOOKUP(B181,'[1]DIVIPOLA MPIO'!$E$1:$G$65536,3,0) -> MONTELÍBANO | D181: 23 | E181: =+VLOOKUP(D181,'[1]DIVIPOLA MPIO'!$B$1:$C$65536,2,0) -> CÓRDOBA | F181: =+IFERROR(VLOOKUP(G181,'[2]3.1 vs 4 (2020)'!$J:$O,6,0),"OTRAS") -> AGRICULTURA, GANADERÍA, CAZA, SILVICULTURA Y PESCA | G181: 141 | H181: =+IFERROR(VLOOKUP(G181,'[2]3.1 vs 4 (2020)'!$J:$O,3,0),"Otras") -> A | I181: Natural | J181: MICRO | K181: 1690000 | L181: 500000 | M181: 716000 | N181: 474000
B182: 5001 | C182: =+VLOOKUP(B182,'[1]DIVIPOLA MPIO'!$E$1:$G$65536,3,0) -> MEDELLÍN | D182: 5 | E182: =+VLOOKUP(D182,'[1]DIVIPOLA MPIO'!$B$1:$C$65536,2,0) -> ANTIOQUIA | F182: =+IFERROR(VLOOKUP(G182,'[2]3.1 vs 4 (2020)'!$J:$O,6,0),"OTRAS") -> ALOJAMIENTO Y SERVICIOS DE COMIDA | G182: 5612 | H182: =+IFERROR(VLOOKUP(G182,'[2]3.1 vs 4 (2020)'!$J:$O,3,0),"Otras") -> I | I182: Natural | J182: MICRO | K182: 5948000 | L182: 2250000 | M182: 500000 | N182: 3198000
B183: 5001 | C183: =+VLOOKUP(B183,'[1]DIVIPOLA MPIO'!$E$1:$G$65536,3,0) -> MEDELLÍN | D183: 5 | E183: =+VLOOKUP(D183,'[1]DIVIPOLA MPIO'!$B$1:$C$65536,2,0) -> ANTIOQUIA | F183: =+IFERROR(VLOOKUP(G183,'[2]3.1 vs 4 (2020)'!$J:$O,6,0),"OTRAS") -> INDUSTRIAS MANUFACTURERAS | G183: 1081 | H183: =+IFERROR(VLOOKUP(G183,'[2]3.1 vs 4 (2020)'!$J:$O,3,0),"Otras") -> C | I183: Natural | J183: MICRO | K183: 227131 | L183: 227131 | M183: 0 | N183: 0
B184: 5001 | C184: =+VLOOKUP(B184,'[1]DIVIPOLA MPIO'!$E$1:$G$65536,3,0) -> MEDELLÍN | D184: 5 | E184: =+VLOOKUP(D184,'[1]DIVIPOLA MPIO'!$B$1:$C$65536,2,0) -> ANTIOQUIA | F184: =+IFERROR(VLOOKUP(G184,'[2]3.1 vs 4 (2020)'!$J:$O,6,0),"OTRAS") -> COMERCIO AL POR MAYOR Y AL POR MENOR; REPARACIÓN DE VEHÍCULOS AUTOMOTORES Y MOTOCICLETAS | G184: 4711 | H184: =+IFERROR(VLOOKUP(G184,'[2]3.1 vs 4 (2020)'!$J:$O,3,0),"Otras") -> G | I184: Natural | J184: MICRO | K184: 454262 | L184: 454262 | M184: 0 | N184: 0
B185: 5001 | C185: =+VLOOKUP(B185,'[1]DIVIPOLA MPIO'!$E$1:$G$65536,3,0) -> MEDELLÍN | D185: 5 | E185: =+VLOOKUP(D185,'[1]DIVIPOLA MPIO'!$B$1:$C$65536,2,0) -> ANTIOQUIA | F185: =+IFERROR(VLOOKUP(G185,'[2]3.1 vs 4 (2020)'!$J:$O,6,0),"OTRAS") -> TRANSPORTE Y ALMACENAMIENTO | G185: 4923 | H185: =+IFERROR(VLOOKUP(G185,'[2]3.1 vs 4 (2020)'!$J:$O,3,0),"Otras") -> H | I185: Natural | J185: MICRO | K185: 227131 | L185: 227131 | M185: 0 | N185: 0
B186: 5686 | C186: =+VLOOKUP(B186,'[1]DIVIPOLA MPIO'!$E$1:$G$65536,3,0) -> SANTA ROSA DE OSOS | D186: 5 | E186: =+VLOOKUP(D186,'[1]DIVIPOLA MPIO'!$B$1:$C$65536,2,0) -> ANTIOQUIA | F186: =+IFERROR(VLOOKUP(G186,'[2]3.1 vs 4 (2020)'!$J:$O,6,0),"OTRAS") -> AGRICULTURA, GANADERÍA, CAZA, SILVICULTURA Y PESCA | G186: 141 | H186: =+IFERROR(VLOOKUP(G186,'[2]3.1 vs 4 (2020)'!$J:$O,3,0),"Otras") -> A | I186: Natural | J186: MICRO | K186: 100000 | L186: 0 | M186: 100000 | N186: 0
B187: 5686 | C187: =+VLOOKUP(B187,'[1]DIVIPOLA MPIO'!$E$1:$G$65536,3,0) -> SANTA ROSA DE OSOS | D187: 5 | E187: =+VLOOKUP(D187,'[1]DIVIPOLA MPIO'!$B$1:$C$65536,2,0) -> ANTIOQUIA | F187: =+IFERROR(VLOOKUP(G187,'[2]3.1 vs 4 (2020)'!$J:$O,6,0),"OTRAS") -> INDUSTRIAS MANUFACTURERAS | G187: 1610 | H187: =+IFERROR(VLOOKUP(G187,'[2]3.1 vs 4 (2020)'!$J:$O,3,0),"Otras") -> C | I187: Natural | J187: MICRO | K187: 2250000 | L187: 750000 | M187: 1500000 | N187: 0
B188: 5001 | C188: =+VLOOKUP(B188,'[1]DIVIPOLA MPIO'!$E$1:$G$65536,3,0) -> MEDELLÍN | D188: 5 | E188: =+VLOOKUP(D188,'[1]DIVIPOLA MPIO'!$B$1:$C$65536,2,0) -> ANTIOQUIA | F188: =+IFERROR(VLOOKUP(G188,'[2]3.1 vs 4 (2020)'!$J:$O,6,0),"OTRAS") -> COMERCIO AL POR MAYOR Y AL POR MENOR; REPARACIÓN DE VEHÍCULOS AUTOMOTORES Y MOTOCICLETAS | G188: 4741 | H188: =+IFERROR(VLOOKUP(G188,'[2]3.1 vs 4 (2020)'!$J:$O,3,0),"Otras") -> G | I188: Natural | J188: MICRO | K188: 1907900 | L188: 1817048 | M188: 90852 | N188: 0
B189: 5001 | C189: =+VLOOKUP(B189,'[1]DIVIPOLA MPIO'!$E$1:$G$65536,3,0) -> MEDELLÍN | D189: 5 | E189: =+VLOOKUP(D189,'[1]DIVIPOLA MPIO'!$B$1:$C$65536,2,0) -> ANTIOQUIA | F189: =+IFERROR(VLOOKUP(G189,'[2]3.1 vs 4 (2020)'!$J:$O,6,0),"OTRAS") -> INDUSTRIAS MANUFACTURERAS | G189: 1410 | H189: =+IFERROR(VLOOKUP(G189,'[2]3.1 vs 4 (2020)'!$J:$O,3,0),"Otras") -> C | I189: Natural | J189: MICRO | K189: 227131 | L189: 227131 | M189: 0 | N189: 0
B190: 5001 | C190: =+VLOOKUP(B190,'[1]DIVIPOLA MPIO'!$E$1:$G$65536,3,0) -> MEDELLÍN | D190: 5 | E190: =+VLOOKUP(D190,'[1]DIVIPOLA MPIO'!$B$1:$C$65536,2,0) -> ANTIOQUIA | F190: =+IFERROR(VLOOKUP(G190,'[2]3.1 vs 4 (2020)'!$J:$O,6,0),"OTRAS") -> INDUSTRIAS MANUFACTURERAS | G190: 1081 | H190: =+IFERROR(VLOOKUP(G190,'[2]3.1 vs 4 (2020)'!$J:$O,3,0),"Otras") -> C | I190: Natural | J190: PEQUEÑA | K190: 227131 | L190: 227131 | M190: 0 | N190: 0
B191: 50001 | C191: =+VLOOKUP(B191,'[1]DIVIPOLA MPIO'!$E$1:$G$65536,3,0) -> VILLAVICENCIO | D191: 50 | E191: =+VLOOKUP(D191,'[1]DIVIPOLA MPIO'!$B$1:$C$65536,2,0) -> META | F191: =+IFERROR(VLOOKUP(G191,'[2]3.1 vs 4 (2020)'!$J:$O,6,0),"OTRAS") -> ALOJAMIENTO Y SERVICIOS DE COMIDA | G191: 5511 | H191: =+IFERROR(VLOOKUP(G191,'[2]3.1 vs 4 (2020)'!$J:$O,3,0),"Otras") -> I | I191: Natural | J191: PEQUEÑA | K191: 950000 | L191: 500000 | M191: 0 | N191: 450000
B192: 23001 | C192: =+VLOOKUP(B192,'[1]DIVIPOLA MPIO'!$E$1:$G$65536,3,0) -> MONTERÍA | D192: 23 | E192: =+VLOOKUP(D192,'[1]DIVIPOLA MPIO'!$B$1:$C$65536,2,0) -> CÓRDOBA | F192: =+IFERROR(VLOOKUP(G192,'[2]3.1 vs 4 (2020)'!$J:$O,6,0),"OTRAS") -> ALOJAMIENTO Y SERVICIOS DE COMIDA | G192: 5611 | H192: =+IFERROR(VLOOKUP(G192,'[2]3.1 vs 4 (2020)'!$J:$O,3,0),"Otras") -> I | I192: Natural | J192: PEQUEÑA | K192: 150000 | L192: 0 | M192: 0 | N192: 150000
B193: 5001 | C193: =+VLOOKUP(B193,'[1]DIVIPOLA MPIO'!$E$1:$G$65536,3,0) -> MEDELLÍN | D193: 5 | E193: =+VLOOKUP(D193,'[1]DIVIPOLA MPIO'!$B$1:$C$65536,2,0) -> ANTIOQUIA | F193: =+IFERROR(VLOOKUP(G193,'[2]3.1 vs 4 (2020)'!$J:$O,6,0),"OTRAS") -> INDUSTRIAS MANUFACTURERAS | G193: 1410 | H193: =+IFERROR(VLOOKUP(G193,'[2]3.1 vs 4 (2020)'!$J:$O,3,0),"Otras") -> C | I193: Natural | J193: PEQUEÑA | K193: 250000 | L193: 250000 | M193: 0 | N193: 0
B194: 5001 | C194: =+VLOOKUP(B194,'[1]DIVIPOLA MPIO'!$E$1:$G$65536,3,0) -> MEDELLÍN | D194: 5 | E194: =+VLOOKUP(D194,'[1]DIVIPOLA MPIO'!$B$1:$C$65536,2,0) -> ANTIOQUIA | F194: =+IFERROR(VLOOKUP(G194,'[2]3.1 vs 4 (2020)'!$J:$O,6,0),"OTRAS") -> ACTIVIDADES FINANCIERAS Y DE SEGUROS | G194: 6495 | H194: =+IFERROR(VLOOKUP(G194,'[2]3.1 vs 4 (2020)'!$J:$O,3,0),"Otras") -> K | I194: Natural | J194: MICRO | K194: 250000 | L194: 250000 | M194: 0 | N194: 0
B195: 5266 | C195: =+VLOOKUP(B195,'[1]DIVIPOLA MPIO'!$E$1:$G$65536,3,0) -> ENVIGADO | D195: 5 | E195: =+VLOOKUP(D195,'[1]DIVIPOLA MPIO'!$B$1:$C$65536,2,0) -> ANTIOQUIA | F195: =+IFERROR(VLOOKUP(G195,'[2]3.1 vs 4 (2020)'!$J:$O,6,0),"OTRAS") -> COMERCIO AL POR MAYOR Y AL POR MENOR; REPARACIÓN DE VEHÍCULOS AUTOMOTORES Y MOTOCICLETAS | G195: 4620 | H195: =+IFERROR(VLOOKUP(G195,'[2]3.1 vs 4 (2020)'!$J:$O,3,0),"Otras") -> G | I195: Natural | J195: MICRO | K195: 350000 | L195: 0 | M195: 200000 | N195: 150000
B196: 47001 | C196: =+VLOOKUP(B196,'[1]DIVIPOLA MPIO'!$E$1:$G$65536,3,0) -> SANTA MARTA | D196: 47 | E196: =+VLOOKUP(D196,'[1]DIVIPOLA MPIO'!$B$1:$C$65536,2,0) -> MAGDALENA | F196: =+IFERROR(VLOOKUP(G196,'[2]3.1 vs 4 (2020)'!$J:$O,6,0),"OTRAS") -> ALOJAMIENTO Y SERVICIOS DE COMIDA | G196: 5611 | H196: =+IFERROR(VLOOKUP(G196,'[2]3.1 vs 4 (2020)'!$J:$O,3,0),"Otras") -> I | I196: Natural | J196: MICRO | K196: 6763374 | L196: 3074262 | M196: 0 | N196: 3689112
B197: 5001 | C197: =+VLOOKUP(B197,'[1]DIVIPOLA MPIO'!$E$1:$G$65536,3,0) -> MEDELLÍN | D197: 5 | E197: =+VLOOKUP(D197,'[1]DIVIPOLA MPIO'!$B$1:$C$65536,2,0) -> ANTIOQUIA | F197: =+IFERROR(VLOOKUP(G197,'[2]3.1 vs 4 (2020)'!$J:$O,6,0),"OTRAS") -> ALOJAMIENTO Y SERVICIOS DE COMIDA | G197: 5611 | H197: =+IFERROR(VLOOKUP(G197,'[2]3.1 vs 4 (2020)'!$J:$O,3,0),"Otras") -> I | I197: Natural | J197: MICRO | K197: 250000 | L197: 250000 | M197: 0 | N197: 0
B198: 5631 | C198: =+VLOOKUP(B198,'[1]DIVIPOLA MPIO'!$E$1:$G$65536,3,0) -> SABANETA | D198: 5 | E198: =+VLOOKUP(D198,'[1]DIVIPOLA MPIO'!$B$1:$C$65536,2,0) -> ANTIOQUIA | F198: =+IFERROR(VLOOKUP(G198,'[2]3.1 vs 4 (2020)'!$J:$O,6,0),"OTRAS") -> INDUSTRIAS MANUFACTURERAS | G198: 3110 | H198: =+IFERROR(VLOOKUP(G198,'[2]3.1 vs 4 (2020)'!$J:$O,3,0),"Otras") -> C | I198: Natural | J198: PEQUEÑA | K198: 1200000 | L198: 500000 | M198: 100000 | N198: 600000
B199: 5001 | C199: =+VLOOKUP(B199,'[1]DIVIPOLA MPIO'!$E$1:$G$65536,3,0) -> MEDELLÍN | D199: 5 | E199: =+VLOOKUP(D199,'[1]DIVIPOLA MPIO'!$B$1:$C$65536,2,0) -> ANTIOQUIA | F199: =+IFERROR(VLOOKUP(G199,'[2]3.1 vs 4 (2020)'!$J:$O,6,0),"OTRAS") -> COMERCIO AL POR MAYOR Y AL POR MENOR; REPARACIÓN DE VEHÍCULOS AUTOMOTORES Y MOTOCICLETAS | G199: 4530 | H199: =+IFERROR(VLOOKUP(G199,'[2]3.1 vs 4 (2020)'!$J:$O,3,0),"Otras") -> G | I199: Natural | J199: MICRO | K199: 227131 | L199: 227131 | M199: 0 | N199: 0
B200: 5001 | C200: =+VLOOKUP(B200,'[1]DIVIPOLA MPIO'!$E$1:$G$65536,3,0) -> MEDELLÍN | D200: 5 | E200: =+VLOOKUP(D200,'[1]DIVIPOLA MPIO'!$B$1:$C$65536,2,0) -> ANTIOQUIA | F200: =+IFERROR(VLOOKUP(G200,'[2]3.1 vs 4 (2020)'!$J:$O,6,0),"OTRAS") -> COMERCIO AL POR MAYOR Y AL POR MENOR; REPARACIÓN DE VEHÍCULOS AUTOMOTORES Y MOTOCICLETAS | G200: 4711 | H200: =+IFERROR(VLOOKUP(G200,'[2]3.1 vs 4 (2020)'!$J:$O,3,0),"Otras") -> G | I200: Natural | J200: PEQUEÑA | K200: 977131 | L200: 977131 | M200: 0 | N200: 0
... 4300 more rows

Sheet insumos2 (hidden)
A1: TIPO DE IDENTIFICACION POSTULANTE | B1: NUMERO IDENTIFICACION EMPRESA | C1: CIUDAD - DIVIPOLA - R | D1: Municipio | E1: TOTAL COTIZANTES CON CONCEPTO DE CONFORMIDAD TOTAL A GIRAR | F1: TOTAL COTIZANTES CON CONCEPTO DE NO CONFORMIDAD | G1: TIPO DE PERSONA | H1: Departamento DIVIPOLA (P) | I1: Nombre dpto | J1: ESTADO_TOTAL A GIRAR | K1: Tamaño del Empleador | L1: STRCODPAR_CIIU_EMPRESA | M1: ACTIVIDAD ECONOMICA | N1: ACTIVIDAD ECONOMICA | O1: Division 3DC_TD 3D | P1: grupo especial 2DC_TD 3D | Q1: SEXO_F_ | R1: SEXO_M_ | S1: SEXO_ND_ | T1: Jovenes | U1: Mujeres 28 años | V1: Hombres 28 años | W1: Cot_nacional | X1: Cot_extranjero | Z1: Departamentos | AA1: empleadores | AB1: Departamentos | AC1: empleadores | AJ1: TIPO DE IDENTIFICACION POSTULANTE | AK1: NUMERO IDENTIFICACION EMPRESA | AL1: CIUDAD - DIVIPOLA - R | AM1: Municipio | AN1: TOTAL COTIZANTES CON CONCEPTO DE CONFORMIDAD TOTAL A GIRAR | AO1: TOTAL COTIZANTES CON CONCEPTO DE NO CONFORMIDAD | AP1: TIPO DE PERSONA | AQ1: Departamento DIVIPOLA (P) | AR1: Nombre dpto | AS1: ESTADO_TOTAL A GIRAR | AT1: Tamaño del Empleador | AU1: STRCODPAR_CIIU_EMPRESA | AV1: ACTIVIDAD ECONOMICA | AW1: ACTIVIDAD ECONOMICA | AX1: Division 3DC_TD 3D | AY1: grupo especial 2DC_TD 3D | AZ1: SEXO_F_ | BA1: SEXO_M_ | BB1: SEXO_ND_ | BC1: Jovenes | BD1: Mujeres 28 años | BE1: Hombres 28 años | BF1: Cot_nacional | BG1: Cot_extranjero | BJ1: Departamentos | BK1: empleadores | BL1: Departamentos | BM1: empleadores | BN1: nomdpto | BP1: =BN1 -> nomdpto | BQ1: empleadores | BR1: empleados | BT1: codmunicipio | BU1: aportantes | BV1: codmunicipio | BW1: aportantes | BX1: cod_dpto | BY1: nom_dpto | BZ1: nom_mpio | CA1: empleadores | CB1: empleados | CD1: Grupo | CE1: empleadores | CF1: empleados | CG1: Grupo | CH1: empleadores | CI1: empleados | CN1: Jovenes | CO1: Mujeres > 28 años | CP1: Hombres> 28 años | CT1: Jovenes | CU1: Mujeres > 28 años | CV1: Hombres> 28 años | CY1: Jovenes | CZ1: Mujeres > 28 años | DA1: Hombres> 28 años
C2: 63001 | D2: ARMENIA | E2: 1 | F2: 0 | G2: Natural | H2: 63 | I2: QUINDÍO | J2: Aprobado con subsidio | K2: MICRO | L2: 5611 | M2: ALOJAMIENTO Y SERVICIOS DE COMIDA | N2: I | O2: Actividades de restaurantes, cafeterías y servicio móvil de comidas | P2: Actividades de restaurantes, cafeterías y servicio móvil de comidas | Q2: 0 | R2: 1 | S2: 0 | T2: 1 | U2: 0 | V2: 0 | W2: 1 | X2: 0 | Z2: 68 | AA2: =COUNTIFS($J$2:$J$399999,"Aprobado con subsidio",$H$2:$H$399999,Z2) -> 1251 | AB2: =_xlfn._xlws.SORT($Z$2:$AA$34,2,-1) -> 11 | AC2: 8398 | AD2: =VLOOKUP(AB2,Hoja4!$A$29:$B$61,2,FALSE) -> Bogotá | AJ2: =_xlfn._xlws.FILTER($A$2:$X$399999,$N$2:$N$399999=Visor!$N$4,"") -> 0 | AK2: 0 | AL2: 25126 | AM2: CAJICÁ | AN2: 5 | AO2: 6 | AP2: Natural | AQ2: 25 | AR2: CUNDINAMARCA | AS2: Aprobado con subsidio | AT2: MICRO | AU2: 9820 | AV2: ACTIVIDADES DE LOS HOGARES INDIVIDUALES EN CALIDAD DE EMPLEADORES; ACTIVIDADES NO DIFERENCIADAS DE LOS HOGARES INDIVIDUALES COMO PRODUCTORES DE BIENES Y SERVICIOS PARA USO PROPIO | AW2: T | AX2: Actividades no diferenciadas de los hogares individuales como productores de servicios para uso propio | AY2: Actividades no diferenciadas de los hogares individuales como productores de servicios para uso propio | AZ2: 5 | BA2: 0 | BB2: 0 | BC2: 5 | BD2: 0 | BE2: 0 | BF2: 5 | BG2: 0 | BJ2: 68 | BK2: =COUNTIFS($AS$2:$AS$399999,"Aprobado con subsidio",$AQ$2:$AQ$399999,BJ2) -> 1 | BL2: =_xlfn._xlws.SORT($BJ$2:$BK$34,2,-1) -> 5 | BM2: 3 | BN2: =VLOOKUP(BL2,Hoja4!$A$29:$B$61,2,FALSE) -> Antioquia | BP2: =BN2 -> Antioquia | BQ2: =BM2 -> 3 | BR2: =SUMIFS($AN$2:$AN$399999,$AS$2:$AS$399999,"Aprobado con subsidio",$AQ$2:$AQ$399999,BL2) -> 8 | BT2: =_xlfn.UNIQUE($AL$2:$AL$399999) -> 25126 | BU2: =COUNTIFS($AS$2:$AS$399999,"Aprobado con subsidio",$AL$2:$AL$399999,BT2) -> 1 | BV2: =_xlfn._xlws.SORT($BT$2:$BU$1122,2,-1) -> 5001 | BW2: 2 | BX2: =IF(LEN(BV2)=5,MID(BV2,1,2),MID(BV2,1,1))*1 -> 5 | BY2: =VLOOKUP(BX2,Hoja4!$A$29:$B$61,2,FALSE) -> Antioquia | BZ2: =VLOOKUP(BV2,Hoja4!$D$29:$E$1150,2,FALSE) -> Medellín | CA2: =BW2 -> 2 | CB2: =SUMIFS($AN$2:$AN$399999,$AL$2:$AL$399999,BV2) -> 7 | CD2: =_xlfn.UNIQUE($AY$2:$AY$399999) -> Actividades no diferenciadas de los hogares individuales como productores de servicios para uso propio | CE2: =COUNTIFS($AY$2:$AY$399999,CD2,$AS$2:$AS$399999,"Aprobado con subsidio") -> 1 | CF2: =SUMIFS($AN$2:$AN$399999,$AY$2:$AY$399999,CD2,$AS$2:$AS$399999,"Aprobado con subsidio") -> 5 | CG2: =_xlfn._xlws.SORT(CD2:CF26,2,-1) -> Actividades de los hogares individuales como empleadores de personal doméstico | CH2: 8 | CI2: 107 | CM2: =_xlfn.UNIQUE($M$2:$M$400000) -> ALOJAMIENTO Y SERVICIOS DE COMIDA | CN2: =SUMIFS(T$2:T$400000,$M$2:$M$400000,$CM2,$J$2:$J$400000,"Aprobado con subsidio") -> 34759 | CO2: =SUMIFS(U$2:U$400000,$M$2:$M$400000,$CM2,$J$2:$J$400000,"Aprobado con subsidio") -> 8146 | CP2: =SUMIFS(V$2:V$400000,$M$2:$M$400000,$CM2,$J$2:$J$400000,"Aprobado con subsidio") -> 3391 | CS2: =_xlfn._xlws.SORT(CM2:CP23,2,-1) -> ACTIVIDADES DE SERVICIOS ADMINISTRATIVOS Y DE APOYO | CT2: 247825 | CU2: 40698 | CV2: 17169 | CX2: =IF(CS23=0,"Total",PROPER(CS23)) -> Total | CY2: =IF(CX2="Total",SUM($CT$2:$CT$23)/SUM($CT$2:$CV$23),CT23/SUM($CT23:$CV23)) -> 0.7332303564 | CZ2: =IF(CX2="Total",SUM($CU$2:$CU$23)/SUM($CT$2:$CV$23),CU23/SUM($CT23:$CV23)) -> 0.1428781027 | DA2: =IF(CX2="Total",SUM($CV$2:$CV$23)/SUM($CT$2:$CV$23),CV23/SUM($CT23:$CV23)) -> 0.1238915409
C3: 17380 | D3: LA DORADA | E3: 0 | F3: 0 | G3: Natural | H3: 17 | I3: CALDAS | J3: 0 | K3: MICRO | L3: 141 | M3: AGRICULTURA, GANADERÍA, CAZA, SILVICULTURA Y PESCA | N3: A | O3: Ganadería | P3: Ganadería | Q3: 0 | R3: 0 | S3: 0 | T3: 0 | U3: 0 | V3: 0 | W3: 0 | X3: 0 | Z3: 13 | AA3: =COUNTIFS($J$2:$J$399999,"Aprobado con subsidio",$H$2:$H$399999,Z3) -> 501 | AB3: 5 | AC3: 5297 | AD3: =VLOOKUP(AB3,Hoja4!$A$29:$B$61,2,FALSE) -> Antioquia | AJ3: 0 | AK3: 0 | AL3: 5615 | AM3: RIONEGRO | AN3: 1 | AO3: 1 | AP3: Natural | AQ3: 5 | AR3: ANTIOQUIA | AS3: Aprobado con subsidio | AT3: MICRO | AU3: 9700 | AV3: ACTIVIDADES DE LOS HOGARES INDIVIDUALES EN CALIDAD DE EMPLEADORES; ACTIVIDADES NO DIFERENCIADAS DE LOS HOGARES INDIVIDUALES COMO PRODUCTORES DE BIENES Y SERVICIOS PARA USO PROPIO | AW3: T | AX3: Actividades de los hogares individuales como empleadores de personal doméstico | AY3: Actividades de los hogares individuales como empleadores de personal doméstico | AZ3: 1 | BA3: 0 | BB3: 0 | BC3: 1 | BD3: 0 | BE3: 0 | BF3: 1 | BG3: 0 | BJ3: 13 | BK3: 0 | BL3: 25 | BM3: 3 | BN3: =VLOOKUP(BL3,Hoja4!$A$29:$B$61,2,FALSE) -> Cundinamarca | BP3: =BN3 -> Cundinamarca | BQ3: =BM3 -> 3 | BR3: 51 | BT3: 5615 | BU3: 1 | BV3: 25126 | BW3: 1 | BX3: =IF(LEN(BV3)=5,MID(BV3,1,2),MID(BV3,1,1))*1 -> 25 | BY3: =VLOOKUP(BX3,Hoja4!$A$29:$B$61,2,FALSE) -> Cundinamarca | BZ3: =VLOOKUP(BV3,Hoja4!$D$29:$E$1150,2,FALSE) -> Cajicá | CA3: 1 | CB3: 5 | CD3: Actividades de los hogares individuales como empleadores de personal doméstico | CE3: 8 | CF3: 107 | CG3: Actividades no diferenciadas de los hogares individuales como productores de servicios para uso propio | CH3: 1 | CI3: 5 | CM3: AGRICULTURA, GANADERÍA, CAZA, SILVICULTURA Y PESCA | CN3: 19715 | CO3: 2191 | CP3: 2669 | CS3: COMERCIO AL POR MAYOR Y AL POR MENOR; REPARACIÓN DE VEHÍCULOS AUTOMOTORES Y MOTOCICLETAS | CT3: 65794 | CU3: 12526 | CV3: 7675 | CX3: =IF(CS2=0,"Total",PROPER(CS2)) -> Actividades De Servicios Administrativos Y De Apoyo | CY3: =IF(CX3="Total",SUM($CT$2:$CT$23)/SUM($CT$2:$CV$23),CT2/SUM($CT2:$CV2)) -> 0.8107016212 | CZ3: =IF(CX3="Total",SUM($CU$2:$CU$23)/SUM($CT$2:$CV$23),CU2/SUM($CT2:$CV2)) -> 0.1331340042 | DA3: =IF(CX3="Total",SUM($CV$2:$CV$23)/SUM($CT$2:$CV$23),CV2/SUM($CT2:$CV2)) -> 0.0561643746
C4: 25035 | D4: ANAPOIMA | E4: 0 | F4: 0 | G4: Natural | H4: 25 | I4: CUNDINAMARCA | J4: 0 | K4: MICRO | L4: 7730 | M4: ACTIVIDADES DE SERVICIOS ADMINISTRATIVOS Y DE APOYO | N4: N | O4: Alquiler y arrendamiento de otros tipos de maquinaria, equipo y bienes tangibles n.c.p. | P4: Alquiler y arrendamiento de otros tipos de maquinaria, equipo y bienes tangibles n.c.p. | Q4: 0 | R4: 0 | S4: 0 | T4: 0 | U4: 0 | V4: 0 | W4: 0 | X4: 0 | Z4: 15 | AA4: 391 | AB4: 76 | AC4: 2309 | AD4: =VLOOKUP(AB4,Hoja4!$A$29:$B$61,2,FALSE) -> Valle del cauca | AJ4: 0 | AK4: 0 | AL4: 11001 | AM4: BOGOTÁ, D.C. | AN4: 0 | AO4: 0 | AP4: Jurídica | AQ4: 11 | AR4: BOGOTÁ, D.C. | AS4: 0 | AT4: PEQUEÑA | AU4: 9700 | AV4: ACTIVIDADES DE LOS HOGARES INDIVIDUALES EN CALIDAD DE EMPLEADORES; ACTIVIDADES NO DIFERENCIADAS DE LOS HOGARES INDIVIDUALES COMO PRODUCTORES DE BIENES Y SERVICIOS PARA USO PROPIO | AW4: T | AX4: Actividades de los hogares individuales como empleadores de personal doméstico | AY4: Actividades de los hogares individuales como empleadores de personal doméstico | AZ4: 0 | BA4: 0 | BB4: 0 | BC4: 0 | BD4: 0 | BE4: 0 | BF4: 0 | BG4: 0 | BJ4: 15 | BK4: 0 | BL4: 68 | BM4: 1 | BN4: =VLOOKUP(BL4,Hoja4!$A$29:$B$61,2,FALSE) -> Santander | BP4: Santander | BQ4: 1 | BR4: 23 | BT4: 11001 | BU4: 1 | BV4: 5615 | BW4: 1 | BX4: 5 | BY4: =VLOOKUP(BX4,Hoja4!$A$29:$B$61,2,FALSE) -> Antioquia | BZ4: =VLOOKUP(BV4,Hoja4!$D$29:$E$1150,2,FALSE) -> Rionegro | CA4: 1 | CB4: 1 | CD4: 0 | CE4: 0 | CF4: 0 | CG4: 0 | CH4: 0 | CI4: 0 | CM4: ACTIVIDADES DE SERVICIOS ADMINISTRATIVOS Y DE APOYO | CN4: 247825 | CO4: 40698 | CP4: 17169 | CS4: INDUSTRIAS MANUFACTURERAS | CT4: 59887 | CU4: 12564 | CV4: 8592 | CX4: =IF(CS3=0,"Total",PROPER(CS3)) -> Comercio Al Por Mayor Y Al Por Menor; Reparación De Vehículos Automotores Y Motocicletas | CY4: 0.7650909937 | CZ4: 0.1456596314 | DA4: 0.08924937496
C5: 68001 | D5: BUCARAMANGA | E5: 0 | F5: 0 | G5: Natural | H5: 68 | I5: SANTANDER | J5: 0 | K5: 0 | L5: 4771 | M5: COMERCIO AL POR MAYOR Y AL POR MENOR; REPARACIÓN DE VEHÍCULOS AUTOMOTORES Y MOTOCICLETAS | N5: G | O5: Comercio al por menor de otros productos en establecimientos especializados | P5: Comercio al por menor de otros productos en establecimientos especializados | Q5: 0 | R5: 0 | S5: 0 | T5: 0 | U5: 0 | V5: 0 | W5: 0 | X5: 0 | Z5: 5 | AA5: 5297 | AB5: 68 | AC5: 1251 | AD5: =VLOOKUP(AB5,Hoja4!$A$29:$B$61,2,FALSE) -> Santander | AJ5: 0 | AK5: 0 | AL5: 5001 | AM5: MEDELLÍN | AN5: 2 | AO5: 14 | AP5: Jurídica | AQ5: 5 | AR5: ANTIOQUIA | AS5: Aprobado con subsidio | AT5: PEQUEÑA | AU5: 9700 | AV5: ACTIVIDADES DE LOS HOGARES INDIVIDUALES EN CALIDAD DE EMPLEADORES; ACTIVIDADES NO DIFERENCIADAS DE LOS HOGARES INDIVIDUALES COMO PRODUCTORES DE BIENES Y SERVICIOS PARA USO PROPIO | AW5: T | AX5: Actividades de los hogares individuales como empleadores de personal doméstico | AY5: Actividades de los hogares individuales como empleadores de personal doméstico | AZ5: 2 | BA5: 0 | BB5: 0 | BC5: 0 | BD5: 2 | BE5: 0 | BF5: 2 | BG5: 0 | BJ5: 5 | BK5: 3 | BL5: 11 | BM5: 1 | BN5: =VLOOKUP(BL5,Hoja4!$A$29:$B$61,2,FALSE) -> Bogotá | BP5: Bogotá | BQ5: 1 | BR5: 29 | BT5: 5001 | BU5: 2 | BV5: 11001 | BW5: 1 | BX5: 11 | BY5: =VLOOKUP(BX5,Hoja4!$A$29:$B$61,2,FALSE) -> Bogotá | BZ5: =VLOOKUP(BV5,Hoja4!$D$29:$E$1150,2,FALSE) -> Bogotá, d.c. | CA5: 1 | CB5: 29 | CE5: 0 | CF5: 0 | CG5: 0 | CH5: 0 | CI5: 0 | CM5: COMERCIO AL POR MAYOR Y AL POR MENOR; REPARACIÓN DE VEHÍCULOS AUTOMOTORES Y MOTOCICLETAS | CN5: 65794 | CO5: 12526 | CP5: 7675 | CS5: CONSTRUCCIÓN | CT5: 41666 | CU5: 6827 | CV5: 35447 | CX5: Industrias Manufactureras | CY5: 0.7389533951 | CZ5: 0.1550288119 | DA5: 0.106017793
C6: 68001 | D6: BUCARAMANGA | E6: 0 | F6: 0 | G6: Natural | H6: 68 | I6: SANTANDER | J6: 0 | K6: 0 | L6: 1089 | M6: INDUSTRIAS MANUFACTURERAS | N6: C | O6: Elaboración de otros productos alimenticios | P6: Elaboración de productos alimenticios | Q6: 0 | R6: 0 | S6: 0 | T6: 0 | U6: 0 | V6: 0 | W6: 0 | X6: 0 | Z6: 76 | AA6: 2309 | AB6: 25 | AC6: 1245 | AD6: =VLOOKUP(AB6,Hoja4!$A$29:$B$61,2,FALSE) -> Cundinamarca | AJ6: 0 | AK6: 0 | AL6: 5001 | AM6: MEDELLÍN | AN6: 0 | AO6: 0 | AP6: Jurídica | AQ6: 5 | AR6: ANTIOQUIA | AS6: 0 | AT6: MICRO | AU6: 9820 | AV6: ACTIVIDADES DE LOS HOGARES INDIVIDUALES EN CALIDAD DE EMPLEADORES; ACTIVIDADES NO DIFERENCIADAS DE LOS HOGARES INDIVIDUALES COMO PRODUCTORES DE BIENES Y SERVICIOS PARA USO PROPIO | AW6: T | AX6: Actividades no diferenciadas de los hogares individuales como productores de servicios para uso propio | AY6: Actividades no diferenciadas de los hogares individuales como productores de servicios para uso propio | AZ6: 0 | BA6: 0 | BB6: 0 | BC6: 0 | BD6: 0 | BE6: 0 | BF6: 0 | BG6: 0 | BJ6: 76 | BK6: 0 | BL6: 50 | BM6: 1 | BN6: =VLOOKUP(BL6,Hoja4!$A$29:$B$61,2,FALSE) -> Meta | BP6: Meta | BQ6: 1 | BR6: 1 | BT6: 68001 | BU6: 1 | BV6: 68001 | BW6: 1 | BX6: 68 | BY6: =VLOOKUP(BX6,Hoja4!$A$29:$B$61,2,FALSE) -> Santander | BZ6: =VLOOKUP(BV6,Hoja4!$D$29:$E$1150,2,FALSE) -> Bucaramanga | CA6: 1 | CB6: 23 | CE6: 0 | CF6: 0 | CG6: 0 | CH6: 0 | CI6: 0 | CM6: INDUSTRIAS MANUFACTURERAS | CN6: 59887 | CO6: 12564 | CP6: 8592 | CS6: ALOJAMIENTO Y SERVICIOS DE COMIDA | CT6: 34759 | CU6: 8146 | CV6: 3391 | CX6: Construcción | CY6: 0.4963783655 | CZ6: 0.08133190374 | DA6: 0.4222897308
C7: 44430 | D7: MAICAO | E7: 0 | F7: 0 | G7: Natural | H7: 44 | I7: LA GUAJIRA | J7: 0 | K7: 0 | L7: 4530 | M7: COMERCIO AL POR MAYOR Y AL POR MENOR; REPARACIÓN DE VEHÍCULOS AUTOMOTORES Y MOTOCICLETAS | N7: G | O7: Comercio de partes, piezas (autopartes) y accesorios (lujos) para vehículos automotores | P7: Comercio de partes, piezas (autopartes) y accesorios (lujos) para vehículos automotores | Q7: 0 | R7: 0 | S7: 0 | T7: 0 | U7: 0 | V7: 0 | W7: 0 | X7: 0 | Z7: 54 | AA7: 654 | AB7: 8 | AC7: 967 | AD7: =VLOOKUP(AB7,Hoja4!$A$29:$B$61,2,FALSE) -> Atlántico | AJ7: 0 | AK7: 0 | AL7: 68001 | AM7: BUCARAMANGA | AN7: 23 | AO7: 46 | AP7: Jurídica | AQ7: 68 | AR7: SANTANDER | AS7: Aprobado con subsidio | AT7: PEQUEÑA | AU7: 9700 | AV7: ACTIVIDADES DE LOS HOGARES INDIVIDUALES EN CALIDAD DE EMPLEADORES; ACTIVIDADES NO DIFERENCIADAS DE LOS HOGARES INDIVIDUALES COMO PRODUCTORES DE BIENES Y SERVICIOS PARA USO PROPIO | AW7: T | AX7: Actividades de los hogares individuales como empleadores de personal doméstico | AY7: Actividades de los hogares individuales como empleadores de personal doméstico | AZ7: 23 | BA7: 0 | BB7: 0 | BC7: 9 | BD7: 14 | BE7: 0 | BF7: 23 | BG7: 0 | BJ7: 54 | BK7: 0 | BL7: 13 | BM7: 0 | BN7: =VLOOKUP(BL7,Hoja4!$A$29:$B$61,2,FALSE) -> Bolívar | BP7: Bolívar | BQ7: 0 | BR7: 0 | BT7: 25899 | BU7: 1 | BV7: 25899 | BW7: 1 | BX7: 25 | BY7: =VLOOKUP(BX7,Hoja4!$A$29:$B$61,2,FALSE) -> Cundinamarca | BZ7: =VLOOKUP(BV7,Hoja4!$D$29:$E$1150,2,FALSE) -> Zipaquirá | CA7: 1 | CB7: 23 | CE7: 0 | CF7: 0 | CG7: 0 | CH7: 0 | CI7: 0 | CM7: TRANSPORTE Y ALMACENAMIENTO | CN7: 22717 | CO7: 4077 | CP7: 9909 | CS7: INFORMACIÓN Y COMUNICACIONES | CT7: 32915 | CU7: 5091 | CV7: 5751 | CX7: Alojamiento Y Servicios De Comida | CY7: 0.7507992051 | CZ7: 0.1759547261 | DA7: 0.07324606877
C8: 5001 | D8: MEDELLÍN | E8: 2 | F8: 1 | G8: Natural | H8: 5 | I8: ANTIOQUIA | J8: Aprobado con subsidio | K8: MICRO | L8: 141 | M8: AGRICULTURA, GANADERÍA, CAZA, SILVICULTURA Y PESCA | N8: A | O8: Ganadería | P8: Ganadería | Q8: 0 | R8: 2 | S8: 0 | T8: 2 | U8: 0 | V8: 0 | W8: 2 | X8: 0 | Z8: 11 | AA8: 8398 | AB8: 54 | AC8: 654 | AD8: =VLOOKUP(AB8,Hoja4!$A$29:$B$61,2,FALSE) -> Norte de stder | AJ8: 0 | AK8: 0 | AL8: 25899 | AM8: ZIPAQUIRÁ | AN8: 23 | AO8: 31 | AP8: Jurídica | AQ8: 25 | AR8: CUNDINAMARCA | AS8: Aprobado con subsidio | AT8: MICRO | AU8: 9700 | AV8: ACTIVIDADES DE LOS HOGARES INDIVIDUALES EN CALIDAD DE EMPLEADORES; ACTIVIDADES NO DIFERENCIADAS DE LOS HOGARES INDIVIDUALES COMO PRODUCTORES DE BIENES Y SERVICIOS PARA USO PROPIO | AW8: T | AX8: Actividades de los hogares individuales como empleadores de personal doméstico | AY8: Actividades de los hogares individuales como empleadores de personal doméstico | AZ8: 23 | BA8: 0 | BB8: 0 | BC8: 1 | BD8: 22 | BE8: 0 | BF8: 23 | BG8: 0 | BJ8: 11 | BK8: 1 | BL8: 15 | BM8: 0 | BN8: =VLOOKUP(BL8,Hoja4!$A$29:$B$61,2,FALSE) -> Boyacá | BP8: Boyacá | BQ8: 0 | BR8: 0 | BT8: 25754 | BU8: 1 | BV8: 25754 | BW8: 1 | BX8: 25 | BY8: =VLOOKUP(BX8,Hoja4!$A$29:$B$61,2,FALSE) -> Cundinamarca | BZ8: =VLOOKUP(BV8,Hoja4!$D$29:$E$1150,2,FALSE) -> Soacha | CA8: 1 | CB8: 23 | CE8: 0 | CF8: 0 | CG8: 0 | CH8: 0 | CI8: 0 | CM8: OTRAS | CN8: 11 | CO8: 6 | CP8: 12 | CS8: ACTIVIDADES DE ATENCIÓN DE LA SALUD HUMANA Y DE ASISTENCIA SOCIAL | CT8: 31678 | CU8: 8740 | CV8: 1333 | CX8: Información Y Comunicaciones | CY8: 0.7522225015 | CZ8: 0.1163470987 | DA8: 0.1314303997
C9: 41001 | D9: NEIVA | E9: 0 | F9: 0 | G9: Natural | H9: 41 | I9: HUILA | J9: 0 | K9: 0 | L9: 4773 | M9: COMERCIO AL POR MAYOR Y AL POR MENOR; REPARACIÓN DE VEHÍCULOS AUTOMOTORES Y MOTOCICLETAS | N9: G | O9: Comercio al por menor de otros productos en establecimientos especializados | P9: Comercio al por menor de otros productos en establecimientos especializados | Q9: 0 | R9: 0 | S9: 0 | T9: 0 | U9: 0 | V9: 0 | W9: 0 | X9: 0 | Z9: 66 | AA9: 612 | AB9: 66 | AC9: 612 | AD9: =VLOOKUP(AB9,Hoja4!$A$29:$B$61,2,FALSE) -> Risaralda | AJ9: 0 | AK9: 0 | AL9: 5001 | AM9: MEDELLÍN | AN9: 5 | AO9: 6 | AP9: Jurídica | AQ9: 5 | AR9: ANTIOQUIA | AS9: Aprobado con subsidio | AT9: MICRO | AU9: 9700 | AV9: ACTIVIDADES DE LOS HOGARES INDIVIDUALES EN CALIDAD DE EMPLEADORES; ACTIVIDADES NO DIFERENCIADAS DE LOS HOGARES INDIVIDUALES COMO PRODUCTORES DE BIENES Y SERVICIOS PARA USO PROPIO | AW9: T | AX9: Actividades de los hogares individuales como empleadores de personal doméstico | AY9: Actividades de los hogares individuales como empleadores de personal doméstico | AZ9: 5 | BA9: 0 | BB9: 0 | BC9: 2 | BD9: 3 | BE9: 0 | BF9: 5 | BG9: 0 | BJ9: 66 | BK9: 0 | BL9: 76 | BM9: 0 | BN9: =VLOOKUP(BL9,Hoja4!$A$29:$B$61,2,FALSE) -> Valle del cauca | BP9: Valle del cauca | BQ9: 0 | BR9: 0 | BT9: 50001 | BU9: 1 | BV9: 50001 | BW9: 1 | BX9: 50 | BY9: =VLOOKUP(BX9,Hoja4!$A$29:$B$61,2,FALSE) -> Meta | BZ9: =VLOOKUP(BV9,Hoja4!$D$29:$E$1150,2,FALSE) -> Villavicencio | CA9: 1 | CB9: 1 | CE9: 0 | CF9: 0 | CG9: 0 | CH9: 0 | CI9: 0 | CM9: ACTIVIDADES PROFESIONALES, CIENTÍFICAS Y TÉCNICAS | CN9: 27350 | CO9: 6664 | CP9: 8067 | CS9: ACTIVIDADES PROFESIONALES, CIENTÍFICAS Y TÉCNICAS | CT9: 27350 | CU9: 6664 | CV9: 8067 | CX9: Actividades De Atención De La Salud Humana Y De Asistencia Social | CY9: 0.7587363177 | CZ9: 0.2093363033 | DA9: 0.03192737898
C10: 25307 | D10: GIRARDOT | E10: 1 | F10: 3 | G10: Natural | H10: 25 | I10: CUNDINAMARCA | J10: Aprobado con subsidio | K10: MICRO | L10: 4530 | M10: COMERCIO AL POR MAYOR Y AL POR MENOR; REPARACIÓN DE VEHÍCULOS AUTOMOTORES Y MOTOCICLETAS | N10: G | O10: Comercio de partes, piezas (autopartes) y accesorios (lujos) para vehículos automotores | P10: Comercio de partes, piezas (autopartes) y accesorios (lujos) para vehículos automotores | Q10: 1 | R10: 0 | S10: 0 | T10: 1 | U10: 0 | V10: 0 | W10: 1 | X10: 0 | Z10: 52 | AA10: 360 | AB10: 13 | AC10: 501 | AD10: =VLOOKUP(AB10,Hoja4!$A$29:$B$61,2,FALSE) -> Bolívar | AJ10: 0 | AK10: 0 | AL10: 11001 | AM10: BOGOTÁ, D.C. | AN10: 0 | AO10: 0 | AP10: Jurídica | AQ10: 11 | AR10: BOGOTÁ, D.C. | AS10: 0 | AT10: PEQUEÑA | AU10: 9700 | AV10: ACTIVIDADES DE LOS HOGARES INDIVIDUALES EN CALIDAD DE EMPLEADORES; ACTIVIDADES NO DIFERENCIADAS DE LOS HOGARES INDIVIDUALES COMO PRODUCTORES DE BIENES Y SERVICIOS PARA USO PROPIO | AW10: T | AX10: Actividades de los hogares individuales como empleadores de personal doméstico | AY10: Actividades de los hogares individuales como empleadores de personal doméstico | AZ10: 0 | BA10: 0 | BB10: 0 | BC10: 0 | BD10: 0 | BE10: 0 | BF10: 0 | BG10: 0 | BJ10: 52 | BK10: 0 | BL10: 54 | BM10: 0 | BN10: =VLOOKUP(BL10,Hoja4!$A$29:$B$61,2,FALSE) -> Norte de stder | BP10: Norte de stder | BQ10: 0 | BR10: 0 | BT10: 66001 | BU10: 0 | BV10: 66001 | BW10: 0 | BX10: 66 | BY10: =VLOOKUP(BX10,Hoja4!$A$29:$B$61,2,FALSE) -> Risaralda | BZ10: =VLOOKUP(BV10,Hoja4!$D$29:$E$1150,2,FALSE) -> Pereira | CA10: 0 | CB10: 0 | CE10: 0 | CF10: 0 | CG10: 0 | CH10: 0 | CI10: 0 | CM10: EDUCACIÓN | CN10: 8751 | CO10: 3977 | CP10: 506 | CS10: TRANSPORTE Y ALMACENAMIENTO | CT10: 22717 | CU10: 4077 | CV10: 9909 | CX10: Actividades Profesionales, Científicas Y Técnicas | CY10: 0.6499370262 | CZ10: 0.1583612557 | DA10: 0.1917017181
C11: 54001 | D11: CÚCUTA | E11: 0 | F11: 0 | G11: Natural | H11: 54 | I11: NORTE DE SANTANDER | J11: 0 | K11: 0 | L11: 5611 | M11: ALOJAMIENTO Y SERVICIOS DE COMIDA | N11: I | O11: Actividades de restaurantes, cafeterías y servicio móvil de comidas | P11: Actividades de restaurantes, cafeterías y servicio móvil de comidas | Q11: 0 | R11: 0 | S11: 0 | T11: 0 | U11: 0 | V11: 0 | W11: 0 | X11: 0 | Z11: 19 | AA11: 163 | AB11: 73 | AC11: 465 | AD11: =VLOOKUP(AB11,Hoja4!$A$29:$B$61,2,FALSE) -> Tolima | AJ11: 0 | AK11: 0 | AL11: 11001 | AM11: BOGOTÁ, D.C. | AN11: 0 | AO11: 0 | AP11: Jurídica | AQ11: 11 | AR11: BOGOTÁ, D.C. | AS11: 0 | AT11: PEQUEÑA | AU11: 9700 | AV11: ACTIVIDADES DE LOS HOGARES INDIVIDUALES EN CALIDAD DE EMPLEADORES; ACTIVIDADES NO DIFERENCIADAS DE LOS HOGARES INDIVIDUALES COMO PRODUCTORES DE BIENES Y SERVICIOS PARA USO PROPIO | AW11: T | AX11: Actividades de los hogares individuales como empleadores de personal doméstico | AY11: Actividades de los hogares individuales como empleadores de personal doméstico | AZ11: 0 | BA11: 0 | BB11: 0 | BC11: 0 | BD11: 0 | BE11: 0 | BF11: 0 | BG11: 0 | BJ11: 19 | BK11: 0 | BL11: 66 | BM11: 0 | BN11: =VLOOKUP(BL11,Hoja4!$A$29:$B$61,2,FALSE) -> Risaralda | BP11: Risaralda | BQ11: 0 | BR11: 0 | BT11: 0 | BU11: 0 | BV11: 0 | BW11: 0 | BX11: 0 | BY11: =VLOOKUP(BX11,Hoja4!$A$29:$B$61,2,FALSE) ->  | BZ11: =VLOOKUP(BV11,Hoja4!$D$29:$E$1150,2,FALSE) ->  | CA11: 0 | CB11: 0 | CE11: 0 | CF11: 0 | CG11: 0 | CH11: 0 | CI11: 0 | CM11: CONSTRUCCIÓN | CN11: 41666 | CO11: 6827 | CP11: 35447 | CS11: AGRICULTURA, GANADERÍA, CAZA, SILVICULTURA Y PESCA | CT11: 19715 | CU11: 2191 | CV11: 2669 | CX11: Transporte Y Almacenamiento | CY11: 0.618941231 | CZ11: 0.1110808381 | DA11: 0.269977931
C12: 5001 | D12: MEDELLÍN | E12: 0 | F12: 1 | G12: Natural | H12: 5 | I12: ANTIOQUIA | J12: 0 | K12: MICRO | L12: 3315 | M12: INDUSTRIAS MANUFACTURERAS | N12: C | O12: Mantenimiento y reparación especializado de productos elaborados en metal y de maquinaria y equipo | P12: Instalación, mantenimiento y reparación especializado de maquinaria y equipo | Q12: 0 | R12: 0 | S12: 0 | T12: 0 | U12: 0 | V12: 0 | W12: 0 | X12: 0 | Z12: 47 | AA12: 243 | AB12: 50 | AC12: 446 | AD12: =VLOOKUP(AB12,Hoja4!$A$29:$B$61,2,FALSE) -> Meta | AJ12: 0 | AK12: 0 | AL12: 11001 | AM12: BOGOTÁ, D.C. | AN12: 29 | AO12: 60 | AP12: Jurídica | AQ12: 11 | AR12: BOGOTÁ, D.C. | AS12: Aprobado con subsidio | AT12: PEQUEÑA | AU12: 9700 | AV12: ACTIVIDADES DE LOS HOGARES INDIVIDUALES EN CALIDAD DE EMPLEADORES; ACTIVIDADES NO DIFERENCIADAS DE LOS HOGARES INDIVIDUALES COMO PRODUCTORES DE BIENES Y SERVICIOS PARA USO PROPIO | AW12: T | AX12: Actividades de los hogares individuales como empleadores de personal doméstico | AY12: Actividades de los hogares individuales como empleadores de personal doméstico | AZ12: 21 | BA12: 8 | BB12: 0 | BC12: 20 | BD12: 9 | BE12: 0 | BF12: 29 | BG12: 0 | BJ12: 47 | BK12: 0 | BL12: 52 | BM12: 0 | BN12: =VLOOKUP(BL12,Hoja4!$A$29:$B$61,2,FALSE) -> Nariño | BP12: Nariño | BQ12: 0 | BR12: 0 | BU12: 0 | BV12: 0 | BW12: 0 | BX12: 0 | BY12: =VLOOKUP(BX12,Hoja4!$A$29:$B$61,2,FALSE) ->  | BZ12: =VLOOKUP(BV12,Hoja4!$D$29:$E$1150,2,FALSE) ->  | CA12: 0 | CB12: 0 | CE12: 0 | CF12: 0 | CG12: 0 | CH12: 0 | CI12: 0 | CM12: ACTIVIDADES ARTÍSTICAS, DE ENTRETENIMIENTO Y RECREACIÓN | CN12: 7858 | CO12: 1892 | CP12: 538 | CS12: EDUCACIÓN | CT12: 8751 | CU12: 3977 | CV12: 506 | CX12: Agricultura, Ganadería, Caza, Silvicultura Y Pesca | CY12: 0.8022380468 | CZ12: 0.08915564598 | DA12: 0.1086063072
C13: 5001 | D13: MEDELLÍN | E13: 0 | F13: 0 | G13: Natural | H13: 5 | I13: ANTIOQUIA | J13: 0 | K13: PEQUEÑA | L13: 5611 | M13: ALOJAMIENTO Y SERVICIOS DE COMIDA | N13: I | O13: Actividades de restaurantes, cafeterías y servicio móvil de comidas | P13: Actividades de restaurantes, cafeterías y servicio móvil de comidas | Q13: 0 | R13: 0 | S13: 0 | T13: 0 | U13: 0 | V13: 0 | W13: 0 | X13: 0 | Z13: 50 | AA13: 446 | AB13: 17 | AC13: 438 | AD13: =VLOOKUP(AB13,Hoja4!$A$29:$B$61,2,FALSE) -> Caldas | AJ13: 0 | AK13: 0 | AL13: 25754 | AM13: SOACHA | AN13: 23 | AO13: 21 | AP13: Jurídica | AQ13: 25 | AR13: CUNDINAMARCA | AS13: Aprobado con subsidio | AT13: MICRO | AU13: 9700 | AV13: ACTIVIDADES DE LOS HOGARES INDIVIDUALES EN CALIDAD DE EMPLEADORES; ACTIVIDADES NO DIFERENCIADAS DE LOS HOGARES INDIVIDUALES COMO PRODUCTORES DE BIENES Y SERVICIOS PARA USO PROPIO | AW13: T | AX13: Actividades de los hogares individuales como empleadores de personal doméstico | AY13: Actividades de los hogares individuales como empleadores de personal doméstico | AZ13: 22 | BA13: 0 | BB13: 1 | BC13: 4 | BD13: 19 | BE13: 0 | BF13: 21 | BG13: 2 | BJ13: 50 | BK13: 1 | BL13: 19 | BM13: 0 | BN13: =VLOOKUP(BL13,Hoja4!$A$29:$B$61,2,FALSE) -> Cauca | BP13: Cauca | BQ13: 0 | BR13: 0 | BU13: 0 | BV13: 0 | BW13: 0 | BX13: 0 | BY13: =VLOOKUP(BX13,Hoja4!$A$29:$B$61,2,FALSE) ->  | BZ13: =VLOOKUP(BV13,Hoja4!$D$29:$E$1150,2,FALSE) ->  | CA13: 0 | CB13: 0 | CE13: 0 | CF13: 0 | CG13: 0 | CH13: 0 | CI13: 0 | CM13: ACTIVIDADES INMOBILIARIAS | CN13: 2194 | CO13: 737 | CP13: 566 | CS13: ACTIVIDADES ARTÍSTICAS, DE ENTRETENIMIENTO Y RECREACIÓN | CT13: 7858 | CU13: 1892 | CV13: 538 | CX13: Educación | CY13: 0.6612513224 | CZ13: 0.300513828 | DA13: 0.03823484963
C14: 5001 | D14: MEDELLÍN | E14: 4 | F14: 0 | G14: Natural | H14: 5 | I14: ANTIOQUIA | J14: Aprobado con subsidio | K14: MICRO | L14: 5611 | M14: ALOJAMIENTO Y SERVICIOS DE COMIDA | N14: I | O14: Actividades de restaurantes, cafeterías y servicio móvil de comidas | P14: Actividades de restaurantes, cafeterías y servicio móvil de comidas | Q14: 1 | R14: 3 | S14: 0 | T14: 3 | U14: 0 | V14: 1 | W14: 3 | X14: 1 | Z14: 63 | AA14: 322 | AB14: 15 | AC14: 391 | AD14: =VLOOKUP(AB14,Hoja4!$A$29:$B$61,2,FALSE) -> Boyacá | AJ14: 0 | AK14: 0 | AL14: 50001 | AM14: VILLAVICENCIO | AN14: 1 | AO14: 1 | AP14: Jurídica | AQ14: 50 | AR14: META | AS14: Aprobado con subsidio | AT14: MICRO | AU14: 9700 | AV14: ACTIVIDADES DE LOS HOGARES INDIVIDUALES EN CALIDAD DE EMPLEADORES; ACTIVIDADES NO DIFERENCIADAS DE LOS HOGARES INDIVIDUALES COMO PRODUCTORES DE BIENES Y SERVICIOS PARA USO PROPIO | AW14: T | AX14: Actividades de los hogares individuales como empleadores de personal doméstico | AY14: Actividades de los hogares individuales como empleadores de personal doméstico | AZ14: 1 | BA14: 0 | BB14: 0 | BC14: 0 | BD14: 1 | BE14: 0 | BF14: 1 | BG14: 0 | BJ14: 63 | BK14: 0 | BL14: 47 | BM14: 0 | BN14: =VLOOKUP(BL14,Hoja4!$A$29:$B$61,2,FALSE) -> Magdalena | BP14: Magdalena | BQ14: 0 | BR14: 0 | BU14: 0 | BV14: 0 | BW14: 0 | BX14: 0 | BY14: =VLOOKUP(BX14,Hoja4!$A$29:$B$61,2,FALSE) ->  | BZ14: =VLOOKUP(BV14,Hoja4!$D$29:$E$1150,2,FALSE) ->  | CA14: 0 | CB14: 0 | CE14: 0 | CF14: 0 | CG14: 0 | CH14: 0 | CI14: 0 | CM14: EXPLOTACIÓN DE MINAS Y CANTERAS | CN14: 2952 | CO14: 327 | CP14: 1450 | CS14: ACTIVIDADES FINANCIERAS Y DE SEGUROS | CT14: 5710 | CU14: 2638 | CV14: 675 | CX14: Actividades Artísticas, De Entretenimiento Y Recreación | CY14: 0.7638024883 | CZ14: 0.183903577 | DA14: 0.05229393468
C15: 11001 | D15: BOGOTÁ, D.C. | E15: 6 | F15: 3 | G15: Natural | H15: 11 | I15: BOGOTÁ, D.C. | J15: Aprobado con subsidio | K15: MICRO | L15: 4663 | M15: COMERCIO AL POR MAYOR Y AL POR MENOR; REPARACIÓN DE VEHÍCULOS AUTOMOTORES Y MOTOCICLETAS | N15: G | O15: Comercio al por mayor especializado de otros productos | P15: Comercio al por mayor especializado de otros productos | Q15: 1 | R15: 5 | S15: 0 | T15: 6 | U15: 0 | V15: 0 | W15: 6 | X15: 0 | Z15: 70 | AA15: 99 | AB15: 41 | AC15: 391 | AD15: =VLOOKUP(AB15,Hoja4!$A$29:$B$61,2,FALSE) -> Huila | AJ15: 0 | AK15: 0 | AL15: 5001 | AM15: MEDELLÍN | AN15: 0 | AO15: 0 | AP15: Jurídica | AQ15: 5 | AR15: ANTIOQUIA | AS15: 0 | AT15: MICRO | AU15: 9700 | AV15: ACTIVIDADES DE LOS HOGARES INDIVIDUALES EN CALIDAD DE EMPLEADORES; ACTIVIDADES NO DIFERENCIADAS DE LOS HOGARES INDIVIDUALES COMO PRODUCTORES DE BIENES Y SERVICIOS PARA USO PROPIO | AW15: T | AX15: Actividades de los hogares individuales como empleadores de personal doméstico | AY15: Actividades de los hogares individuales como empleadores de personal doméstico | AZ15: 0 | BA15: 0 | BB15: 0 | BC15: 0 | BD15: 0 | BE15: 0 | BF15: 0 | BG15: 0 | BJ15: 70 | BK15: 0 | BL15: 63 | BM15: 0 | BN15: =VLOOKUP(BL15,Hoja4!$A$29:$B$61,2,FALSE) -> Quindío | BP15: Quindío | BQ15: 0 | BR15: 0 | BU15: 0 | BV15: 0 | BW15: 0 | BX15: 0 | BY15: =VLOOKUP(BX15,Hoja4!$A$29:$B$61,2,FALSE) ->  | BZ15: =VLOOKUP(BV15,Hoja4!$D$29:$E$1150,2,FALSE) ->  | CA15: 0 | CB15: 0 | CE15: 0 | CF15: 0 | CG15: 0 | CH15: 0 | CI15: 0 | CM15: OTRAS ACTIVIDADES DE SERVICIOS | CN15: 5595 | CO15: 2369 | CP15: 762 | CS15: OTRAS ACTIVIDADES DE SERVICIOS | CT15: 5595 | CU15: 2369 | CV15: 762 | CX15: Actividades Financieras Y De Seguros | CY15: 0.6328272193 | CZ15: 0.2923639588 | DA15: 0.0748088219
C16: 15176 | D16: CHIQUINQUIRÁ | E16: 4 | F16: 1 | G16: Natural | H16: 15 | I16: BOYACÁ | J16: Aprobado con subsidio | K16: MICRO | L16: 4752 | M16: COMERCIO AL POR MAYOR Y AL POR MENOR; REPARACIÓN DE VEHÍCULOS AUTOMOTORES Y MOTOCICLETAS | N16: G | O16: Comercio al por menor de otros enseres domésticos en establecimientos especializados | P16: Comercio al por menor de otros enseres domésticos en establecimientos especializados | Q16: 2 | R16: 2 | S16: 0 | T16: 2 | U16: 1 | V16: 1 | W16: 4 | X16: 0 | Z16: 41 | AA16: 391 | AB16: 52 | AC16: 360 | AD16: =VLOOKUP(AB16,Hoja4!$A$29:$B$61,2,FALSE) -> Nariño | AJ16: 0 | AK16: 0 | AL16: 66001 | AM16: PEREIRA | AN16: 0 | AO16: 0 | AP16: Natural | AQ16: 66 | AR16: RISARALDA | AS16: 0 | AT16: MICRO | AU16: 9700 | AV16: ACTIVIDADES DE LOS HOGARES INDIVIDUALES EN CALIDAD DE EMPLEADORES; ACTIVIDADES NO DIFERENCIADAS DE LOS HOGARES INDIVIDUALES COMO PRODUCTORES DE BIENES Y SERVICIOS PARA USO PROPIO | AW16: T | AX16: Actividades de los hogares individuales como empleadores de personal doméstico | AY16: Actividades de los hogares individuales como empleadores de personal doméstico | AZ16: 0 | BA16: 0 | BB16: 0 | BC16: 0 | BD16: 0 | BE16: 0 | BF16: 0 | BG16: 0 | BJ16: 41 | BK16: 0 | BL16: 70 | BM16: 0 | BN16: =VLOOKUP(BL16,Hoja4!$A$29:$B$61,2,FALSE) -> Sucre | BP16: Sucre | BQ16: 0 | BR16: 0 | BU16: 0 | BV16: 0 | BW16: 0 | BX16: 0 | BY16: =VLOOKUP(BX16,Hoja4!$A$29:$B$61,2,FALSE) ->  | BZ16: =VLOOKUP(BV16,Hoja4!$D$29:$E$1150,2,FALSE) ->  | CA16: 0 | CB16: 0 | CE16: 0 | CF16: 0 | CG16: 0 | CH16: 0 | CI16: 0 | CM16: ACTIVIDADES FINANCIERAS Y DE SEGUROS | CN16: 5710 | CO16: 2638 | CP16: 675 | CS16: ADMINISTRACIÓN PÚBLICA Y DEFENSA; PLANES DE SEGURIDAD SOCIAL DE AFILIACIÓN OBLIGATORIA | CT16: 4966 | CU16: 1759 | CV16: 7 | CX16: Otras Actividades De Servicios | CY16: 0.6411872565 | CZ16: 0.2714875086 | DA16: 0.08732523493
C17: 76001 | D17: CALI | E17: 1 | F17: 0 | G17: Natural | H17: 76 | I17: VALLE DEL CAUCA | J17: Aprobado con subsidio | K17: MICRO | L17: 4774 | M17: COMERCIO AL POR MAYOR Y AL POR MENOR; REPARACIÓN DE VEHÍCULOS AUTOMOTORES Y MOTOCICLETAS | N17: G | O17: Comercio al por menor de otros productos en establecimientos especializados | P17: Comercio al por menor de otros productos en establecimientos especializados | Q17: 0 | R17: 1 | S17: 0 | T17: 1 | U17: 0 | V17: 0 | W17: 1 | X17: 0 | Z17: 25 | AA17: 1245 | AB17: 63 | AC17: 322 | AD17: =VLOOKUP(AB17,Hoja4!$A$29:$B$61,2,FALSE) -> Quindío | BJ17: 25 | BK17: 3 | BL17: 41 | BM17: 0 | BN17: =VLOOKUP(BL17,Hoja4!$A$29:$B$61,2,FALSE) -> Huila | BP17: Huila | BQ17: 0 | BR17: 0 | BU17: 0 | BV17: 0 | BW17: 0 | BX17: 0 | BY17: =VLOOKUP(BX17,Hoja4!$A$29:$B$61,2,FALSE) ->  | BZ17: =VLOOKUP(BV17,Hoja4!$D$29:$E$1150,2,FALSE) ->  | CA17: 0 | CB17: 0 | CE17: 0 | CF17: 0 | CG17: 0 | CH17: 0 | CI17: 0 | CM17: DISTRIBUCIÓN DE AGUA; EVACUACIÓN Y TRATAMIENTO DE AGUAS RESIDUALES, GESTIÓN DE DESECHOS Y ACTIVIDADES DE SANEAMIENTO AMBIENTAL | CN17: 1839 | CO17: 335 | CP17: 931 | CS17: EXPLOTACIÓN DE MINAS Y CANTERAS | CT17: 2952 | CU17: 327 | CV17: 1450 | CX17: Administración Pública Y Defensa; Planes De Seguridad Social De Afiliación Obligatoria | CY17: 0.7376708259 | CZ17: 0.2612893642 | DA17: 0.001039809863
C18: 76001 | D18: CALI | E18: 2 | F18: 1 | G18: Natural | H18: 76 | I18: VALLE DEL CAUCA | J18: Aprobado con subsidio | K18: MICRO | L18: 5511 | M18: ALOJAMIENTO Y SERVICIOS DE COMIDA | N18: I | O18: Actividades de alojamiento de estancias cortas | P18: Actividades de alojamiento de estancias cortas | Q18: 2 | R18: 0 | S18: 0 | T18: 2 | U18: 0 | V18: 0 | W18: 2 | X18: 0 | Z18: 8 | AA18: 967 | AB18: 47 | AC18: 243 | AD18: =VLOOKUP(AB18,Hoja4!$A$29:$B$61,2,FALSE) -> Magdalena | BJ18: 8 | BK18: 0 | BL18: 8 | BM18: 0 | BN18: =VLOOKUP(BL18,Hoja4!$A$29:$B$61,2,FALSE) -> Atlántico | BP18: Atlántico | BQ18: 0 | BR18: 0 | BU18: 0 | BV18: 0 | BW18: 0 | BX18: 0 | BY18: =VLOOKUP(BX18,Hoja4!$A$29:$B$61,2,FALSE) ->  | BZ18: =VLOOKUP(BV18,Hoja4!$D$29:$E$1150,2,FALSE) ->  | CA18: 0 | CB18: 0 | CE18: 0 | CF18: 0 | CG18: 0 | CH18: 0 | CI18: 0 | CM18: ACTIVIDADES DE ATENCIÓN DE LA SALUD HUMANA Y DE ASISTENCIA SOCIAL | CN18: 31678 | CO18: 8740 | CP18: 1333 | CS18: ACTIVIDADES INMOBILIARIAS | CT18: 2194 | CU18: 737 | CV18: 566 | CX18: Explotación De Minas Y Canteras | CY18: 0.6242334532 | CZ18: 0.06914781138 | DA18: 0.3066187355
C19: 41001 | D19: NEIVA | E19: 4 | F19: 0 | G19: Natural | H19: 41 | I19: HUILA | J19: Aprobado con subsidio | K19: MICRO | L19: 4729 | M19: COMERCIO AL POR MAYOR Y AL POR MENOR; REPARACIÓN DE VEHÍCULOS AUTOMOTORES Y MOTOCICLETAS | N19: G | O19: Comercio al por menor de alimentos (víveres en general), bebidas y tabaco, en establecimientos especializados | P19: Comercio al por menor de alimentos (víveres en general), bebidas y tabaco, en establecimientos especializados | Q19: 4 | R19: 0 | S19: 0 | T19: 1 | U19: 3 | V19: 0 | W19: 4 | X19: 0 | Z19: 85 | AA19: 152 | AB19: 23 | AC19: 230 | AD19: =VLOOKUP(AB19,Hoja4!$A$29:$B$61,2,FALSE) -> Córdoba | BJ19: 85 | BK19: 0 | BL19: 85 | BM19: 0 | BN19: =VLOOKUP(BL19,Hoja4!$A$29:$B$61,2,FALSE) -> Casanare | BP19: Casanare | BQ19: 0 | BR19: 0 | BU19: 0 | BV19: 0 | BW19: 0 | BX19: 0 | BY19: =VLOOKUP(BX19,Hoja4!$A$29:$B$61,2,FALSE) ->  | BZ19: =VLOOKUP(BV19,Hoja4!$D$29:$E$1150,2,FALSE) ->  | CA19: 0 | CB19: 0 | CE19: 0 | CF19: 0 | CG19: 0 | CH19: 0 | CI19: 0 | CM19: INFORMACIÓN Y COMUNICACIONES | CN19: 32915 | CO19: 5091 | CP19: 5751 | CS19: DISTRIBUCIÓN DE AGUA; EVACUACIÓN Y TRATAMIENTO DE AGUAS RESIDUALES, GESTIÓN DE DESECHOS Y ACTIVIDADES DE SANEAMIENTO AMBIENTAL | CT19: 1839 | CU19: 335 | CV19: 931 | CX19: Actividades Inmobiliarias | CY19: 0.6273949099 | CZ19: 0.2107520732 | DA19: 0.1618530169
C20: 52356 | D20: IPIALES | E20: 2 | F20: 0 | G20: Natural | H20: 52 | I20: NARIÑO | J20: Aprobado con subsidio | K20: MICRO | L20: 4923 | M20: TRANSPORTE Y ALMACENAMIENTO | N20: H | O20: Transporte terrestre publico automotor | P20: Transporte terrestre publico automotor | Q20: 0 | R20: 2 | S20: 0 | T20: 0 | U20: 0 | V20: 2 | W20: 2 | X20: 0 | Z20: 73 | AA20: 465 | AB20: 20 | AC20: 197 | AD20: =VLOOKUP(AB20,Hoja4!$A$29:$B$61,2,FALSE) -> Cesar | BJ20: 73 | BK20: 0 | BL20: 73 | BM20: 0 | BN20: =VLOOKUP(BL20,Hoja4!$A$29:$B$61,2,FALSE) -> Tolima | BP20: Tolima | BQ20: 0 | BR20: 0 | BU20: 0 | BV20: 0 | BW20: 0 | BX20: 0 | BY20: =VLOOKUP(BX20,Hoja4!$A$29:$B$61,2,FALSE) ->  | BZ20: =VLOOKUP(BV20,Hoja4!$D$29:$E$1150,2,FALSE) ->  | CA20: 0 | CB20: 0 | CE20: 0 | CF20: 0 | CG20: 0 | CH20: 0 | CI20: 0 | CM20: ACTIVIDADES DE LOS HOGARES INDIVIDUALES EN CALIDAD DE EMPLEADORES; ACTIVIDADES NO DIFERENCIADAS DE LOS HOGARES INDIVIDUALES COMO PRODUCTORES DE BIENES Y SERVICIOS PARA USO PROPIO | CN20: 42 | CO20: 70 | CP20: 0 | CS20: SUMINISTRO DE ELECTRICIDAD, GAS, VAPOR Y AIRE ACONDICIONADO | CT20: 467 | CU20: 94 | CV20: 102 | CX20: Distribución De Agua; Evacuación Y Tratamiento De Aguas Residuales, Gestión De Desechos Y Actividades De Saneamiento Ambiental | CY20: 0.5922705314 | CZ20: 0.1078904992 | DA20: 0.2998389694
C21: 54001 | D21: CÚCUTA | E21: 12 | F21: 12 | G21: Natural | H21: 54 | I21: NORTE DE SANTANDER | J21: Aprobado con subsidio | K21: PEQUEÑA | L21: 90 | M21: OTRAS | N21: Otras | O21: Otras | P21: Otras | Q21: 3 | R21: 9 | S21: 0 | T21: 2 | U21: 2 | V21: 8 | W21: 12 | X21: 0 | Z21: 20 | AA21: 197 | AB21: 19 | AC21: 163 | AD21: =VLOOKUP(AB21,Hoja4!$A$29:$B$61,2,FALSE) -> Cauca | BJ21: 20 | BK21: 0 | BL21: 20 | BM21: 0 | BN21: =VLOOKUP(BL21,Hoja4!$A$29:$B$61,2,FALSE) -> Cesar | BP21: Cesar | BQ21: 0 | BR21: 0 | BU21: 0 | BV21: 0 | BW21: 0 | BX21: 0 | BY21: =VLOOKUP(BX21,Hoja4!$A$29:$B$61,2,FALSE) ->  | BZ21: =VLOOKUP(BV21,Hoja4!$D$29:$E$1150,2,FALSE) ->  | CA21: 0 | CB21: 0 | CE21: 0 | CF21: 0 | CG21: 0 | CH21: 0 | CI21: 0 | CM21: SUMINISTRO DE ELECTRICIDAD, GAS, VAPOR Y AIRE ACONDICIONADO | CN21: 467 | CO21: 94 | CP21: 102 | CS21: ACTIVIDADES DE LOS HOGARES INDIVIDUALES EN CALIDAD DE EMPLEADORES; ACTIVIDADES NO DIFERENCIADAS DE LOS HOGARES INDIVIDUALES COMO PRODUCTORES DE BIENES Y SERVICIOS PARA USO PROPIO | CT21: 42 | CU21: 70 | CV21: 0 | CX21: Suministro De Electricidad, Gas, Vapor Y Aire Acondicionado | CY21: 0.7043740573 | CZ21: 0.1417797888 | DA21: 0.1538461538
C22: 54405 | D22: LOS PATIOS | E22: 2 | F22: 0 | G22: Natural | H22: 54 | I22: NORTE DE SANTANDER | J22: Aprobado con subsidio | K22: MICRO | L22: 4923 | M22: TRANSPORTE Y ALMACENAMIENTO | N22: H | O22: Transporte terrestre publico automotor | P22: Transporte terrestre publico automotor | Q22: 1 | R22: 1 | S22: 0 | T22: 1 | U22: 0 | V22: 1 | W22: 2 | X22: 0 | Z22: 97 | AA22: 2 | AB22: 85 | AC22: 152 | AD22: =VLOOKUP(AB22,Hoja4!$A$29:$B$61,2,FALSE) -> Casanare | BJ22: 97 | BK22: 0 | BL22: 97 | BM22: 0 | BN22: =VLOOKUP(BL22,Hoja4!$A$29:$B$61,2,FALSE) -> Vaupés | BP22: Vaupés | BQ22: 0 | BR22: 0 | BU22: 0 | BV22: 0 | BW22: 0 | BX22: 0 | BY22: =VLOOKUP(BX22,Hoja4!$A$29:$B$61,2,FALSE) ->  | BZ22: =VLOOKUP(BV22,Hoja4!$D$29:$E$1150,2,FALSE) ->  | CA22: 0 | CB22: 0 | CE22: 0 | CF22: 0 | CG22: 0 | CH22: 0 | CI22: 0 | CM22: ADMINISTRACIÓN PÚBLICA Y DEFENSA; PLANES DE SEGURIDAD SOCIAL DE AFILIACIÓN OBLIGATORIA | CN22: 4966 | CO22: 1759 | CP22: 7 | CS22: OTRAS | CT22: 11 | CU22: 6 | CV22: 12 | CX22: Actividades De Los Hogares Individuales En Calidad De Empleadores; Actividades No Diferenciadas De Los Hogares Individuales Como Productores De Bienes Y Servicios Para Uso Propio | CY22: 0.375 | CZ22: 0.625 | DA22: 0
C23: 68276 | D23: FLORIDABLANCA | E23: 1 | F23: 2 | G23: Natural | H23: 68 | I23: SANTANDER | J23: Aprobado con subsidio | K23: MICRO | L23: 126 | M23: AGRICULTURA, GANADERÍA, CAZA, SILVICULTURA Y PESCA | N23: A | O23: Cultivos agrícolas permanentes | P23: Cultivos agrícolas permanentes | Q23: 0 | R23: 1 | S23: 0 | T23: 1 | U23: 0 | V23: 0 | W23: 1 | X23: 0 | Z23: 81 | AA23: 54 | AB23: 18 | AC23: 106 | AD23: =VLOOKUP(AB23,Hoja4!$A$29:$B$61,2,FALSE) -> Caquetá | BJ23: 81 | BK23: 0 | BL23: 81 | BM23: 0 | BN23: =VLOOKUP(BL23,Hoja4!$A$29:$B$61,2,FALSE) -> Arauca | BP23: Arauca | BQ23: 0 | BR23: 0 | BU23: 0 | BV23: 0 | BW23: 0 | BX23: 0 | BY23: =VLOOKUP(BX23,Hoja4!$A$29:$B$61,2,FALSE) ->  | BZ23: =VLOOKUP(BV23,Hoja4!$D$29:$E$1150,2,FALSE) ->  | CA23: 0 | CB23: 0 | CE23: 0 | CF23: 0 | CG23: 0 | CH23: 0 | CI23: 0 | CM23: 0 | CN23: 0 | CO23: 0 | CP23: 0 | CS23: 0 | CT23: 0 | CU23: 0 | CV23: 0 | CX23: Otras | CY23: 0.3793103448 | CZ23: 0.2068965517 | DA23: 0.4137931034
C24: 54001 | D24: CÚCUTA | E24: 0 | F24: 0 | G24: Natural | H24: 54 | I24: NORTE DE SANTANDER | J24: 0 | K24: PEQUEÑA | L24: 6910 | M24: ACTIVIDADES PROFESIONALES, CIENTÍFICAS Y TÉCNICAS | N24: M | O24: Actividades jurídicas | P24: Actividades jurídicas | Q24: 0 | R24: 0 | S24: 0 | T24: 0 | U24: 0 | V24: 0 | W24: 0 | X24: 0 | Z24: 44 | AA24: 54 | AB24: 70 | AC24: 99 | AD24: =VLOOKUP(AB24,Hoja4!$A$29:$B$61,2,FALSE) -> Sucre | BJ24: 44 | BK24: 0 | BL24: 44 | BM24: 0 | BN24: =VLOOKUP(BL24,Hoja4!$A$29:$B$61,2,FALSE) -> La guajira | BP24: La guajira | BQ24: 0 | BR24: 0 | BU24: 0 | BV24: 0 | BW24: 0 | BX24: 0 | BY24: =VLOOKUP(BX24,Hoja4!$A$29:$B$61,2,FALSE) ->  | BZ24: =VLOOKUP(BV24,Hoja4!$D$29:$E$1150,2,FALSE) ->  | CA24: 0 | CB24: 0 | CE24: 0 | CF24: 0 | CG24: 0 | CH24: 0 | CI24: 0
C25: 76400 | D25: LA UNIÓN | E25: 0 | F25: 0 | G25: Natural | H25: 76 | I25: VALLE DEL CAUCA | J25: 0 | K25: MICRO | L25: 4620 | M25: COMERCIO AL POR MAYOR Y AL POR MENOR; REPARACIÓN DE VEHÍCULOS AUTOMOTORES Y MOTOCICLETAS | N25: G | O25: Comercio al por mayor de materias primas agropecuarias; animales vivos | P25: Comercio al por mayor de materias primas agropecuarias; animales vivos | Q25: 0 | R25: 0 | S25: 0 | T25: 0 | U25: 0 | V25: 0 | W25: 0 | X25: 0 | Z25: 17 | AA25: 438 | AB25: 81 | AC25: 54 | AD25: =VLOOKUP(AB25,Hoja4!$A$29:$B$61,2,FALSE) -> Arauca | BJ25: 17 | BK25: 0 | BL25: 17 | BM25: 0 | BN25: =VLOOKUP(BL25,Hoja4!$A$29:$B$61,2,FALSE) -> Caldas | BP25: =BN25 -> Caldas | BQ25: =BM25 -> 0 | BR25: 0 | BU25: 0 | BV25: 0 | BW25: 0 | BX25: 0 | BY25: =VLOOKUP(BX25,Hoja4!$A$29:$B$61,2,FALSE) ->  | BZ25: =VLOOKUP(BV25,Hoja4!$D$29:$E$1150,2,FALSE) ->  | CA25: 0 | CB25: 0 | CE25: 0 | CF25: 0 | CG25: 0 | CH25: 0 | CI25: 0
C26: 63001 | D26: ARMENIA | E26: 0 | F26: 0 | G26: Natural | H26: 63 | I26: QUINDÍO | J26: 0 | K26: PEQUEÑA | L26: 4771 | M26: COMERCIO AL POR MAYOR Y AL POR MENOR; REPARACIÓN DE VEHÍCULOS AUTOMOTORES Y MOTOCICLETAS | N26: G | O26: Comercio al por menor de otros productos en establecimientos especializados | P26: Comercio al por menor de otros productos en establecimientos especializados | Q26: 0 | R26: 0 | S26: 0 | T26: 0 | U26: 0 | V26: 0 | W26: 0 | X26: 0 | Z26: 18 | AA26: 106 | AB26: 44 | AC26: 54 | AD26: =VLOOKUP(AB26,Hoja4!$A$29:$B$61,2,FALSE) -> La guajira | BJ26: 18 | BK26: 0 | BL26: 18 | BM26: 0 | BN26: =VLOOKUP(BL26,Hoja4!$A$29:$B$61,2,FALSE) -> Caquetá | BP26: Caquetá | BQ26: =BM26 -> 0 | BR26: 0 | BU26: 0 | BV26: 0 | BW26: 0 | BX26: 0 | BY26: =VLOOKUP(BX26,Hoja4!$A$29:$B$61,2,FALSE) ->  | BZ26: =VLOOKUP(BV26,Hoja4!$D$29:$E$1150,2,FALSE) ->  | CA26: 0 | CB26: 0 | CE26: 0 | CF26: 0 | CG26: 0 | CH26: 0 | CI26: 0
C27: 52001 | D27: PASTO | E27: 0 | F27: 0 | G27: Natural | H27: 52 | I27: NARIÑO | J27: 0 | K27: MICRO | L27: 5611 | M27: ALOJAMIENTO Y SERVICIOS DE COMIDA | N27: I | O27: Actividades de restaurantes, cafeterías y servicio móvil de comidas | P27: Actividades de restaurantes, cafeterías y servicio móvil de comidas | Q27: 0 | R27: 0 | S27: 0 | T27: 0 | U27: 0 | V27: 0 | W27: 0 | X27: 0 | Z27: 23 | AA27: 230 | AB27: 86 | AC27: 53 | AD27: =VLOOKUP(AB27,Hoja4!$A$29:$B$61,2,FALSE) -> Putumayo | BJ27: 23 | BK27: 0 | BL27: 23 | BM27: 0 | BN27: =VLOOKUP(BL27,Hoja4!$A$29:$B$61,2,FALSE) -> Córdoba | BP27: Córdoba | BQ27: =BM27 -> 0 | BR27: 0 | BU27: 0 | BV27: 0 | BW27: 0 | BX27: 0 | BY27: =VLOOKUP(BX27,Hoja4!$A$29:$B$61,2,FALSE) ->  | BZ27: =VLOOKUP(BV27,Hoja4!$D$29:$E$1150,2,FALSE) ->  | CA27: 0 | CB27: 0 | CE27: 0 | CF27: 0
C28: 76828 | D28: TRUJILLO | E28: 6 | F28: 1 | G28: Natural | H28: 76 | I28: VALLE DEL CAUCA | J28: Aprobado con subsidio | K28: MICRO | L28: 4752 | M28: COMERCIO AL POR MAYOR Y AL POR MENOR; REPARACIÓN DE VEHÍCULOS AUTOMOTORES Y MOTOCICLETAS | N28: G | O28: Comercio al por menor de otros enseres domésticos en establecimientos especializados | P28: Comercio al por menor de otros enseres domésticos en establecimientos especializados | Q28: 3 | R28: 3 | S28: 0 | T28: 3 | U28: 0 | V28: 3 | W28: 6 | X28: 0 | Z28: 88 | AA28: 27 | AB28: 88 | AC28: 27 | AD28: =VLOOKUP(AB28,Hoja4!$A$29:$B$61,2,FALSE) -> San Andrés | BJ28: 88 | BK28: 0 | BL28: 88 | BM28: 0 | BN28: =VLOOKUP(BL28,Hoja4!$A$29:$B$61,2,FALSE) -> San Andrés | BP28: San Andrés | BQ28: =BM28 -> 0 | BR28: 0 | BU28: 0 | BV28: 0 | BW28: 0 | BX28: 0 | BY28: =VLOOKUP(BX28,Hoja4!$A$29:$B$61,2,FALSE) ->  | BZ28: =VLOOKUP(BV28,Hoja4!$D$29:$E$1150,2,FALSE) ->  | CA28: 0 | CB28: 0 | CE28: =SUM(CE2:CE27) -> 9 | CF28: =SUM(CF2:CF27) -> 112
C29: 76001 | D29: CALI | E29: 1 | F29: 1 | G29: Natural | H29: 76 | I29: VALLE DEL CAUCA | J29: Aprobado con subsidio | K29: MICRO | L29: 121 | M29: AGRICULTURA, GANADERÍA, CAZA, SILVICULTURA Y PESCA | N29: A | O29: Cultivos agrícolas permanentes | P29: Cultivos agrícolas permanentes | Q29: 1 | R29: 0 | S29: 0 | T29: 1 | U29: 0 | V29: 0 | W29: 1 | X29: 0 | Z29: 91 | AA29: 18 | AB29: 91 | AC29: 18 | AD29: =VLOOKUP(AB29,Hoja4!$A$29:$B$61,2,FALSE) -> Amazonas | BJ29: 91 | BK29: 0 | BL29: 91 | BM29: 0 | BN29: =VLOOKUP(BL29,Hoja4!$A$29:$B$61,2,FALSE) -> Amazonas | BP29: Otros | BQ29: =SUM(BM29:BM34) -> 0 | BR29: =SUMIFS($AN$2:$AN$399999,$AS$2:$AS$399999,"Aprobado con subsidio")-SUM(BR2:BR28) -> 0 | BU29: 0 | BV29: 0 | BW29: 0 | BY29: Otros | BZ29: Otros | CA29: =SUM(BW29:BW1000) -> 0 | CB29: =SUMIFS($AN$2:$AN$399999,$AS$2:$AS$399999,"Aprobado con subsidio")-SUM(CB2:CB28) -> 0
C30: 5615 | D30: RIONEGRO | E30: 0 | F30: 0 | G30: Natural | H30: 5 | I30: ANTIOQUIA | J30: 0 | K30: PEQUEÑA | L30: 2012 | M30: INDUSTRIAS MANUFACTURERAS | N30: C | O30: Fabricación de sustancias químicas básicas, abonos y compuestos inorgánicos nitrogenados, plásticos y caucho sintético en formas primarias | P30: Fabricación de sustancias y productos químicos | Q30: 0 | R30: 0 | S30: 0 | T30: 0 | U30: 0 | V30: 0 | W30: 0 | X30: 0 | Z30: 95 | AA30: 10 | AB30: 27 | AC30: 18 | AD30: =VLOOKUP(AB30,Hoja4!$A$29:$B$61,2,FALSE) -> Chocó | BJ30: 95 | BK30: 0 | BL30: 95 | BM30: 0 | BN30: =VLOOKUP(BL30,Hoja4!$A$29:$B$61,2,FALSE) -> Guaviare | BP30: Total | BQ30: =SUM(BQ2:BQ29) -> 9 | BR30: =SUM(BR2:BR29) -> 112 | BU30: 0 | BV30: 0 | BW30: 0 | BY30: Total | CA30: =SUM(CA2:CA29) -> 9 | CB30: =SUM(CB2:CB29) -> 112
C31: 11001 | D31: BOGOTÁ, D.C. | E31: 2 | F31: 1 | G31: Natural | H31: 11 | I31: BOGOTÁ, D.C. | J31: Aprobado con subsidio | K31: MICRO | L31: 1313 | M31: INDUSTRIAS MANUFACTURERAS | N31: C | O31: Preparación, hilatura, tejeduría y acabado de productos textiles | P31: Fabricación de productos textiles | Q31: 2 | R31: 0 | S31: 0 | T31: 1 | U31: 1 | V31: 0 | W31: 2 | X31: 0 | Z31: 86 | AA31: 53 | AB31: 95 | AC31: 10 | AD31: =VLOOKUP(AB31,Hoja4!$A$29:$B$61,2,FALSE) -> Guaviare | BJ31: 86 | BK31: 0 | BL31: 86 | BM31: 0 | BN31: =VLOOKUP(BL31,Hoja4!$A$29:$B$61,2,FALSE) -> Putumayo | BU31: 0 | BV31: 0 | BW31: 0
C32: 25214 | D32: COTA | E32: 0 | F32: 0 | G32: Natural | H32: 25 | I32: CUNDINAMARCA | J32: 0 | K32: PEQUEÑA | L32: 8530 | M32: EDUCACIÓN | N32: P | O32: Establecimientos que combinan diferentes niveles de educación | P32: Establecimientos que combinan diferentes niveles de educación | Q32: 0 | R32: 0 | S32: 0 | T32: 0 | U32: 0 | V32: 0 | W32: 0 | X32: 0 | Z32: 27 | AA32: 18 | AB32: 94 | AC32: 5 | AD32: =VLOOKUP(AB32,Hoja4!$A$29:$B$61,2,FALSE) -> Guainía | BJ32: 27 | BK32: 0 | BL32: 27 | BM32: 0 | BN32: =VLOOKUP(BL32,Hoja4!$A$29:$B$61,2,FALSE) -> Chocó | BU32: 0 | BV32: 0 | BW32: 0
C33: 25386 | D33: LA MESA | E33: 0 | F33: 0 | G33: Natural | H33: 25 | I33: CUNDINAMARCA | J33: 0 | K33: MICRO | L33: 4721 | M33: COMERCIO AL POR MAYOR Y AL POR MENOR; REPARACIÓN DE VEHÍCULOS AUTOMOTORES Y MOTOCICLETAS | N33: G | O33: Comercio al por menor de alimentos (víveres en general), bebidas y tabaco, en establecimientos especializados | P33: Comercio al por menor de alimentos (víveres en general), bebidas y tabaco, en establecimientos especializados | Q33: 0 | R33: 0 | S33: 0 | T33: 0 | U33: 0 | V33: 0 | W33: 0 | X33: 0 | Z33: 94 | AA33: 5 | AB33: 97 | AC33: 2 | AD33: =VLOOKUP(AB33,Hoja4!$A$29:$B$61,2,FALSE) -> Vaupés | BJ33: 94 | BK33: 0 | BL33: 94 | BM33: 0 | BN33: =VLOOKUP(BL33,Hoja4!$A$29:$B$61,2,FALSE) -> Guainía | BU33: 0 | BV33: 0 | BW33: 0
C34: 50001 | D34: VILLAVICENCIO | E34: 0 | F34: 0 | G34: Natural | H34: 50 | I34: META | J34: 0 | K34: MICRO | L34: 4530 | M34: COMERCIO AL POR MAYOR Y AL POR MENOR; REPARACIÓN DE VEHÍCULOS AUTOMOTORES Y MOTOCICLETAS | N34: G | O34: Comercio de partes, piezas (autopartes) y accesorios (lujos) para vehículos automotores | P34: Comercio de partes, piezas (autopartes) y accesorios (lujos) para vehículos automotores | Q34: 0 | R34: 0 | S34: 0 | T34: 0 | U34: 0 | V34: 0 | W34: 0 | X34: 0 | Z34: 99 | AA34: 2 | AB34: 99 | AC34: 2 | AD34: =VLOOKUP(AB34,Hoja4!$A$29:$B$61,2,FALSE) -> Vichada | BJ34: 99 | BK34: 0 | BL34: 99 | BM34: 0 | BN34: =VLOOKUP(BL34,Hoja4!$A$29:$B$61,2,FALSE) -> Vichada | BU34: 0 | BV34: 0 | BW34: 0
C35: 11001 | D35: BOGOTÁ, D.C. | E35: 1 | F35: 1 | G35: Natural | H35: 11 | I35: BOGOTÁ, D.C. | J35: Aprobado con subsidio | K35: MICRO | L35: 4754 | M35: COMERCIO AL POR MAYOR Y AL POR MENOR; REPARACIÓN DE VEHÍCULOS AUTOMOTORES Y MOTOCICLETAS | N35: G | O35: Comercio al por menor de otros enseres domésticos en establecimientos especializados | P35: Comercio al por menor de otros enseres domésticos en establecimientos especializados | Q35: 0 | R35: 1 | S35: 0 | T35: 1 | U35: 0 | V35: 0 | W35: 1 | X35: 0 | BU35: 0 | BV35: 0 | BW35: 0
C36: 11001 | D36: BOGOTÁ, D.C. | E36: 2 | F36: 2 | G36: Natural | H36: 11 | I36: BOGOTÁ, D.C. | J36: Aprobado con subsidio | K36: MICRO | L36: 8512 | M36: EDUCACIÓN | N36: P | O36: Educación de la primera infancia, preescolar y básica primaria | P36: Educación de la primera infancia, preescolar y básica primaria | Q36: 2 | R36: 0 | S36: 0 | T36: 0 | U36: 2 | V36: 0 | W36: 2 | X36: 0 | BU36: 0 | BV36: 0 | BW36: 0
C37: 25181 | D37: CHOACHÍ | E37: 1 | F37: 0 | G37: Natural | H37: 25 | I37: CUNDINAMARCA | J37: Aprobado con subsidio | K37: MICRO | L37: 145 | M37: AGRICULTURA, GANADERÍA, CAZA, SILVICULTURA Y PESCA | N37: A | O37: Ganadería | P37: Ganadería | Q37: 0 | R37: 1 | S37: 0 | T37: 0 | U37: 0 | V37: 1 | W37: 1 | X37: 0 | BU37: 0 | BV37: 0 | BW37: 0
C38: 25181 | D38: CHOACHÍ | E38: 1 | F38: 1 | G38: Natural | H38: 25 | I38: CUNDINAMARCA | J38: Aprobado con subsidio | K38: PEQUEÑA | L38: 4663 | M38: COMERCIO AL POR MAYOR Y AL POR MENOR; REPARACIÓN DE VEHÍCULOS AUTOMOTORES Y MOTOCICLETAS | N38: G | O38: Comercio al por mayor especializado de otros productos | P38: Comercio al por mayor especializado de otros productos | Q38: 0 | R38: 1 | S38: 0 | T38: 0 | U38: 0 | V38: 1 | W38: 1 | X38: 0 | BU38: 0 | BV38: 0 | BW38: 0
C39: 11001 | D39: BOGOTÁ, D.C. | E39: 0 | F39: 0 | G39: Natural | H39: 11 | I39: BOGOTÁ, D.C. | J39: 0 | K39: PEQUEÑA | L39: 4520 | M39: COMERCIO AL POR MAYOR Y AL POR MENOR; REPARACIÓN DE VEHÍCULOS AUTOMOTORES Y MOTOCICLETAS | N39: G | O39: Mantenimiento y reparación de vehículos automotores | P39: Mantenimiento y reparación de vehículos automotores | Q39: 0 | R39: 0 | S39: 0 | T39: 0 | U39: 0 | V39: 0 | W39: 0 | X39: 0 | BU39: 0 | BV39: 0 | BW39: 0
C40: 25279 | D40: FOMEQUE | E40: 1 | F40: 5 | G40: Natural | H40: 25 | I40: CUNDINAMARCA | J40: Aprobado con subsidio | K40: PEQUEÑA | L40: 145 | M40: AGRICULTURA, GANADERÍA, CAZA, SILVICULTURA Y PESCA | N40: A | O40: Ganadería | P40: Ganadería | Q40: 0 | R40: 1 | S40: 0 | T40: 1 | U40: 0 | V40: 0 | W40: 1 | X40: 0 | BU40: 0 | BV40: 0 | BW40: 0
C41: 5001 | D41: MEDELLÍN | E41: 1 | F41: 0 | G41: Natural | H41: 5 | I41: ANTIOQUIA | J41: Aprobado con subsidio | K41: PEQUEÑA | L41: 4520 | M41: COMERCIO AL POR MAYOR Y AL POR MENOR; REPARACIÓN DE VEHÍCULOS AUTOMOTORES Y MOTOCICLETAS | N41: G | O41: Mantenimiento y reparación de vehículos automotores | P41: Mantenimiento y reparación de vehículos automotores | Q41: 0 | R41: 1 | S41: 0 | T41: 1 | U41: 0 | V41: 0 | W41: 1 | X41: 0 | BU41: 0 | BV41: 0 | BW41: 0
C42: 25214 | D42: COTA | E42: 1 | F42: 6 | G42: Natural | H42: 25 | I42: CUNDINAMARCA | J42: Aprobado con subsidio | K42: MICRO | L42: 4290 | M42: CONSTRUCCIÓN | N42: F | O42: Construcción de otras obras de ingeniería civil | P42: Construcción de otras obras de ingeniería civil | Q42: 0 | R42: 1 | S42: 0 | T42: 0 | U42: 0 | V42: 1 | W42: 1 | X42: 0 | BU42: 0 | BV42: 0 | BW42: 0
C43: 25758 | D43: SOPÓ | E43: 2 | F43: 3 | G43: Natural | H43: 25 | I43: CUNDINAMARCA | J43: Aprobado con subsidio | K43: MICRO | L43: 141 | M43: AGRICULTURA, GANADERÍA, CAZA, SILVICULTURA Y PESCA | N43: A | O43: Ganadería | P43: Ganadería | Q43: 1 | R43: 1 | S43: 0 | T43: 1 | U43: 1 | V43: 0 | W43: 2 | X43: 0 | BU43: 0 | BV43: 0 | BW43: 0
C44: 15176 | D44: CHIQUINQUIRÁ | E44: 0 | F44: 0 | G44: Natural | H44: 15 | I44: BOYACÁ | J44: 0 | K44: MICRO | L44: 4520 | M44: COMERCIO AL POR MAYOR Y AL POR MENOR; REPARACIÓN DE VEHÍCULOS AUTOMOTORES Y MOTOCICLETAS | N44: G | O44: Mantenimiento y reparación de vehículos automotores | P44: Mantenimiento y reparación de vehículos automotores | Q44: 0 | R44: 0 | S44: 0 | T44: 0 | U44: 0 | V44: 0 | W44: 0 | X44: 0 | BU44: 0 | BV44: 0 | BW44: 0
C45: 25297 | D45: GACHETÁ | E45: 1 | F45: 3 | G45: Natural | H45: 25 | I45: CUNDINAMARCA | J45: Aprobado con subsidio | K45: MICRO | L45: 4663 | M45: COMERCIO AL POR MAYOR Y AL POR MENOR; REPARACIÓN DE VEHÍCULOS AUTOMOTORES Y MOTOCICLETAS | N45: G | O45: Comercio al por mayor especializado de otros productos | P45: Comercio al por mayor especializado de otros productos | Q45: 1 | R45: 0 | S45: 0 | T45: 1 | U45: 0 | V45: 0 | W45: 1 | X45: 0 | BU45: 0 | BV45: 0 | BW45: 0
C46: 11001 | D46: BOGOTÁ, D.C. | E46: 0 | F46: 0 | G46: Natural | H46: 11 | I46: BOGOTÁ, D.C. | J46: 0 | K46: MICRO | L46: 2711 | M46: INDUSTRIAS MANUFACTURERAS | N46: C | O46: Fabricación de motores, generadores y transformadores eléctricos y de aparatos de distribución y control de la energía eléctrica | P46: Fabricación de aparatos y equipo eléctrico | Q46: 0 | R46: 0 | S46: 0 | T46: 0 | U46: 0 | V46: 0 | W46: 0 | X46: 0 | BU46: 0 | BV46: 0 | BW46: 0
C47: 11001 | D47: BOGOTÁ, D.C. | E47: 0 | F47: 0 | G47: Natural | H47: 11 | I47: BOGOTÁ, D.C. | J47: 0 | K47: MICRO | L47: 7500 | M47: ACTIVIDADES PROFESIONALES, CIENTÍFICAS Y TÉCNICAS | N47: M | O47: Actividades veterinarias | P47: Actividades veterinarias | Q47: 0 | R47: 0 | S47: 0 | T47: 0 | U47: 0 | V47: 0 | W47: 0 | X47: 0 | BU47: 0 | BV47: 0 | BW47: 0
C48: 11001 | D48: BOGOTÁ, D.C. | E48: 1 | F48: 6 | G48: Natural | H48: 11 | I48: BOGOTÁ, D.C. | J48: Aprobado con subsidio | K48: PEQUEÑA | L48: 8521 | M48: EDUCACIÓN | N48: P | O48: Educación secundaria y de formación laboral | P48: Educación secundaria y de formación laboral | Q48: 1 | R48: 0 | S48: 0 | T48: 1 | U48: 0 | V48: 0 | W48: 1 | X48: 0 | BU48: 0 | BV48: 0 | BW48: 0
C49: 11001 | D49: BOGOTÁ, D.C. | E49: 0 | F49: 0 | G49: Natural | H49: 11 | I49: BOGOTÁ, D.C. | J49: 0 | K49: PEQUEÑA | L49: 1513 | M49: INDUSTRIAS MANUFACTURERAS | N49: C | O49: Curtido y recurtido de cueros; fabricación de artículos de viaje, bolsos de mano y artículos similares, y fabricación de artículos de talabartería y guarnicionería; adobo y teñido de pieles | P49: Curtido y recurtido de cueros; fabricación de calzado; fabricación de artículos de viaje, maletas, bolsos de mano y artículos similares, y fabricación de artículos de talabartería y guarnicionería; adobo y teñido de pieles | Q49: 0 | R49: 0 | S49: 0 | T49: 0 | U49: 0 | V49: 0 | W49: 0 | X49: 0 | BU49: 0 | BV49: 0 | BW49: 0
C50: 11001 | D50: BOGOTÁ, D.C. | E50: 1 | F50: 3 | G50: Natural | H50: 11 | I50: BOGOTÁ, D.C. | J50: Aprobado con subsidio | K50: MICRO | L50: 7310 | M50: ACTIVIDADES PROFESIONALES, CIENTÍFICAS Y TÉCNICAS | N50: M | O50: Publicidad | P50: Publicidad | Q50: 0 | R50: 1 | S50: 0 | T50: 1 | U50: 0 | V50: 0 | W50: 1 | X50: 0 | BU50: 0 | BV50: 0 | BW50: 0
C51: 15407 | D51: VILLA DE LEYVA | E51: 0 | F51: 0 | G51: Natural | H51: 15 | I51: BOYACÁ | J51: 0 | K51: MICRO | L51: 5511 | M51: ALOJAMIENTO Y SERVICIOS DE COMIDA | N51: I | O51: Actividades de alojamiento de estancias cortas | P51: Actividades de alojamiento de estancias cortas | Q51: 0 | R51: 0 | S51: 0 | T51: 0 | U51: 0 | V51: 0 | W51: 0 | X51: 0 | BU51: 0 | BV51: 0 | BW51: 0
C52: 25572 | D52: PUERTO SALGAR | E52: 0 | F52: 0 | G52: Natural | H52: 25 | I52: CUNDINAMARCA | J52: 0 | K52: PEQUEÑA | L52: 4290 | M52: CONSTRUCCIÓN | N52: F | O52: Construcción de otras obras de ingeniería civil | P52: Construcción de otras obras de ingeniería civil | Q52: 0 | R52: 0 | S52: 0 | T52: 0 | U52: 0 | V52: 0 | W52: 0 | X52: 0 | BU52: 0 | BV52: 0 | BW52: 0
C53: 25430 | D53: MADRID | E53: 1 | F53: 3 | G53: Natural | H53: 25 | I53: CUNDINAMARCA | J53: Aprobado con subsidio | K53: MICRO | L53: 145 | M53: AGRICULTURA, GANADERÍA, CAZA, SILVICULTURA Y PESCA | N53: A | O53: Ganadería | P53: Ganadería | Q53: 1 | R53: 0 | S53: 0 | T53: 1 | U53: 0 | V53: 0 | W53: 1 | X53: 0 | BU53: 0 | BV53: 0 | BW53: 0
C54: 25599 | D54: APULO | E54: 0 | F54: 0 | G54: Natural | H54: 25 | I54: CUNDINAMARCA | J54: 0 | K54: MICRO | L54: 4322 | M54: CONSTRUCCIÓN | N54: F | O54: Instalaciones eléctricas, de fontanería y otras instalaciones especializadas | P54: Instalaciones eléctricas, de fontanería y otras instalaciones especializadas | Q54: 0 | R54: 0 | S54: 0 | T54: 0 | U54: 0 | V54: 0 | W54: 0 | X54: 0 | BU54: 0 | BV54: 0 | BW54: 0
C55: 25754 | D55: SOACHA | E55: 2 | F55: 0 | G55: Natural | H55: 25 | I55: CUNDINAMARCA | J55: Aprobado con subsidio | K55: MICRO | L55: 8219 | M55: ACTIVIDADES DE SERVICIOS ADMINISTRATIVOS Y DE APOYO | N55: N | O55: Actividades administrativas y de apoyo de oficina | P55: Actividades administrativas y de apoyo de oficina | Q55: 2 | R55: 0 | S55: 0 | T55: 1 | U55: 1 | V55: 0 | W55: 2 | X55: 0 | BU55: 0 | BV55: 0 | BW55: 0
C56: 11001 | D56: BOGOTÁ, D.C. | E56: 14 | F56: 12 | G56: Natural | H56: 11 | I56: BOGOTÁ, D.C. | J56: Aprobado con subsidio | K56: PEQUEÑA | L56: 6910 | M56: ACTIVIDADES PROFESIONALES, CIENTÍFICAS Y TÉCNICAS | N56: M | O56: Actividades jurídicas | P56: Actividades jurídicas | Q56: 9 | R56: 5 | S56: 0 | T56: 14 | U56: 0 | V56: 0 | W56: 14 | X56: 0 | BU56: 0 | BV56: 0 | BW56: 0
C57: 11001 | D57: BOGOTÁ, D.C. | E57: 1 | F57: 2 | G57: Natural | H57: 11 | I57: BOGOTÁ, D.C. | J57: Aprobado con subsidio | K57: MICRO | L57: 4751 | M57: COMERCIO AL POR MAYOR Y AL POR MENOR; REPARACIÓN DE VEHÍCULOS AUTOMOTORES Y MOTOCICLETAS | N57: G | O57: Comercio al por menor de otros enseres domésticos en establecimientos especializados | P57: Comercio al por menor de otros enseres domésticos en establecimientos especializados | Q57: 1 | R57: 0 | S57: 0 | T57: 1 | U57: 0 | V57: 0 | W57: 1 | X57: 0 | BU57: 0 | BV57: 0 | BW57: 0
C58: 25785 | D58: TABIO | E58: 1 | F58: 2 | G58: Natural | H58: 25 | I58: CUNDINAMARCA | J58: Aprobado con subsidio | K58: MICRO | L58: 9004 | M58: ACTIVIDADES ARTÍSTICAS, DE ENTRETENIMIENTO Y RECREACIÓN | N58: R | O58: Actividades creativas, artísticas y de entretenimiento | P58: Actividades creativas, artísticas y de entretenimiento | Q58: 1 | R58: 0 | S58: 0 | T58: 1 | U58: 0 | V58: 0 | W58: 1 | X58: 0 | BU58: 0 | BV58: 0 | BW58: 0
C59: 25799 | D59: TENJO | E59: 0 | F59: 0 | G59: Natural | H59: 25 | I59: CUNDINAMARCA | J59: 0 | K59: PEQUEÑA | L59: 4711 | M59: COMERCIO AL POR MAYOR Y AL POR MENOR; REPARACIÓN DE VEHÍCULOS AUTOMOTORES Y MOTOCICLETAS | N59: G | O59: Comercio al por menor en establecimientos no especializados | P59: Comercio al por menor en establecimientos no especializados | Q59: 0 | R59: 0 | S59: 0 | T59: 0 | U59: 0 | V59: 0 | W59: 0 | X59: 0 | BU59: 0 | BV59: 0 | BW59: 0
C60: 50001 | D60: VILLAVICENCIO | E60: 7 | F60: 12 | G60: Natural | H60: 50 | I60: META | J60: Aprobado con subsidio | K60: MICRO | L60: 4729 | M60: COMERCIO AL POR MAYOR Y AL POR MENOR; REPARACIÓN DE VEHÍCULOS AUTOMOTORES Y MOTOCICLETAS | N60: G | O60: Comercio al por menor de alimentos (víveres en general), bebidas y tabaco, en establecimientos especializados | P60: Comercio al por menor de alimentos (víveres en general), bebidas y tabaco, en establecimientos especializados | Q60: 0 | R60: 7 | S60: 0 | T60: 7 | U60: 0 | V60: 0 | W60: 7 | X60: 0 | BU60: 0 | BV60: 0 | BW60: 0
C61: 11001 | D61: BOGOTÁ, D.C. | E61: 0 | F61: 0 | G61: Natural | H61: 11 | I61: BOGOTÁ, D.C. | J61: 0 | K61: MICRO | L61: 6810 | M61: ACTIVIDADES INMOBILIARIAS | N61: L | O61: Actividades inmobiliarias realizadas con bienes propios o arrendados | P61: Actividades inmobiliarias realizadas con bienes propios o arrendados | Q61: 0 | R61: 0 | S61: 0 | T61: 0 | U61: 0 | V61: 0 | W61: 0 | X61: 0 | BU61: 0 | BV61: 0 | BW61: 0
C62: 25875 | D62: VILLETA | E62: 1 | F62: 0 | G62: Natural | H62: 25 | I62: CUNDINAMARCA | J62: Aprobado con subsidio | K62: PEQUEÑA | L62: 1081 | M62: INDUSTRIAS MANUFACTURERAS | N62: C | O62: Elaboración de otros productos alimenticios | P62: Elaboración de productos alimenticios | Q62: 1 | R62: 0 | S62: 0 | T62: 1 | U62: 0 | V62: 0 | W62: 1 | X62: 0 | BU62: 0 | BV62: 0 | BW62: 0
C63: 25269 | D63: FACATATIVÁ | E63: 6 | F63: 2 | G63: Natural | H63: 25 | I63: CUNDINAMARCA | J63: Aprobado con subsidio | K63: MICRO | L63: 8560 | M63: EDUCACIÓN | N63: P | O63: Actividades de apoyo a la educación | P63: Actividades de apoyo a la educación | Q63: 3 | R63: 3 | S63: 0 | T63: 2 | U63: 1 | V63: 3 | W63: 6 | X63: 0 | BU63: 0 | BV63: 0 | BW63: 0
C64: 85001 | D64: YOPAL | E64: 3 | F64: 0 | G64: Natural | H64: 85 | I64: CASANARE | J64: Aprobado con subsidio | K64: MICRO | L64: 4769 | M64: COMERCIO AL POR MAYOR Y AL POR MENOR; REPARACIÓN DE VEHÍCULOS AUTOMOTORES Y MOTOCICLETAS | N64: G | O64: Comercio al por menor de artículos culturales y de entretenimiento, en establecimientos especializados | P64: Comercio al por menor de artículos culturales y de entretenimiento, en establecimientos especializados | Q64: 2 | R64: 1 | S64: 0 | T64: 2 | U64: 1 | V64: 0 | W64: 3 | X64: 0 | BU64: 0 | BV64: 0 | BW64: 0
C65: 50001 | D65: VILLAVICENCIO | E65: 0 | F65: 0 | G65: Natural | H65: 50 | I65: META | J65: 0 | K65: MICRO | L65: 6810 | M65: ACTIVIDADES INMOBILIARIAS | N65: L | O65: Actividades inmobiliarias realizadas con bienes propios o arrendados | P65: Actividades inmobiliarias realizadas con bienes propios o arrendados | Q65: 0 | R65: 0 | S65: 0 | T65: 0 | U65: 0 | V65: 0 | W65: 0 | X65: 0 | BU65: 0 | BV65: 0 | BW65: 0
C66: 5360 | D66: ITAGUI | E66: 0 | F66: 0 | G66: Natural | H66: 5 | I66: ANTIOQUIA | J66: 0 | K66: MICRO | L66: 1921 | M66: INDUSTRIAS MANUFACTURERAS | N66: C | O66: Fabricación de productos de la refinación del petróleo | P66: Coquización, fabricación de productos de la refinación del petróleo y actividad de mezcla de combustibles | Q66: 0 | R66: 0 | S66: 0 | T66: 0 | U66: 0 | V66: 0 | W66: 0 | X66: 0 | BU66: =COUNTIFS($AS$2:$AS$399999,"Aprobado con subsidio",$AL$2:$AL$399999,BT66) -> 0 | BV66: 0 | BW66: 0
C67: 5001 | D67: MEDELLÍN | E67: 1 | F67: 1 | G67: Natural | H67: 5 | I67: ANTIOQUIA | J67: Aprobado con subsidio | K67: MICRO | L67: 90 | M67: OTRAS | N67: Otras | O67: Otras | P67: Otras | Q67: 0 | R67: 1 | S67: 0 | T67: 0 | U67: 0 | V67: 1 | W67: 1 | X67: 0 | BU67: 0 | BV67: 0 | BW67: 0
C68: 15759 | D68: SOGAMOSO | E68: 2 | F68: 2 | G68: Natural | H68: 15 | I68: BOYACÁ | J68: Aprobado con subsidio | K68: MICRO | L68: 4799 | M68: COMERCIO AL POR MAYOR Y AL POR MENOR; REPARACIÓN DE VEHÍCULOS AUTOMOTORES Y MOTOCICLETAS | N68: G | O68: Comercio al por menor no realizado en establecimientos, puestos de venta o mercados | P68: Comercio al por menor no realizado en establecimientos, puestos de venta o mercados | Q68: 1 | R68: 1 | S68: 0 | T68: 1 | U68: 0 | V68: 1 | W68: 2 | X68: 0 | BU68: 0 | BV68: 0 | BW68: 0
C69: 5001 | D69: MEDELLÍN | E69: 0 | F69: 0 | G69: Natural | H69: 5 | I69: ANTIOQUIA | J69: 0 | K69: MICRO | L69: 141 | M69: AGRICULTURA, GANADERÍA, CAZA, SILVICULTURA Y PESCA | N69: A | O69: Ganadería | P69: Ganadería | Q69: 0 | R69: 0 | S69: 0 | T69: 0 | U69: 0 | V69: 0 | W69: 0 | X69: 0 | BU69: 0 | BV69: 0 | BW69: 0
C70: 5001 | D70: MEDELLÍN | E70: 1 | F70: 2 | G70: Natural | H70: 5 | I70: ANTIOQUIA | J70: Aprobado con subsidio | K70: MICRO | L70: 5611 | M70: ALOJAMIENTO Y SERVICIOS DE COMIDA | N70: I | O70: Actividades de restaurantes, cafeterías y servicio móvil de comidas | P70: Actividades de restaurantes, cafeterías y servicio móvil de comidas | Q70: 0 | R70: 1 | S70: 0 | T70: 0 | U70: 0 | V70: 1 | W70: 1 | X70: 0 | BU70: 0 | BV70: 0 | BW70: 0
C71: 5001 | D71: MEDELLÍN | E71: 4 | F71: 0 | G71: Natural | H71: 5 | I71: ANTIOQUIA | J71: Aprobado con subsidio | K71: MICRO | L71: 4722 | M71: COMERCIO AL POR MAYOR Y AL POR MENOR; REPARACIÓN DE VEHÍCULOS AUTOMOTORES Y MOTOCICLETAS | N71: G | O71: Comercio al por menor de alimentos (víveres en general), bebidas y tabaco, en establecimientos especializados | P71: Comercio al por menor de alimentos (víveres en general), bebidas y tabaco, en establecimientos especializados | Q71: 1 | R71: 3 | S71: 0 | T71: 2 | U71: 1 | V71: 1 | W71: 4 | X71: 0 | BU71: 0 | BV71: 0 | BW71: 0
C72: 5001 | D72: MEDELLÍN | E72: 3 | F72: 0 | G72: Natural | H72: 5 | I72: ANTIOQUIA | J72: Aprobado con subsidio | K72: MICRO | L72: 3240 | M72: INDUSTRIAS MANUFACTURERAS | N72: C | O72: Fabricación de juegos, juguetes y rompecabezas | P72: Otras industrias manufactureras | Q72: 2 | R72: 1 | S72: 0 | T72: 2 | U72: 0 | V72: 1 | W72: 3 | X72: 0 | BU72: 0 | BV72: 0 | BW72: 0
C73: 5001 | D73: MEDELLÍN | E73: 1 | F73: 0 | G73: Natural | H73: 5 | I73: ANTIOQUIA | J73: Aprobado con subsidio | K73: MICRO | L73: 4771 | M73: COMERCIO AL POR MAYOR Y AL POR MENOR; REPARACIÓN DE VEHÍCULOS AUTOMOTORES Y MOTOCICLETAS | N73: G | O73: Comercio al por menor de otros productos en establecimientos especializados | P73: Comercio al por menor de otros productos en establecimientos especializados | Q73: 1 | R73: 0 | S73: 0 | T73: 1 | U73: 0 | V73: 0 | W73: 1 | X73: 0 | BU73: 0 | BV73: 0 | BW73: 0
C74: 41001 | D74: NEIVA | E74: 0 | F74: 0 | G74: Natural | H74: 41 | I74: HUILA | J74: 0 | K74: MICRO | L74: 4755 | M74: COMERCIO AL POR MAYOR Y AL POR MENOR; REPARACIÓN DE VEHÍCULOS AUTOMOTORES Y MOTOCICLETAS | N74: G | O74: Comercio al por menor de otros enseres domésticos en establecimientos especializados | P74: Comercio al por menor de otros enseres domésticos en establecimientos especializados | Q74: 0 | R74: 0 | S74: 0 | T74: 0 | U74: 0 | V74: 0 | W74: 0 | X74: 0 | BU74: 0 | BV74: 0 | BW74: 0
C75: 5591 | D75: PUERTO TRIUNFO | E75: 0 | F75: 0 | G75: Natural | H75: 5 | I75: ANTIOQUIA | J75: 0 | K75: MICRO | L75: 4711 | M75: COMERCIO AL POR MAYOR Y AL POR MENOR; REPARACIÓN DE VEHÍCULOS AUTOMOTORES Y MOTOCICLETAS | N75: G | O75: Comercio al por menor en establecimientos no especializados | P75: Comercio al por menor en establecimientos no especializados | Q75: 0 | R75: 0 | S75: 0 | T75: 0 | U75: 0 | V75: 0 | W75: 0 | X75: 0 | BU75: 0 | BV75: 0 | BW75: 0
C76: 5001 | D76: MEDELLÍN | E76: 0 | F76: 0 | G76: Natural | H76: 5 | I76: ANTIOQUIA | J76: 0 | K76: PEQUEÑA | L76: 121 | M76: AGRICULTURA, GANADERÍA, CAZA, SILVICULTURA Y PESCA | N76: A | O76: Cultivos agrícolas permanentes | P76: Cultivos agrícolas permanentes | Q76: 0 | R76: 0 | S76: 0 | T76: 0 | U76: 0 | V76: 0 | W76: 0 | X76: 0 | BU76: 0 | BV76: 0 | BW76: 0
C77: 5001 | D77: MEDELLÍN | E77: 2 | F77: 1 | G77: Natural | H77: 5 | I77: ANTIOQUIA | J77: Aprobado con subsidio | K77: MICRO | L77: 4663 | M77: COMERCIO AL POR MAYOR Y AL POR MENOR; REPARACIÓN DE VEHÍCULOS AUTOMOTORES Y MOTOCICLETAS | N77: G | O77: Comercio al por mayor especializado de otros productos | P77: Comercio al por mayor especializado de otros productos | Q77: 0 | R77: 0 | S77: 2 | T77: 2 | U77: 0 | V77: 0 | W77: 0 | X77: 2 | BU77: 0 | BV77: 0 | BW77: 0
C78: 5001 | D78: MEDELLÍN | E78: 0 | F78: 0 | G78: Natural | H78: 5 | I78: ANTIOQUIA | J78: 0 | K78: MICRO | L78: 4923 | M78: TRANSPORTE Y ALMACENAMIENTO | N78: H | O78: Transporte terrestre publico automotor | P78: Transporte terrestre publico automotor | Q78: 0 | R78: 0 | S78: 0 | T78: 0 | U78: 0 | V78: 0 | W78: 0 | X78: 0 | BU78: 0 | BV78: 0 | BW78: 0
C79: 5264 | D79: ENTRERRIOS | E79: 0 | F79: 0 | G79: Natural | H79: 5 | I79: ANTIOQUIA | J79: 0 | K79: MEDIANA | L79: 121 | M79: AGRICULTURA, GANADERÍA, CAZA, SILVICULTURA Y PESCA | N79: A | O79: Cultivos agrícolas permanentes | P79: Cultivos agrícolas permanentes | Q79: 0 | R79: 0 | S79: 0 | T79: 0 | U79: 0 | V79: 0 | W79: 0 | X79: 0 | BU79: 0 | BV79: 0 | BW79: 0
C80: 5264 | D80: ENTRERRIOS | E80: 0 | F80: 0 | G80: Natural | H80: 5 | I80: ANTIOQUIA | J80: 0 | K80: MICRO | L80: 4724 | M80: COMERCIO AL POR MAYOR Y AL POR MENOR; REPARACIÓN DE VEHÍCULOS AUTOMOTORES Y MOTOCICLETAS | N80: G | O80: Comercio al por menor de alimentos (víveres en general), bebidas y tabaco, en establecimientos especializados | P80: Comercio al por menor de alimentos (víveres en general), bebidas y tabaco, en establecimientos especializados | Q80: 0 | R80: 0 | S80: 0 | T80: 0 | U80: 0 | V80: 0 | W80: 0 | X80: 0 | BU80: 0 | BV80: 0 | BW80: 0
C81: 5264 | D81: ENTRERRIOS | E81: 0 | F81: 0 | G81: Natural | H81: 5 | I81: ANTIOQUIA | J81: 0 | K81: MICRO | L81: 121 | M81: AGRICULTURA, GANADERÍA, CAZA, SILVICULTURA Y PESCA | N81: A | O81: Cultivos agrícolas permanentes | P81: Cultivos agrícolas permanentes | Q81: 0 | R81: 0 | S81: 0 | T81: 0 | U81: 0 | V81: 0 | W81: 0 | X81: 0 | BU81: 0 | BV81: 0 | BW81: 0
C82: 5360 | D82: ITAGUI | E82: 0 | F82: 0 | G82: Natural | H82: 5 | I82: ANTIOQUIA | J82: 0 | K82: MICRO | L82: 4721 | M82: COMERCIO AL POR MAYOR Y AL POR MENOR; REPARACIÓN DE VEHÍCULOS AUTOMOTORES Y MOTOCICLETAS | N82: G | O82: Comercio al por menor de alimentos (víveres en general), bebidas y tabaco, en establecimientos especializados | P82: Comercio al por menor de alimentos (víveres en general), bebidas y tabaco, en establecimientos especializados | Q82: 0 | R82: 0 | S82: 0 | T82: 0 | U82: 0 | V82: 0 | W82: 0 | X82: 0 | BU82: 0 | BV82: 0 | BW82: 0
C83: 5001 | D83: MEDELLÍN | E83: 0 | F83: 0 | G83: Natural | H83: 5 | I83: ANTIOQUIA | J83: 0 | K83: PEQUEÑA | L83: 1011 | M83: INDUSTRIAS MANUFACTURERAS | N83: C | O83: Procesamiento y conservación de carne, pescado, crustáceos y moluscos | P83: Elaboración de productos alimenticios | Q83: 0 | R83: 0 | S83: 0 | T83: 0 | U83: 0 | V83: 0 | W83: 0 | X83: 0 | BU83: 0 | BV83: 0 | BW83: 0
C84: 23001 | D84: MONTERÍA | E84: 0 | F84: 0 | G84: Natural | H84: 23 | I84: CÓRDOBA | J84: 0 | K84: MEDIANA | L84: 4711 | M84: COMERCIO AL POR MAYOR Y AL POR MENOR; REPARACIÓN DE VEHÍCULOS AUTOMOTORES Y MOTOCICLETAS | N84: G | O84: Comercio al por menor en establecimientos no especializados | P84: Comercio al por menor en establecimientos no especializados | Q84: 0 | R84: 0 | S84: 0 | T84: 0 | U84: 0 | V84: 0 | W84: 0 | X84: 0 | BU84: 0 | BV84: 0 | BW84: 0
C85: 5001 | D85: MEDELLÍN | E85: 0 | F85: 0 | G85: Natural | H85: 5 | I85: ANTIOQUIA | J85: 0 | K85: PEQUEÑA | L85: 4711 | M85: COMERCIO AL POR MAYOR Y AL POR MENOR; REPARACIÓN DE VEHÍCULOS AUTOMOTORES Y MOTOCICLETAS | N85: G | O85: Comercio al por menor en establecimientos no especializados | P85: Comercio al por menor en establecimientos no especializados | Q85: 0 | R85: 0 | S85: 0 | T85: 0 | U85: 0 | V85: 0 | W85: 0 | X85: 0 | BU85: 0 | BV85: 0 | BW85: 0
C86: 11001 | D86: BOGOTÁ, D.C. | E86: 0 | F86: 0 | G86: Natural | H86: 11 | I86: BOGOTÁ, D.C. | J86: 0 | K86: MICRO | L86: 1410 | M86: INDUSTRIAS MANUFACTURERAS | N86: C | O86: Confección de prendas de vestir, excepto prendas de piel | P86: Confección de prendas de vestir | Q86: 0 | R86: 0 | S86: 0 | T86: 0 | U86: 0 | V86: 0 | W86: 0 | X86: 0 | BU86: 0 | BV86: 0 | BW86: 0
C87: 11001 | D87: BOGOTÁ, D.C. | E87: 1 | F87: 7 | G87: Natural | H87: 11 | I87: BOGOTÁ, D.C. | J87: Aprobado con subsidio | K87: PEQUEÑA | L87: 4771 | M87: COMERCIO AL POR MAYOR Y AL POR MENOR; REPARACIÓN DE VEHÍCULOS AUTOMOTORES Y MOTOCICLETAS | N87: G | O87: Comercio al por menor de otros productos en establecimientos especializados | P87: Comercio al por menor de otros productos en establecimientos especializados | Q87: 1 | R87: 0 | S87: 0 | T87: 1 | U87: 0 | V87: 0 | W87: 0 | X87: 1 | BU87: 0 | BV87: 0 | BW87: 0
C88: 76001 | D88: CALI | E88: 0 | F88: 0 | G88: Natural | H88: 76 | I88: VALLE DEL CAUCA | J88: 0 | K88: PEQUEÑA | L88: 1081 | M88: INDUSTRIAS MANUFACTURERAS | N88: C | O88: Elaboración de otros productos alimenticios | P88: Elaboración de productos alimenticios | Q88: 0 | R88: 0 | S88: 0 | T88: 0 | U88: 0 | V88: 0 | W88: 0 | X88: 0 | BU88: 0 | BV88: 0 | BW88: 0
C89: 5001 | D89: MEDELLÍN | E89: 2 | F89: 0 | G89: Natural | H89: 5 | I89: ANTIOQUIA | J89: Aprobado con subsidio | K89: MICRO | L89: 3110 | M89: INDUSTRIAS MANUFACTURERAS | N89: C | O89: Fabricación de muebles | P89: Fabricación de muebles, colchones y somieres | Q89: 1 | R89: 1 | S89: 0 | T89: 2 | U89: 0 | V89: 0 | W89: 2 | X89: 0 | BU89: 0 | BV89: 0 | BW89: 0
C90: 5001 | D90: MEDELLÍN | E90: 0 | F90: 0 | G90: Natural | H90: 5 | I90: ANTIOQUIA | J90: 0 | K90: MICRO | L90: 4520 | M90: COMERCIO AL POR MAYOR Y AL POR MENOR; REPARACIÓN DE VEHÍCULOS AUTOMOTORES Y MOTOCICLETAS | N90: G | O90: Mantenimiento y reparación de vehículos automotores | P90: Mantenimiento y reparación de vehículos automotores | Q90: 0 | R90: 0 | S90: 0 | T90: 0 | U90: 0 | V90: 0 | W90: 0 | X90: 0 | BU90: 0 | BV90: 0 | BW90: 0
C91: 5209 | D91: CONCORDIA | E91: 0 | F91: 0 | G91: Natural | H91: 5 | I91: ANTIOQUIA | J91: 0 | K91: MICRO | L91: 123 | M91: AGRICULTURA, GANADERÍA, CAZA, SILVICULTURA Y PESCA | N91: A | O91: Cultivos agrícolas permanentes | P91: Cultivos agrícolas permanentes | Q91: 0 | R91: 0 | S91: 0 | T91: 0 | U91: 0 | V91: 0 | W91: 0 | X91: 0 | BU91: 0 | BV91: 0 | BW91: 0
C92: 5001 | D92: MEDELLÍN | E92: 0 | F92: 0 | G92: Natural | H92: 5 | I92: ANTIOQUIA | J92: 0 | K92: MICRO | L92: 4731 | M92: COMERCIO AL POR MAYOR Y AL POR MENOR; REPARACIÓN DE VEHÍCULOS AUTOMOTORES Y MOTOCICLETAS | N92: G | O92: Comercio al por menor de combustible, lubricantes, aditivos y productos de limpieza para automotores, en establecimientos especializados | P92: Comercio al por menor de combustible, lubricantes, aditivos y productos de limpieza para automotores, en establecimientos especializados | Q92: 0 | R92: 0 | S92: 0 | T92: 0 | U92: 0 | V92: 0 | W92: 0 | X92: 0 | BU92: 0 | BV92: 0 | BW92: 0
C93: 5697 | D93: EL SANTUARIO | E93: 1 | F93: 1 | G93: Natural | H93: 5 | I93: ANTIOQUIA | J93: Aprobado con subsidio | K93: MICRO | L93: 4773 | M93: COMERCIO AL POR MAYOR Y AL POR MENOR; REPARACIÓN DE VEHÍCULOS AUTOMOTORES Y MOTOCICLETAS | N93: G | O93: Comercio al por menor de otros productos en establecimientos especializados | P93: Comercio al por menor de otros productos en establecimientos especializados | Q93: 1 | R93: 0 | S93: 0 | T93: 1 | U93: 0 | V93: 0 | W93: 1 | X93: 0 | BU93: 0 | BV93: 0 | BW93: 0
C94: 5001 | D94: MEDELLÍN | E94: 0 | F94: 0 | G94: Natural | H94: 5 | I94: ANTIOQUIA | J94: 0 | K94: PEQUEÑA | L94: 722 | M94: EXPLOTACIÓN DE MINAS Y CANTERAS | N94: B | O94: Extracción de minerales metalíferos no ferrosos | P94: Extracción de minerales metalíferos no ferrosos | Q94: 0 | R94: 0 | S94: 0 | T94: 0 | U94: 0 | V94: 0 | W94: 0 | X94: 0 | BU94: 0 | BV94: 0 | BW94: 0
C95: 5001 | D95: MEDELLÍN | E95: 0 | F95: 0 | G95: Natural | H95: 5 | I95: ANTIOQUIA | J95: 0 | K95: PEQUEÑA | L95: 141 | M95: AGRICULTURA, GANADERÍA, CAZA, SILVICULTURA Y PESCA | N95: A | O95: Ganadería | P95: Ganadería | Q95: 0 | R95: 0 | S95: 0 | T95: 0 | U95: 0 | V95: 0 | W95: 0 | X95: 0 | BU95: 0 | BV95: 0 | BW95: 0
C96: 11001 | D96: BOGOTÁ, D.C. | E96: 1 | F96: 1 | G96: Natural | H96: 11 | I96: BOGOTÁ, D.C. | J96: Aprobado con subsidio | K96: MICRO | L96: 4652 | M96: COMERCIO AL POR MAYOR Y AL POR MENOR; REPARACIÓN DE VEHÍCULOS AUTOMOTORES Y MOTOCICLETAS | N96: G | O96: Comercio al por mayor de maquinaria y equipo | P96: Comercio al por mayor de maquinaria y equipo | Q96: 0 | R96: 1 | S96: 0 | T96: 1 | U96: 0 | V96: 0 | W96: 1 | X96: 0 | BU96: 0 | BV96: 0 | BW96: 0
C97: 54001 | D97: CÚCUTA | E97: 2 | F97: 0 | G97: Natural | H97: 54 | I97: NORTE DE SANTANDER | J97: Aprobado con subsidio | K97: PEQUEÑA | L97: 4631 | M97: COMERCIO AL POR MAYOR Y AL POR MENOR; REPARACIÓN DE VEHÍCULOS AUTOMOTORES Y MOTOCICLETAS | N97: G | O97: Comercio al por mayor de alimentos, bebidas y tabaco | P97: Comercio al por mayor de alimentos, bebidas y tabaco | Q97: 0 | R97: 2 | S97: 0 | T97: 2 | U97: 0 | V97: 0 | W97: 2 | X97: 0 | BU97: 0 | BV97: 0 | BW97: 0
C98: 11001 | D98: BOGOTÁ, D.C. | E98: 0 | F98: 0 | G98: Natural | H98: 11 | I98: BOGOTÁ, D.C. | J98: 0 | K98: MICRO | L98: 4530 | M98: COMERCIO AL POR MAYOR Y AL POR MENOR; REPARACIÓN DE VEHÍCULOS AUTOMOTORES Y MOTOCICLETAS | N98: G | O98: Comercio de partes, piezas (autopartes) y accesorios (lujos) para vehículos automotores | P98: Comercio de partes, piezas (autopartes) y accesorios (lujos) para vehículos automotores | Q98: 0 | R98: 0 | S98: 0 | T98: 0 | U98: 0 | V98: 0 | W98: 0 | X98: 0 | BU98: 0 | BV98: 0 | BW98: 0
C99: 5001 | D99: MEDELLÍN | E99: 1 | F99: 1 | G99: Natural | H99: 5 | I99: ANTIOQUIA | J99: Aprobado con subsidio | K99: MICRO | L99: 6810 | M99: ACTIVIDADES INMOBILIARIAS | N99: L | O99: Actividades inmobiliarias realizadas con bienes propios o arrendados | P99: Actividades inmobiliarias realizadas con bienes propios o arrendados | Q99: 0 | R99: 1 | S99: 0 | T99: 0 | U99: 0 | V99: 1 | W99: 1 | X99: 0 | BU99: 0 | BV99: 0 | BW99: 0
C100: 15667 | D100: SAN LUIS DE GACENO | E100: 0 | F100: 0 | G100: Natural | H100: 15 | I100: BOYACÁ | J100: 0 | K100: MICRO | L100: 4711 | M100: COMERCIO AL POR MAYOR Y AL POR MENOR; REPARACIÓN DE VEHÍCULOS AUTOMOTORES Y MOTOCICLETAS | N100: G | O100: Comercio al por menor en establecimientos no especializados | P100: Comercio al por menor en establecimientos no especializados | Q100: 0 | R100: 0 | S100: 0 | T100: 0 | U100: 0 | V100: 0 | W100: 0 | X100: 0 | BU100: 0 | BV100: 0 | BW100: 0
C101: 15759 | D101: SOGAMOSO | E101: 6 | F101: 2 | G101: Natural | H101: 15 | I101: BOYACÁ | J101: Aprobado con subsidio | K101: MICRO | L101: 8512 | M101: EDUCACIÓN | N101: P | O101: Educación de la primera infancia, preescolar y básica primaria | P101: Educación de la primera infancia, preescolar y básica primaria | Q101: 6 | R101: 0 | S101: 0 | T101: 1 | U101: 5 | V101: 0 | W101: 6 | X101: 0 | BU101: 0 | BV101: 0 | BW101: 0
C102: 15176 | D102: CHIQUINQUIRÁ | E102: 7 | F102: 8 | G102: Natural | H102: 15 | I102: BOYACÁ | J102: Aprobado con subsidio | K102: MICRO | L102: 1081 | M102: INDUSTRIAS MANUFACTURERAS | N102: C | O102: Elaboración de otros productos alimenticios | P102: Elaboración de productos alimenticios | Q102: 4 | R102: 3 | S102: 0 | T102: 6 | U102: 1 | V102: 0 | W102: 7 | X102: 0 | BU102: 0 | BV102: 0 | BW102: 0
C103: 11001 | D103: BOGOTÁ, D.C. | E103: 2 | F103: 0 | G103: Natural | H103: 11 | I103: BOGOTÁ, D.C. | J103: Aprobado con subsidio | K103: MICRO | L103: 2920 | M103: INDUSTRIAS MANUFACTURERAS | N103: C | O103: Fabricación de carrocerías para vehículos automotores; fabricación de remolques y semirremolques | P103: Fabricación de vehículos automotores, remolques y semirremolques | Q103: 2 | R103: 0 | S103: 0 | T103: 0 | U103: 2 | V103: 0 | W103: 2 | X103: 0 | BU103: 0 | BV103: 0 | BW103: 0
C104: 15001 | D104: TUNJA | E104: 0 | F104: 0 | G104: Natural | H104: 15 | I104: BOYACÁ | J104: 0 | K104: MICRO | L104: 4721 | M104: COMERCIO AL POR MAYOR Y AL POR MENOR; REPARACIÓN DE VEHÍCULOS AUTOMOTORES Y MOTOCICLETAS | N104: G | O104: Comercio al por menor de alimentos (víveres en general), bebidas y tabaco, en establecimientos especializados | P104: Comercio al por menor de alimentos (víveres en general), bebidas y tabaco, en establecimientos especializados | Q104: 0 | R104: 0 | S104: 0 | T104: 0 | U104: 0 | V104: 0 | W104: 0 | X104: 0 | BU104: 0 | BV104: 0 | BW104: 0
C105: 11001 | D105: BOGOTÁ, D.C. | E105: 0 | F105: 0 | G105: Natural | H105: 11 | I105: BOGOTÁ, D.C. | J105: 0 | K105: MICRO | L105: 1392 | M105: INDUSTRIAS MANUFACTURERAS | N105: C | O105: Fabricación de otros productos textiles | P105: Fabricación de productos textiles | Q105: 0 | R105: 0 | S105: 0 | T105: 0 | U105: 0 | V105: 0 | W105: 0 | X105: 0 | BU105: 0 | BV105: 0 | BW105: 0
C106: 15238 | D106: DUITAMA | E106: 1 | F106: 1 | G106: Natural | H106: 15 | I106: BOYACÁ | J106: Aprobado con subsidio | K106: MICRO | L106: 4923 | M106: TRANSPORTE Y ALMACENAMIENTO | N106: H | O106: Transporte terrestre publico automotor | P106: Transporte terrestre publico automotor | Q106: 0 | R106: 1 | S106: 0 | T106: 1 | U106: 0 | V106: 0 | W106: 1 | X106: 0 | BU106: 0 | BV106: 0 | BW106: 0
C107: 85001 | D107: YOPAL | E107: 2 | F107: 1 | G107: Natural | H107: 85 | I107: CASANARE | J107: Aprobado con subsidio | K107: MICRO | L107: 4542 | M107: COMERCIO AL POR MAYOR Y AL POR MENOR; REPARACIÓN DE VEHÍCULOS AUTOMOTORES Y MOTOCICLETAS | N107: G | O107: Comercio, mantenimiento y reparación de motocicletas y de sus partes, piezas y accesorios | P107: Comercio, mantenimiento y reparación de motocicletas y de sus partes, piezas y accesorios | Q107: 1 | R107: 1 | S107: 0 | T107: 2 | U107: 0 | V107: 0 | W107: 2 | X107: 0 | BU107: 0 | BV107: 0 | BW107: 0
C108: 15537 | D108: PAZ DE RÍO | E108: 2 | F108: 2 | G108: Natural | H108: 15 | I108: BOYACÁ | J108: Aprobado con subsidio | K108: PEQUEÑA | L108: 4923 | M108: TRANSPORTE Y ALMACENAMIENTO | N108: H | O108: Transporte terrestre publico automotor | P108: Transporte terrestre publico automotor | Q108: 1 | R108: 1 | S108: 0 | T108: 2 | U108: 0 | V108: 0 | W108: 2 | X108: 0 | BU108: 0 | BV108: 0 | BW108: 0
C109: 15759 | D109: SOGAMOSO | E109: 1 | F109: 2 | G109: Natural | H109: 15 | I109: BOYACÁ | J109: Aprobado con subsidio | K109: PEQUEÑA | L109: 2395 | M109: INDUSTRIAS MANUFACTURERAS | N109: C | O109: Fabricación de productos minerales no metálicos n.c.p. | P109: Fabricación de otros productos minerales no metálicos | Q109: 0 | R109: 1 | S109: 0 | T109: 0 | U109: 0 | V109: 1 | W109: 1 | X109: 0 | BU109: 0 | BV109: 0 | BW109: 0
C110: 11001 | D110: BOGOTÁ, D.C. | E110: 0 | F110: 0 | G110: Natural | H110: 11 | I110: BOGOTÁ, D.C. | J110: 0 | K110: MICRO | L110: 4752 | M110: COMERCIO AL POR MAYOR Y AL POR MENOR; REPARACIÓN DE VEHÍCULOS AUTOMOTORES Y MOTOCICLETAS | N110: G | O110: Comercio al por menor de otros enseres domésticos en establecimientos especializados | P110: Comercio al por menor de otros enseres domésticos en establecimientos especializados | Q110: 0 | R110: 0 | S110: 0 | T110: 0 | U110: 0 | V110: 0 | W110: 0 | X110: 0 | BU110: 0 | BV110: 0 | BW110: 0
C111: 11001 | D111: BOGOTÁ, D.C. | E111: 1 | F111: 1 | G111: Natural | H111: 11 | I111: BOGOTÁ, D.C. | J111: Aprobado con subsidio | K111: MICRO | L111: 4663 | M111: COMERCIO AL POR MAYOR Y AL POR MENOR; REPARACIÓN DE VEHÍCULOS AUTOMOTORES Y MOTOCICLETAS | N111: G | O111: Comercio al por mayor especializado de otros productos | P111: Comercio al por mayor especializado de otros productos | Q111: 0 | R111: 1 | S111: 0 | T111: 1 | U111: 0 | V111: 0 | W111: 1 | X111: 0 | BU111: 0 | BV111: 0 | BW111: 0
C112: 11001 | D112: BOGOTÁ, D.C. | E112: 0 | F112: 0 | G112: Natural | H112: 11 | I112: BOGOTÁ, D.C. | J112: 0 | K112: PEQUEÑA | L112: 4771 | M112: COMERCIO AL POR MAYOR Y AL POR MENOR; REPARACIÓN DE VEHÍCULOS AUTOMOTORES Y MOTOCICLETAS | N112: G | O112: Comercio al por menor de otros productos en establecimientos especializados | P112: Comercio al por menor de otros productos en establecimientos especializados | Q112: 0 | R112: 0 | S112: 0 | T112: 0 | U112: 0 | V112: 0 | W112: 0 | X112: 0 | BU112: 0 | BV112: 0 | BW112: 0
C113: 15753 | D113: SOATÁ | E113: 2 | F113: 1 | G113: Natural | H113: 15 | I113: BOYACÁ | J113: Aprobado con subsidio | K113: MICRO | L113: 4631 | M113: COMERCIO AL POR MAYOR Y AL POR MENOR; REPARACIÓN DE VEHÍCULOS AUTOMOTORES Y MOTOCICLETAS | N113: G | O113: Comercio al por mayor de alimentos, bebidas y tabaco | P113: Comercio al por mayor de alimentos, bebidas y tabaco | Q113: 0 | R113: 2 | S113: 0 | T113: 0 | U113: 0 | V113: 2 | W113: 2 | X113: 0 | BU113: 0 | BV113: 0 | BW113: 0
C114: 54874 | D114: VILLA DEL ROSARIO | E114: 0 | F114: 0 | G114: Natural | H114: 54 | I114: NORTE DE SANTANDER | J114: 0 | K114: MICRO | L114: 5630 | M114: ALOJAMIENTO Y SERVICIOS DE COMIDA | N114: I | O114: Expendio de bebidas alcohólicas para el consumo dentro del establecimiento | P114: Expendio de bebidas alcohólicas para el consumo dentro del establecimiento | Q114: 0 | R114: 0 | S114: 0 | T114: 0 | U114: 0 | V114: 0 | W114: 0 | X114: 0 | BU114: 0 | BV114: 0 | BW114: 0
C115: 11001 | D115: BOGOTÁ, D.C. | E115: 0 | F115: 0 | G115: Natural | H115: 11 | I115: BOGOTÁ, D.C. | J115: 0 | K115: MICRO | L115: 4642 | M115: COMERCIO AL POR MAYOR Y AL POR MENOR; REPARACIÓN DE VEHÍCULOS AUTOMOTORES Y MOTOCICLETAS | N115: G | O115: Comercio al por mayor de artículos y enseres domésticos (incluidas prendas de vestir) | P115: Comercio al por mayor de artículos y enseres domésticos (incluidas prendas de vestir) | Q115: 0 | R115: 0 | S115: 0 | T115: 0 | U115: 0 | V115: 0 | W115: 0 | X115: 0 | BU115: 0 | BV115: 0 | BW115: 0
C116: 11001 | D116: BOGOTÁ, D.C. | E116: 6 | F116: 12 | G116: Natural | H116: 11 | I116: BOGOTÁ, D.C. | J116: Aprobado con subsidio | K116: MICRO | L116: 1081 | M116: INDUSTRIAS MANUFACTURERAS | N116: C | O116: Elaboración de otros productos alimenticios | P116: Elaboración de productos alimenticios | Q116: 3 | R116: 3 | S116: 0 | T116: 6 | U116: 0 | V116: 0 | W116: 6 | X116: 0 | BU116: 0 | BV116: 0 | BW116: 0
C117: 15759 | D117: SOGAMOSO | E117: 3 | F117: 2 | G117: Natural | H117: 15 | I117: BOYACÁ | J117: Aprobado con subsidio | K117: MICRO | L117: 4923 | M117: TRANSPORTE Y ALMACENAMIENTO | N117: H | O117: Transporte terrestre publico automotor | P117: Transporte terrestre publico automotor | Q117: 0 | R117: 3 | S117: 0 | T117: 2 | U117: 0 | V117: 1 | W117: 3 | X117: 0 | BU117: 0 | BV117: 0 | BW117: 0
C118: 11001 | D118: BOGOTÁ, D.C. | E118: 5 | F118: 2 | G118: Natural | H118: 11 | I118: BOGOTÁ, D.C. | J118: Aprobado con subsidio | K118: MICRO | L118: 4923 | M118: TRANSPORTE Y ALMACENAMIENTO | N118: H | O118: Transporte terrestre publico automotor | P118: Transporte terrestre publico automotor | Q118: 1 | R118: 4 | S118: 0 | T118: 2 | U118: 1 | V118: 2 | W118: 5 | X118: 0 | BU118: 0 | BV118: 0 | BW118: 0
C119: 85001 | D119: YOPAL | E119: 0 | F119: 0 | G119: Natural | H119: 85 | I119: CASANARE | J119: 0 | K119: MICRO | L119: 811 | M119: EXPLOTACIÓN DE MINAS Y CANTERAS | N119: B | O119: Extracción de piedra, arena, arcillas, cal, yeso, caolín, bentonitas y similares | P119: Extracción de piedra, arena, arcillas, cal, yeso, caolín, bentonitas y similares | Q119: 0 | R119: 0 | S119: 0 | T119: 0 | U119: 0 | V119: 0 | W119: 0 | X119: 0 | BU119: 0 | BV119: 0 | BW119: 0
C120: 15808 | D120: TINJACÁ | E120: 0 | F120: 0 | G120: Natural | H120: 15 | I120: BOYACÁ | J120: 0 | K120: MICRO | L120: 4752 | M120: COMERCIO AL POR MAYOR Y AL POR MENOR; REPARACIÓN DE VEHÍCULOS AUTOMOTORES Y MOTOCICLETAS | N120: G | O120: Comercio al por menor de otros enseres domésticos en establecimientos especializados | P120: Comercio al por menor de otros enseres domésticos en establecimientos especializados | Q120: 0 | R120: 0 | S120: 0 | T120: 0 | U120: 0 | V120: 0 | W120: 0 | X120: 0 | BU120: 0 | BV120: 0 | BW120: 0
C121: 11001 | D121: BOGOTÁ, D.C. | E121: 0 | F121: 0 | G121: Natural | H121: 11 | I121: BOGOTÁ, D.C. | J121: 0 | K121: MICRO | L121: 2592 | M121: INDUSTRIAS MANUFACTURERAS | N121: C | O121: Fabricación de otros productos elaborados de metal y actividades de servicios relacionadas con el trabajo de metales | P121: Fabricación de productos elaborados de metal, excepto maquinaria y equipo | Q121: 0 | R121: 0 | S121: 0 | T121: 0 | U121: 0 | V121: 0 | W121: 0 | X121: 0 | BU121: 0 | BV121: 0 | BW121: 0
C122: 11001 | D122: BOGOTÁ, D.C. | E122: 5 | F122: 0 | G122: Natural | H122: 11 | I122: BOGOTÁ, D.C. | J122: Aprobado con subsidio | K122: MICRO | L122: 5611 | M122: ALOJAMIENTO Y SERVICIOS DE COMIDA | N122: I | O122: Actividades de restaurantes, cafeterías y servicio móvil de comidas | P122: Actividades de restaurantes, cafeterías y servicio móvil de comidas | Q122: 2 | R122: 3 | S122: 0 | T122: 0 | U122: 2 | V122: 3 | W122: 4 | X122: 1 | BU122: 0 | BV122: 0 | BW122: 0
C123: 18001 | D123: FLORENCIA | E123: 0 | F123: 0 | G123: Natural | H123: 18 | I123: CAQUETÁ | J123: 0 | K123: MICRO | L123: 4651 | M123: COMERCIO AL POR MAYOR Y AL POR MENOR; REPARACIÓN DE VEHÍCULOS AUTOMOTORES Y MOTOCICLETAS | N123: G | O123: Comercio al por mayor de maquinaria y equipo | P123: Comercio al por mayor de maquinaria y equipo | Q123: 0 | R123: 0 | S123: 0 | T123: 0 | U123: 0 | V123: 0 | W123: 0 | X123: 0 | BU123: 0 | BV123: 0 | BW123: 0
C124: 5266 | D124: ENVIGADO | E124: 1 | F124: 0 | G124: Natural | H124: 5 | I124: ANTIOQUIA | J124: Aprobado con subsidio | K124: MICRO | L124: 4541 | M124: COMERCIO AL POR MAYOR Y AL POR MENOR; REPARACIÓN DE VEHÍCULOS AUTOMOTORES Y MOTOCICLETAS | N124: G | O124: Comercio, mantenimiento y reparación de motocicletas y de sus partes, piezas y accesorios | P124: Comercio, mantenimiento y reparación de motocicletas y de sus partes, piezas y accesorios | Q124: 1 | R124: 0 | S124: 0 | T124: 1 | U124: 0 | V124: 0 | W124: 1 | X124: 0 | BU124: 0 | BV124: 0 | BW124: 0
C125: 76001 | D125: CALI | E125: 0 | F125: 0 | G125: Natural | H125: 76 | I125: VALLE DEL CAUCA | J125: 0 | K125: MICRO | L125: 4530 | M125: COMERCIO AL POR MAYOR Y AL POR MENOR; REPARACIÓN DE VEHÍCULOS AUTOMOTORES Y MOTOCICLETAS | N125: G | O125: Comercio de partes, piezas (autopartes) y accesorios (lujos) para vehículos automotores | P125: Comercio de partes, piezas (autopartes) y accesorios (lujos) para vehículos automotores | Q125: 0 | R125: 0 | S125: 0 | T125: 0 | U125: 0 | V125: 0 | W125: 0 | X125: 0 | BU125: 0 | BV125: 0 | BW125: 0
C126: 17442 | D126: MARMATO | E126: 33 | F126: 15 | G126: Natural | H126: 17 | I126: CALDAS | J126: Aprobado con subsidio | K126: PEQUEÑA | L126: 722 | M126: EXPLOTACIÓN DE MINAS Y CANTERAS | N126: B | O126: Extracción de minerales metalíferos no ferrosos | P126: Extracción de minerales metalíferos no ferrosos | Q126: 0 | R126: 33 | S126: 0 | T126: 12 | U126: 0 | V126: 21 | W126: 29 | X126: 4 | BU126: 0 | BV126: 0 | BW126: 0
C127: 17442 | D127: MARMATO | E127: 37 | F127: 23 | G127: Natural | H127: 17 | I127: CALDAS | J127: Aprobado con subsidio | K127: PEQUEÑA | L127: 722 | M127: EXPLOTACIÓN DE MINAS Y CANTERAS | N127: B | O127: Extracción de minerales metalíferos no ferrosos | P127: Extracción de minerales metalíferos no ferrosos | Q127: 0 | R127: 37 | S127: 0 | T127: 19 | U127: 0 | V127: 18 | W127: 36 | X127: 1 | BU127: 0 | BV127: 0 | BW127: 0
C128: 50001 | D128: VILLAVICENCIO | E128: 4 | F128: 2 | G128: Natural | H128: 50 | I128: META | J128: Aprobado con subsidio | K128: MICRO | L128: 4321 | M128: CONSTRUCCIÓN | N128: F | O128: Instalaciones eléctricas, de fontanería y otras instalaciones especializadas | P128: Instalaciones eléctricas, de fontanería y otras instalaciones especializadas | Q128: 2 | R128: 2 | S128: 0 | T128: 2 | U128: 1 | V128: 1 | W128: 4 | X128: 0 | BU128: 0 | BV128: 0 | BW128: 0
C129: 66001 | D129: PEREIRA | E129: 0 | F129: 0 | G129: Natural | H129: 66 | I129: RISARALDA | J129: 0 | K129: MICRO | L129: 5530 | M129: ALOJAMIENTO Y SERVICIOS DE COMIDA | N129: I | O129: Servicios por horas | P129: Servicios por horas | Q129: 0 | R129: 0 | S129: 0 | T129: 0 | U129: 0 | V129: 0 | W129: 0 | X129: 0 | BU129: 0 | BV129: 0 | BW129: 0
C130: 66001 | D130: PEREIRA | E130: 0 | F130: 0 | G130: Natural | H130: 66 | I130: RISARALDA | J130: 0 | K130: MICRO | L130: 121 | M130: AGRICULTURA, GANADERÍA, CAZA, SILVICULTURA Y PESCA | N130: A | O130: Cultivos agrícolas permanentes | P130: Cultivos agrícolas permanentes | Q130: 0 | R130: 0 | S130: 0 | T130: 0 | U130: 0 | V130: 0 | W130: 0 | X130: 0 | BU130: =COUNTIFS($AS$2:$AS$399999,"Aprobado con subsidio",$AL$2:$AL$399999,BT130) -> 0 | BV130: 0 | BW130: 0
C131: 66001 | D131: PEREIRA | E131: 9 | F131: 0 | G131: Natural | H131: 66 | I131: RISARALDA | J131: Aprobado con subsidio | K131: MICRO | L131: 9609 | M131: OTRAS ACTIVIDADES DE SERVICIOS | N131: S | O131: Otras actividades de servicios personales | P131: Otras actividades de servicios personales | Q131: 1 | R131: 8 | S131: 0 | T131: 3 | U131: 1 | V131: 5 | W131: 7 | X131: 2 | BU131: 0 | BV131: 0 | BW131: 0
C132: 66001 | D132: PEREIRA | E132: 0 | F132: 0 | G132: Natural | H132: 66 | I132: RISARALDA | J132: 0 | K132: MICRO | L132: 4711 | M132: COMERCIO AL POR MAYOR Y AL POR MENOR; REPARACIÓN DE VEHÍCULOS AUTOMOTORES Y MOTOCICLETAS | N132: G | O132: Comercio al por menor en establecimientos no especializados | P132: Comercio al por menor en establecimientos no especializados | Q132: 0 | R132: 0 | S132: 0 | T132: 0 | U132: 0 | V132: 0 | W132: 0 | X132: 0 | BU132: 0 | BV132: 0 | BW132: 0
C133: 66001 | D133: PEREIRA | E133: 1 | F133: 8 | G133: Natural | H133: 66 | I133: RISARALDA | J133: Aprobado con subsidio | K133: PEQUEÑA | L133: 4773 | M133: COMERCIO AL POR MAYOR Y AL POR MENOR; REPARACIÓN DE VEHÍCULOS AUTOMOTORES Y MOTOCICLETAS | N133: G | O133: Comercio al por menor de otros productos en establecimientos especializados | P133: Comercio al por menor de otros productos en establecimientos especializados | Q133: 0 | R133: 0 | S133: 1 | T133: 1 | U133: 0 | V133: 0 | W133: 0 | X133: 1 | BU133: 0 | BV133: 0 | BW133: 0
C134: 66594 | D134: QUINCHÍA | E134: 5 | F134: 2 | G134: Natural | H134: 66 | I134: RISARALDA | J134: Aprobado con subsidio | K134: MICRO | L134: 4711 | M134: COMERCIO AL POR MAYOR Y AL POR MENOR; REPARACIÓN DE VEHÍCULOS AUTOMOTORES Y MOTOCICLETAS | N134: G | O134: Comercio al por menor en establecimientos no especializados | P134: Comercio al por menor en establecimientos no especializados | Q134: 0 | R134: 5 | S134: 0 | T134: 5 | U134: 0 | V134: 0 | W134: 5 | X134: 0 | BU134: 0 | BV134: 0 | BW134: 0
C135: 63001 | D135: ARMENIA | E135: 0 | F135: 0 | G135: Natural | H135: 63 | I135: QUINDÍO | J135: 0 | K135: MICRO | L135: 5611 | M135: ALOJAMIENTO Y SERVICIOS DE COMIDA | N135: I | O135: Actividades de restaurantes, cafeterías y servicio móvil de comidas | P135: Actividades de restaurantes, cafeterías y servicio móvil de comidas | Q135: 0 | R135: 0 | S135: 0 | T135: 0 | U135: 0 | V135: 0 | W135: 0 | X135: 0 | BU135: 0 | BV135: 0 | BW135: 0
C136: 63001 | D136: ARMENIA | E136: 0 | F136: 0 | G136: Natural | H136: 63 | I136: QUINDÍO | J136: 0 | K136: MICRO | L136: 8530 | M136: EDUCACIÓN | N136: P | O136: Establecimientos que combinan diferentes niveles de educación | P136: Establecimientos que combinan diferentes niveles de educación | Q136: 0 | R136: 0 | S136: 0 | T136: 0 | U136: 0 | V136: 0 | W136: 0 | X136: 0 | BU136: 0 | BV136: 0 | BW136: 0
C137: 66170 | D137: DOSQUEBRADAS | E137: 1 | F137: 0 | G137: Natural | H137: 66 | I137: RISARALDA | J137: Aprobado con subsidio | K137: MICRO | L137: 4775 | M137: COMERCIO AL POR MAYOR Y AL POR MENOR; REPARACIÓN DE VEHÍCULOS AUTOMOTORES Y MOTOCICLETAS | N137: G | O137: Comercio al por menor de otros productos en establecimientos especializados | P137: Comercio al por menor de otros productos en establecimientos especializados | Q137: 0 | R137: 1 | S137: 0 | T137: 1 | U137: 0 | V137: 0 | W137: 1 | X137: 0 | BU137: 0 | BV137: 0 | BW137: 0
C138: 66170 | D138: DOSQUEBRADAS | E138: 7 | F138: 8 | G138: Natural | H138: 66 | I138: RISARALDA | J138: Aprobado con subsidio | K138: PEQUEÑA | L138: 6910 | M138: ACTIVIDADES PROFESIONALES, CIENTÍFICAS Y TÉCNICAS | N138: M | O138: Actividades jurídicas | P138: Actividades jurídicas | Q138: 6 | R138: 1 | S138: 0 | T138: 4 | U138: 3 | V138: 0 | W138: 7 | X138: 0 | BU138: 0 | BV138: 0 | BW138: 0
C139: 66001 | D139: PEREIRA | E139: 9 | F139: 17 | G139: Natural | H139: 66 | I139: RISARALDA | J139: Aprobado con subsidio | K139: PEQUEÑA | L139: 4754 | M139: COMERCIO AL POR MAYOR Y AL POR MENOR; REPARACIÓN DE VEHÍCULOS AUTOMOTORES Y MOTOCICLETAS | N139: G | O139: Comercio al por menor de otros enseres domésticos en establecimientos especializados | P139: Comercio al por menor de otros enseres domésticos en establecimientos especializados | Q139: 2 | R139: 7 | S139: 0 | T139: 8 | U139: 1 | V139: 0 | W139: 7 | X139: 2 | BU139: 0 | BV139: 0 | BW139: 0
C140: 17777 | D140: SUPÍA | E140: 0 | F140: 0 | G140: Natural | H140: 17 | I140: CALDAS | J140: 0 | K140: PEQUEÑA | L140: 4759 | M140: COMERCIO AL POR MAYOR Y AL POR MENOR; REPARACIÓN DE VEHÍCULOS AUTOMOTORES Y MOTOCICLETAS | N140: G | O140: Comercio al por menor de otros enseres domésticos en establecimientos especializados | P140: Comercio al por menor de otros enseres domésticos en establecimientos especializados | Q140: 0 | R140: 0 | S140: 0 | T140: 0 | U140: 0 | V140: 0 | W140: 0 | X140: 0 | BU140: 0 | BV140: 0 | BW140: 0
C141: 19001 | D141: POPAYÁN | E141: 0 | F141: 0 | G141: Natural | H141: 19 | I141: CAUCA | J141: 0 | K141: PEQUEÑA | L141: 4111 | M141: CONSTRUCCIÓN | N141: F | O141: Construcción de edificios | P141: Construcción de edificios | Q141: 0 | R141: 0 | S141: 0 | T141: 0 | U141: 0 | V141: 0 | W141: 0 | X141: 0 | BU141: 0 | BV141: 0 | BW141: 0
C142: 18205 | D142: CURILLO | E142: 19 | F142: 15 | G142: Natural | H142: 18 | I142: CAQUETÁ | J142: Aprobado con subsidio | K142: PEQUEÑA | L142: 1040 | M142: INDUSTRIAS MANUFACTURERAS | N142: C | O142: Elaboración de productos lácteos | P142: Elaboración de productos alimenticios | Q142: 6 | R142: 13 | S142: 0 | T142: 11 | U142: 3 | V142: 5 | W142: 18 | X142: 1 | BU142: 0 | BV142: 0 | BW142: 0
C143: 19001 | D143: POPAYÁN | E143: 3 | F143: 0 | G143: Natural | H143: 19 | I143: CAUCA | J143: Aprobado con subsidio | K143: MICRO | L143: 8559 | M143: EDUCACIÓN | N143: P | O143: Otros tipos de educación | P143: Otros tipos de educación | Q143: 1 | R143: 2 | S143: 0 | T143: 0 | U143: 1 | V143: 2 | W143: 3 | X143: 0 | BU143: 0 | BV143: 0 | BW143: 0
C144: 19698 | D144: SANTANDER DE QUILICHAO | E144: 0 | F144: 0 | G144: Natural | H144: 19 | I144: CAUCA | J144: 0 | K144: MICRO | L144: 4719 | M144: COMERCIO AL POR MAYOR Y AL POR MENOR; REPARACIÓN DE VEHÍCULOS AUTOMOTORES Y MOTOCICLETAS | N144: G | O144: Comercio al por menor en establecimientos no especializados | P144: Comercio al por menor en establecimientos no especializados | Q144: 0 | R144: 0 | S144: 0 | T144: 0 | U144: 0 | V144: 0 | W144: 0 | X144: 0 | BU144: 0 | BV144: 0 | BW144: 0
C145: 76001 | D145: CALI | E145: 5 | F145: 0 | G145: Natural | H145: 76 | I145: VALLE DEL CAUCA | J145: Aprobado con subsidio | K145: MICRO | L145: 4752 | M145: COMERCIO AL POR MAYOR Y AL POR MENOR; REPARACIÓN DE VEHÍCULOS AUTOMOTORES Y MOTOCICLETAS | N145: G | O145: Comercio al por menor de otros enseres domésticos en establecimientos especializados | P145: Comercio al por menor de otros enseres domésticos en establecimientos especializados | Q145: 5 | R145: 0 | S145: 0 | T145: 5 | U145: 0 | V145: 0 | W145: 5 | X145: 0 | BU145: 0 | BV145: 0 | BW145: 0
C146: 76001 | D146: CALI | E146: 0 | F146: 0 | G146: Natural | H146: 76 | I146: VALLE DEL CAUCA | J146: 0 | K146: MICRO | L146: 7730 | M146: ACTIVIDADES DE SERVICIOS ADMINISTRATIVOS Y DE APOYO | N146: N | O146: Alquiler y arrendamiento de otros tipos de maquinaria, equipo y bienes tangibles n.c.p. | P146: Alquiler y arrendamiento de otros tipos de maquinaria, equipo y bienes tangibles n.c.p. | Q146: 0 | R146: 0 | S146: 0 | T146: 0 | U146: 0 | V146: 0 | W146: 0 | X146: 0 | BU146: 0 | BV146: 0 | BW146: 0
C147: 41807 | D147: TIMANÁ | E147: 0 | F147: 0 | G147: Natural | H147: 41 | I147: HUILA | J147: 0 | K147: PEQUEÑA | L147: 4711 | M147: COMERCIO AL POR MAYOR Y AL POR MENOR; REPARACIÓN DE VEHÍCULOS AUTOMOTORES Y MOTOCICLETAS | N147: G | O147: Comercio al por menor en establecimientos no especializados | P147: Comercio al por menor en establecimientos no especializados | Q147: 0 | R147: 0 | S147: 0 | T147: 0 | U147: 0 | V147: 0 | W147: 0 | X147: 0 | BU147: 0 | BV147: 0 | BW147: 0
C148: 41001 | D148: NEIVA | E148: 48 | F148: 105 | G148: Natural | H148: 41 | I148: HUILA | J148: Aprobado con subsidio | K148: PEQUEÑA | L148: 4752 | M148: COMERCIO AL POR MAYOR Y AL POR MENOR; REPARACIÓN DE VEHÍCULOS AUTOMOTORES Y MOTOCICLETAS | N148: G | O148: Comercio al por menor de otros enseres domésticos en establecimientos especializados | P148: Comercio al por menor de otros enseres domésticos en establecimientos especializados | Q148: 1 | R148: 47 | S148: 0 | T148: 20 | U148: 1 | V148: 27 | W148: 47 | X148: 1 | BU148: 0 | BV148: 0 | BW148: 0
C149: 41001 | D149: NEIVA | E149: 1 | F149: 7 | G149: Natural | H149: 41 | I149: HUILA | J149: Aprobado con subsidio | K149: PEQUEÑA | L149: 4711 | M149: COMERCIO AL POR MAYOR Y AL POR MENOR; REPARACIÓN DE VEHÍCULOS AUTOMOTORES Y MOTOCICLETAS | N149: G | O149: Comercio al por menor en establecimientos no especializados | P149: Comercio al por menor en establecimientos no especializados | Q149: 1 | R149: 0 | S149: 0 | T149: 1 | U149: 0 | V149: 0 | W149: 1 | X149: 0 | BU149: 0 | BV149: 0 | BW149: 0
C150: 41551 | D150: PITALITO | E150: 2 | F150: 3 | G150: Natural | H150: 41 | I150: HUILA | J150: Aprobado con subsidio | K150: MICRO | L150: 4754 | M150: COMERCIO AL POR MAYOR Y AL POR MENOR; REPARACIÓN DE VEHÍCULOS AUTOMOTORES Y MOTOCICLETAS | N150: G | O150: Comercio al por menor de otros enseres domésticos en establecimientos especializados | P150: Comercio al por menor de otros enseres domésticos en establecimientos especializados | Q150: 1 | R150: 1 | S150: 0 | T150: 1 | U150: 1 | V150: 0 | W150: 2 | X150: 0 | BU150: 0 | BV150: 0 | BW150: 0
C151: 41551 | D151: PITALITO | E151: 2 | F151: 0 | G151: Natural | H151: 41 | I151: HUILA | J151: Aprobado con subsidio | K151: MICRO | L151: 4620 | M151: COMERCIO AL POR MAYOR Y AL POR MENOR; REPARACIÓN DE VEHÍCULOS AUTOMOTORES Y MOTOCICLETAS | N151: G | O151: Comercio al por mayor de materias primas agropecuarias; animales vivos | P151: Comercio al por mayor de materias primas agropecuarias; animales vivos | Q151: 1 | R151: 1 | S151: 0 | T151: 2 | U151: 0 | V151: 0 | W151: 2 | X151: 0 | BU151: 0 | BV151: 0 | BW151: 0
C152: 54498 | D152: OCAÑA | E152: 2 | F152: 8 | G152: Natural | H152: 54 | I152: NORTE DE SANTANDER | J152: Aprobado con subsidio | K152: MICRO | L152: 4541 | M152: COMERCIO AL POR MAYOR Y AL POR MENOR; REPARACIÓN DE VEHÍCULOS AUTOMOTORES Y MOTOCICLETAS | N152: G | O152: Comercio, mantenimiento y reparación de motocicletas y de sus partes, piezas y accesorios | P152: Comercio, mantenimiento y reparación de motocicletas y de sus partes, piezas y accesorios | Q152: 1 | R152: 1 | S152: 0 | T152: 2 | U152: 0 | V152: 0 | W152: 2 | X152: 0 | BU152: 0 | BV152: 0 | BW152: 0
C153: 20011 | D153: AGUACHICA | E153: 0 | F153: 0 | G153: Natural | H153: 20 | I153: CESAR | J153: 0 | K153: MICRO | L153: 4759 | M153: COMERCIO AL POR MAYOR Y AL POR MENOR; REPARACIÓN DE VEHÍCULOS AUTOMOTORES Y MOTOCICLETAS | N153: G | O153: Comercio al por menor de otros enseres domésticos en establecimientos especializados | P153: Comercio al por menor de otros enseres domésticos en establecimientos especializados | Q153: 0 | R153: 0 | S153: 0 | T153: 0 | U153: 0 | V153: 0 | W153: 0 | X153: 0 | BU153: 0 | BV153: 0 | BW153: 0
C154: 8001 | D154: BARRANQUILLA | E154: 0 | F154: 0 | G154: Natural | H154: 8 | I154: ATLÁNTICO | J154: 0 | K154: PEQUEÑA | L154: 6910 | M154: ACTIVIDADES PROFESIONALES, CIENTÍFICAS Y TÉCNICAS | N154: M | O154: Actividades jurídicas | P154: Actividades jurídicas | Q154: 0 | R154: 0 | S154: 0 | T154: 0 | U154: 0 | V154: 0 | W154: 0 | X154: 0 | BU154: 0 | BV154: 0 | BW154: 0
C155: 52001 | D155: PASTO | E155: 0 | F155: 0 | G155: Natural | H155: 52 | I155: NARIÑO | J155: 0 | K155: MICRO | L155: 4530 | M155: COMERCIO AL POR MAYOR Y AL POR MENOR; REPARACIÓN DE VEHÍCULOS AUTOMOTORES Y MOTOCICLETAS | N155: G | O155: Comercio de partes, piezas (autopartes) y accesorios (lujos) para vehículos automotores | P155: Comercio de partes, piezas (autopartes) y accesorios (lujos) para vehículos automotores | Q155: 0 | R155: 0 | S155: 0 | T155: 0 | U155: 0 | V155: 0 | W155: 0 | X155: 0 | BU155: 0 | BV155: 0 | BW155: 0
C156: 52001 | D156: PASTO | E156: 0 | F156: 0 | G156: Natural | H156: 52 | I156: NARIÑO | J156: 0 | K156: PEQUEÑA | L156: 5611 | M156: ALOJAMIENTO Y SERVICIOS DE COMIDA | N156: I | O156: Actividades de restaurantes, cafeterías y servicio móvil de comidas | P156: Actividades de restaurantes, cafeterías y servicio móvil de comidas | Q156: 0 | R156: 0 | S156: 0 | T156: 0 | U156: 0 | V156: 0 | W156: 0 | X156: 0 | BU156: 0 | BV156: 0 | BW156: 0
C157: 52001 | D157: PASTO | E157: 1 | F157: 2 | G157: Natural | H157: 52 | I157: NARIÑO | J157: Aprobado con subsidio | K157: PEQUEÑA | L157: 4731 | M157: COMERCIO AL POR MAYOR Y AL POR MENOR; REPARACIÓN DE VEHÍCULOS AUTOMOTORES Y MOTOCICLETAS | N157: G | O157: Comercio al por menor de combustible, lubricantes, aditivos y productos de limpieza para automotores, en establecimientos especializados | P157: Comercio al por menor de combustible, lubricantes, aditivos y productos de limpieza para automotores, en establecimientos especializados | Q157: 0 | R157: 1 | S157: 0 | T157: 1 | U157: 0 | V157: 0 | W157: 1 | X157: 0 | BU157: 0 | BV157: 0 | BW157: 0
C158: 52001 | D158: PASTO | E158: 0 | F158: 0 | G158: Natural | H158: 52 | I158: NARIÑO | J158: 0 | K158: MICRO | L158: 4752 | M158: COMERCIO AL POR MAYOR Y AL POR MENOR; REPARACIÓN DE VEHÍCULOS AUTOMOTORES Y MOTOCICLETAS | N158: G | O158: Comercio al por menor de otros enseres domésticos en establecimientos especializados | P158: Comercio al por menor de otros enseres domésticos en establecimientos especializados | Q158: 0 | R158: 0 | S158: 0 | T158: 0 | U158: 0 | V158: 0 | W158: 0 | X158: 0 | BU158: 0 | BV158: 0 | BW158: 0
C159: 52001 | D159: PASTO | E159: 0 | F159: 0 | G159: Natural | H159: 52 | I159: NARIÑO | J159: 0 | K159: MICRO | L159: 5512 | M159: ALOJAMIENTO Y SERVICIOS DE COMIDA | N159: I | O159: Actividades de alojamiento de estancias cortas | P159: Actividades de alojamiento de estancias cortas | Q159: 0 | R159: 0 | S159: 0 | T159: 0 | U159: 0 | V159: 0 | W159: 0 | X159: 0 | BU159: 0 | BV159: 0 | BW159: 0
C160: 52317 | D160: GUACHUCAL | E160: 2 | F160: 0 | G160: Natural | H160: 52 | I160: NARIÑO | J160: Aprobado con subsidio | K160: PEQUEÑA | L160: 4731 | M160: COMERCIO AL POR MAYOR Y AL POR MENOR; REPARACIÓN DE VEHÍCULOS AUTOMOTORES Y MOTOCICLETAS | N160: G | O160: Comercio al por menor de combustible, lubricantes, aditivos y productos de limpieza para automotores, en establecimientos especializados | P160: Comercio al por menor de combustible, lubricantes, aditivos y productos de limpieza para automotores, en establecimientos especializados | Q160: 0 | R160: 2 | S160: 0 | T160: 2 | U160: 0 | V160: 0 | W160: 2 | X160: 0 | BU160: 0 | BV160: 0 | BW160: 0
C161: 52001 | D161: PASTO | E161: 0 | F161: 0 | G161: Natural | H161: 52 | I161: NARIÑO | J161: 0 | K161: MICRO | L161: 4731 | M161: COMERCIO AL POR MAYOR Y AL POR MENOR; REPARACIÓN DE VEHÍCULOS AUTOMOTORES Y MOTOCICLETAS | N161: G | O161: Comercio al por menor de combustible, lubricantes, aditivos y productos de limpieza para automotores, en establecimientos especializados | P161: Comercio al por menor de combustible, lubricantes, aditivos y productos de limpieza para automotores, en establecimientos especializados | Q161: 0 | R161: 0 | S161: 0 | T161: 0 | U161: 0 | V161: 0 | W161: 0 | X161: 0 | BU161: 0 | BV161: 0 | BW161: 0
C162: 52001 | D162: PASTO | E162: 0 | F162: 0 | G162: Natural | H162: 52 | I162: NARIÑO | J162: 0 | K162: MICRO | L162: 7500 | M162: ACTIVIDADES PROFESIONALES, CIENTÍFICAS Y TÉCNICAS | N162: M | O162: Actividades veterinarias | P162: Actividades veterinarias | Q162: 0 | R162: 0 | S162: 0 | T162: 0 | U162: 0 | V162: 0 | W162: 0 | X162: 0 | BU162: 0 | BV162: 0 | BW162: 0
C163: 76001 | D163: CALI | E163: 0 | F163: 0 | G163: Natural | H163: 76 | I163: VALLE DEL CAUCA | J163: 0 | K163: MICRO | L163: 4774 | M163: COMERCIO AL POR MAYOR Y AL POR MENOR; REPARACIÓN DE VEHÍCULOS AUTOMOTORES Y MOTOCICLETAS | N163: G | O163: Comercio al por menor de otros productos en establecimientos especializados | P163: Comercio al por menor de otros productos en establecimientos especializados | Q163: 0 | R163: 0 | S163: 0 | T163: 0 | U163: 0 | V163: 0 | W163: 0 | X163: 0 | BU163: 0 | BV163: 0 | BW163: 0
C164: 52560 | D164: POTOSÍ | E164: 7 | F164: 4 | G164: Natural | H164: 52 | I164: NARIÑO | J164: Aprobado con subsidio | K164: MICRO | L164: 1040 | M164: INDUSTRIAS MANUFACTURERAS | N164: C | O164: Elaboración de productos lácteos | P164: Elaboración de productos alimenticios | Q164: 2 | R164: 5 | S164: 0 | T164: 6 | U164: 1 | V164: 0 | W164: 7 | X164: 0 | BU164: 0 | BV164: 0 | BW164: 0
C165: 52683 | D165: SANDONÁ | E165: 2 | F165: 2 | G165: Natural | H165: 52 | I165: NARIÑO | J165: Aprobado con subsidio | K165: MICRO | L165: 4711 | M165: COMERCIO AL POR MAYOR Y AL POR MENOR; REPARACIÓN DE VEHÍCULOS AUTOMOTORES Y MOTOCICLETAS | N165: G | O165: Comercio al por menor en establecimientos no especializados | P165: Comercio al por menor en establecimientos no especializados | Q165: 1 | R165: 1 | S165: 0 | T165: 0 | U165: 1 | V165: 1 | W165: 2 | X165: 0 | BU165: 0 | BV165: 0 | BW165: 0
C166: 54001 | D166: CÚCUTA | E166: 1 | F166: 8 | G166: Natural | H166: 54 | I166: NORTE DE SANTANDER | J166: Aprobado con subsidio | K166: MICRO | L166: 2599 | M166: INDUSTRIAS MANUFACTURERAS | N166: C | O166: Fabricación de otros productos elaborados de metal y actividades de servicios relacionadas con el trabajo de metales | P166: Fabricación de productos elaborados de metal, excepto maquinaria y equipo | Q166: 0 | R166: 1 | S166: 0 | T166: 1 | U166: 0 | V166: 0 | W166: 1 | X166: 0 | BU166: 0 | BV166: 0 | BW166: 0
C167: 54001 | D167: CÚCUTA | E167: 1 | F167: 5 | G167: Natural | H167: 54 | I167: NORTE DE SANTANDER | J167: Aprobado con subsidio | K167: MICRO | L167: 4923 | M167: TRANSPORTE Y ALMACENAMIENTO | N167: H | O167: Transporte terrestre publico automotor | P167: Transporte terrestre publico automotor | Q167: 0 | R167: 1 | S167: 0 | T167: 1 | U167: 0 | V167: 0 | W167: 1 | X167: 0 | BU167: 0 | BV167: 0 | BW167: 0
C168: 54001 | D168: CÚCUTA | E168: 0 | F168: 0 | G168: Natural | H168: 54 | I168: NORTE DE SANTANDER | J168: 0 | K168: MICRO | L168: 8521 | M168: EDUCACIÓN | N168: P | O168: Educación secundaria y de formación laboral | P168: Educación secundaria y de formación laboral | Q168: 0 | R168: 0 | S168: 0 | T168: 0 | U168: 0 | V168: 0 | W168: 0 | X168: 0 | BU168: 0 | BV168: 0 | BW168: 0
C169: 54498 | D169: OCAÑA | E169: 0 | F169: 0 | G169: Natural | H169: 54 | I169: NORTE DE SANTANDER | J169: 0 | K169: MICRO | L169: 4923 | M169: TRANSPORTE Y ALMACENAMIENTO | N169: H | O169: Transporte terrestre publico automotor | P169: Transporte terrestre publico automotor | Q169: 0 | R169: 0 | S169: 0 | T169: 0 | U169: 0 | V169: 0 | W169: 0 | X169: 0 | BU169: 0 | BV169: 0 | BW169: 0
C170: 54518 | D170: PAMPLONA | E170: 16 | F170: 15 | G170: Natural | H170: 54 | I170: NORTE DE SANTANDER | J170: Aprobado con subsidio | K170: PEQUEÑA | L170: 5611 | M170: ALOJAMIENTO Y SERVICIOS DE COMIDA | N170: I | O170: Actividades de restaurantes, cafeterías y servicio móvil de comidas | P170: Actividades de restaurantes, cafeterías y servicio móvil de comidas | Q170: 10 | R170: 6 | S170: 0 | T170: 16 | U170: 0 | V170: 0 | W170: 16 | X170: 0 | BU170: 0 | BV170: 0 | BW170: 0
C171: 54001 | D171: CÚCUTA | E171: 1 | F171: 1 | G171: Natural | H171: 54 | I171: NORTE DE SANTANDER | J171: Aprobado con subsidio | K171: MICRO | L171: 4752 | M171: COMERCIO AL POR MAYOR Y AL POR MENOR; REPARACIÓN DE VEHÍCULOS AUTOMOTORES Y MOTOCICLETAS | N171: G | O171: Comercio al por menor de otros enseres domésticos en establecimientos especializados | P171: Comercio al por menor de otros enseres domésticos en establecimientos especializados | Q171: 0 | R171: 1 | S171: 0 | T171: 0 | U171: 0 | V171: 1 | W171: 1 | X171: 0 | BU171: 0 | BV171: 0 | BW171: 0
C172: 54001 | D172: CÚCUTA | E172: 0 | F172: 0 | G172: Natural | H172: 54 | I172: NORTE DE SANTANDER | J172: 0 | K172: MICRO | L172: 8559 | M172: EDUCACIÓN | N172: P | O172: Otros tipos de educación | P172: Otros tipos de educación | Q172: 0 | R172: 0 | S172: 0 | T172: 0 | U172: 0 | V172: 0 | W172: 0 | X172: 0 | BU172: 0 | BV172: 0 | BW172: 0
C173: 68001 | D173: BUCARAMANGA | E173: 1 | F173: 1 | G173: Natural | H173: 68 | I173: SANTANDER | J173: Aprobado con subsidio | K173: PEQUEÑA | L173: 1610 | M173: INDUSTRIAS MANUFACTURERAS | N173: C | O173: Aserrado, acepillado e impregnación de la madera | P173: Transformación de la madera y fabricación de productos de madera y de corcho, excepto muebles; fabricación de artículos de cestería y espartería | Q173: 0 | R173: 1 | S173: 0 | T173: 1 | U173: 0 | V173: 0 | W173: 1 | X173: 0 | BU173: 0 | BV173: 0 | BW173: 0
C174: 11001 | D174: BOGOTÁ, D.C. | E174: 0 | F174: 0 | G174: Natural | H174: 11 | I174: BOGOTÁ, D.C. | J174: 0 | K174: MICRO | L174: 1410 | M174: INDUSTRIAS MANUFACTURERAS | N174: C | O174: Confección de prendas de vestir, excepto prendas de piel | P174: Confección de prendas de vestir | Q174: 0 | R174: 0 | S174: 0 | T174: 0 | U174: 0 | V174: 0 | W174: 0 | X174: 0 | BU174: 0 | BV174: 0 | BW174: 0
C175: 11001 | D175: BOGOTÁ, D.C. | E175: 0 | F175: 0 | G175: Natural | H175: 11 | I175: BOGOTÁ, D.C. | J175: 0 | K175: MICRO | L175: 4773 | M175: COMERCIO AL POR MAYOR Y AL POR MENOR; REPARACIÓN DE VEHÍCULOS AUTOMOTORES Y MOTOCICLETAS | N175: G | O175: Comercio al por menor de otros productos en establecimientos especializados | P175: Comercio al por menor de otros productos en establecimientos especializados | Q175: 0 | R175: 0 | S175: 0 | T175: 0 | U175: 0 | V175: 0 | W175: 0 | X175: 0 | BU175: 0 | BV175: 0 | BW175: 0
C176: 68001 | D176: BUCARAMANGA | E176: 3 | F176: 2 | G176: Natural | H176: 68 | I176: SANTANDER | J176: Aprobado con subsidio | K176: MICRO | L176: 4774 | M176: COMERCIO AL POR MAYOR Y AL POR MENOR; REPARACIÓN DE VEHÍCULOS AUTOMOTORES Y MOTOCICLETAS | N176: G | O176: Comercio al por menor de otros productos en establecimientos especializados | P176: Comercio al por menor de otros productos en establecimientos especializados | Q176: 3 | R176: 0 | S176: 0 | T176: 3 | U176: 0 | V176: 0 | W176: 3 | X176: 0 | BU176: 0 | BV176: 0 | BW176: 0
C177: 68001 | D177: BUCARAMANGA | E177: 0 | F177: 0 | G177: Natural | H177: 68 | I177: SANTANDER | J177: 0 | K177: MICRO | L177: 4729 | M177: COMERCIO AL POR MAYOR Y AL POR MENOR; REPARACIÓN DE VEHÍCULOS AUTOMOTORES Y MOTOCICLETAS | N177: G | O177: Comercio al por menor de alimentos (víveres en general), bebidas y tabaco, en establecimientos especializados | P177: Comercio al por menor de alimentos (víveres en general), bebidas y tabaco, en establecimientos especializados | Q177: 0 | R177: 0 | S177: 0 | T177: 0 | U177: 0 | V177: 0 | W177: 0 | X177: 0 | BU177: 0 | BV177: 0 | BW177: 0
C178: 68406 | D178: LEBRIJA | E178: 0 | F178: 0 | G178: Natural | H178: 68 | I178: SANTANDER | J178: 0 | K178: MICRO | L178: 4752 | M178: COMERCIO AL POR MAYOR Y AL POR MENOR; REPARACIÓN DE VEHÍCULOS AUTOMOTORES Y MOTOCICLETAS | N178: G | O178: Comercio al por menor de otros enseres domésticos en establecimientos especializados | P178: Comercio al por menor de otros enseres domésticos en establecimientos especializados | Q178: 0 | R178: 0 | S178: 0 | T178: 0 | U178: 0 | V178: 0 | W178: 0 | X178: 0 | BU178: 0 | BV178: 0 | BW178: 0
C179: 68406 | D179: LEBRIJA | E179: 0 | F179: 0 | G179: Natural | H179: 68 | I179: SANTANDER | J179: 0 | K179: MEDIANA | L179: 4711 | M179: COMERCIO AL POR MAYOR Y AL POR MENOR; REPARACIÓN DE VEHÍCULOS AUTOMOTORES Y MOTOCICLETAS | N179: G | O179: Comercio al por menor en establecimientos no especializados | P179: Comercio al por menor en establecimientos no especializados | Q179: 0 | R179: 0 | S179: 0 | T179: 0 | U179: 0 | V179: 0 | W179: 0 | X179: 0 | BU179: 0 | BV179: 0 | BW179: 0
C180: 68307 | D180: GIRÓN | E180: 0 | F180: 0 | G180: Natural | H180: 68 | I180: SANTANDER | J180: 0 | K180: PEQUEÑA | L180: 8513 | M180: EDUCACIÓN | N180: P | O180: Educación de la primera infancia, preescolar y básica primaria | P180: Educación de la primera infancia, preescolar y básica primaria | Q180: 0 | R180: 0 | S180: 0 | T180: 0 | U180: 0 | V180: 0 | W180: 0 | X180: 0 | BU180: 0 | BV180: 0 | BW180: 0
C181: 11001 | D181: BOGOTÁ, D.C. | E181: 18 | F181: 17 | G181: Natural | H181: 11 | I181: BOGOTÁ, D.C. | J181: Aprobado con subsidio | K181: MICRO | L181: 4732 | M181: COMERCIO AL POR MAYOR Y AL POR MENOR; REPARACIÓN DE VEHÍCULOS AUTOMOTORES Y MOTOCICLETAS | N181: G | O181: Comercio al por menor de combustible, lubricantes, aditivos y productos de limpieza para automotores, en establecimientos especializados | P181: Comercio al por menor de combustible, lubricantes, aditivos y productos de limpieza para automotores, en establecimientos especializados | Q181: 10 | R181: 8 | S181: 0 | T181: 7 | U181: 5 | V181: 6 | W181: 18 | X181: 0 | BU181: 0 | BV181: 0 | BW181: 0
C182: 54001 | D182: CÚCUTA | E182: 2 | F182: 2 | G182: Natural | H182: 54 | I182: NORTE DE SANTANDER | J182: Aprobado con subsidio | K182: MICRO | L182: 1410 | M182: INDUSTRIAS MANUFACTURERAS | N182: C | O182: Confección de prendas de vestir, excepto prendas de piel | P182: Confección de prendas de vestir | Q182: 1 | R182: 1 | S182: 0 | T182: 2 | U182: 0 | V182: 0 | W182: 2 | X182: 0 | BU182: 0 | BV182: 0 | BW182: 0
C183: 68001 | D183: BUCARAMANGA | E183: 2 | F183: 0 | G183: Natural | H183: 68 | I183: SANTANDER | J183: Aprobado con subsidio | K183: MICRO | L183: 7420 | M183: ACTIVIDADES PROFESIONALES, CIENTÍFICAS Y TÉCNICAS | N183: M | O183: Actividades de fotografía | P183: Actividades de fotografía | Q183: 0 | R183: 2 | S183: 0 | T183: 1 | U183: 0 | V183: 1 | W183: 2 | X183: 0 | BU183: 0 | BV183: 0 | BW183: 0
C184: 68547 | D184: PIEDECUESTA | E184: 0 | F184: 0 | G184: Natural | H184: 68 | I184: SANTANDER | J184: 0 | K184: MICRO | L184: 1410 | M184: INDUSTRIAS MANUFACTURERAS | N184: C | O184: Confección de prendas de vestir, excepto prendas de piel | P184: Confección de prendas de vestir | Q184: 0 | R184: 0 | S184: 0 | T184: 0 | U184: 0 | V184: 0 | W184: 0 | X184: 0 | BU184: 0 | BV184: 0 | BW184: 0
C185: 68081 | D185: BARRANCABERMEJA | E185: 0 | F185: 0 | G185: Natural | H185: 68 | I185: SANTANDER | J185: 0 | K185: MICRO | L185: 4731 | M185: COMERCIO AL POR MAYOR Y AL POR MENOR; REPARACIÓN DE VEHÍCULOS AUTOMOTORES Y MOTOCICLETAS | N185: G | O185: Comercio al por menor de combustible, lubricantes, aditivos y productos de limpieza para automotores, en establecimientos especializados | P185: Comercio al por menor de combustible, lubricantes, aditivos y productos de limpieza para automotores, en establecimientos especializados | Q185: 0 | R185: 0 | S185: 0 | T185: 0 | U185: 0 | V185: 0 | W185: 0 | X185: 0 | BU185: 0 | BV185: 0 | BW185: 0
C186: 68679 | D186: SAN GIL | E186: 19 | F186: 12 | G186: Natural | H186: 68 | I186: SANTANDER | J186: Aprobado con subsidio | K186: PEQUEÑA | L186: 4711 | M186: COMERCIO AL POR MAYOR Y AL POR MENOR; REPARACIÓN DE VEHÍCULOS AUTOMOTORES Y MOTOCICLETAS | N186: G | O186: Comercio al por menor en establecimientos no especializados | P186: Comercio al por menor en establecimientos no especializados | Q186: 7 | R186: 12 | S186: 0 | T186: 17 | U186: 1 | V186: 1 | W186: 17 | X186: 2 | BU186: 0 | BV186: 0 | BW186: 0
C187: 11001 | D187: BOGOTÁ, D.C. | E187: 0 | F187: 0 | G187: Natural | H187: 11 | I187: BOGOTÁ, D.C. | J187: 0 | K187: MICRO | L187: 4723 | M187: COMERCIO AL POR MAYOR Y AL POR MENOR; REPARACIÓN DE VEHÍCULOS AUTOMOTORES Y MOTOCICLETAS | N187: G | O187: Comercio al por menor de alimentos (víveres en general), bebidas y tabaco, en establecimientos especializados | P187: Comercio al por menor de alimentos (víveres en general), bebidas y tabaco, en establecimientos especializados | Q187: 0 | R187: 0 | S187: 0 | T187: 0 | U187: 0 | V187: 0 | W187: 0 | X187: 0 | BU187: 0 | BV187: 0 | BW187: 0
C188: 47288 | D188: FUNDACIÓN | E188: 0 | F188: 0 | G188: Natural | H188: 47 | I188: MAGDALENA | J188: 0 | K188: MICRO | L188: 4664 | M188: COMERCIO AL POR MAYOR Y AL POR MENOR; REPARACIÓN DE VEHÍCULOS AUTOMOTORES Y MOTOCICLETAS | N188: G | O188: Comercio al por mayor especializado de otros productos | P188: Comercio al por mayor especializado de otros productos | Q188: 0 | R188: 0 | S188: 0 | T188: 0 | U188: 0 | V188: 0 | W188: 0 | X188: 0 | BU188: 0 | BV188: 0 | BW188: 0
C189: 5001 | D189: MEDELLÍN | E189: 0 | F189: 0 | G189: Natural | H189: 5 | I189: ANTIOQUIA | J189: 0 | K189: PEQUEÑA | L189: 4390 | M189: CONSTRUCCIÓN | N189: F | O189: Otras actividades especializadas para la construcción de edificios y obras de ingeniería civil | P189: Otras actividades especializadas para la construcción de edificios y obras de ingeniería civil | Q189: 0 | R189: 0 | S189: 0 | T189: 0 | U189: 0 | V189: 0 | W189: 0 | X189: 0 | BU189: 0 | BV189: 0 | BW189: 0
C190: 68861 | D190: VÉLEZ | E190: 1 | F190: 0 | G190: Natural | H190: 68 | I190: SANTANDER | J190: Aprobado con subsidio | K190: MICRO | L190: 1089 | M190: INDUSTRIAS MANUFACTURERAS | N190: C | O190: Elaboración de otros productos alimenticios | P190: Elaboración de productos alimenticios | Q190: 1 | R190: 0 | S190: 0 | T190: 1 | U190: 0 | V190: 0 | W190: 1 | X190: 0 | BU190: 0 | BV190: 0 | BW190: 0
C191: 68001 | D191: BUCARAMANGA | E191: 1 | F191: 0 | G191: Natural | H191: 68 | I191: SANTANDER | J191: Aprobado con subsidio | K191: MICRO | L191: 6621 | M191: ACTIVIDADES FINANCIERAS Y DE SEGUROS | N191: K | O191: Actividades de servicios auxiliares de los servicios de seguros y pensiones | P191: Actividades de servicios auxiliares de los servicios de seguros y pensiones | Q191: 1 | R191: 0 | S191: 0 | T191: 1 | U191: 0 | V191: 0 | W191: 1 | X191: 0 | BU191: 0 | BV191: 0 | BW191: 0
C192: 68001 | D192: BUCARAMANGA | E192: 3 | F192: 121 | G192: Natural | H192: 68 | I192: SANTANDER | J192: Aprobado con subsidio | K192: MEDIANA | L192: 4711 | M192: COMERCIO AL POR MAYOR Y AL POR MENOR; REPARACIÓN DE VEHÍCULOS AUTOMOTORES Y MOTOCICLETAS | N192: G | O192: Comercio al por menor en establecimientos no especializados | P192: Comercio al por menor en establecimientos no especializados | Q192: 3 | R192: 0 | S192: 0 | T192: 3 | U192: 0 | V192: 0 | W192: 3 | X192: 0 | BU192: 0 | BV192: 0 | BW192: 0
C193: 68895 | D193: ZAPATOCA | E193: 0 | F193: 0 | G193: Natural | H193: 68 | I193: SANTANDER | J193: 0 | K193: MICRO | L193: 4752 | M193: COMERCIO AL POR MAYOR Y AL POR MENOR; REPARACIÓN DE VEHÍCULOS AUTOMOTORES Y MOTOCICLETAS | N193: G | O193: Comercio al por menor de otros enseres domésticos en establecimientos especializados | P193: Comercio al por menor de otros enseres domésticos en establecimientos especializados | Q193: 0 | R193: 0 | S193: 0 | T193: 0 | U193: 0 | V193: 0 | W193: 0 | X193: 0 | BU193: 0 | BV193: 0 | BW193: 0
C194: 68079 | D194: BARICHARA | E194: 0 | F194: 0 | G194: Natural | H194: 68 | I194: SANTANDER | J194: 0 | K194: PEQUEÑA | L194: 5511 | M194: ALOJAMIENTO Y SERVICIOS DE COMIDA | N194: I | O194: Actividades de alojamiento de estancias cortas | P194: Actividades de alojamiento de estancias cortas | Q194: 0 | R194: 0 | S194: 0 | T194: 0 | U194: 0 | V194: 0 | W194: 0 | X194: 0 | BU194: =COUNTIFS($AS$2:$AS$399999,"Aprobado con subsidio",$AL$2:$AL$399999,BT194) -> 0 | BV194: 0 | BW194: 0
C195: 11001 | D195: BOGOTÁ, D.C. | E195: 2 | F195: 0 | G195: Natural | H195: 11 | I195: BOGOTÁ, D.C. | J195: Aprobado con subsidio | K195: MICRO | L195: 8121 | M195: ACTIVIDADES DE SERVICIOS ADMINISTRATIVOS Y DE APOYO | N195: N | O195: Actividades de limpieza | P195: Actividades de limpieza | Q195: 1 | R195: 1 | S195: 0 | T195: 0 | U195: 1 | V195: 1 | W195: 2 | X195: 0 | BU195: 0 | BV195: 0 | BW195: 0
C196: 73001 | D196: IBAGUÉ | E196: 0 | F196: 0 | G196: Natural | H196: 73 | I196: TOLIMA | J196: 0 | K196: MICRO | L196: 4751 | M196: COMERCIO AL POR MAYOR Y AL POR MENOR; REPARACIÓN DE VEHÍCULOS AUTOMOTORES Y MOTOCICLETAS | N196: G | O196: Comercio al por menor de otros enseres domésticos en establecimientos especializados | P196: Comercio al por menor de otros enseres domésticos en establecimientos especializados | Q196: 0 | R196: 0 | S196: 0 | T196: 0 | U196: 0 | V196: 0 | W196: 0 | X196: 0 | BU196: 0 | BV196: 0 | BW196: 0
C197: 41001 | D197: NEIVA | E197: 3 | F197: 9 | G197: Natural | H197: 41 | I197: HUILA | J197: Aprobado con subsidio | K197: MICRO | L197: 5511 | M197: ALOJAMIENTO Y SERVICIOS DE COMIDA | N197: I | O197: Actividades de alojamiento de estancias cortas | P197: Actividades de alojamiento de estancias cortas | Q197: 1 | R197: 2 | S197: 0 | T197: 3 | U197: 0 | V197: 0 | W197: 3 | X197: 0 | BU197: 0 | BV197: 0 | BW197: 0
C198: 11001 | D198: BOGOTÁ, D.C. | E198: 0 | F198: 0 | G198: Natural | H198: 11 | I198: BOGOTÁ, D.C. | J198: 0 | K198: MICRO | L198: 6910 | M198: ACTIVIDADES PROFESIONALES, CIENTÍFICAS Y TÉCNICAS | N198: M | O198: Actividades jurídicas | P198: Actividades jurídicas | Q198: 0 | R198: 0 | S198: 0 | T198: 0 | U198: 0 | V198: 0 | W198: 0 | X198: 0 | BU198: 0 | BV198: 0 | BW198: 0
C199: 73001 | D199: IBAGUÉ | E199: 4 | F199: 0 | G199: Natural | H199: 73 | I199: TOLIMA | J199: Aprobado con subsidio | K199: MICRO | L199: 4773 | M199: COMERCIO AL POR MAYOR Y AL POR MENOR; REPARACIÓN DE VEHÍCULOS AUTOMOTORES Y MOTOCICLETAS | N199: G | O199: Comercio al por menor de otros productos en establecimientos especializados | P199: Comercio al por menor de otros productos en establecimientos especializados | Q199: 3 | R199: 1 | S199: 0 | T199: 0 | U199: 3 | V199: 1 | W199: 4 | X199: 0 | BU199: 0 | BV199: 0 | BW199: 0
C200: 76001 | D200: CALI | E200: 2 | F200: 9 | G200: Natural | H200: 76 | I200: VALLE DEL CAUCA | J200: Aprobado con subsidio | K200: MICRO | L200: 1811 | M200: INDUSTRIAS MANUFACTURERAS | N200: C | O200: Actividades de impresión y actividades de servicios relacionados con la impresión | P200: Actividades de impresión y de producción de copias a partir de grabaciones originales | Q200: 2 | R200: 0 | S200: 0 | T200: 2 | U200: 0 | V200: 0 | W200: 2 | X200: 0 | BU200: 0 | BV200: 0 | BW200: 0
... 925 more rows

Sheet Hoja4 (hidden)
A1: Descripción Sección Rev. 4 | B1: Sección Rev. 4 | C1: Nombre | D1: Seccion | E1: Total | G1: Nombre | H1: Seccion | I1: Total empleadores | J1: Empleadores % | K1: Total empleados | L1: Empleados % | M1: Monto | N1: Hombres | O1: Mujeres | P1: no disponible | Q1: Actividad | R1: Indice | T1: cod_dpto | U1: Departamento | V1: % empleadores general | W1: ="% empleadores sección "&Visor!$N$4 -> % empleadores sección T
A2: AGRICULTURA, GANADERÍA, CAZA, SILVICULTURA Y PESCA | B2: A | C2: Agricultura, ganadería, caza, silvicultura y pesca | D2: =B2 -> A | E2: =COUNTIFS(insumos2!$N$2:$N$399999,Hoja4!D2,insumos2!$J$2:$J$399999,"Aprobado con subsidio") -> 689 | G2: =MID(VLOOKUP(H2,$B$2:$C$23,2,FALSE),1,36) -> Comercio al por mayor y al por menor | H2: =_xlfn._xlws.SORT($D$2:$E$23,2,-1) -> G | I2: 5787 | J2: =I2/$I$24 -> 0.2271193093 | K2: =SUMIFS(insumos2!$E$2:$E$399999,insumos2!$J$2:$J$399999,"Aprobado con subsidio",insumos2!$N$2:$N$399999,Hoja4!H2) -> 85995 | L2: =K2/$K$24 -> 0.1009365342 | M2: =SUMIFS(insumos1!$K$2:$K$372158,insumos1!$H$2:$H$372158,Hoja4!H2) -> 77619771466 | N2: =SUMIFS(insumos2!$R$2:$R$399999,insumos2!$J$2:$J$399999,"Aprobado con subsidio",insumos2!$N$2:$N$399999,Hoja4!H2) -> 36740 | O2: =SUMIFS(insumos2!$Q$2:$Q$399999,insumos2!$J$2:$J$399999,"Aprobado con subsidio",insumos2!$N$2:$N$399999,Hoja4!H2) -> 49166 | P2: =SUMIFS(insumos2!$S$2:$S$399999,insumos2!$J$2:$J$399999,"Aprobado con subsidio",insumos2!$N$2:$N$399999,Hoja4!H2) -> 89 | Q2: =G2 -> Comercio al por mayor y al por menor | R2: =O2/N2*100 -> 133.821448 | T2: 11 | U2: BOGOTÁ, D.C. | V2: =(VLOOKUP(T2,_xlfn.ANCHORARRAY(insumos2!$AB$2),2,0)/SUM(insumos2!$AC$2:$AC$34)) -> 0.3295918367 | W2: =VLOOKUP(T2,insumos2!$BJ$2:$BK$34,2,FALSE)/insumos2!$BQ$30 -> 0.1111111111 | Z2: =_xlfn.UNIQUE(insumos1!F2:F5000) -> ALOJAMIENTO Y SERVICIOS DE COMIDA | AA2: =_xlfn.UNIQUE(insumos1!H2:H5000) -> I | AD2: =_xlfn._xlws.SORT(Z2:AA22,2,1) -> AGRICULTURA, GANADERÍA, CAZA, SILVICULTURA Y PESCA | AE2: A | AF2: =IFERROR(VLOOKUP(AE2,$B$2:$C$23,2,0),"") -> Agricultura, ganadería, caza, silvicultura y pesca
A3: EXPLOTACIÓN DE MINAS Y CANTERAS | B3: B | C3: Explotación de minas y canteras | D3: =B3 -> B | E3: =COUNTIFS(insumos2!$N$2:$N$399999,Hoja4!D3,insumos2!$J$2:$J$399999,"Aprobado con subsidio") -> 116 | G3: =MID(VLOOKUP(H3,$B$2:$C$23,2,FALSE),1,30) -> Industrias manufactureras | H3: C | I3: 3816 | J3: 0.1497645212 | K3: =SUMIFS(insumos2!$E$2:$E$399999,insumos2!$J$2:$J$399999,"Aprobado con subsidio",insumos2!$N$2:$N$399999,Hoja4!H3) -> 81043 | L3: =K3/$K$24 -> 0.09512412981 | M3: =SUMIFS(insumos1!$K$2:$K$372158,insumos1!$H$2:$H$372158,Hoja4!H3) -> 70355578561 | N3: =SUMIFS(insumos2!$R$2:$R$399999,insumos2!$J$2:$J$399999,"Aprobado con subsidio",insumos2!$N$2:$N$399999,Hoja4!H3) -> 38282 | O3: =SUMIFS(insumos2!$Q$2:$Q$399999,insumos2!$J$2:$J$399999,"Aprobado con subsidio",insumos2!$N$2:$N$399999,Hoja4!H3) -> 42651 | P3: =SUMIFS(insumos2!$S$2:$S$399999,insumos2!$J$2:$J$399999,"Aprobado con subsidio",insumos2!$N$2:$N$399999,Hoja4!H3) -> 110 | Q3: =G3 -> Industrias manufactureras | R3: 111.4126744 | T3: 5 | U3: ANTIOQUIA | V3: =(VLOOKUP(T3,_xlfn.ANCHORARRAY(insumos2!$AB$2),2,0)/SUM(insumos2!$AC$2:$AC$34)) -> 0.20788854 | W3: =VLOOKUP(T3,insumos2!$BJ$2:$BK$34,2,FALSE)/insumos2!$BQ$30 -> 0.3333333333 | Z3: AGRICULTURA, GANADERÍA, CAZA, SILVICULTURA Y PESCA | AA3: A | AD3: EXPLOTACIÓN DE MINAS Y CANTERAS | AE3: B | AF3: =IFERROR(VLOOKUP(AE3,$B$2:$C$23,2,0),"") -> Explotación de minas y canteras
A4: INDUSTRIAS MANUFACTURERAS | B4: C | C4: Industrias manufactureras | D4: C | E4: =COUNTIFS(insumos2!$N$2:$N$399999,Hoja4!D4,insumos2!$J$2:$J$399999,"Aprobado con subsidio") -> 3816 | G4: =MID(VLOOKUP(H4,$B$2:$C$23,2,FALSE),1,85) -> Actividades profesionales, científicas y técnicas | H4: M | I4: 3147 | J4: 0.1235086342 | K4: =SUMIFS(insumos2!$E$2:$E$399999,insumos2!$J$2:$J$399999,"Aprobado con subsidio",insumos2!$N$2:$N$399999,Hoja4!H4) -> 42081 | L4: 0.04939252627 | M4: =SUMIFS(insumos1!$K$2:$K$372158,insumos1!$H$2:$H$372158,Hoja4!H4) -> 34705304672 | N4: =SUMIFS(insumos2!$R$2:$R$399999,insumos2!$J$2:$J$399999,"Aprobado con subsidio",insumos2!$N$2:$N$399999,Hoja4!H4) -> 21075 | O4: =SUMIFS(insumos2!$Q$2:$Q$399999,insumos2!$J$2:$J$399999,"Aprobado con subsidio",insumos2!$N$2:$N$399999,Hoja4!H4) -> 20984 | P4: =SUMIFS(insumos2!$S$2:$S$399999,insumos2!$J$2:$J$399999,"Aprobado con subsidio",insumos2!$N$2:$N$399999,Hoja4!H4) -> 22 | Q4: Actividades profesionales, científicas y técnicas | R4: 99.56820878 | T4: 76 | U4: VALLE DEL CAUCA | V4: =(VLOOKUP(T4,_xlfn.ANCHORARRAY(insumos2!$AB$2),2,0)/SUM(insumos2!$AC$2:$AC$34)) -> 0.09062009419 | W4: =VLOOKUP(T4,insumos2!$BJ$2:$BK$34,2,FALSE)/insumos2!$BQ$30 -> 0 | Z4: COMERCIO AL POR MAYOR Y AL POR MENOR; REPARACIÓN DE VEHÍCULOS AUTOMOTORES Y MOTOCICLETAS | AA4: G | AD4: INDUSTRIAS MANUFACTURERAS | AE4: C | AF4: Industrias manufactureras
A5: SUMINISTRO DE ELECTRICIDAD, GAS, VAPOR Y AIRE ACONDICIONADO | B5: D | C5: Suministro de electricidad, gas, vapor y aire acondicionado | D5: D | E5: =COUNTIFS(insumos2!$N$2:$N$399999,Hoja4!D5,insumos2!$J$2:$J$399999,"Aprobado con subsidio") -> 36 | G5: =MID(VLOOKUP(H5,$B$2:$C$23,2,FALSE),1,30) -> Construcción | H5: F | I5: 2409 | J5: 0.09454474097 | K5: =SUMIFS(insumos2!$E$2:$E$399999,insumos2!$J$2:$J$399999,"Aprobado con subsidio",insumos2!$N$2:$N$399999,Hoja4!H5) -> 83940 | L5: 0.09852448029 | M5: =SUMIFS(insumos1!$K$2:$K$372158,insumos1!$H$2:$H$372158,Hoja4!H5) -> 55682400314 | N5: =SUMIFS(insumos2!$R$2:$R$399999,insumos2!$J$2:$J$399999,"Aprobado con subsidio",insumos2!$N$2:$N$399999,Hoja4!H5) -> 69648 | O5: =SUMIFS(insumos2!$Q$2:$Q$399999,insumos2!$J$2:$J$399999,"Aprobado con subsidio",insumos2!$N$2:$N$399999,Hoja4!H5) -> 14226 | P5: =SUMIFS(insumos2!$S$2:$S$399999,insumos2!$J$2:$J$399999,"Aprobado con subsidio",insumos2!$N$2:$N$399999,Hoja4!H5) -> 66 | Q5: Construcción | R5: 20.42556857 | T5: 8 | U5: ATLÁNTICO | V5: =(VLOOKUP(T5,_xlfn.ANCHORARRAY(insumos2!$AB$2),2,0)/SUM(insumos2!$AC$2:$AC$34)) -> 0.03795133438 | W5: =VLOOKUP(T5,insumos2!$BJ$2:$BK$34,2,FALSE)/insumos2!$BQ$30 -> 0 | Z5: TRANSPORTE Y ALMACENAMIENTO | AA5: H | AD5: SUMINISTRO DE ELECTRICIDAD, GAS, VAPOR Y AIRE ACONDICIONADO | AE5: D | AF5: Suministro de electricidad, gas, vapor y aire acondicionado
A6: DISTRIBUCIÓN DE AGUA; EVACUACIÓN Y TRATAMIENTO DE AGUAS RESIDUALES, GESTIÓN DE DESECHOS Y ACTIVIDADES DE SANEAMIENTO AMBIENTAL | B6: E | C6: Distribución de agua; evacuación y tratamiento de aguas residuales, gestión de desechos y actividades de saneamiento ambiental | D6: E | E6: =COUNTIFS(insumos2!$N$2:$N$399999,Hoja4!D6,insumos2!$J$2:$J$399999,"Aprobado con subsidio") -> 97 | G6: =MID(VLOOKUP(H6,$B$2:$C$23,2,FALSE),1,35) -> Actividades de servicios administra | H6: N | I6: 1888 | J6: 0.07409733124 | K6: =SUMIFS(insumos2!$E$2:$E$399999,insumos2!$J$2:$J$399999,"Aprobado con subsidio",insumos2!$N$2:$N$399999,Hoja4!H6) -> 305692 | L6: 0.3588056401 | M6: =SUMIFS(insumos1!$K$2:$K$372158,insumos1!$H$2:$H$372158,Hoja4!H6) -> 247668535906 | N6: =SUMIFS(insumos2!$R$2:$R$399999,insumos2!$J$2:$J$399999,"Aprobado con subsidio",insumos2!$N$2:$N$399999,Hoja4!H6) -> 111155 | O6: =SUMIFS(insumos2!$Q$2:$Q$399999,insumos2!$J$2:$J$399999,"Aprobado con subsidio",insumos2!$N$2:$N$399999,Hoja4!H6) -> 194249 | P6: =SUMIFS(insumos2!$S$2:$S$399999,insumos2!$J$2:$J$399999,"Aprobado con subsidio",insumos2!$N$2:$N$399999,Hoja4!H6) -> 288 | Q6: Actividades de servicios administra | R6: 174.7550717 | T6: 25 | U6: CUNDINAMARCA | V6: =(VLOOKUP(T6,_xlfn.ANCHORARRAY(insumos2!$AB$2),2,0)/SUM(insumos2!$AC$2:$AC$34)) -> 0.04886185243 | W6: =VLOOKUP(T6,insumos2!$BJ$2:$BK$34,2,FALSE)/insumos2!$BQ$30 -> 0.3333333333 | Z6: OTRAS | AA6: Otras | AD6: DISTRIBUCIÓN DE AGUA; EVACUACIÓN Y TRATAMIENTO DE AGUAS RESIDUALES, GESTIÓN DE DESECHOS Y ACTIVIDADES DE SANEAMIENTO AMBIENTAL | AE6: E | AF6: Distribución de agua; evacuación y tratamiento de aguas residuales, gestión de desechos y actividades de saneamiento ambiental
A7: CONSTRUCCIÓN | B7: F | C7: Construcción | D7: F | E7: =COUNTIFS(insumos2!$N$2:$N$399999,Hoja4!D7,insumos2!$J$2:$J$399999,"Aprobado con subsidio") -> 2409 | G7: =MID(VLOOKUP(H7,$B$2:$C$23,2,FALSE),1,30) -> Alojamiento y servicios de com | H7: I | I7: 1524 | J7: 0.05981161695 | K7: =SUMIFS(insumos2!$E$2:$E$399999,insumos2!$J$2:$J$399999,"Aprobado con subsidio",insumos2!$N$2:$N$399999,Hoja4!H7) -> 46296 | L7: 0.05433987777 | M7: =SUMIFS(insumos1!$K$2:$K$372158,insumos1!$H$2:$H$372158,Hoja4!H7) -> 43135766441 | N7: =SUMIFS(insumos2!$R$2:$R$399999,insumos2!$J$2:$J$399999,"Aprobado con subsidio",insumos2!$N$2:$N$399999,Hoja4!H7) -> 17142 | O7: =SUMIFS(insumos2!$Q$2:$Q$399999,insumos2!$J$2:$J$399999,"Aprobado con subsidio",insumos2!$N$2:$N$399999,Hoja4!H7) -> 29065 | P7: =SUMIFS(insumos2!$S$2:$S$399999,insumos2!$J$2:$J$399999,"Aprobado con subsidio",insumos2!$N$2:$N$399999,Hoja4!H7) -> 89 | Q7: Alojamiento y servicios de com | R7: 169.554311 | T7: 68 | U7: SANTANDER | V7: =(VLOOKUP(T7,_xlfn.ANCHORARRAY(insumos2!$AB$2),2,0)/SUM(insumos2!$AC$2:$AC$34)) -> 0.04909733124 | W7: =VLOOKUP(T7,insumos2!$BJ$2:$BK$34,2,FALSE)/insumos2!$BQ$30 -> 0.1111111111 | Z7: INDUSTRIAS MANUFACTURERAS | AA7: C | AD7: CONSTRUCCIÓN | AE7: F | AF7: Construcción
A8: COMERCIO AL POR MAYOR Y AL POR MENOR; REPARACIÓN DE VEHÍCULOS AUTOMOTORES Y MOTOCICLETAS | B8: G | C8: Comercio al por mayor y al por menor; reparación de vehículos automotores y motocicletas | D8: G | E8: =COUNTIFS(insumos2!$N$2:$N$399999,Hoja4!D8,insumos2!$J$2:$J$399999,"Aprobado con subsidio") -> 5787 | G8: =MID(VLOOKUP(H8,$B$2:$C$23,2,FALSE),1,40) -> información y comunicaciones | H8: J | I8: 1306 | J8: 0.05125588697 | K8: =SUMIFS(insumos2!$E$2:$E$399999,insumos2!$J$2:$J$399999,"Aprobado con subsidio",insumos2!$N$2:$N$399999,Hoja4!H8) -> 43757 | L8: 0.05135972938 | M8: =SUMIFS(insumos1!$K$2:$K$372158,insumos1!$H$2:$H$372158,Hoja4!H8) -> 47110498227 | N8: =SUMIFS(insumos2!$R$2:$R$399999,insumos2!$J$2:$J$399999,"Aprobado con subsidio",insumos2!$N$2:$N$399999,Hoja4!H8) -> 25492 | O8: =SUMIFS(insumos2!$Q$2:$Q$399999,insumos2!$J$2:$J$399999,"Aprobado con subsidio",insumos2!$N$2:$N$399999,Hoja4!H8) -> 18246 | P8: =SUMIFS(insumos2!$S$2:$S$399999,insumos2!$J$2:$J$399999,"Aprobado con subsidio",insumos2!$N$2:$N$399999,Hoja4!H8) -> 19 | Q8: información y comunicaciones | R8: 71.5753962 | T8: 13 | U8: BOLÍVAR | V8: =(VLOOKUP(T8,_xlfn.ANCHORARRAY(insumos2!$AB$2),2,0)/SUM(insumos2!$AC$2:$AC$34)) -> 0.01966248038 | W8: =VLOOKUP(T8,insumos2!$BJ$2:$BK$34,2,FALSE)/insumos2!$BQ$30 -> 0 | Z8: EDUCACIÓN | AA8: P | AD8: COMERCIO AL POR MAYOR Y AL POR MENOR; REPARACIÓN DE VEHÍCULOS AUTOMOTORES Y MOTOCICLETAS | AE8: G | AF8: Comercio al por mayor y al por menor; reparación de vehículos automotores y motocicletas
A9: TRANSPORTE Y ALMACENAMIENTO | B9: H | C9: Transporte y almacenamiento | D9: H | E9: =COUNTIFS(insumos2!$N$2:$N$399999,Hoja4!D9,insumos2!$J$2:$J$399999,"Aprobado con subsidio") -> 1107 | G9: =MID(VLOOKUP(H9,$B$2:$C$23,2,FALSE),1,42) -> Actividades de atención de la salud humana | H9: Q | I9: 1131 | J9: 0.0443877551 | K9: =SUMIFS(insumos2!$E$2:$E$399999,insumos2!$J$2:$J$399999,"Aprobado con subsidio",insumos2!$N$2:$N$399999,Hoja4!H9) -> 41751 | L9: 0.04900518914 | M9: =SUMIFS(insumos1!$K$2:$K$372158,insumos1!$H$2:$H$372158,Hoja4!H9) -> 40546714122 | N9: =SUMIFS(insumos2!$R$2:$R$399999,insumos2!$J$2:$J$399999,"Aprobado con subsidio",insumos2!$N$2:$N$399999,Hoja4!H9) -> 7021 | O9: =SUMIFS(insumos2!$Q$2:$Q$399999,insumos2!$J$2:$J$399999,"Aprobado con subsidio",insumos2!$N$2:$N$399999,Hoja4!H9) -> 34715 | P9: =SUMIFS(insumos2!$S$2:$S$399999,insumos2!$J$2:$J$399999,"Aprobado con subsidio",insumos2!$N$2:$N$399999,Hoja4!H9) -> 15 | Q9: Actividades de atención de la salud humana | R9: 494.4452357 | T9: 66 | U9: RISARALDA | V9: =(VLOOKUP(T9,_xlfn.ANCHORARRAY(insumos2!$AB$2),2,0)/SUM(insumos2!$AC$2:$AC$34)) -> 0.0240188383 | W9: =VLOOKUP(T9,insumos2!$BJ$2:$BK$34,2,FALSE)/insumos2!$BQ$30 -> 0 | Z9: CONSTRUCCIÓN | AA9: F | AD9: TRANSPORTE Y ALMACENAMIENTO | AE9: H | AF9: Transporte y almacenamiento
A10: ALOJAMIENTO Y SERVICIOS DE COMIDA | B10: I | C10: Alojamiento y servicios de comida | D10: I | E10: =COUNTIFS(insumos2!$N$2:$N$399999,Hoja4!D10,insumos2!$J$2:$J$399999,"Aprobado con subsidio") -> 1524 | G10: =MID(VLOOKUP(H10,$B$2:$C$23,2,FALSE),1,30) -> Transporte y almacenamiento | H10: H | I10: 1107 | J10: 0.04344583987 | K10: =SUMIFS(insumos2!$E$2:$E$399999,insumos2!$J$2:$J$399999,"Aprobado con subsidio",insumos2!$N$2:$N$399999,Hoja4!H10) -> 36703 | L10: 0.04308010484 | M10: =SUMIFS(insumos1!$K$2:$K$372158,insumos1!$H$2:$H$372158,Hoja4!H10) -> 32636013792 | N10: =SUMIFS(insumos2!$R$2:$R$399999,insumos2!$J$2:$J$399999,"Aprobado con subsidio",insumos2!$N$2:$N$399999,Hoja4!H10) -> 24110 | O10: =SUMIFS(insumos2!$Q$2:$Q$399999,insumos2!$J$2:$J$399999,"Aprobado con subsidio",insumos2!$N$2:$N$399999,Hoja4!H10) -> 12574 | P10: =SUMIFS(insumos2!$S$2:$S$399999,insumos2!$J$2:$J$399999,"Aprobado con subsidio",insumos2!$N$2:$N$399999,Hoja4!H10) -> 19 | Q10: Transporte y almacenamiento | R10: 52.15263376 | T10: 54 | U10: NORTE DE SANTANDER | V10: =(VLOOKUP(T10,_xlfn.ANCHORARRAY(insumos2!$AB$2),2,0)/SUM(insumos2!$AC$2:$AC$34)) -> 0.02566718995 | W10: =VLOOKUP(T10,insumos2!$BJ$2:$BK$34,2,FALSE)/insumos2!$BQ$30 -> 0 | Z10: ACTIVIDADES PROFESIONALES, CIENTÍFICAS Y TÉCNICAS | AA10: M | AD10: ALOJAMIENTO Y SERVICIOS DE COMIDA | AE10: I | AF10: Alojamiento y servicios de comida
A11: INFORMACIÓN Y COMUNICACIONES | B11: J | C11: información y comunicaciones | D11: J | E11: =COUNTIFS(insumos2!$N$2:$N$399999,Hoja4!D11,insumos2!$J$2:$J$399999,"Aprobado con subsidio") -> 1306 | G11: =MID(VLOOKUP(H11,$B$2:$C$23,2,FALSE),1,30) -> Educación | H11: P | I11: 774 | J11: 0.03037676609 | K11: =SUMIFS(insumos2!$E$2:$E$399999,insumos2!$J$2:$J$399999,"Aprobado con subsidio",insumos2!$N$2:$N$399999,Hoja4!H11) -> 13234 | L11: 0.01553339257 | M11: =SUMIFS(insumos1!$K$2:$K$372158,insumos1!$H$2:$H$372158,Hoja4!H11) -> 10291094708 | N11: =SUMIFS(insumos2!$R$2:$R$399999,insumos2!$J$2:$J$399999,"Aprobado con subsidio",insumos2!$N$2:$N$399999,Hoja4!H11) -> 2701 | O11: =SUMIFS(insumos2!$Q$2:$Q$399999,insumos2!$J$2:$J$399999,"Aprobado con subsidio",insumos2!$N$2:$N$399999,Hoja4!H11) -> 10526 | P11: =SUMIFS(insumos2!$S$2:$S$399999,insumos2!$J$2:$J$399999,"Aprobado con subsidio",insumos2!$N$2:$N$399999,Hoja4!H11) -> 7 | Q11: Educación | R11: 389.7075157 | T11: 15 | U11: BOYACÁ | V11: =(VLOOKUP(T11,_xlfn.ANCHORARRAY(insumos2!$AB$2),2,0)/SUM(insumos2!$AC$2:$AC$34)) -> 0.01534536892 | W11: =VLOOKUP(T11,insumos2!$BJ$2:$BK$34,2,FALSE)/insumos2!$BQ$30 -> 0 | Z11: ACTIVIDADES DE SERVICIOS ADMINISTRATIVOS Y DE APOYO | AA11: N | AD11: INFORMACIÓN Y COMUNICACIONES | AE11: J | AF11: información y comunicaciones
A12: ACTIVIDADES FINANCIERAS Y DE SEGUROS | B12: K | C12: Actividades financieras y de seguros | D12: K | E12: =COUNTIFS(insumos2!$N$2:$N$399999,Hoja4!D12,insumos2!$J$2:$J$399999,"Aprobado con subsidio") -> 393 | G12: =MID(VLOOKUP(H12,$B$2:$C$23,2,FALSE),1,30) -> Agricultura, ganadería, caza, | H12: A | I12: 689 | J12: 0.02704081633 | K12: =SUMIFS(insumos2!$E$2:$E$399999,insumos2!$J$2:$J$399999,"Aprobado con subsidio",insumos2!$N$2:$N$399999,Hoja4!H12) -> 24575 | L12: 0.02884487852 | M12: =SUMIFS(insumos1!$K$2:$K$372158,insumos1!$H$2:$H$372158,Hoja4!H12) -> 20648523653 | N12: =SUMIFS(insumos2!$R$2:$R$399999,insumos2!$J$2:$J$399999,"Aprobado con subsidio",insumos2!$N$2:$N$399999,Hoja4!H12) -> 12253 | O12: =SUMIFS(insumos2!$Q$2:$Q$399999,insumos2!$J$2:$J$399999,"Aprobado con subsidio",insumos2!$N$2:$N$399999,Hoja4!H12) -> 12303 | P12: =SUMIFS(insumos2!$S$2:$S$399999,insumos2!$J$2:$J$399999,"Aprobado con subsidio",insumos2!$N$2:$N$399999,Hoja4!H12) -> 19 | Q12: Agricultura, ganadería, caza, | R12: 100.4080633 | T12: 73 | U12: TOLIMA | V12: =(VLOOKUP(T12,_xlfn.ANCHORARRAY(insumos2!$AB$2),2,0)/SUM(insumos2!$AC$2:$AC$34)) -> 0.01824960754 | W12: =VLOOKUP(T12,insumos2!$BJ$2:$BK$34,2,FALSE)/insumos2!$BQ$30 -> 0 | Z12: ACTIVIDADES ARTÍSTICAS, DE ENTRETENIMIENTO Y RECREACIÓN | AA12: R | AD12: ACTIVIDADES FINANCIERAS Y DE SEGUROS | AE12: K | AF12: Actividades financieras y de seguros
A13: ACTIVIDADES INMOBILIARIAS | B13: L | C13: Actividades inmobiliarias | D13: L | E13: =COUNTIFS(insumos2!$N$2:$N$399999,Hoja4!D13,insumos2!$J$2:$J$399999,"Aprobado con subsidio") -> 462 | G13: =MID(VLOOKUP(H13,$B$2:$C$23,2,FALSE),1,30) -> Otras actividades de servicios | H13: S | I13: 463 | J13: 0.0181711146 | K13: =SUMIFS(insumos2!$E$2:$E$399999,insumos2!$J$2:$J$399999,"Aprobado con subsidio",insumos2!$N$2:$N$399999,Hoja4!H13) -> 8726 | L13: 0.01024213265 | M13: =SUMIFS(insumos1!$K$2:$K$372158,insumos1!$H$2:$H$372158,Hoja4!H13) -> 7626641657 | N13: =SUMIFS(insumos2!$R$2:$R$399999,insumos2!$J$2:$J$399999,"Aprobado con subsidio",insumos2!$N$2:$N$399999,Hoja4!H13) -> 2987 | O13: =SUMIFS(insumos2!$Q$2:$Q$399999,insumos2!$J$2:$J$399999,"Aprobado con subsidio",insumos2!$N$2:$N$399999,Hoja4!H13) -> 5731 | P13: =SUMIFS(insumos2!$S$2:$S$399999,insumos2!$J$2:$J$399999,"Aprobado con subsidio",insumos2!$N$2:$N$399999,Hoja4!H13) -> 8 | Q13: Otras actividades de servicios | R13: 191.8647472 | T13: 17 | U13: CALDAS | V13: =(VLOOKUP(T13,_xlfn.ANCHORARRAY(insumos2!$AB$2),2,0)/SUM(insumos2!$AC$2:$AC$34)) -> 0.0171899529 | W13: =VLOOKUP(T13,insumos2!$BJ$2:$BK$34,2,FALSE)/insumos2!$BQ$30 -> 0 | Z13: ACTIVIDADES INMOBILIARIAS | AA13: L | AD13: ACTIVIDADES INMOBILIARIAS | AE13: L | AF13: Actividades inmobiliarias
A14: ACTIVIDADES PROFESIONALES, CIENTÍFICAS Y TÉCNICAS | B14: M | C14: Actividades profesionales, científicas y técnicas | D14: M | E14: =COUNTIFS(insumos2!$N$2:$N$399999,Hoja4!D14,insumos2!$J$2:$J$399999,"Aprobado con subsidio") -> 3147 | G14: =MID(VLOOKUP(H14,$B$2:$C$23,2,FALSE),1,34) -> Actividades inmobiliarias | H14: L | I14: 462 | J14: 0.01813186813 | K14: =SUMIFS(insumos2!$E$2:$E$399999,insumos2!$J$2:$J$399999,"Aprobado con subsidio",insumos2!$N$2:$N$399999,Hoja4!H14) -> 3497 | L14: 0.004104599804 | M14: =SUMIFS(insumos1!$K$2:$K$372158,insumos1!$H$2:$H$372158,Hoja4!H14) -> 2700591472 | N14: =SUMIFS(insumos2!$R$2:$R$399999,insumos2!$J$2:$J$399999,"Aprobado con subsidio",insumos2!$N$2:$N$399999,Hoja4!H14) -> 1477 | O14: =SUMIFS(insumos2!$Q$2:$Q$399999,insumos2!$J$2:$J$399999,"Aprobado con subsidio",insumos2!$N$2:$N$399999,Hoja4!H14) -> 2017 | P14: =SUMIFS(insumos2!$S$2:$S$399999,insumos2!$J$2:$J$399999,"Aprobado con subsidio",insumos2!$N$2:$N$399999,Hoja4!H14) -> 3 | Q14: Actividades inmobiliarias | R14: 136.5605958 | T14: 50 | U14: META | V14: =(VLOOKUP(T14,_xlfn.ANCHORARRAY(insumos2!$AB$2),2,0)/SUM(insumos2!$AC$2:$AC$34)) -> 0.01750392465 | W14: =VLOOKUP(T14,insumos2!$BJ$2:$BK$34,2,FALSE)/insumos2!$BQ$30 -> 0.1111111111 | Z14: EXPLOTACIÓN DE MINAS Y CANTERAS | AA14: B | AD14: ACTIVIDADES PROFESIONALES, CIENTÍFICAS Y TÉCNICAS | AE14: M | AF14: Actividades profesionales, científicas y técnicas
A15: ACTIVIDADES DE SERVICIOS ADMINISTRATIVOS Y DE APOYO | B15: N | C15: Actividades de servicios administrativos y de apoyo | D15: N | E15: =COUNTIFS(insumos2!$N$2:$N$399999,Hoja4!D15,insumos2!$J$2:$J$399999,"Aprobado con subsidio") -> 1888 | G15: =MID(VLOOKUP(H15,$B$2:$C$23,2,FALSE),1,40) -> Actividades financieras y de seguros | H15: K | I15: 393 | J15: 0.01542386185 | K15: =SUMIFS(insumos2!$E$2:$E$399999,insumos2!$J$2:$J$399999,"Aprobado con subsidio",insumos2!$N$2:$N$399999,Hoja4!H15) -> 9023 | L15: 0.01059073607 | M15: =SUMIFS(insumos1!$K$2:$K$372158,insumos1!$H$2:$H$372158,Hoja4!H15) -> 8151014445 | N15: =SUMIFS(insumos2!$R$2:$R$399999,insumos2!$J$2:$J$399999,"Aprobado con subsidio",insumos2!$N$2:$N$399999,Hoja4!H15) -> 2478 | O15: =SUMIFS(insumos2!$Q$2:$Q$399999,insumos2!$J$2:$J$399999,"Aprobado con subsidio",insumos2!$N$2:$N$399999,Hoja4!H15) -> 6544 | P15: =SUMIFS(insumos2!$S$2:$S$399999,insumos2!$J$2:$J$399999,"Aprobado con subsidio",insumos2!$N$2:$N$399999,Hoja4!H15) -> 1 | Q15: Actividades financieras y de seguros | R15: 264.0839387 | T15: 41 | U15: HUILA | V15: =(VLOOKUP(T15,_xlfn.ANCHORARRAY(insumos2!$AB$2),2,0)/SUM(insumos2!$AC$2:$AC$34)) -> 0.01534536892 | W15: =VLOOKUP(T15,insumos2!$BJ$2:$BK$34,2,FALSE)/insumos2!$BQ$30 -> 0 | Z15: OTRAS ACTIVIDADES DE SERVICIOS | AA15: S | AD15: ACTIVIDADES DE SERVICIOS ADMINISTRATIVOS Y DE APOYO | AE15: N | AF15: Actividades de servicios administrativos y de apoyo
A16: ADMINISTRACIÓN PÚBLICA Y DEFENSA; PLANES DE SEGURIDAD SOCIAL DE AFILIACIÓN OBLIGATORIA | B16: O | C16: Administración pública y defensa; planes de seguridad social de afiliación obligatoria | D16: O | E16: =COUNTIFS(insumos2!$N$2:$N$399999,Hoja4!D16,insumos2!$J$2:$J$399999,"Aprobado con subsidio") -> 24 | G16: =MID(VLOOKUP(H16,$B$2:$C$23,2,FALSE),1,35) -> Actividades artísticas de entreteni | H16: R | I16: 289 | J16: 0.0113422292 | K16: =SUMIFS(insumos2!$E$2:$E$399999,insumos2!$J$2:$J$399999,"Aprobado con subsidio",insumos2!$N$2:$N$399999,Hoja4!H16) -> 10288 | L16: 0.01207552839 | M16: =SUMIFS(insumos1!$K$2:$K$372158,insumos1!$H$2:$H$372158,Hoja4!H16) -> 10117040805 | N16: =SUMIFS(insumos2!$R$2:$R$399999,insumos2!$J$2:$J$399999,"Aprobado con subsidio",insumos2!$N$2:$N$399999,Hoja4!H16) -> 2802 | O16: =SUMIFS(insumos2!$Q$2:$Q$399999,insumos2!$J$2:$J$399999,"Aprobado con subsidio",insumos2!$N$2:$N$399999,Hoja4!H16) -> 7481 | P16: =SUMIFS(insumos2!$S$2:$S$399999,insumos2!$J$2:$J$399999,"Aprobado con subsidio",insumos2!$N$2:$N$399999,Hoja4!H16) -> 5 | Q16: Actividades artísticas de entreteni | R16: 266.9878658 | T16: 52 | U16: NARIÑO | V16: =(VLOOKUP(T16,_xlfn.ANCHORARRAY(insumos2!$AB$2),2,0)/SUM(insumos2!$AC$2:$AC$34)) -> 0.01412872841 | W16: =VLOOKUP(T16,insumos2!$BJ$2:$BK$34,2,FALSE)/insumos2!$BQ$30 -> 0 | Z16: ACTIVIDADES FINANCIERAS Y DE SEGUROS | AA16: K | AD16: ADMINISTRACIÓN PÚBLICA Y DEFENSA; PLANES DE SEGURIDAD SOCIAL DE AFILIACIÓN OBLIGATORIA | AE16: O | AF16: Administración pública y defensa; planes de seguridad social de afiliación obligatoria
A17: EDUCACIÓN | B17: P | C17: Educación | D17: P | E17: =COUNTIFS(insumos2!$N$2:$N$399999,Hoja4!D17,insumos2!$J$2:$J$399999,"Aprobado con subsidio") -> 774 | G17: =MID(VLOOKUP(H17,$B$2:$C$23,2,FALSE),1,31) -> Explotación de minas y canteras | H17: B | I17: 116 | J17: 0.004552590267 | K17: =SUMIFS(insumos2!$E$2:$E$399999,insumos2!$J$2:$J$399999,"Aprobado con subsidio",insumos2!$N$2:$N$399999,Hoja4!H17) -> 4729 | L17: 0.005550658414 | M17: =SUMIFS(insumos1!$K$2:$K$372158,insumos1!$H$2:$H$372158,Hoja4!H17) -> 3397713793 | N17: =SUMIFS(insumos2!$R$2:$R$399999,insumos2!$J$2:$J$399999,"Aprobado con subsidio",insumos2!$N$2:$N$399999,Hoja4!H17) -> 3702 | O17: =SUMIFS(insumos2!$Q$2:$Q$399999,insumos2!$J$2:$J$399999,"Aprobado con subsidio",insumos2!$N$2:$N$399999,Hoja4!H17) -> 1027 | P17: =SUMIFS(insumos2!$S$2:$S$399999,insumos2!$J$2:$J$399999,"Aprobado con subsidio",insumos2!$N$2:$N$399999,Hoja4!H17) -> 0 | Q17: Explotación de minas y canteras | R17: 27.74176121 | T17: 23 | U17: CÓRDOBA | V17: =(VLOOKUP(T17,_xlfn.ANCHORARRAY(insumos2!$AB$2),2,0)/SUM(insumos2!$AC$2:$AC$34)) -> 0.009026687598 | W17: =VLOOKUP(T17,insumos2!$BJ$2:$BK$34,2,FALSE)/insumos2!$BQ$30 -> 0 | Z17: ACTIVIDADES DE ATENCIÓN DE LA SALUD HUMANA Y DE ASISTENCIA SOCIAL | AA17: Q | AD17: OTRAS | AE17: Otras | AF17: Otras
A18: ACTIVIDADES DE ATENCIÓN DE LA SALUD HUMANA Y DE ASISTENCIA SOCIAL | B18: Q | C18: Actividades de atención de la salud humana y de asistencia social | D18: Q | E18: =COUNTIFS(insumos2!$N$2:$N$399999,Hoja4!D18,insumos2!$J$2:$J$399999,"Aprobado con subsidio") -> 1131 | G18: =MID(VLOOKUP(H18,$B$2:$C$23,2,FALSE),1,20) -> Distribución de agua | H18: E | I18: 97 | J18: 0.003806907378 | K18: =SUMIFS(insumos2!$E$2:$E$399999,insumos2!$J$2:$J$399999,"Aprobado con subsidio",insumos2!$N$2:$N$399999,Hoja4!H18) -> 3105 | L18: 0.003644490247 | M18: =SUMIFS(insumos1!$K$2:$K$372158,insumos1!$H$2:$H$372158,Hoja4!H18) -> 2126694899 | N18: =SUMIFS(insumos2!$R$2:$R$399999,insumos2!$J$2:$J$399999,"Aprobado con subsidio",insumos2!$N$2:$N$399999,Hoja4!H18) -> 2176 | O18: =SUMIFS(insumos2!$Q$2:$Q$399999,insumos2!$J$2:$J$399999,"Aprobado con subsidio",insumos2!$N$2:$N$399999,Hoja4!H18) -> 925 | P18: =SUMIFS(insumos2!$S$2:$S$399999,insumos2!$J$2:$J$399999,"Aprobado con subsidio",insumos2!$N$2:$N$399999,Hoja4!H18) -> 4 | Q18: Distribución de agua | R18: 42.50919118 | T18: 63 | U18: QUINDÍO | V18: =(VLOOKUP(T18,_xlfn.ANCHORARRAY(insumos2!$AB$2),2,0)/SUM(insumos2!$AC$2:$AC$34)) -> 0.01263736264 | W18: =VLOOKUP(T18,insumos2!$BJ$2:$BK$34,2,FALSE)/insumos2!$BQ$30 -> 0 | Z18: INFORMACIÓN Y COMUNICACIONES | AA18: J | AD18: EDUCACIÓN | AE18: P | AF18: Educación
A19: ACTIVIDADES ARTÍSTICAS, DE ENTRETENIMIENTO Y RECREACIÓN | B19: R | C19: Actividades artísticas de entretenimiento y recreación | D19: R | E19: =COUNTIFS(insumos2!$N$2:$N$399999,Hoja4!D19,insumos2!$J$2:$J$399999,"Aprobado con subsidio") -> 289 | G19: =MID(VLOOKUP(H19,$B$2:$C$23,2,FALSE),1,32) -> Suministro de electricidad, gas, | H19: D | I19: 36 | J19: 0.001412872841 | K19: =SUMIFS(insumos2!$E$2:$E$399999,insumos2!$J$2:$J$399999,"Aprobado con subsidio",insumos2!$N$2:$N$399999,Hoja4!H19) -> 663 | L19: 0.000778195502 | M19: =SUMIFS(insumos1!$K$2:$K$372158,insumos1!$H$2:$H$372158,Hoja4!H19) -> 548264426 | N19: =SUMIFS(insumos2!$R$2:$R$399999,insumos2!$J$2:$J$399999,"Aprobado con subsidio",insumos2!$N$2:$N$399999,Hoja4!H19) -> 380 | O19: =SUMIFS(insumos2!$Q$2:$Q$399999,insumos2!$J$2:$J$399999,"Aprobado con subsidio",insumos2!$N$2:$N$399999,Hoja4!H19) -> 283 | P19: =SUMIFS(insumos2!$S$2:$S$399999,insumos2!$J$2:$J$399999,"Aprobado con subsidio",insumos2!$N$2:$N$399999,Hoja4!H19) -> 0 | Q19: Suministro de electricidad, gas, | R19: 74.47368421 | T19: 47 | U19: MAGDALENA | V19: =(VLOOKUP(T19,_xlfn.ANCHORARRAY(insumos2!$AB$2),2,0)/SUM(insumos2!$AC$2:$AC$34)) -> 0.00953689168 | W19: =VLOOKUP(T19,insumos2!$BJ$2:$BK$34,2,FALSE)/insumos2!$BQ$30 -> 0 | Z19: ACTIVIDADES DE LOS HOGARES INDIVIDUALES EN CALIDAD DE EMPLEADORES; ACTIVIDADES NO DIFERENCIADAS DE LOS HOGARES INDIVIDUALES COMO PRODUCTORES DE BIENES Y SERVICIOS PARA USO PROPIO | AA19: T | AD19: ACTIVIDADES DE ATENCIÓN DE LA SALUD HUMANA Y DE ASISTENCIA SOCIAL | AE19: Q | AF19: Actividades de atención de la salud humana y de asistencia social
A20: OTRAS ACTIVIDADES DE SERVICIOS | B20: S | C20: Otras actividades de servicios | D20: S | E20: =COUNTIFS(insumos2!$N$2:$N$399999,Hoja4!D20,insumos2!$J$2:$J$399999,"Aprobado con subsidio") -> 463 | G20: =MID(VLOOKUP(H20,$B$2:$C$23,2,FALSE),1,33) -> Administración pública y defensa; | H20: O | I20: 24 | J20: 0.0009419152276 | K20: =SUMIFS(insumos2!$E$2:$E$399999,insumos2!$J$2:$J$399999,"Aprobado con subsidio",insumos2!$N$2:$N$399999,Hoja4!H20) -> 6732 | L20: 0.007901677405 | M20: =SUMIFS(insumos1!$K$2:$K$372158,insumos1!$H$2:$H$372158,Hoja4!H20) -> 6439538041 | N20: =SUMIFS(insumos2!$R$2:$R$399999,insumos2!$J$2:$J$399999,"Aprobado con subsidio",insumos2!$N$2:$N$399999,Hoja4!H20) -> 1231 | O20: =SUMIFS(insumos2!$Q$2:$Q$399999,insumos2!$J$2:$J$399999,"Aprobado con subsidio",insumos2!$N$2:$N$399999,Hoja4!H20) -> 5500 | P20: =SUMIFS(insumos2!$S$2:$S$399999,insumos2!$J$2:$J$399999,"Aprobado con subsidio",insumos2!$N$2:$N$399999,Hoja4!H20) -> 1 | Q20: Administración pública y defensa; | R20: 446.7912266 | T20: 20 | U20: CESAR | V20: =(VLOOKUP(T20,_xlfn.ANCHORARRAY(insumos2!$AB$2),2,0)/SUM(insumos2!$AC$2:$AC$34)) -> 0.00773155416 | W20: =VLOOKUP(T20,insumos2!$BJ$2:$BK$34,2,FALSE)/insumos2!$BQ$30 -> 0 | Z20: SUMINISTRO DE ELECTRICIDAD, GAS, VAPOR Y AIRE ACONDICIONADO | AA20: D | AD20: ACTIVIDADES ARTÍSTICAS, DE ENTRETENIMIENTO Y RECREACIÓN | AE20: R | AF20: Actividades artísticas de entretenimiento y recreación
A21: ACTIVIDADES DE LOS HOGARES INDIVIDUALES EN CALIDAD DE EMPLEADORES; ACTIVIDADES NO DIFERENCIADAS DE LOS HOGARES INDIVIDUALES COMO PRODUCTORES DE BIENES Y SERVICIOS PARA USO PROPIO | B21: T | C21: Actividad de los hogares en calidad de empleadores; actividades no diferenciadas de los hogares individuales como productores de bienes y servicios para uso propio | D21: T | E21: =COUNTIFS(insumos2!$N$2:$N$399999,Hoja4!D21,insumos2!$J$2:$J$399999,"Aprobado con subsidio") -> 9 | G21: =MID(VLOOKUP(H21,$B$2:$C$23,2,FALSE),1,30) -> Otras | H21: Otras | I21: 13 | J21: 0.0005102040816 | K21: =SUMIFS(insumos2!$E$2:$E$399999,insumos2!$J$2:$J$399999,"Aprobado con subsidio",insumos2!$N$2:$N$399999,Hoja4!H21) -> 29 | L21: 3.403871728e-05 | M21: =SUMIFS(insumos1!$K$2:$K$372158,insumos1!$H$2:$H$372158,Hoja4!H21) -> 14041620 | N21: =SUMIFS(insumos2!$R$2:$R$399999,insumos2!$J$2:$J$399999,"Aprobado con subsidio",insumos2!$N$2:$N$399999,Hoja4!H21) -> 18 | O21: =SUMIFS(insumos2!$Q$2:$Q$399999,insumos2!$J$2:$J$399999,"Aprobado con subsidio",insumos2!$N$2:$N$399999,Hoja4!H21) -> 11 | P21: =SUMIFS(insumos2!$S$2:$S$399999,insumos2!$J$2:$J$399999,"Aprobado con subsidio",insumos2!$N$2:$N$399999,Hoja4!H21) -> 0 | Q21: Otras | R21: 61.11111111 | T21: 19 | U21: CAUCA | V21: =(VLOOKUP(T21,_xlfn.ANCHORARRAY(insumos2!$AB$2),2,0)/SUM(insumos2!$AC$2:$AC$34)) -> 0.006397174254 | W21: =VLOOKUP(T21,insumos2!$BJ$2:$BK$34,2,FALSE)/insumos2!$BQ$30 -> 0 | Z21: DISTRIBUCIÓN DE AGUA; EVACUACIÓN Y TRATAMIENTO DE AGUAS RESIDUALES, GESTIÓN DE DESECHOS Y ACTIVIDADES DE SANEAMIENTO AMBIENTAL | AA21: E | AD21: OTRAS ACTIVIDADES DE SERVICIOS | AE21: S | AF21: Otras actividades de servicios
A22: ACTIVIDADES DE ORGANIZACIONES Y ENTIDADES EXTRATERRITORIALES | B22: U | C22: Actividad de organizaciones y entidades extraterritoriales | D22: U | E22: =COUNTIFS(insumos2!$N$2:$N$399999,Hoja4!D22,insumos2!$J$2:$J$399999,"Aprobado con subsidio") -> 0 | G22: =MID(VLOOKUP(H22,$B$2:$C$23,2,FALSE),1,24) -> Actividad de los hogares | H22: T | I22: 9 | J22: 0.0003532182104 | K22: =SUMIFS(insumos2!$E$2:$E$399999,insumos2!$J$2:$J$399999,"Aprobado con subsidio",insumos2!$N$2:$N$399999,Hoja4!H22) -> 112 | L22: 0.0001314598736 | M22: =SUMIFS(insumos1!$K$2:$K$372158,insumos1!$H$2:$H$372158,Hoja4!H22) -> 62279643 | N22: =SUMIFS(insumos2!$R$2:$R$399999,insumos2!$J$2:$J$399999,"Aprobado con subsidio",insumos2!$N$2:$N$399999,Hoja4!H22) -> 8 | O22: =SUMIFS(insumos2!$Q$2:$Q$399999,insumos2!$J$2:$J$399999,"Aprobado con subsidio",insumos2!$N$2:$N$399999,Hoja4!H22) -> 103 | P22: =SUMIFS(insumos2!$S$2:$S$399999,insumos2!$J$2:$J$399999,"Aprobado con subsidio",insumos2!$N$2:$N$399999,Hoja4!H22) -> 1 | Q22: Actividad de los hogares | R22: 1287.5 | T22: 85 | U22: CASANARE | V22: =(VLOOKUP(T22,_xlfn.ANCHORARRAY(insumos2!$AB$2),2,0)/SUM(insumos2!$AC$2:$AC$34)) -> 0.005965463108 | W22: =VLOOKUP(T22,insumos2!$BJ$2:$BK$34,2,FALSE)/insumos2!$BQ$30 -> 0 | Z22: ADMINISTRACIÓN PÚBLICA Y DEFENSA; PLANES DE SEGURIDAD SOCIAL DE AFILIACIÓN OBLIGATORIA | AA22: O | AD22: ACTIVIDADES DE LOS HOGARES INDIVIDUALES EN CALIDAD DE EMPLEADORES; ACTIVIDADES NO DIFERENCIADAS DE LOS HOGARES INDIVIDUALES COMO PRODUCTORES DE BIENES Y SERVICIOS PARA USO PROPIO | AE22: T | AF22: Actividad de los hogares en calidad de empleadores; actividades no diferenciadas de los hogares individuales como productores de bienes y servicios para uso propio
A23: OTRAS | B23: Otras | C23: Otras | D23: Otras | E23: =COUNTIFS(insumos2!$N$2:$N$399999,Hoja4!D23,insumos2!$J$2:$J$399999,"Aprobado con subsidio") -> 13 | G23: =MID(VLOOKUP(H23,$B$2:$C$23,2,FALSE),1,45) -> Actividad de organizaciones y entidades extra | H23: U | I23: 0 | J23: 0 | K23: =SUMIFS(insumos2!$E$2:$E$399999,insumos2!$J$2:$J$399999,"Aprobado con subsidio",insumos2!$N$2:$N$399999,Hoja4!H23) -> 0 | L23: 0 | M23: =SUMIFS(insumos1!$K$2:$K$372158,insumos1!$H$2:$H$372158,Hoja4!H23) -> 0 | N23: =SUMIFS(insumos2!$R$2:$R$399999,insumos2!$J$2:$J$399999,"Aprobado con subsidio",insumos2!$N$2:$N$399999,Hoja4!H23) -> 0 | O23: =SUMIFS(insumos2!$Q$2:$Q$399999,insumos2!$J$2:$J$399999,"Aprobado con subsidio",insumos2!$N$2:$N$399999,Hoja4!H23) -> 0 | P23: =SUMIFS(insumos2!$S$2:$S$399999,insumos2!$J$2:$J$399999,"Aprobado con subsidio",insumos2!$N$2:$N$399999,Hoja4!H23) -> 0 | Q23: Actividad de organizaciones y entidades extra | T23: 70 | U23: SUCRE | V23: =(VLOOKUP(T23,_xlfn.ANCHORARRAY(insumos2!$AB$2),2,0)/SUM(insumos2!$AC$2:$AC$34)) -> 0.003885400314 | W23: =VLOOKUP(T23,insumos2!$BJ$2:$BK$34,2,FALSE)/insumos2!$BQ$30 -> 0
E24: =SUM(E2:E23) -> 25480 | H24: General | I24: =SUM(I2:I23) -> 25480 | K24: =SUM(K2:K23) -> 851971 | M24: =SUM(M2:M23) -> 721584022663 | N24: =SUM(N2:N23) -> 382878 | O24: =SUM(O2:O23) -> 468327 | P24: =SUM(P2:P23) -> 766 | T24: 18 | U24: CAQUETÁ | V24: =(VLOOKUP(T24,_xlfn.ANCHORARRAY(insumos2!$AB$2),2,0)/SUM(insumos2!$AC$2:$AC$34)) -> 0.004160125589 | W24: =VLOOKUP(T24,insumos2!$BJ$2:$BK$34,2,FALSE)/insumos2!$BQ$30 -> 0
T25: 44 | U25: LA GUAJIRA | V25: =(VLOOKUP(T25,_xlfn.ANCHORARRAY(insumos2!$AB$2),2,0)/SUM(insumos2!$AC$2:$AC$34)) -> 0.002119309262 | W25: =VLOOKUP(T25,insumos2!$BJ$2:$BK$34,2,FALSE)/insumos2!$BQ$30 -> 0
T26: 88 | U26: SAN ANDRÉS | V26: =(VLOOKUP(T26,_xlfn.ANCHORARRAY(insumos2!$AB$2),2,0)/SUM(insumos2!$AC$2:$AC$34)) -> 0.001059654631 | W26: =VLOOKUP(T26,insumos2!$BJ$2:$BK$34,2,FALSE)/insumos2!$BQ$30 -> 0
T27: 81 | U27: ARAUCA | V27: =(VLOOKUP(T27,_xlfn.ANCHORARRAY(insumos2!$AB$2),2,0)/SUM(insumos2!$AC$2:$AC$34)) -> 0.002119309262 | W27: =VLOOKUP(T27,insumos2!$BJ$2:$BK$34,2,FALSE)/insumos2!$BQ$30 -> 0
A28: Código | B28: Nombre | D28: Municipio | T28: 86 | U28: PUTUMAYO | V28: =(VLOOKUP(T28,_xlfn.ANCHORARRAY(insumos2!$AB$2),2,0)/SUM(insumos2!$AC$2:$AC$34)) -> 0.002080062794 | W28: =VLOOKUP(T28,insumos2!$BJ$2:$BK$34,2,FALSE)/insumos2!$BQ$30 -> 0
A29: 5 | B29: Antioquia | D29: Código | E29: Nombre | T29: 27 | U29: CHOCÓ | V29: =(VLOOKUP(T29,_xlfn.ANCHORARRAY(insumos2!$AB$2),2,0)/SUM(insumos2!$AC$2:$AC$34)) -> 0.0007064364207 | W29: =VLOOKUP(T29,insumos2!$BJ$2:$BK$34,2,FALSE)/insumos2!$BQ$30 -> 0
A30: 8 | B30: Atlántico | D30: 5001 | E30: Medellín | T30: 91 | U30: AMAZONAS | V30: =(VLOOKUP(T30,_xlfn.ANCHORARRAY(insumos2!$AB$2),2,0)/SUM(insumos2!$AC$2:$AC$34)) -> 0.0007064364207 | W30: =VLOOKUP(T30,insumos2!$BJ$2:$BK$34,2,FALSE)/insumos2!$BQ$30 -> 0
A31: 11 | B31: Bogotá | D31: 5002 | E31: Abejorral | T31: 95 | U31: GUAVIARE | V31: =(VLOOKUP(T31,_xlfn.ANCHORARRAY(insumos2!$AB$2),2,0)/SUM(insumos2!$AC$2:$AC$34)) -> 0.0003924646782 | W31: =VLOOKUP(T31,insumos2!$BJ$2:$BK$34,2,FALSE)/insumos2!$BQ$30 -> 0
A32: 13 | B32: Bolívar | D32: 5004 | E32: Abriaquí | T32: 99 | U32: VICHADA | V32: =(VLOOKUP(T32,_xlfn.ANCHORARRAY(insumos2!$AB$2),2,0)/SUM(insumos2!$AC$2:$AC$34)) -> 7.849293564e-05 | W32: =VLOOKUP(T32,insumos2!$BJ$2:$BK$34,2,FALSE)/insumos2!$BQ$30 -> 0
A33: 15 | B33: Boyacá | D33: 5021 | E33: Alejandría | T33: 94 | U33: GUAINÍA | V33: =(VLOOKUP(T33,_xlfn.ANCHORARRAY(insumos2!$AB$2),2,0)/SUM(insumos2!$AC$2:$AC$34)) -> 0.0001962323391 | W33: =VLOOKUP(T33,insumos2!$BJ$2:$BK$34,2,FALSE)/insumos2!$BQ$30 -> 0
A34: 17 | B34: Caldas | D34: 5030 | E34: Amagá | T34: 97 | U34: VAUPÉS | V34: =(VLOOKUP(T34,_xlfn.ANCHORARRAY(insumos2!$AB$2),2,0)/SUM(insumos2!$AC$2:$AC$34)) -> 7.849293564e-05 | W34: =VLOOKUP(T34,insumos2!$BJ$2:$BK$34,2,FALSE)/insumos2!$BQ$30 -> 0
A35: 18 | B35: Caquetá | D35: 5031 | E35: Amalfi | U35: Total general | V35: =SUM(V2:V34) -> 1 | W35: =SUM(W2:W34) -> 1
A36: 19 | B36: Cauca | D36: 5034 | E36: Andes
A37: 20 | B37: Cesar | D37: 5036 | E37: Angelópolis
A38: 23 | B38: Córdoba | D38: 5038 | E38: Angostura
A39: 25 | B39: Cundinamarca | D39: 5040 | E39: Anorí
A40: 27 | B40: Chocó | D40: 5042 | E40: Santa fé de anti
A41: 41 | B41: Huila | D41: 5044 | E41: Anzá
A42: 44 | B42: La guajira | D42: 5045 | E42: Apartadó
A43: 47 | B43: Magdalena | D43: 5051 | E43: Arboletes
A44: 50 | B44: Meta | D44: 5055 | E44: Argelia
A45: 52 | B45: Nariño | D45: 5059 | E45: Armenia
A46: 54 | B46: Norte de stder | D46: 5079 | E46: Barbosa
A47: 63 | B47: Quindío | D47: 5086 | E47: Belmira
A48: 66 | B48: Risaralda | D48: 5088 | E48: Bello
A49: 68 | B49: Santander | D49: 5091 | E49: Betania
A50: 70 | B50: Sucre | D50: 5093 | E50: Betulia
A51: 73 | B51: Tolima | D51: 5101 | E51: Ciudad bolívar
A52: 76 | B52: Valle del cauca | D52: 5107 | E52: Briceño
A53: 81 | B53: Arauca | D53: 5113 | E53: Buriticá
A54: 85 | B54: Casanare | D54: 5120 | E54: Cáceres
A55: 86 | B55: Putumayo | D55: 5125 | E55: Caicedo
A56: 88 | B56: San Andrés | D56: 5129 | E56: Caldas
A57: 91 | B57: Amazonas | D57: 5134 | E57: Campamento
A58: 94 | B58: Guainía | D58: 5138 | E58: Cañasgordas
A59: 95 | B59: Guaviare | D59: 5142 | E59: Caracolí
A60: 97 | B60: Vaupés | D60: 5145 | E60: Caramanta
A61: 99 | B61: Vichada | D61: 5147 | E61: Carepa
D62: 5148 | E62: El carmen de vib
D63: 5150 | E63: Carolina
D64: 5154 | E64: Caucasia
D65: 5172 | E65: Chigorodó
D66: 5190 | E66: Cisneros
D67: 5197 | E67: Cocorná
D68: 5206 | E68: Concepción
D69: 5209 | E69: Concordia
D70: 5212 | E70: Copacabana
D71: 5234 | E71: Dabeiba
D72: 5237 | E72: Donmatías
D73: 5240 | E73: Ebéjico
D74: 5250 | E74: El bagre
D75: 5264 | E75: Entrerríos
D76: 5266 | E76: Envigado
D77: 5282 | E77: Fredonia
D78: 5284 | E78: Frontino
D79: 5306 | E79: Giraldo
D80: 5308 | E80: Girardota
D81: 5310 | E81: Gómez plata
D82: 5313 | E82: Granada
D83: 5315 | E83: Guadalupe
D84: 5318 | E84: Guarne
D85: 5321 | E85: Guatapé
D86: 5347 | E86: Heliconia
D87: 5353 | E87: Hispania
D88: 5360 | E88: Itagüí
D89: 5361 | E89: Ituango
D90: 5364 | E90: Jardín
D91: 5368 | E91: Jericó
D92: 5376 | E92: La ceja
D93: 5380 | E93: La estrella
D94: 5390 | E94: La pintada
D95: 5400 | E95: La unión
D96: 5411 | E96: Liborina
D97: 5425 | E97: Maceo
D98: 5440 | E98: Marinilla
D99: 5467 | E99: Montebello
D100: 5475 | E100: Murindó
D101: 5480 | E101: Mutatá
D102: 5483 | E102: Nariño
D103: 5490 | E103: Necoclí
D104: 5495 | E104: Nechí
D105: 5501 | E105: Olaya
D106: 5541 | E106: Peñol
D107: 5543 | E107: Peque
D108: 5576 | E108: Pueblorrico
D109: 5579 | E109: Puerto berrío
D110: 5585 | E110: Puerto nare
D111: 5591 | E111: Puerto triunfo
D112: 5604 | E112: Remedios
D113: 5607 | E113: Retiro
D114: 5615 | E114: Rionegro
D115: 5628 | E115: Sabanalarga
D116: 5631 | E116: Sabaneta
D117: 5642 | E117: Salgar
D118: 5647 | E118: San andrés de cu
D119: 5649 | E119: San carlos
D120: 5652 | E120: San francisco
D121: 5656 | E121: San jerónimo
D122: 5658 | E122: San josé de la m
D123: 5659 | E123: San juan de urab
D124: 5660 | E124: San luis
D125: 5664 | E125: San pedro de los
D126: 5665 | E126: San pedro de ura
D127: 5667 | E127: San rafael
D128: 5670 | E128: San roque
D129: 5674 | E129: San vicente ferr
D130: 5679 | E130: Santa bárbara
D131: 5686 | E131: Santa rosa de os
D132: 5690 | E132: Santo domingo
D133: 5697 | E133: El santuario
D134: 5736 | E134: Segovia
D135: 5756 | E135: Sonsón
D136: 5761 | E136: Sopetrán
D137: 5789 | E137: Támesis
D138: 5790 | E138: Tarazá
D139: 5792 | E139: Tarso
D140: 5809 | E140: Titiribí
D141: 5819 | E141: Toledo
D142: 5837 | E142: Turbo
D143: 5842 | E143: Uramita
D144: 5847 | E144: Urrao
D145: 5854 | E145: Valdivia
D146: 5856 | E146: Valparaíso
D147: 5858 | E147: Vegachí
D148: 5861 | E148: Venecia
D149: 5873 | E149: Vigía del fuerte
D150: 5885 | E150: Yalí
D151: 5887 | E151: Yarumal
D152: 5890 | E152: Yolombó
D153: 5893 | E153: Yondó
D154: 5895 | E154: Zaragoza
D155: 8001 | E155: Barranquilla
D156: 8078 | E156: Baranoa
D157: 8137 | E157: Campo de la cruz
D158: 8141 | E158: Candelaria
D159: 8296 | E159: Galapa
D160: 8372 | E160: Juan de acosta
D161: 8421 | E161: Luruaco
D162: 8433 | E162: Malambo
D163: 8436 | E163: Manatí
D164: 8520 | E164: Palmar de varela
D165: 8549 | E165: Piojó
D166: 8558 | E166: Polonuevo
D167: 8560 | E167: Ponedera
D168: 8573 | E168: Puerto colombia
D169: 8606 | E169: Repelón
D170: 8634 | E170: Sabanagrande
D171: 8638 | E171: Sabanalarga
D172: 8675 | E172: Santa lucía
D173: 8685 | E173: Santo tomás
D174: 8758 | E174: Soledad
D175: 8770 | E175: Suan
D176: 8832 | E176: Tubará
D177: 8849 | E177: Usiacurí
D178: 11001 | E178: Bogotá, d.c.
D179: 13001 | E179: Cartagena de ind
D180: 13006 | E180: Achí
D181: 13030 | E181: Altos del rosari
D182: 13042 | E182: Arenal
D183: 13052 | E183: Arjona
D184: 13062 | E184: Arroyohondo
D185: 13074 | E185: Barranco de loba
D186: 13140 | E186: Calamar
D187: 13160 | E187: Cantagallo
D188: 13188 | E188: Cicuco
D189: 13212 | E189: Córdoba
D190: 13222 | E190: Clemencia
D191: 13244 | E191: El carmen de bol
D192: 13248 | E192: El guamo
D193: 13268 | E193: El peñón
D194: 13300 | E194: Hatillo de loba
D195: 13430 | E195: Magangué
D196: 13433 | E196: Mahates
D197: 13440 | E197: Margarita
D198: 13442 | E198: María la baja
D199: 13458 | E199: Montecristo
D200: 13468 | E200: Santa cruz de mo
... 950 more rows
